Workbook

Sheet Hoja1
A1: Afectación | B1: Inversión
A3: Número Proyecto | B3: Nombre del contratista (según el caso: nombres y apellidos o Razón social y Tipo societario) | C3: Suma de Valor Final | D3: Suma de Giros (Valor en pesos)
A4: 1760 | B4: IDARTES | C4: 163079837
A5: 1760 | B5: SECRETARIA DISTRITAL DE CULTURA RECREACION Y DEPORTE | C5: 41002163
A6: Total general | C6: 204082000

Sheet 1. INFORMACION ACUMULADA
A2: VEEDURIA DISTRITAL - INFORMACIÓN GESTION CONTRACTUAL
A3: DEL 1 DE ENERO AL 31 DE DICIEMBRE DE 2021
A5: 1. Entidad | E5: Fondo de desarrollo local de Fontibón | H5: 2. Sector | I5: Gobierno
A6: 3. Presupuesto Disponible Inversión Directa PREDIS (BOGDATA) | E6: 28298462943 | H6: 5. Presupuesto Disponible Funcionamiento PREDIS (BOGDATA) | I6: 3573000000 | AH6: 9. Nombre de quien diligencia el formato | AJ6: ANDREA ROCHA
A7: 4. Presupuesto Comprometido de Inversión Directa según PREDIS (BOGDATA) | E7: 27491453799 | H7: 6. Presupuesto Comprometido Funcionamiento según PREDIS (BOGDATA) | I7: 3306317701 | AH7: Cargo | AJ7: ABOGADA
AH8: Dependencia | AJ8: CONTRATACION
A9: 7. Presupuesto Disponible Operación (Régimen Privado) | AH9: Teléfono | AJ9: 3102419516
A10: 8. Presupuesto Comprometido Operación mediante contratos | AH10: Correo Electrónico | AJ10: johana.rocha@gobiernobogota.gov.co
A11: 1- INFORMACION GENERAL | V11: 2- INFORMACION FINANCIERA | AB11: 3 - PLAZOS | AH11: 4. CESION | AL11: 5. ESTADO | AP11: 6. % Avance y/o cumplimiento
A12: 1 | B12: 2 | C12: 3 | E12: 4 | F12: 5 | G12: 6 | H12: 7 | I12: 8 | N12: 9 | O12: 10 | P12: 11 | V12: 12 | W12: 13 | X12: 14 | Y12: 15 | Z12: 16 | AA12: 17 | AB12: 18 | AC12: 19 | AD12: 20 | AE12: 21 | AF12: 22 | AG12: 23 | AH12: 24 | AI12: 25 | AJ12: 26 | AK12: 27 | AL12: 28 | AP12: 29
A13: Número Contrato | B13: Año | C13: Número de proceso contractual SECOP | D13: Link proceso SECOP | E13: Tipo de contrato | F13: Modalidad de Selección | G13: Procedimiento o causal | H13: Objeto | I13: Afectación | J13: Plan de Desarrollo Distrital | K13: Número Programa | L13: Equivalencia número de programa | M13: Propósito | N13: Número Proyecto | O13: Número de proponentes | P13: Número de Identificación del contratista (Cédula o NIT sin puntos, comas ni caracteres especiales y sin digito de verificación) | Q13: Nombre del contratista (según el caso: nombres y apellidos o Razón social y Tipo societario) | R13: Naturaleza Jurídica | S13: Número de Identificación del integrante del Consorcio o U.T. (Cédula o NIT sin puntos, comas ni caracteres especiales y sin digito de verificación) | T13: Nombre del Integrante del Consorcio o U.T. y Tipo societario (Según el caso: nombres y apellidos o razón social y tipo societario) | U13: % Participación (indicar solo el numero del porcentaje, sin caracteres especiales) | V13: Valor Inicial del contrato | W13: Valor total reducciones (En valor negativo) | X13: Número de adiciones | Y13: Valor total de adiciones | Z13: Valor Final | AA13: Giros (Valor en pesos) | AB13: Fecha de suscripción (DD/MM/AAAA) | AC13: Fecha de inicio (DD/MM/AAAA) | AD13: Fecha de terminación (DD/MM/AAAA) | AE13: Plazo en días | AF13: Número de prórrogas | AG13: Prorroga en días | AH13: Número de Identificación del cesionario (NIT sin digito de verificación) | AI13: Nombre cesionario | AJ13: Fecha cesión (DD/MM/AAAA) | AK13: Valor cesión | AL13: Celebrado o por iniciar | AM13: En Ejecución | AN13: Terminado | AO13: Liquidado | AP13: % Avance y/o Cumplimiento
A14: 1 | B14: 2021 | C14: FDLF-CD-1-2021 | D14: https://community.secop.gov.co/Public/Tendering/OpportunityDetail/Index?noticeUID=CO1.NTC.1709977&isFromPublicArea=True&isModal=true&asPopupView=true | E14: Contratos de prestación de servicios profesionales y de apoyo a la gestión | F14: Contratación directa | G14: Prestación de servicios profesionales y de apoyo a la gestión, o para la ejecución de trabajos artísticos que sólo puedan encomendarse a determinadas personas naturales; | H14: PRESTAR SERVICIOS PARA APOYAR LAS ACTIVIDADES OPERATIVAS Y ADMINISTRATIVAS DE LA JUNTA ADMINISTRADORA LOCAL | I14: Inversión | J14: Un nuevo Contrato Social y ambiental para la Bogotá del Siglo XXI | K14: 57 | L14: =IF(ISERROR(VLOOKUP(K14,[2]Proposito_programa!$C$2:$E$59,2,FALSE))," ",VLOOKUP(K14,[2]Proposito_programa!$C$2:$E$59,2,FALSE)) -> Gestión pública local | M14: =IF(ISERROR(VLOOKUP(K14,[2]Proposito_programa!$C$2:$E$59,3,FALSE))," ",VLOOKUP(K14,[2]Proposito_programa!$C$2:$E$59,3,FALSE)) -> Propósito 5: Construir Bogotá - Región con gobierno abierto, transparente y ciudadanía consciente | N14: 1783 | O14: 1 | P14: 19426466 | Q14: RAUL ARMANDO LUQUE RUIZ | R14: Persona Natural | V14: 21905010 | X14: 1 | Y14: 5111169 | Z14: =Y14+V14+W14 -> 27016179 | AA14: 24501159 | AB14: 2021-01-29 | AC14: 2021-01-29 | AD14: 2021-12-31 | AE14: 274 DÍAS | AF14: 1 | AG14: 63 | AN14: X | AP14: 0.81
A15: 2 | B15: 2021 | C15: FDLF-CD-2-2021 | D15: https://community.secop.gov.co/Public/Tendering/OpportunityDetail/Index?noticeUID=CO1.NTC.1711465&isFromPublicArea=True&isModal=true&asPopupView=true | E15: Contratos de prestación de servicios profesionales y de apoyo a la gestión | F15: Contratación directa | G15: Prestación de servicios profesionales y de apoyo a la gestión, o para la ejecución de trabajos artísticos que sólo puedan encomendarse a determinadas personas naturales; | H15: PRESTAR SERVICIOS PROFESIONALES PARA APOYAR JURÍDICAMENTE LOS DIFERENTES PROCESOS QUE REQUIERA ADELANTAR LA ALCALDÍA LOCAL DE FONTIBÓN DESDE LAS ETAPAS PRECONTRACTUAL, CONTRACTUAL Y POST CONTRACTUAL | I15: Inversión | J15: Un nuevo Contrato Social y ambiental para la Bogotá del Siglo XXI | K15: 57 | L15: =IF(ISERROR(VLOOKUP(K15,[2]Proposito_programa!$C$2:$E$59,2,FALSE))," ",VLOOKUP(K15,[2]Proposito_programa!$C$2:$E$59,2,FALSE)) -> Gestión pública local | M15: =IF(ISERROR(VLOOKUP(K15,[2]Proposito_programa!$C$2:$E$59,3,FALSE))," ",VLOOKUP(K15,[2]Proposito_programa!$C$2:$E$59,3,FALSE)) -> Propósito 5: Construir Bogotá - Región con gobierno abierto, transparente y ciudadanía consciente | N15: 1783 | O15: 1 | P15: 1123730820 | Q15: RODRIGO JOSE ZABALETA BAÑOL | R15: Persona Natural | V15: 61200000 | X15: 0 | Y15: 0 | Z15: 61200000 | AA15: 61200000 | AB15: 2021-01-29 | AC15: 2021-01-29 | AD15: 2021-10-28 | AE15: 274 DÍAS | AF15: 0 | AG15: 0 | AN15: X | AP15: 1
A16: 3 | B16: 2021 | C16: FDLF-CD-03-2021 | D16: https://community.secop.gov.co/Public/Tendering/OpportunityDetail/Index?noticeUID=CO1.NTC.1711916&isFromPublicArea=True&isModal=true&asPopupView=true | E16: Contratos de prestación de servicios profesionales y de apoyo a la gestión | F16: Contratación directa | G16: Prestación de servicios profesionales y de apoyo a la gestión, o para la ejecución de trabajos artísticos que sólo puedan encomendarse a determinadas personas naturales; | H16: PRESTAR SERVICIOS PROFESIONALES PARA APOYAR JURÍDICAMENTE LOS DIFERENTES PROCESOS QUE REQUIERA ADELANTAR LA ALCALDÍA LOCAL DE FONTIBÓN DESDE LAS ETAPAS PRECONTRACTUAL, CONTRACTUAL Y POST CONTRACTUAL | I16: Inversión | J16: Un nuevo Contrato Social y ambiental para la Bogotá del Siglo XXI | K16: 57 | L16: =IF(ISERROR(VLOOKUP(K16,[2]Proposito_programa!$C$2:$E$59,2,FALSE))," ",VLOOKUP(K16,[2]Proposito_programa!$C$2:$E$59,2,FALSE)) -> Gestión pública local | M16: =IF(ISERROR(VLOOKUP(K16,[2]Proposito_programa!$C$2:$E$59,3,FALSE))," ",VLOOKUP(K16,[2]Proposito_programa!$C$2:$E$59,3,FALSE)) -> Propósito 5: Construir Bogotá - Región con gobierno abierto, transparente y ciudadanía consciente | N16: 1783 | O16: 1 | P16: 1019002889 | Q16: EDNA LORENA YISSETH LEON SAAVEDRA | R16: Persona Natural | V16: 61200000 | X16: 0 | Y16: 0 | Z16: 61200000 | AA16: 60066667 | AB16: 2021-01-29 | AC16: 2021-01-29 | AD16: 2021-10-28 | AE16: 274 DÍAS | AF16: 0 | AG16: 0 | AH16: 1090427583 | AI16: ERIKA ANDREA RUBIO CASTILLO | AJ16: 2021-08-30 | AK16: 13146667 | AN16: X | AP16: 0.98
A17: 4 | B17: 2021 | C17: FDLF-CD-4-2021 | D17: https://community.secop.gov.co/Public/Tendering/OpportunityDetail/Index?noticeUID=CO1.NTC.1726965&isFromPublicArea=True&isModal=true&asPopupView=true | E17: Contratos de prestación de servicios profesionales y de apoyo a la gestión | F17: Contratación directa | G17: Prestación de servicios profesionales y de apoyo a la gestión, o para la ejecución de trabajos artísticos que sólo puedan encomendarse a determinadas personas naturales; | H17: PRESTAR SERVICIOS PROFESIONALES PARA APOYAR JURÍDICAMENTE LOS DIFERENTES PROCESOS QUE REQUIERA ADELANTAR LA ALCALDÍA LOCAL DE FONTIBÓN DESDE LAS ETAPAS PRECONTRACTUAL, CONTRACTUAL Y POST CONTRACTUAL. | I17: Inversión | J17: Un nuevo Contrato Social y ambiental para la Bogotá del Siglo XXI | K17: 57 | L17: =IF(ISERROR(VLOOKUP(K17,[2]Proposito_programa!$C$2:$E$59,2,FALSE))," ",VLOOKUP(K17,[2]Proposito_programa!$C$2:$E$59,2,FALSE)) -> Gestión pública local | M17: =IF(ISERROR(VLOOKUP(K17,[2]Proposito_programa!$C$2:$E$59,3,FALSE))," ",VLOOKUP(K17,[2]Proposito_programa!$C$2:$E$59,3,FALSE)) -> Propósito 5: Construir Bogotá - Región con gobierno abierto, transparente y ciudadanía consciente | N17: 1783 | O17: 1 | P17: 1019002889 | Q17: EFREY ARMANDO SANABRIA MORENO | R17: Persona Natural | V17: 61200000 | X17: 0 | Y17: 0 | Z17: 61200000 | AA17: 60066667 | AB17: 2021-02-04 | AC17: 2021-02-04 | AD17: 2021-11-03 | AE17: 274 DÍAS | AF17: 0 | AG17: 0 | AH17: 1032389169 | AI17: JUAN DAVID CUADROS GARZON | AJ17: 2021-04-30 | AK17: 41026667 | AN17: X | AP17: 0.98
A18: 5 | B18: 2021 | C18: FDLF-CD-5-2021 | D18: https://community.secop.gov.co/Public/Tendering/OpportunityDetail/Index?noticeUID=CO1.NTC.1733520&isFromPublicArea=True&isModal=true&asPopupView=true | E18: Contratos de prestación de servicios profesionales y de apoyo a la gestión | F18: Contratación directa | G18: Prestación de servicios profesionales y de apoyo a la gestión, o para la ejecución de trabajos artísticos que sólo puedan encomendarse a determinadas personas naturales; | H18: PRESTAR SERVICIOS PARA APOYAR LAS ACTIVIDADES OPERATIVAS Y ADMINISTRATIVAS DE LA JUNTA ADMINISTRADORA LOCAL. | I18: Inversión | J18: Un nuevo Contrato Social y ambiental para la Bogotá del Siglo XXI | K18: 57 | L18: =IF(ISERROR(VLOOKUP(K18,[2]Proposito_programa!$C$2:$E$59,2,FALSE))," ",VLOOKUP(K18,[2]Proposito_programa!$C$2:$E$59,2,FALSE)) -> Gestión pública local | M18: =IF(ISERROR(VLOOKUP(K18,[2]Proposito_programa!$C$2:$E$59,3,FALSE))," ",VLOOKUP(K18,[2]Proposito_programa!$C$2:$E$59,3,FALSE)) -> Propósito 5: Construir Bogotá - Región con gobierno abierto, transparente y ciudadanía consciente | N18: 1783 | O18: 1 | P18: 52481412 | Q18: JEIMMY ZAMANDA CRUZ BALLESTEROS | R18: Persona Natural | V18: 21905010 | X18: 1 | Y18: 4624391 | Z18: 26529401 | AA18: 24014381 | AB18: 2021-02-05 | AC18: 2021-02-05 | AD18: 2021-11-04 | AE18: 274 DÍAS | AF18: 1 | AG18: 57 | AN18: X | AP18: 0.83
A19: 6 | B19: 2021 | C19: FDLF-CD-6-2021 | D19: https://community.secop.gov.co/Public/Tendering/OpportunityDetail/Index?noticeUID=CO1.NTC.1735402&isFromPublicArea=True&isModal=true&asPopupView=true | E19: Contratos de prestación de servicios profesionales y de apoyo a la gestión | F19: Contratación directa | G19: Prestación de servicios profesionales y de apoyo a la gestión, o para la ejecución de trabajos artísticos que sólo puedan encomendarse a determinadas personas naturales; | H19: PRESTAR SERVICIOS DE APOYO AL ÁREA DE GESTIÓN DEL DESARROLLO LOCAL DE FONTIBÓN EN ACTIVIDADES INHERENTES A LA PLANEACIÓN. | I19: Inversión | J19: Un nuevo Contrato Social y ambiental para la Bogotá del Siglo XXI | K19: 57 | L19: =IF(ISERROR(VLOOKUP(K19,[2]Proposito_programa!$C$2:$E$59,2,FALSE))," ",VLOOKUP(K19,[2]Proposito_programa!$C$2:$E$59,2,FALSE)) -> Gestión pública local | M19: =IF(ISERROR(VLOOKUP(K19,[2]Proposito_programa!$C$2:$E$59,3,FALSE))," ",VLOOKUP(K19,[2]Proposito_programa!$C$2:$E$59,3,FALSE)) -> Propósito 5: Construir Bogotá - Región con gobierno abierto, transparente y ciudadanía consciente | N19: 1783 | O19: 1 | P19: 80147386 | Q19: JOHN FREDY HERRERA RINCON | R19: Persona Natural | V19: 21905010 | X19: 1 | Y19: 4299872 | Z19: 26204882 | AA19: 23770992 | AB19: 2021-02-08 | AC19: 2021-02-08 | AD19: 2021-12-31 | AE19: 274 DÍAS | AF19: 1 | AG19: 53 | AN19: X | AP19: 0.84
A20: 7 | B20: 2021 | C20: FDLF-CD-7-2021 | D20: https://community.secop.gov.co/Public/Tendering/OpportunityDetail/Index?noticeUID=CO1.NTC.1735075&isFromPublicArea=True&isModal=true&asPopupView=true | E20: Contratos de prestación de servicios profesionales y de apoyo a la gestión | F20: Contratación directa | G20: Prestación de servicios profesionales y de apoyo a la gestión, o para la ejecución de trabajos artísticos que sólo puedan encomendarse a determinadas personas naturales; | H20: PRESTAR SERVICIOS COMO PROFESIONAL PARA REALIZAR EL PROCESO DE LIQUIDACIONES DE LOS CONTRATOS SUSCRITOS POR EL FONDO DE DESARROLLO LOCAL DE FONTIBÓN | I20: Inversión | J20: Un nuevo Contrato Social y ambiental para la Bogotá del Siglo XXI | K20: 57 | L20: =IF(ISERROR(VLOOKUP(K20,[2]Proposito_programa!$C$2:$E$59,2,FALSE))," ",VLOOKUP(K20,[2]Proposito_programa!$C$2:$E$59,2,FALSE)) -> Gestión pública local | M20: =IF(ISERROR(VLOOKUP(K20,[2]Proposito_programa!$C$2:$E$59,3,FALSE))," ",VLOOKUP(K20,[2]Proposito_programa!$C$2:$E$59,3,FALSE)) -> Propósito 5: Construir Bogotá - Región con gobierno abierto, transparente y ciudadanía consciente | N20: 1783 | O20: 1 | P20: 60315384 | Q20: MARTHA LUCIA VEGA RAMIREZ | R20: Persona Natural | V20: 47700000 | X20: 1 | Y20: 9893333 | Z20: 57593333 | AA20: 52293333 | AB20: 2021-02-05 | AC20: 2021-02-05 | AD20: 2021-12-31 | AE20: 274 DÍAS | AF20: 1 | AG20: 56 | AN20: X | AP20: 0.83
A21: 8 | B21: 2021 | C21: FDLF-CD-8-2021 | D21: https://community.secop.gov.co/Public/Tendering/OpportunityDetail/Index?noticeUID=CO1.NTC.1735504&isFromPublicArea=True&isModal=true&asPopupView=true | E21: Contratos de prestación de servicios profesionales y de apoyo a la gestión | F21: Contratación directa | G21: Prestación de servicios profesionales y de apoyo a la gestión, o para la ejecución de trabajos artísticos que sólo puedan encomendarse a determinadas personas naturales; | H21: PRESTAR SERVICIOS COMO PROFESIONAL PARA REALIZAR EL PROCESO DE LIQUIDACIONES DE LOS CONTRATOS SUSCRITOS POR EL FONDO DE DESARROLLO LOCAL DE FONTIBÓN | I21: Inversión | J21: Un nuevo Contrato Social y ambiental para la Bogotá del Siglo XXI | K21: 57 | L21: =IF(ISERROR(VLOOKUP(K21,[2]Proposito_programa!$C$2:$E$59,2,FALSE))," ",VLOOKUP(K21,[2]Proposito_programa!$C$2:$E$59,2,FALSE)) -> Gestión pública local | M21: =IF(ISERROR(VLOOKUP(K21,[2]Proposito_programa!$C$2:$E$59,3,FALSE))," ",VLOOKUP(K21,[2]Proposito_programa!$C$2:$E$59,3,FALSE)) -> Propósito 5: Construir Bogotá - Región con gobierno abierto, transparente y ciudadanía consciente | N21: 1783 | O21: 1 | P21: 52324766 | Q21: YARSELY SUAREZ SUAREZ | R21: Persona Natural | V21: 47700000 | X21: 1 | Y21: 9893333 | Z21: 57593333 | AA21: 52293333 | AB21: 2021-02-05 | AC21: 2021-02-05 | AD21: 2021-12-31 | AE21: 274 DÍAS | AF21: 1 | AG21: 56 | AN21: X | AP21: 0.83
A22: 9 | B22: 2021 | C22: FDLF-CD-9-2021 | D22: https://community.secop.gov.co/Public/Tendering/OpportunityDetail/Index?noticeUID=CO1.NTC.1737152&isFromPublicArea=True&isModal=true&asPopupView=true | E22: Contratos de prestación de servicios profesionales y de apoyo a la gestión | F22: Contratación directa | G22: Prestación de servicios profesionales y de apoyo a la gestión, o para la ejecución de trabajos artísticos que sólo puedan encomendarse a determinadas personas naturales; | H22: PRESTAR SERVICIOS PROFESIONALES DE APOYO A PRESUPUESTO EN EL FONDO DE DESARROLLO LOCAL DE FONTIBÓN EN EL REGISTRO, ANÁLISIS Y GESTIÓN DE OBLIGACIONES POR PAGAR Y OTROS ASUNTOS QUE EN MATERIA DE PRESUPUESTO LOCAL LE SEAN ASIGNADOS | I22: Inversión | J22: Un nuevo Contrato Social y ambiental para la Bogotá del Siglo XXI | K22: 57 | L22: =IF(ISERROR(VLOOKUP(K22,[2]Proposito_programa!$C$2:$E$59,2,FALSE))," ",VLOOKUP(K22,[2]Proposito_programa!$C$2:$E$59,2,FALSE)) -> Gestión pública local | M22: =IF(ISERROR(VLOOKUP(K22,[2]Proposito_programa!$C$2:$E$59,3,FALSE))," ",VLOOKUP(K22,[2]Proposito_programa!$C$2:$E$59,3,FALSE)) -> Propósito 5: Construir Bogotá - Región con gobierno abierto, transparente y ciudadanía consciente | N22: 1783 | O22: 1 | P22: 1014177647 | Q22: NAIRA CAROLINA PARRA BELTRAN | R22: Persona Natural | V22: 44338410 | X22: 2 | Y22: 11495144 | Z22: 55833554 | AA22: 48115386 | AB22: 2021-02-08 | AC22: 2021-02-08 | AD22: 2022-01-17 | AE22: 274 DÍAS | AF22: 2 | AG22: 71 | AN22: X | AP22: 0.79
A23: 10 | B23: 2021 | C23: FDLF-CD-10-2021 | D23: https://community.secop.gov.co/Public/Tendering/OpportunityDetail/Index?noticeUID=CO1.NTC.1738165&isFromPublicArea=True&isModal=true&asPopupView=true | E23: Contratos de prestación de servicios profesionales y de apoyo a la gestión | F23: Contratación directa | G23: Prestación de servicios profesionales y de apoyo a la gestión, o para la ejecución de trabajos artísticos que sólo puedan encomendarse a determinadas personas naturales; | H23: PRESTAR LOS SERVICIOS TÉCNICOS PARA APOYAR LOS PROCESOS DE GESTIÓN ADMINISTRATIVA Y CONTRACTUAL AL FONDO DE DESARROLLO LOCAL DE FONTIBON | I23: Inversión | J23: Un nuevo Contrato Social y ambiental para la Bogotá del Siglo XXI | K23: 57 | L23: =IF(ISERROR(VLOOKUP(K23,[2]Proposito_programa!$C$2:$E$59,2,FALSE))," ",VLOOKUP(K23,[2]Proposito_programa!$C$2:$E$59,2,FALSE)) -> Gestión pública local | M23: =IF(ISERROR(VLOOKUP(K23,[2]Proposito_programa!$C$2:$E$59,3,FALSE))," ",VLOOKUP(K23,[2]Proposito_programa!$C$2:$E$59,3,FALSE)) -> Propósito 5: Construir Bogotá - Región con gobierno abierto, transparente y ciudadanía consciente | N23: 1783 | O23: 1 | P23: 1016039271 | Q23: JUAN DAVID RAMIREZ MONTOYA | R23: Persona Natural | V23: 35226000 | X23: 2 | Y23: 8871733 | Z23: 44097733 | AA23: 38226733 | AB23: 2021-02-08 | AC23: 2021-02-08 | AD23: 2022-01-15 | AE23: 274 DÍAS | AF23: 2 | AG23: 68 | AN23: X | AP23: 0.8
A24: 11 | B24: 2021 | C24: FDLF-CD-11-2021 | D24: https://community.secop.gov.co/Public/Tendering/OpportunityDetail/Index?noticeUID=CO1.NTC.1743195&isFromPublicArea=True&isModal=true&asPopupView=true | E24: Contratos de prestación de servicios profesionales y de apoyo a la gestión | F24: Contratación directa | G24: Prestación de servicios profesionales y de apoyo a la gestión, o para la ejecución de trabajos artísticos que sólo puedan encomendarse a determinadas personas naturales; | H24: PRESTACIÓN DE SERVICIOS PROFESIONALES DE APOYO AL ÁREA DE GESTIÓN DE DESARROLLO LOCAL EN PLANEACIÓN EN LAS ACTIVIDADES QUE SE REQUIERAN, DE CONFORMIDAD CON LOS ESTUDIOS PREVIOS. | I24: Inversión | J24: Un nuevo Contrato Social y ambiental para la Bogotá del Siglo XXI | K24: 57 | L24: =IF(ISERROR(VLOOKUP(K24,[2]Proposito_programa!$C$2:$E$59,2,FALSE))," ",VLOOKUP(K24,[2]Proposito_programa!$C$2:$E$59,2,FALSE)) -> Gestión pública local | M24: =IF(ISERROR(VLOOKUP(K24,[2]Proposito_programa!$C$2:$E$59,3,FALSE))," ",VLOOKUP(K24,[2]Proposito_programa!$C$2:$E$59,3,FALSE)) -> Propósito 5: Construir Bogotá - Región con gobierno abierto, transparente y ciudadanía consciente | N24: 1783 | O24: 1 | P24: 52352116 | Q24: NELLY ANGELICA MELENDEZ NUÑEZ | R24: Persona Natural | V24: 38934000 | X24: 1 | Y24: 7354200 | Z24: 46288200 | AA24: 38934000 | AB24: 2021-02-10 | AC24: 2021-02-10 | AD24: 2022-01-21 | AE24: 274 DÍAS | AF24: 1 | AG24: 51 | AN24: X | AP24: 0.84
A25: 12 | B25: 2021 | C25: FDLF-CD-12-2021 | D25: https://community.secop.gov.co/Public/Tendering/OpportunityDetail/Index?noticeUID=CO1.NTC.1744406&isFromPublicArea=True&isModal=true&asPopupView=true | E25: Contratos de prestación de servicios profesionales y de apoyo a la gestión | F25: Contratación directa | G25: Prestación de servicios profesionales y de apoyo a la gestión, o para la ejecución de trabajos artísticos que sólo puedan encomendarse a determinadas personas naturales; | H25: PRESTAR SERVICIOS COMO PROFESIONAL PARA REALIZAR EL PROCESO DE LIQUIDACIONES DE LOS CONTRATOS SUSCRITOS POR EL FONDO DE DESARROLLO LOCAL DE FONTIBÓN. | I25: Inversión | J25: Un nuevo Contrato Social y ambiental para la Bogotá del Siglo XXI | K25: 57 | L25: =IF(ISERROR(VLOOKUP(K25,[2]Proposito_programa!$C$2:$E$59,2,FALSE))," ",VLOOKUP(K25,[2]Proposito_programa!$C$2:$E$59,2,FALSE)) -> Gestión pública local | M25: =IF(ISERROR(VLOOKUP(K25,[2]Proposito_programa!$C$2:$E$59,3,FALSE))," ",VLOOKUP(K25,[2]Proposito_programa!$C$2:$E$59,3,FALSE)) -> Propósito 5: Construir Bogotá - Región con gobierno abierto, transparente y ciudadanía consciente | N25: 1783 | O25: 1 | P25: 51800753 | Q25: MARIBEL SOLIS AVILA | R25: Persona Natural | V25: 47700000 | X25: 0 | Y25: 0 | Z25: 47700000 | AA25: 46110000 | AB25: 2021-02-10 | AC25: 2021-02-10 | AD25: 2021-11-09 | AE25: 274 DÍAS | AF25: 0 | AG25: 0 | AN25: X | AP25: 0.97
A26: 13 | B26: 2021 | C26: FDLF-CD-13-2021 | D26: https://community.secop.gov.co/Public/Tendering/OpportunityDetail/Index?noticeUID=CO1.NTC.1743686&isFromPublicArea=True&isModal=true&asPopupView=true | E26: Contratos de prestación de servicios profesionales y de apoyo a la gestión | F26: Contratación directa | G26: Prestación de servicios profesionales y de apoyo a la gestión, o para la ejecución de trabajos artísticos que sólo puedan encomendarse a determinadas personas naturales; | H26: PRESTAR SERVICIOS PARA APOYAR JURÍDICAMENTE LA EJECUCIÓN DE LAS ACCIONES REQUERIDAS PARA EL TRÁMITE E IMPULSO PROCESAL DE LAS ACTUACIONES CONTRAVENCIONALES Y/O QUERELLAS QUE CURSEN EN LAS INSPECCIONES DE POLICÍA DE LA LOCALIDAD | I26: Inversión | J26: Un nuevo Contrato Social y ambiental para la Bogotá del Siglo XXI | K26: 57 | L26: =IF(ISERROR(VLOOKUP(K26,[2]Proposito_programa!$C$2:$E$59,2,FALSE))," ",VLOOKUP(K26,[2]Proposito_programa!$C$2:$E$59,2,FALSE)) -> Gestión pública local | M26: =IF(ISERROR(VLOOKUP(K26,[2]Proposito_programa!$C$2:$E$59,3,FALSE))," ",VLOOKUP(K26,[2]Proposito_programa!$C$2:$E$59,3,FALSE)) -> Propósito 5: Construir Bogotá - Región con gobierno abierto, transparente y ciudadanía consciente | N26: 1784 | O26: 1 | P26: 79131970 | Q26: WILFORD LIBERMAN RODRIGUEZ FONSECA | R26: Persona Natural | V26: 24632450 | X26: 2 | Y26: 12316225 | Z26: 36948675 | AA26: 36948675 | AB26: 2021-02-12 | AC26: 2021-02-12 | AD26: 2021-09-26 | AE26: 152 DÍAS | AF26: 2 | AG26: 76 | AN26: X | AP26: 0.67
A27: 14 | B27: 2021 | C27: FDLF-CD-14-2021 | D27: https://community.secop.gov.co/Public/Tendering/OpportunityDetail/Index?noticeUID=CO1.NTC.1744162&isFromPublicArea=True&isModal=true&asPopupView=true | E27: Contratos de prestación de servicios profesionales y de apoyo a la gestión | F27: Contratación directa | G27: Prestación de servicios profesionales y de apoyo a la gestión, o para la ejecución de trabajos artísticos que sólo puedan encomendarse a determinadas personas naturales; | H27: PRESTAR SERVICIOS PARA APOYAR JURÍDICAMENTE LA EJECUCIÓN DE LAS ACCIONES REQUERIDAS PARA EL TRÁMITE E IMPULSO PROCESAL DE LAS ACTUACIONES CONTRAVENCIONALES Y/O QUERELLAS QUE CURSEN EN LAS INSPECCIONES DE POLICÍA DE LA LOCALIDAD. | I27: Inversión | J27: Un nuevo Contrato Social y ambiental para la Bogotá del Siglo XXI | K27: 57 | L27: =IF(ISERROR(VLOOKUP(K27,[2]Proposito_programa!$C$2:$E$59,2,FALSE))," ",VLOOKUP(K27,[2]Proposito_programa!$C$2:$E$59,2,FALSE)) -> Gestión pública local | M27: =IF(ISERROR(VLOOKUP(K27,[2]Proposito_programa!$C$2:$E$59,3,FALSE))," ",VLOOKUP(K27,[2]Proposito_programa!$C$2:$E$59,3,FALSE)) -> Propósito 5: Construir Bogotá - Región con gobierno abierto, transparente y ciudadanía consciente | N27: 1784 | O27: 1 | P27: 5831620 | Q27: RICAURTE TARQUINO BECERRA | R27: Persona Natural | V27: 24632450 | X27: 2 | Y27: 12316225 | Z27: 36948675 | AA27: =Z27+W27+X27 -> 36948677 | AB27: 2021-02-10 | AC27: 2021-02-10 | AD27: 2021-09-24 | AE27: 152 DÍAS | AF27: 2 | AG27: 75 | AN27: X | AP27: 0.67
A28: 15 | B28: 2021 | C28: FDLF-CD-15-2021 | D28: https://community.secop.gov.co/Public/Tendering/OpportunityDetail/Index?noticeUID=CO1.NTC.1744944&isFromPublicArea=True&isModal=true&asPopupView=true | E28: Contratos de prestación de servicios profesionales y de apoyo a la gestión | F28: Contratación directa | G28: Prestación de servicios profesionales y de apoyo a la gestión, o para la ejecución de trabajos artísticos que sólo puedan encomendarse a determinadas personas naturales; | H28: PRESTAR SERVICIOS PARA APOYAR JURÍDICAMENTE LA EJECUCIÓN DE LAS ACCIONES REQUERIDAS PARA EL TRÁMITE E IMPULSO PROCESAL DE LAS ACTUACIONES CONTRAVENCIONALES Y/O QUERELLAS QUE CURSEN EN LAS INSPECCIONES DE POLICÍA DE LA LOCALIDAD | I28: Inversión | J28: Un nuevo Contrato Social y ambiental para la Bogotá del Siglo XXI | K28: 57 | L28: =IF(ISERROR(VLOOKUP(K28,[2]Proposito_programa!$C$2:$E$59,2,FALSE))," ",VLOOKUP(K28,[2]Proposito_programa!$C$2:$E$59,2,FALSE)) -> Gestión pública local | M28: =IF(ISERROR(VLOOKUP(K28,[2]Proposito_programa!$C$2:$E$59,3,FALSE))," ",VLOOKUP(K28,[2]Proposito_programa!$C$2:$E$59,3,FALSE)) -> Propósito 5: Construir Bogotá - Región con gobierno abierto, transparente y ciudadanía consciente | N28: 1784 | O28: 1 | P28: 1031152968 | Q28: NATALIA ALEJANDRA SEDANO GARZON | R28: Persona Natural | V28: 24632450 | X28: 2 | Y28: 12316225 | Z28: 36948675 | AA28: 36948675 | AB28: 2021-02-10 | AC28: 2021-02-10 | AD28: 2021-09-24 | AE28: 152 DÍAS | AF28: 2 | AG28: 75 | AN28: X | AP28: 0.67
A29: 16 | B29: 2021 | C29: FDLF-CD-16-2021 | D29: https://community.secop.gov.co/Public/Tendering/OpportunityDetail/Index?noticeUID=CO1.NTC.1744295&isFromPublicArea=True&isModal=true&asPopupView=true | E29: Contratos de prestación de servicios profesionales y de apoyo a la gestión | F29: Contratación directa | G29: Prestación de servicios profesionales y de apoyo a la gestión, o para la ejecución de trabajos artísticos que sólo puedan encomendarse a determinadas personas naturales; | H29: SERVICIOS DE APOYO TÉCNICO AL ÁREA DE GESTIÓN DEL DESARROLLO LOCAL DE FONTIBÓN EN ACTIVIDADES INHERENTES A LA PLANEACIÓN. | I29: Inversión | J29: Un nuevo Contrato Social y ambiental para la Bogotá del Siglo XXI | K29: 57 | L29: =IF(ISERROR(VLOOKUP(K29,[2]Proposito_programa!$C$2:$E$59,2,FALSE))," ",VLOOKUP(K29,[2]Proposito_programa!$C$2:$E$59,2,FALSE)) -> Gestión pública local | M29: =IF(ISERROR(VLOOKUP(K29,[2]Proposito_programa!$C$2:$E$59,3,FALSE))," ",VLOOKUP(K29,[2]Proposito_programa!$C$2:$E$59,3,FALSE)) -> Propósito 5: Construir Bogotá - Región con gobierno abierto, transparente y ciudadanía consciente | N29: 1783 | O29: 1 | P29: 51712771 | Q29: MARIA ELENA SARMIENTO FRANCO | R29: Persona Natural | V29: 39140000 | X29: 0 | Y29: 0 | Z29: 39140000 | AA29: 38096267 | AB29: 2021-02-09 | AC29: 2021-02-09 | AD29: 2021-12-08 | AE29: 304 DÍAS | AF29: 0 | AG29: 0 | AN29: X | AP29: 0.97
A30: 17 | B30: 2021 | C30: FDLF-CD-17-2021 | D30: https://community.secop.gov.co/Public/Tendering/OpportunityDetail/Index?noticeUID=CO1.NTC.1744522&isFromPublicArea=True&isModal=true&asPopupView=true | E30: Contratos de prestación de servicios profesionales y de apoyo a la gestión | F30: Contratación directa | G30: Prestación de servicios profesionales y de apoyo a la gestión, o para la ejecución de trabajos artísticos que sólo puedan encomendarse a determinadas personas naturales; | H30: PRESTAR SERVICIOS PROFESIONALES EN DERECHO PARA APOYAR LAS ACTIVIDADES JURÍDICAS Y ADMINISTRATIVAS PROPIAS DE LA CASA DEL CONSUMIDOR, EN EL MARCO DEL CONVENIO SUSCRITO ENTRE LA SUPERINTENDENCIA DE INDUSTRIA Y COMERCIO Y LA ALCALDÍA LOCAL DE FONTIBÓN | I30: Inversión | J30: Un nuevo Contrato Social y ambiental para la Bogotá del Siglo XXI | K30: 57 | L30: =IF(ISERROR(VLOOKUP(K30,[2]Proposito_programa!$C$2:$E$59,2,FALSE))," ",VLOOKUP(K30,[2]Proposito_programa!$C$2:$E$59,2,FALSE)) -> Gestión pública local | M30: =IF(ISERROR(VLOOKUP(K30,[2]Proposito_programa!$C$2:$E$59,3,FALSE))," ",VLOOKUP(K30,[2]Proposito_programa!$C$2:$E$59,3,FALSE)) -> Propósito 5: Construir Bogotá - Región con gobierno abierto, transparente y ciudadanía consciente | N30: 1784 | O30: 1 | P30: 28946846 | Q30: YOLANDA CALDERON | R30: Persona Natural | V30: 44338410 | X30: 2 | Y30: 12480441 | Z30: 56818851 | AA30: 47951169 | AB30: 2021-02-09 | AC30: 2021-02-09 | AD30: 2022-01-24 | AE30: 274 DÍAS | AF30: 2 | AG30: 76 | AN30: X | AP30: 0.78
A31: 18 | B31: 2021 | C31: FDLF-CD-18-2021 | D31: https://community.secop.gov.co/Public/Tendering/OpportunityDetail/Index?noticeUID=CO1.NTC.1754577&isFromPublicArea=True&isModal=true&asPopupView=true | E31: Contratos de prestación de servicios profesionales y de apoyo a la gestión | F31: Contratación directa | G31: Prestación de servicios profesionales y de apoyo a la gestión, o para la ejecución de trabajos artísticos que sólo puedan encomendarse a determinadas personas naturales; | H31: PRESTAR SERVICIOS PARA APOYO A LA GESTIÓN DE EXPEDIENTES CONTRACTUALES VIGENTES Y ACTIVOS A CARGO DEL ÁREA DE GESTIÓN DE DESARROLLO LOCAL DE FONTIBÓN. | I31: Inversión | J31: Un nuevo Contrato Social y ambiental para la Bogotá del Siglo XXI | K31: 57 | L31: =IF(ISERROR(VLOOKUP(K31,[2]Proposito_programa!$C$2:$E$59,2,FALSE))," ",VLOOKUP(K31,[2]Proposito_programa!$C$2:$E$59,2,FALSE)) -> Gestión pública local | M31: =IF(ISERROR(VLOOKUP(K31,[2]Proposito_programa!$C$2:$E$59,3,FALSE))," ",VLOOKUP(K31,[2]Proposito_programa!$C$2:$E$59,3,FALSE)) -> Propósito 5: Construir Bogotá - Región con gobierno abierto, transparente y ciudadanía consciente | N31: 1783 | O31: 1 | P31: 10197441 | Q31: OSCAR EMILIO CORTES RODRIGUEZ | R31: Persona Natural | V31: 21905010 | X31: 0 | Y31: 0 | Z31: 21905010 | AA31: 21093713 | AB31: 2021-02-11 | AC31: 2021-02-11 | AD31: 2021-11-10 | AE31: 274 DÍAS | AF31: 0 | AG31: 0 | AN31: X | AP31: 0.64
A32: 19 | B32: 2021 | C32: FDLF-CD-19-2021 | D32: https://community.secop.gov.co/Public/Tendering/OpportunityDetail/Index?noticeUID=CO1.NTC.1747591&isFromPublicArea=True&isModal=true&asPopupView=true | E32: Contratos de prestación de servicios profesionales y de apoyo a la gestión | F32: Contratación directa | G32: Prestación de servicios profesionales y de apoyo a la gestión, o para la ejecución de trabajos artísticos que sólo puedan encomendarse a determinadas personas naturales; | H32: PRESTAR SERVICIOS PARA APOYAR ADMINISTRATIVA Y ASISTENCIALMENTE A LAS INSPECCIONES DE POLICÍA DE LA LOCALIDAD. | I32: Inversión | J32: Un nuevo Contrato Social y ambiental para la Bogotá del Siglo XXI | K32: 57 | L32: =IF(ISERROR(VLOOKUP(K32,[2]Proposito_programa!$C$2:$E$59,2,FALSE))," ",VLOOKUP(K32,[2]Proposito_programa!$C$2:$E$59,2,FALSE)) -> Gestión pública local | M32: =IF(ISERROR(VLOOKUP(K32,[2]Proposito_programa!$C$2:$E$59,3,FALSE))," ",VLOOKUP(K32,[2]Proposito_programa!$C$2:$E$59,3,FALSE)) -> Propósito 5: Construir Bogotá - Región con gobierno abierto, transparente y ciudadanía consciente | N32: 1784 | O32: 1 | P32: 88220745 | Q32: JULIO CESAR CALDERON SUAREZ | R32: Persona Natural | V32: 4867780 | X32: 1 | Y32: 2433890 | Z32: 7301670 | AA32: 7301670 | AB32: 2021-02-10 | AC32: 2021-02-10 | AD32: 2021-05-09 | AE32: 60 DÍAS | AF32: 1 | AG32: 30 | AN32: X | AP32: 0.67
A33: 20 | B33: 2021 | C33: FDLF-CD-20-2021 | D33: https://community.secop.gov.co/Public/Tendering/OpportunityDetail/Index?noticeUID=CO1.NTC.1748138&isFromPublicArea=True&isModal=true&asPopupView=true | E33: Contratos de prestación de servicios profesionales y de apoyo a la gestión | F33: Contratación directa | G33: Prestación de servicios profesionales y de apoyo a la gestión, o para la ejecución de trabajos artísticos que sólo puedan encomendarse a determinadas personas naturales; | H33: PRESTAR SERVICIOS PARA APOYAR JURÍDICAMENTE LA EJECUCIÓN DE LAS ACCIONES REQUERIDAS PARA EL TRÁMITE E IMPULSO PROCESAL DE LAS ACTUACIONES CONTRAVENCIONALES Y/O QUERELLAS QUE CURSEN EN LAS INSPECCIONES DE POLICÍA DE LA LOCALIDAD | I33: Inversión | J33: Un nuevo Contrato Social y ambiental para la Bogotá del Siglo XXI | K33: 57 | L33: =IF(ISERROR(VLOOKUP(K33,[2]Proposito_programa!$C$2:$E$59,2,FALSE))," ",VLOOKUP(K33,[2]Proposito_programa!$C$2:$E$59,2,FALSE)) -> Gestión pública local | M33: =IF(ISERROR(VLOOKUP(K33,[2]Proposito_programa!$C$2:$E$59,3,FALSE))," ",VLOOKUP(K33,[2]Proposito_programa!$C$2:$E$59,3,FALSE)) -> Propósito 5: Construir Bogotá - Región con gobierno abierto, transparente y ciudadanía consciente | N33: 1784 | O33: 1 | P33: 1016074802 | Q33: NATALIA ANDREA SERRATO CRUZ | R33: Persona Natural | V33: 24632450 | X33: 2 | Y33: 12316225 | Z33: 36948675 | AA33: 32186401 | AB33: 2021-02-15 | AC33: 2021-02-15 | AD33: 2021-09-29 | AE33: 152 DÍAS | AF33: 2 | AG33: 76 | AN33: X | AP33: 0.67
A34: 21 | B34: 2021 | C34: FDLF-CD-21-2021 | D34: https://community.secop.gov.co/Public/Tendering/OpportunityDetail/Index?noticeUID=CO1.NTC.1751238&isFromPublicArea=True&isModal=true&asPopupView=true | E34: Contratos de prestación de servicios profesionales y de apoyo a la gestión | F34: Contratación directa | G34: Prestación de servicios profesionales y de apoyo a la gestión, o para la ejecución de trabajos artísticos que sólo puedan encomendarse a determinadas personas naturales; | H34: PRESTAR SERVICIOS PARA APOYAR ADMINISTRATIVA Y ASISTENCIALMENTE A LAS INSPECCIONES DE POLICÍA DE LA LOCALIDAD. | I34: Inversión | J34: Un nuevo Contrato Social y ambiental para la Bogotá del Siglo XXI | K34: 57 | L34: =IF(ISERROR(VLOOKUP(K34,[2]Proposito_programa!$C$2:$E$59,2,FALSE))," ",VLOOKUP(K34,[2]Proposito_programa!$C$2:$E$59,2,FALSE)) -> Gestión pública local | M34: =IF(ISERROR(VLOOKUP(K34,[2]Proposito_programa!$C$2:$E$59,3,FALSE))," ",VLOOKUP(K34,[2]Proposito_programa!$C$2:$E$59,3,FALSE)) -> Propósito 5: Construir Bogotá - Región con gobierno abierto, transparente y ciudadanía consciente | N34: 1784 | O34: 1 | P34: 35221867 | Q34: MARIA JOHANA LOPEZ ULCUE | R34: Persona Natural | V34: 4867780 | X34: 1 | Y34: 2433890 | Z34: 7301670 | AA34: =Z34+W34+X34 -> 7301671 | AB34: 2021-02-12 | AC34: 2021-02-12 | AD34: 2021-05-11 | AE34: 60 DÍAS | AF34: 1 | AG34: 30 | AN34: X | AP34: 1
A35: 22 | B35: 2021 | C35: FDLF-CD-22-2021 | D35: https://community.secop.gov.co/Public/Tendering/OpportunityDetail/Index?noticeUID=CO1.NTC.1752348&isFromPublicArea=True&isModal=true&asPopupView=true | E35: Contratos de prestación de servicios profesionales y de apoyo a la gestión | F35: Contratación directa | G35: Prestación de servicios profesionales y de apoyo a la gestión, o para la ejecución de trabajos artísticos que sólo puedan encomendarse a determinadas personas naturales; | H35: PRESTACIÓN DE SERVICIOS PROFESIONALES DE APOYO AL ÁREA DE GESTIÓN DE DESARROLLO LOCAL, EN PRESUPUESTO, EN LAS ACTIVIDADES QUE ALLÍ SE GENEREN Y LE SEAN DESIGNADAS, DE CONFORMIDAD CON LOS ESTUDIOS PREVIOS | I35: Inversión | J35: Un nuevo Contrato Social y ambiental para la Bogotá del Siglo XXI | K35: 57 | L35: =IF(ISERROR(VLOOKUP(K35,[2]Proposito_programa!$C$2:$E$59,2,FALSE))," ",VLOOKUP(K35,[2]Proposito_programa!$C$2:$E$59,2,FALSE)) -> Gestión pública local | M35: =IF(ISERROR(VLOOKUP(K35,[2]Proposito_programa!$C$2:$E$59,3,FALSE))," ",VLOOKUP(K35,[2]Proposito_programa!$C$2:$E$59,3,FALSE)) -> Propósito 5: Construir Bogotá - Región con gobierno abierto, transparente y ciudadanía consciente | N35: 1783 | O35: 1 | P35: 51688411 | Q35: NELLY STELLA LOPEZ SILVA | R35: Persona Natural | V35: 44338410 | X35: 0 | Y35: 0 | Z35: 44338410 | AA35: 44338410 | AB35: 2021-02-11 | AC35: 2021-02-11 | AD35: 2021-11-10 | AE35: 274 DÍAS | AF35: 0 | AG35: 0 | AN35: X | AP35: 1
A36: 23 | B36: 2021 | C36: FDLF-CD-23-2021 | D36: https://community.secop.gov.co/Public/Tendering/OpportunityDetail/Index?noticeUID=CO1.NTC.1755635&isFromPublicArea=True&isModal=true&asPopupView=true | E36: Contratos de prestación de servicios profesionales y de apoyo a la gestión | F36: Contratación directa | G36: Prestación de servicios profesionales y de apoyo a la gestión, o para la ejecución de trabajos artísticos que sólo puedan encomendarse a determinadas personas naturales; | H36: PRESTAR SERVICIOS PARA APOYAR ADMINISTRATIVA Y ASISTENCIALMENTE A LAS INSPECCIONES DE POLICÍA DE LA LOCALIDAD. | I36: Inversión | J36: Un nuevo Contrato Social y ambiental para la Bogotá del Siglo XXI | K36: 57 | L36: =IF(ISERROR(VLOOKUP(K36,[2]Proposito_programa!$C$2:$E$59,2,FALSE))," ",VLOOKUP(K36,[2]Proposito_programa!$C$2:$E$59,2,FALSE)) -> Gestión pública local | M36: =IF(ISERROR(VLOOKUP(K36,[2]Proposito_programa!$C$2:$E$59,3,FALSE))," ",VLOOKUP(K36,[2]Proposito_programa!$C$2:$E$59,3,FALSE)) -> Propósito 5: Construir Bogotá - Región con gobierno abierto, transparente y ciudadanía consciente | N36: 1784 | O36: 1 | P36: 39760197 | Q36: SONIA YASMIN BAQUERO PARRADO | R36: Persona Natural | V36: 4867780 | X36: 1 | Y36: 2433890 | Z36: 7301670 | AA36: 7301670 | AB36: 2021-02-16 | AC36: 2021-02-16 | AD36: 2021-05-15 | AE36: 60 DÍAS | AF36: 1 | AG36: 30 | AN36: X | AP36: 0.67
A37: 24 | B37: 2021 | C37: FDLF-CD-24-2021 | D37: https://community.secop.gov.co/Public/Tendering/OpportunityDetail/Index?noticeUID=CO1.NTC.1756071&isFromPublicArea=True&isModal=true&asPopupView=true | E37: Contratos de prestación de servicios profesionales y de apoyo a la gestión | F37: Contratación directa | G37: Prestación de servicios profesionales y de apoyo a la gestión, o para la ejecución de trabajos artísticos que sólo puedan encomendarse a determinadas personas naturales; | H37: PRESTAR SERVICIOS APOYO A LAS ACTIVIDADES CORRESPONDIENTES A TEMAS DE MALLA VIAL, OBRAS, ESPACIO PÚBLICO E INFRAESTRUCTURA PARA LA ALCALDÍA LOCAL DE FONTIBÓN. | I37: Inversión | J37: Un nuevo Contrato Social y ambiental para la Bogotá del Siglo XXI | K37: 49 | L37: =IF(ISERROR(VLOOKUP(K37,[2]Proposito_programa!$C$2:$E$59,2,FALSE))," ",VLOOKUP(K37,[2]Proposito_programa!$C$2:$E$59,2,FALSE)) -> Movilidad segura, sostenible y accesible | M37: =IF(ISERROR(VLOOKUP(K37,[2]Proposito_programa!$C$2:$E$59,3,FALSE))," ",VLOOKUP(K37,[2]Proposito_programa!$C$2:$E$59,3,FALSE)) -> Propósito 4: Hacer de Bogotá Región un modelo de movilidad multimodal, incluyente y sostenible | N37: 1780 | O37: 1 | P37: 19497903 | Q37: EDGAR AUGUSTO GRANADOS MEJIA | R37: Persona Natural | V37: 35226000 | X37: 1 | Y37: 4566333 | Z37: 39792333 | AA37: 35878333 | AB37: 2021-02-26 | AC37: 2021-02-26 | AD37: 2021-12-31 | AE37: 274 DÍAS | AF37: 1 | AG37: 35 | AN37: X | AP37: 0.89
A38: 25 | B38: 2021 | C38: FDLF-CD-25-2021 | D38: https://community.secop.gov.co/Public/Tendering/OpportunityDetail/Index?noticeUID=CO1.NTC.1758623&isFromPublicArea=True&isModal=true&asPopupView=true | E38: Contratos de prestación de servicios profesionales y de apoyo a la gestión | F38: Contratación directa | G38: Prestación de servicios profesionales y de apoyo a la gestión, o para la ejecución de trabajos artísticos que sólo puedan encomendarse a determinadas personas naturales; | H38: SERVICIOS PROFESIONALES PARA LA OPERACIÓN, PRESTACIÓN, SEGUIMIENTO Y CUMPLIMIENTO DE LOS PROCEDIMIENTOS ADMINISTRATIVOS, OPERATIVOS Y PROGRAMÁTICOS DEL SERVICIO APOYO ECONÓMICO TIPO C, QUE CONTRIBUYAN A LA GARANTÍA DE LOS DERECHOS DE LA POBLACIÓN MAYOR EN EL MARCO DE LA POLÍTICA PÚBLICA SOCIAL PARA EL ENVEJECIMIENTO Y LA VEJEZ EN EL DISTRITO CAPITAL A CARGO DE LA ALCALDÍA LOCAL | I38: Inversión | J38: Un nuevo Contrato Social y ambiental para la Bogotá del Siglo XXI | K38: 1 | L38: =IF(ISERROR(VLOOKUP(K38,[2]Proposito_programa!$C$2:$E$59,2,FALSE))," ",VLOOKUP(K38,[2]Proposito_programa!$C$2:$E$59,2,FALSE)) -> Subsidios y transferencias para la equidad | M38: =IF(ISERROR(VLOOKUP(K38,[2]Proposito_programa!$C$2:$E$59,3,FALSE))," ",VLOOKUP(K38,[2]Proposito_programa!$C$2:$E$59,3,FALSE)) -> Propósito 1: Hacer un nuevo contrato social para incrementar la inclusión social, productiva y política | N38: 1752 | O38: 1 | P38: 52783244 | Q38: DUDLEY JOHANNA PALACIOS GARCIA | R38: Persona Natural | V38: 49264900 | X38: 1 | Y38: 7061302 | Z38: 56326202 | AA38: 46965871 | AB38: 2021-02-15 | AC38: 2021-02-15 | AD38: 2022-01-24 | AE38: 304 DÍAS | AF38: 1 | AG38: 43 | AH38: 52483298 | AI38: JENNY GISELA CUERVO LÓPEZ | AJ38: 2021-03-10 | AK38: 44995276 | AN38: X | AP38: 0.62
A39: 26 | B39: 2021 | C39: FDLF-CD-26-2021 | D39: https://community.secop.gov.co/Public/Tendering/OpportunityDetail/Index?noticeUID=CO1.NTC.1758437&isFromPublicArea=True&isModal=true&asPopupView=true | E39: Contratos de prestación de servicios profesionales y de apoyo a la gestión | F39: Contratación directa | G39: Prestación de servicios profesionales y de apoyo a la gestión, o para la ejecución de trabajos artísticos que sólo puedan encomendarse a determinadas personas naturales; | H39: PRESTAR SERVICIOS PROFESIONALES DE APOYO EN LOS PROCESOS DE COBRO PERSUASIVO DE LAS OBLIGACIONES CLARAS, EXPRESAS Y ACTUALMENTE EXIGIBLES, POR CONCEPTO DE MULTAS IMPUESTAS POR EL ÁREA DE GESTIÓN POLICIVA. | I39: Inversión | J39: Un nuevo Contrato Social y ambiental para la Bogotá del Siglo XXI | K39: 57 | L39: =IF(ISERROR(VLOOKUP(K39,[2]Proposito_programa!$C$2:$E$59,2,FALSE))," ",VLOOKUP(K39,[2]Proposito_programa!$C$2:$E$59,2,FALSE)) -> Gestión pública local | M39: =IF(ISERROR(VLOOKUP(K39,[2]Proposito_programa!$C$2:$E$59,3,FALSE))," ",VLOOKUP(K39,[2]Proposito_programa!$C$2:$E$59,3,FALSE)) -> Propósito 5: Construir Bogotá - Región con gobierno abierto, transparente y ciudadanía consciente | N39: 1784 | O39: 1 | P39: 36302596 | Q39: CLARA ISABER RAMIREZ CORDOBA | R39: Persona Natural | V39: 47700000 | X39: 2 | Y39: 12896667 | Z39: 60596667 | AA39: =50526667-1984903 -> 48541764 | AB39: 2021-02-15 | AC39: 2021-02-15 | AD39: 2022-01-27 | AE39: 274 DÍAS | AF39: 2 | AG39: 73 | AN39: X | AP39: 0.79
A40: 27 | B40: 2021 | C40: FDLF-CD-27-2021 | D40: https://community.secop.gov.co/Public/Tendering/OpportunityDetail/Index?noticeUID=CO1.NTC.1760074&isFromPublicArea=True&isModal=true&asPopupView=true | E40: Contratos de prestación de servicios profesionales y de apoyo a la gestión | F40: Contratación directa | G40: Prestación de servicios profesionales y de apoyo a la gestión, o para la ejecución de trabajos artísticos que sólo puedan encomendarse a determinadas personas naturales; | H40: PRESTAR SERVICIOS PARA APOYAR ADMINISTRATIVA Y ASISTENCIALMENTE A LAS INSPECCIONES DE POLICÍA DE LA LOCALIDAD. | I40: Inversión | J40: Un nuevo Contrato Social y ambiental para la Bogotá del Siglo XXI | K40: 57 | L40: =IF(ISERROR(VLOOKUP(K40,[2]Proposito_programa!$C$2:$E$59,2,FALSE))," ",VLOOKUP(K40,[2]Proposito_programa!$C$2:$E$59,2,FALSE)) -> Gestión pública local | M40: =IF(ISERROR(VLOOKUP(K40,[2]Proposito_programa!$C$2:$E$59,3,FALSE))," ",VLOOKUP(K40,[2]Proposito_programa!$C$2:$E$59,3,FALSE)) -> Propósito 5: Construir Bogotá - Región con gobierno abierto, transparente y ciudadanía consciente | N40: 1784 | O40: 1 | P40: 1016018384 | Q40: DIEGO ALEJANDRO CASTRO MUNZA | R40: Persona Natural | V40: 4867780 | X40: 1 | Y40: 2433890 | Z40: 7301670 | AA40: 7301670 | AB40: 2021-02-17 | AC40: 2021-02-17 | AD40: 2021-05-16 | AE40: 60 DÍAS | AF40: 1 | AG40: 30 | AN40: X | AP40: 0.67
A41: 28 | B41: 2021 | C41: FDLF-CD-28-2021 | D41: https://community.secop.gov.co/Public/Tendering/OpportunityDetail/Index?noticeUID=CO1.NTC.1767701&isFromPublicArea=True&isModal=true&asPopupView=true | E41: Contratos de prestación de servicios profesionales y de apoyo a la gestión | F41: Contratación directa | G41: Prestación de servicios profesionales y de apoyo a la gestión, o para la ejecución de trabajos artísticos que sólo puedan encomendarse a determinadas personas naturales; | H41: SERVICIOS PARA EL APOYO EN LA CONDUCCIÓN DE VEHÍCULOS AL SERVICIO DE LA ALCALDÍA LOCAL DE FONTIBÓN | I41: Inversión | J41: Un nuevo Contrato Social y ambiental para la Bogotá del Siglo XXI | K41: 57 | L41: =IF(ISERROR(VLOOKUP(K41,[2]Proposito_programa!$C$2:$E$59,2,FALSE))," ",VLOOKUP(K41,[2]Proposito_programa!$C$2:$E$59,2,FALSE)) -> Gestión pública local | M41: =IF(ISERROR(VLOOKUP(K41,[2]Proposito_programa!$C$2:$E$59,3,FALSE))," ",VLOOKUP(K41,[2]Proposito_programa!$C$2:$E$59,3,FALSE)) -> Propósito 5: Construir Bogotá - Región con gobierno abierto, transparente y ciudadanía consciente | N41: 1783 | O41: 1 | P41: 80066595 | Q41: JHON FREDY ORDUZ ORTIZ | R41: Persona Natural | V41: 21905010 | X41: 0 | Y41: 0 | Z41: 21905010 | AA41: 21905010 | AB41: 2021-02-16 | AC41: 2021-02-16 | AD41: 2021-11-15 | AE41: 274 DÍAS | AF41: 0 | AG41: 0 | AN41: X | AP41: 1
A42: 29 | B42: 2021 | C42: FDLF-CD-29-2021 | D42: https://community.secop.gov.co/Public/Tendering/OpportunityDetail/Index?noticeUID=CO1.NTC.1769170&isFromPublicArea=True&isModal=true&asPopupView=true | E42: Contratos de prestación de servicios profesionales y de apoyo a la gestión | F42: Contratación directa | G42: Prestación de servicios profesionales y de apoyo a la gestión, o para la ejecución de trabajos artísticos que sólo puedan encomendarse a determinadas personas naturales; | H42: PRESTAR SERVICIOS PROFESIONALES DE APOYO CONTABLE EN LOS PROCESOS DE CAUSACIÓN, SISTEMATIZACIÓN Y REGISTROS DE INFORMACIÓN CONTABLE Y A LA GESTIÓN PRESUPUESTAL DEL FONDO DE DESARROLLO LOCAL. | I42: Inversión | J42: Un nuevo Contrato Social y ambiental para la Bogotá del Siglo XXI | K42: 57 | L42: =IF(ISERROR(VLOOKUP(K42,[2]Proposito_programa!$C$2:$E$59,2,FALSE))," ",VLOOKUP(K42,[2]Proposito_programa!$C$2:$E$59,2,FALSE)) -> Gestión pública local | M42: =IF(ISERROR(VLOOKUP(K42,[2]Proposito_programa!$C$2:$E$59,3,FALSE))," ",VLOOKUP(K42,[2]Proposito_programa!$C$2:$E$59,3,FALSE)) -> Propósito 5: Construir Bogotá - Región con gobierno abierto, transparente y ciudadanía consciente | N42: 1783 | O42: 1 | P42: 79938920 | Q42: JHON FREDY ROA PINTO | R42: Persona Natural | V42: 44338410 | X42: 1 | Y42: 5090706 | Z42: 49429116 | AA42: 44502627 | AB42: 2021-02-17 | AC42: 2021-02-17 | AD42: 2021-12-31 | AE42: 274 DÍAS | AF42: 1 | AG42: 31 | AN42: X | AP42: 0.9
A43: 30 | B43: 2021 | C43: FDLF-CD-30-2021 | D43: https://community.secop.gov.co/Public/Tendering/OpportunityDetail/Index?noticeUID=CO1.NTC.1767902&isFromPublicArea=True&isModal=true&asPopupView=true | E43: Contratos de prestación de servicios profesionales y de apoyo a la gestión | F43: Contratación directa | G43: Prestación de servicios profesionales y de apoyo a la gestión, o para la ejecución de trabajos artísticos que sólo puedan encomendarse a determinadas personas naturales; | H43: SERVICIOS PARA EL APOYO EN LA CONDUCCIÓN DE VEHÍCULOS AL SERVICIO DE LA ALCALDÍA LOCAL DE FONTIBÓN | I43: Inversión | J43: Un nuevo Contrato Social y ambiental para la Bogotá del Siglo XXI | K43: 57 | L43: =IF(ISERROR(VLOOKUP(K43,[2]Proposito_programa!$C$2:$E$59,2,FALSE))," ",VLOOKUP(K43,[2]Proposito_programa!$C$2:$E$59,2,FALSE)) -> Gestión pública local | M43: =IF(ISERROR(VLOOKUP(K43,[2]Proposito_programa!$C$2:$E$59,3,FALSE))," ",VLOOKUP(K43,[2]Proposito_programa!$C$2:$E$59,3,FALSE)) -> Propósito 5: Construir Bogotá - Región con gobierno abierto, transparente y ciudadanía consciente | N43: 1783 | O43: 1 | P43: 11385997 | Q43: JULIO ARMANDO GARZON MONTAÑEZ | R43: Persona Natural | V43: 21905010 | X43: 1 | Y43: 2515020 | Z43: 24420030 | AA43: 21986140 | AB43: 2021-02-16 | AC43: 2021-02-16 | AD43: 2021-12-31 | AE43: 274 DÍAS | AF43: 1 | AG43: 31 | AN43: X | AP43: 0.85
A44: 31 | B44: 2021 | C44: FDLF-CD-31-2021 | D44: https://community.secop.gov.co/Public/Tendering/OpportunityDetail/Index?noticeUID=CO1.NTC.1768636&isFromPublicArea=True&isModal=true&asPopupView=true | E44: Contratos de prestación de servicios profesionales y de apoyo a la gestión | F44: Contratación directa | G44: Prestación de servicios profesionales y de apoyo a la gestión, o para la ejecución de trabajos artísticos que sólo puedan encomendarse a determinadas personas naturales; | H44: PRESTAR SERVICIOS PROFESIONALES PARA APOYAR LOS PROCESOS RELACIONADOS CON LOS CONTRATOS DE INVERSIÓN, VERIFICACIÓN DEL PROCEDIMIENTO DE PAGOS Y REVISIÓN DE CARPETAS ALLEGADAS AL DESPACHO PARA SU RESPECTIVA FIRMA DEL ALCALDE LOCAL | I44: Inversión | J44: Un nuevo Contrato Social y ambiental para la Bogotá del Siglo XXI | K44: 57 | L44: =IF(ISERROR(VLOOKUP(K44,[2]Proposito_programa!$C$2:$E$59,2,FALSE))," ",VLOOKUP(K44,[2]Proposito_programa!$C$2:$E$59,2,FALSE)) -> Gestión pública local | M44: =IF(ISERROR(VLOOKUP(K44,[2]Proposito_programa!$C$2:$E$59,3,FALSE))," ",VLOOKUP(K44,[2]Proposito_programa!$C$2:$E$59,3,FALSE)) -> Propósito 5: Construir Bogotá - Región con gobierno abierto, transparente y ciudadanía consciente | N44: 1783 | O44: 1 | P44: 7182813 | Q44: JEFFER DARIO BUITRAGO BETANCUR | R44: Persona Natural | V44: 38934000 | X44: 0 | Y44: 0 | Z44: 38934000 | AA44: 36771000 | AB44: 2021-02-16 | AC44: 2021-02-16 | AD44: 2021-11-15 | AE44: 274 DÍAS | AF44: 0 | AG44: 0 | AN44: X | AP44: 0.94
A45: 32 | B45: 2021 | C45: FDLF-CD-32-2021 | D45: https://community.secop.gov.co/Public/Tendering/OpportunityDetail/Index?noticeUID=CO1.NTC.1769620&isFromPublicArea=True&isModal=true&asPopupView=true | E45: Contratos de prestación de servicios profesionales y de apoyo a la gestión | F45: Contratación directa | G45: Prestación de servicios profesionales y de apoyo a la gestión, o para la ejecución de trabajos artísticos que sólo puedan encomendarse a determinadas personas naturales; | H45: SERVICIOS PROFESIONALES DE APOYO CONTABLE EN LOS PROCESOS DE CAUSACIÓN, SISTEMATIZACIÓN Y REGISTROS DE INFORMACIÓN CONTABLE | I45: Inversión | J45: Un nuevo Contrato Social y ambiental para la Bogotá del Siglo XXI | K45: 57 | L45: =IF(ISERROR(VLOOKUP(K45,[2]Proposito_programa!$C$2:$E$59,2,FALSE))," ",VLOOKUP(K45,[2]Proposito_programa!$C$2:$E$59,2,FALSE)) -> Gestión pública local | M45: =IF(ISERROR(VLOOKUP(K45,[2]Proposito_programa!$C$2:$E$59,3,FALSE))," ",VLOOKUP(K45,[2]Proposito_programa!$C$2:$E$59,3,FALSE)) -> Propósito 5: Construir Bogotá - Región con gobierno abierto, transparente y ciudadanía consciente | N45: 1783 | O45: 1 | P45: 79378439 | Q45: ELMAN CIFUENTES CASTAÑEDA | R45: Persona Natural | V45: 9000000 | X45: 1 | Y45: 4500000 | Z45: 13500000 | AA45: 13500000 | AB45: 2021-02-16 | AC45: 2021-02-16 | AD45: 2021-05-15 | AE45: 60 DÍAS | AF45: 1 | AG45: 30 | AN45: X | AP45: 1
A46: 33 | B46: 2021 | C46: FDLF-CD-33-2021 | D46: https://community.secop.gov.co/Public/Tendering/OpportunityDetail/Index?noticeUID=CO1.NTC.1770267&isFromPublicArea=True&isModal=true&asPopupView=true | E46: Contratos de prestación de servicios profesionales y de apoyo a la gestión | F46: Contratación directa | G46: Prestación de servicios profesionales y de apoyo a la gestión, o para la ejecución de trabajos artísticos que sólo puedan encomendarse a determinadas personas naturales; | H46: PRESTAR LOS SERVICIOS PROFESIONALES PARA APOYAR LA ALCALDÍA LOCAL DE FONTIBÓN EN TEMAS RELACIONADOS CON RESTAURACIÓN ECOLÓGICA, SIEMBRA Y MANTENIMIENTO DE ARBOLADO URBANO | I46: Inversión | J46: Un nuevo Contrato Social y ambiental para la Bogotá del Siglo XXI | K46: 33 | L46: =IF(ISERROR(VLOOKUP(K46,[2]Proposito_programa!$C$2:$E$59,2,FALSE))," ",VLOOKUP(K46,[2]Proposito_programa!$C$2:$E$59,2,FALSE)) -> Más árboles y más y mejor espacio público | M46: =IF(ISERROR(VLOOKUP(K46,[2]Proposito_programa!$C$2:$E$59,3,FALSE))," ",VLOOKUP(K46,[2]Proposito_programa!$C$2:$E$59,3,FALSE)) -> Propósito 2 : Cambiar Nuestros Hábitos de Vida para Reverdecer a Bogotá y Adaptarnos y Mitigar la Crisis Climática | N46: 1769 | O46: 1 | P46: 79793957 | Q46: LUCAS DAVID CARDOZO CARRILLO | R46: Persona Natural | V46: 30000000 | X46: 0 | Y46: 0 | Z46: =Y46+V46+W46 -> 30000000 | AA46: 27166667 | AB46: 2021-02-18 | AC46: 2021-02-18 | AD46: 2021-08-17 | AE46: 182 DÍAS | AF46: 0 | AG46: 0 | AN46: X | AP46: 0.91
A47: 34 | B47: 2021 | C47: FDLF-CD-34-2021 | D47: https://community.secop.gov.co/Public/Tendering/OpportunityDetail/Index?noticeUID=CO1.NTC.1774553&isFromPublicArea=True&isModal=true&asPopupView=true | E47: Contratos de prestación de servicios profesionales y de apoyo a la gestión | F47: Contratación directa | G47: Prestación de servicios profesionales y de apoyo a la gestión, o para la ejecución de trabajos artísticos que sólo puedan encomendarse a determinadas personas naturales; | H47: SERVICIOS PARA EL APOYO EN LA CONDUCCIÓN DE VEHÍCULOS AL SERVICIO DE LA ALCALDÍA LOCAL DE FONTIBÓN | I47: Inversión | J47: Un nuevo Contrato Social y ambiental para la Bogotá del Siglo XXI | K47: 57 | L47: =IF(ISERROR(VLOOKUP(K47,[2]Proposito_programa!$C$2:$E$59,2,FALSE))," ",VLOOKUP(K47,[2]Proposito_programa!$C$2:$E$59,2,FALSE)) -> Gestión pública local | M47: =IF(ISERROR(VLOOKUP(K47,[2]Proposito_programa!$C$2:$E$59,3,FALSE))," ",VLOOKUP(K47,[2]Proposito_programa!$C$2:$E$59,3,FALSE)) -> Propósito 5: Construir Bogotá - Región con gobierno abierto, transparente y ciudadanía consciente | N47: 1783 | O47: 1 | P47: 79463263 | Q47: YOVANNY BUITRAGO CACERES | R47: Persona Natural | V47: 21905010 | X47: 1 | Y47: 2758409 | Z47: 24663419 | AA47: 22067270 | AB47: 2021-02-18 | AC47: 2021-02-18 | AD47: 2021-12-31 | AE47: 274 DÍAS | AF47: 1 | AG47: 34 | AN47: X | AP47: 0.89
A48: 35 | B48: 2021 | C48: FDLF-CD-35-2021 | D48: https://community.secop.gov.co/Public/Tendering/OpportunityDetail/Index?noticeUID=CO1.NTC.1775577&isFromPublicArea=True&isModal=true&asPopupView=true | E48: Contratos de prestación de servicios profesionales y de apoyo a la gestión | F48: Contratación directa | G48: Prestación de servicios profesionales y de apoyo a la gestión, o para la ejecución de trabajos artísticos que sólo puedan encomendarse a determinadas personas naturales; | H48: PRESTAR SERVICIOS PROFESIONALES PARA EL DESARROLLO DE ACTIVIDADES ORIENTADAS A LA IMPLEMENTACIÓN DEL PROYECTO ESTRATÉGICO EN EL ÁREA DE GESTIÓN DEL DESARROLLO LOCAL DE LA ALCALDÍA LOCAL DE FONTIBÓN. | I48: Inversión | J48: Un nuevo Contrato Social y ambiental para la Bogotá del Siglo XXI | K48: 43 | L48: =IF(ISERROR(VLOOKUP(K48,[2]Proposito_programa!$C$2:$E$59,2,FALSE))," ",VLOOKUP(K48,[2]Proposito_programa!$C$2:$E$59,2,FALSE)) -> Cultura ciudadana para la confianza, la convivencia y la participación desde la vida cotidiana | M48: =IF(ISERROR(VLOOKUP(K48,[2]Proposito_programa!$C$2:$E$59,3,FALSE))," ",VLOOKUP(K48,[2]Proposito_programa!$C$2:$E$59,3,FALSE)) -> Propósito 3: Inspirar confianza y legitimidad para vivir sin miedo y ser epicentro de cultura ciudadana, paz y reconciliación | N48: 1775 | O48: 1 | P48: 73161809 | Q48: FARID PUELLO PEREZ | R48: Persona Natural | V48: 21805000 | X48: 0 | Y48: 0 | Z48: 21805000 | AA48: 21805000 | AB48: 2021-02-22 | AC48: 2021-02-22 | AD48: 2021-07-21 | AE48: 274 DÍAS | AF48: 0 | AG48: 0 | AN48: X | AP48: 1
A49: 36 | B49: 2021 | C49: FDLF-CD-36-2021 | D49: https://community.secop.gov.co/Public/Tendering/OpportunityDetail/Index?noticeUID=CO1.NTC.1775978&isFromPublicArea=True&isModal=true&asPopupView=true | E49: Contratos de prestación de servicios profesionales y de apoyo a la gestión | F49: Contratación directa | G49: Prestación de servicios profesionales y de apoyo a la gestión, o para la ejecución de trabajos artísticos que sólo puedan encomendarse a determinadas personas naturales; | H49: APOYAR AL EQUIPO DE PRENSA Y COMUNICACIONES DE LA ALCALDÍA LOCAL EN LA REALIZACIÓN DE PRODUCTOS Y PIEZAS DIGITALES, IMPRESAS Y PUBLICITARIAS DE GRAN FORMATO Y DE ANIMACIÓN GRÁFICA, ASÍ COMO APOYAR LA PRODUCCIÓN Y MONTAJE DE EVENTOS. | I49: Inversión | J49: Un nuevo Contrato Social y ambiental para la Bogotá del Siglo XXI | K49: 57 | L49: =IF(ISERROR(VLOOKUP(K49,[2]Proposito_programa!$C$2:$E$59,2,FALSE))," ",VLOOKUP(K49,[2]Proposito_programa!$C$2:$E$59,2,FALSE)) -> Gestión pública local | M49: =IF(ISERROR(VLOOKUP(K49,[2]Proposito_programa!$C$2:$E$59,3,FALSE))," ",VLOOKUP(K49,[2]Proposito_programa!$C$2:$E$59,3,FALSE)) -> Propósito 5: Construir Bogotá - Región con gobierno abierto, transparente y ciudadanía consciente | N49: 1783 | O49: 1 | P49: 1010193154 | Q49: ERIKA LIZETH VASQUEZ RAMIREZ | R49: Persona Natural | V49: 21630000 | X49: 1 | Y49: 10815000 | Z49: 32445000 | AA49: 32445000 | AB49: 2021-02-22 | AC49: 2021-02-22 | AD49: 2021-10-06 | AE49: 152 DÍAS | AF49: 1 | AG49: 75 | AN49: X | AP49: 0.67
A50: 37 | B50: 2021 | C50: FDLF-CD-37-2021 | D50: https://community.secop.gov.co/Public/Tendering/OpportunityDetail/Index?noticeUID=CO1.NTC.1777272&isFromPublicArea=True&isModal=true&asPopupView=true | E50: Contratos de prestación de servicios profesionales y de apoyo a la gestión | F50: Contratación directa | G50: Prestación de servicios profesionales y de apoyo a la gestión, o para la ejecución de trabajos artísticos que sólo puedan encomendarse a determinadas personas naturales; | H50: PRESTACIÓN DE SERVICIOS ESPECIALIZADOS DE APOYO AL DESPACHO DEL ALCALDE LOCAL EN LA REVISIÓN, GESTIÓN, EJECUCIÓN Y SEGUIMIENTO DE LA EJECUCIÓN PRESUPUESTAL, PROCESO ADMINISTRATIVOS, CONTRACTUALES Y ORGANIZACIONALES DEL ÁREA DE GESTIÓN POLICIVA Y JURÍDICA Y EL ÁREA DE GESTIÓN DE GESTIÓN DE DESARROLLO LOCAL QUE LE SEAN REQUERIDOS, DE CONFORMIDAD CON LOS ESTUDIOS PREVIOS | I50: Inversión | J50: Un nuevo Contrato Social y ambiental para la Bogotá del Siglo XXI | K50: 57 | L50: =IF(ISERROR(VLOOKUP(K50,[2]Proposito_programa!$C$2:$E$59,2,FALSE))," ",VLOOKUP(K50,[2]Proposito_programa!$C$2:$E$59,2,FALSE)) -> Gestión pública local | M50: =IF(ISERROR(VLOOKUP(K50,[2]Proposito_programa!$C$2:$E$59,3,FALSE))," ",VLOOKUP(K50,[2]Proposito_programa!$C$2:$E$59,3,FALSE)) -> Propósito 5: Construir Bogotá - Región con gobierno abierto, transparente y ciudadanía consciente | N50: 1783 | O50: 1 | P50: 1014182635 | Q50: HEIDI VANESSA SARAY GUATAQUIRA | R50: Persona Natural | V50: 78300000 | X50: 0 | Y50: 0 | Z50: 78300000 | AA50: 73370000 | AB50: 2021-02-18 | AC50: 2021-02-18 | AD50: 2021-11-17 | AE50: 274 DÍAS | AF50: 0 | AG50: 0 | AH50: 80186689 | AI50: HERNAN DAVID MONSALVE DOMINGUEZ | AJ50: 2021-09-01 | AK50: 22330000 | AN50: X | AP50: 0.94
A51: 38 | B51: 2021 | C51: FDLF-CD-38-2021 | D51: https://community.secop.gov.co/Public/Tendering/OpportunityDetail/Index?noticeUID=CO1.NTC.1778906&isFromPublicArea=True&isModal=true&asPopupView=true | E51: Contratos de prestación de servicios profesionales y de apoyo a la gestión | F51: Contratación directa | G51: Prestación de servicios profesionales y de apoyo a la gestión, o para la ejecución de trabajos artísticos que sólo puedan encomendarse a determinadas personas naturales; | H51: PRESTACIÓN DE SERVICIOS PROFESIONAL DE APOYO AL ÁREA DE GESTIÓN DE DESARROLLO LOCAL PARA LA GESTIÓN DE FORTALECIMIENTO A MIPYMES Y DEMÁS ASUNTOS RELACIONADOS CON EL CUMPLIMIENTO DE ACTIVIDADES DE COMPETITIVIDAD Y DESARROLLO ECONÓMICO DE LA LOCALIDAD DE FONTIBÓN. | I51: Inversión | J51: Un nuevo Contrato Social y ambiental para la Bogotá del Siglo XXI | K51: 6 | L51: =IF(ISERROR(VLOOKUP(K51,[2]Proposito_programa!$C$2:$E$59,2,FALSE))," ",VLOOKUP(K51,[2]Proposito_programa!$C$2:$E$59,2,FALSE)) -> Sistema Distrital de Cuidado | M51: =IF(ISERROR(VLOOKUP(K51,[2]Proposito_programa!$C$2:$E$59,3,FALSE))," ",VLOOKUP(K51,[2]Proposito_programa!$C$2:$E$59,3,FALSE)) -> Propósito 1: Hacer un nuevo contrato social para incrementar la inclusión social, productiva y política | N51: 1761 | O51: 1 | P51: 80040922 | Q51: ANDRES FERNANDO ACERO DIAZ | R51: Persona Natural | V51: 58500000 | X51: 0 | Y51: 0 | Z51: 58500000 | AA51: 52649999 | AB51: 2021-02-19 | AC51: 2021-02-19 | AD51: 2021-11-28 | AE51: 274 DÍAS | AF51: 0 | AG51: 0 | AN51: X | AP51: 0.83
A52: 39 | B52: 2021 | C52: FDLF-CD-39-2021 | D52: https://community.secop.gov.co/Public/Tendering/OpportunityDetail/Index?noticeUID=CO1.NTC.1779752&isFromPublicArea=True&isModal=true&asPopupView=true | E52: Contratos de prestación de servicios profesionales y de apoyo a la gestión | F52: Contratación directa | G52: Prestación de servicios profesionales y de apoyo a la gestión, o para la ejecución de trabajos artísticos que sólo puedan encomendarse a determinadas personas naturales; | H52: PRESTACIÓN DE SERVICIOS COMO PROFESIONAL ESPECIALIZADO PARA ORIENTAR AL ÁREA DE GESTIÓN DE DESARROLLO EN LAS ACTIVIDADES DE REVISIÓN, CONTROL, SEGUIMIENTO A LOS PROYECTOS A CARGO DE LA ALCALDÍA LOCAL DE FONTIBÓN. | I52: Inversión | J52: Un nuevo Contrato Social y ambiental para la Bogotá del Siglo XXI | K52: 57 | L52: =IF(ISERROR(VLOOKUP(K52,[2]Proposito_programa!$C$2:$E$59,2,FALSE))," ",VLOOKUP(K52,[2]Proposito_programa!$C$2:$E$59,2,FALSE)) -> Gestión pública local | M52: =IF(ISERROR(VLOOKUP(K52,[2]Proposito_programa!$C$2:$E$59,3,FALSE))," ",VLOOKUP(K52,[2]Proposito_programa!$C$2:$E$59,3,FALSE)) -> Propósito 5: Construir Bogotá - Región con gobierno abierto, transparente y ciudadanía consciente | N52: 1783 | O52: 1 | P52: 32294897 | Q52: YAJAIRA CUESTA MACHUCA | R52: Persona Natural | V52: 80100000 | X52: 0 | Y52: 0 | Z52: 80100000 | AA52: =73870000-9293334 -> 64576666 | AB52: 2021-02-22 | AC52: 2021-02-22 | AD52: 2021-11-21 | AE52: 274 DÍAS | AF52: 0 | AG52: 0 | AN52: X | AP52: 0.92
A53: 40 | B53: 2021 | C53: FDLF-CD-40-2021 | D53: https://community.secop.gov.co/Public/Tendering/OpportunityDetail/Index?noticeUID=CO1.NTC.1783427&isFromPublicArea=True&isModal=true&asPopupView=true | E53: Contratos de prestación de servicios profesionales y de apoyo a la gestión | F53: Contratación directa | G53: Prestación de servicios profesionales y de apoyo a la gestión, o para la ejecución de trabajos artísticos que sólo puedan encomendarse a determinadas personas naturales; | H53: PRESTAR SERVICIOS PARA APOYAR LAS LABORES DE NOTIFICACIÓN DE CORRESPONDENCIA DE LA ALCALDÍA LOCAL DE FONTIBÓN | I53: Inversión | J53: Un nuevo Contrato Social y ambiental para la Bogotá del Siglo XXI | K53: 57 | L53: =IF(ISERROR(VLOOKUP(K53,[2]Proposito_programa!$C$2:$E$59,2,FALSE))," ",VLOOKUP(K53,[2]Proposito_programa!$C$2:$E$59,2,FALSE)) -> Gestión pública local | M53: =IF(ISERROR(VLOOKUP(K53,[2]Proposito_programa!$C$2:$E$59,3,FALSE))," ",VLOOKUP(K53,[2]Proposito_programa!$C$2:$E$59,3,FALSE)) -> Propósito 5: Construir Bogotá - Región con gobierno abierto, transparente y ciudadanía consciente | N53: 1783 | O53: 1 | P53: 79538248 | Q53: SABAS CRUZ ORTIZ | R53: Persona Natural | V53: 21905010 | X53: 0 | Z53: 21905010 | AA53: 21905010 | AB53: 2021-02-22 | AC53: 2021-02-22 | AD53: 2021-11-21 | AE53: 274 DÍAS | AF53: 0 | AG53: 0 | AN53: X | AP53: 1
A54: 41 | B54: 2021 | C54: FDLF-CD-41-2021 | D54: https://community.secop.gov.co/Public/Tendering/OpportunityDetail/Index?noticeUID=CO1.NTC.1788654&isFromPublicArea=True&isModal=true&asPopupView=true | E54: Contratos de prestación de servicios profesionales y de apoyo a la gestión | F54: Contratación directa | G54: Prestación de servicios profesionales y de apoyo a la gestión, o para la ejecución de trabajos artísticos que sólo puedan encomendarse a determinadas personas naturales; | H54: SERVICIOS DE APOYO TÉCNICO ADMINISTRATIVO AL ÁREA DE GESTIÓN DEL DESARROLLO LOCAL DE LA ALCALDÍA LOCAL DE FONTIBÓN | I54: Inversión | J54: Un nuevo Contrato Social y ambiental para la Bogotá del Siglo XXI | K54: 57 | L54: =IF(ISERROR(VLOOKUP(K54,[2]Proposito_programa!$C$2:$E$59,2,FALSE))," ",VLOOKUP(K54,[2]Proposito_programa!$C$2:$E$59,2,FALSE)) -> Gestión pública local | M54: =IF(ISERROR(VLOOKUP(K54,[2]Proposito_programa!$C$2:$E$59,3,FALSE))," ",VLOOKUP(K54,[2]Proposito_programa!$C$2:$E$59,3,FALSE)) -> Propósito 5: Construir Bogotá - Región con gobierno abierto, transparente y ciudadanía consciente | N54: 1783 | O54: 1 | P54: 79611853 | Q54: DIEGO FERNANDO MONCADA MORENO | R54: Persona Natural | V54: 35226000 | X54: 1 | Y54: 3914000 | Z54: 39140000 | AA54: 35226000 | AB54: 2021-02-23 | AC54: 2021-02-23 | AD54: 2021-12-30 | AE54: 274 DÍAS | AF54: 1 | AG54: 30 | AN54: X | AP54: 0.9
A55: 42 | B55: 2021 | C55: FDLF-CD-42-2021 | D55: https://community.secop.gov.co/Public/Tendering/OpportunityDetail/Index?noticeUID=CO1.NTC.1788756&isFromPublicArea=True&isModal=true&asPopupView=true | E55: Contratos de prestación de servicios profesionales y de apoyo a la gestión | F55: Contratación directa | G55: Prestación de servicios profesionales y de apoyo a la gestión, o para la ejecución de trabajos artísticos que sólo puedan encomendarse a determinadas personas naturales; | H55: SERVICIOS DE APOYO OPERATIVO PARA LAS ACTIVIDADES RELACIONADAS CON EL MANTENIMIENTO Y REPARACIONES MENORES DE LA SEDE Y DEMÁS DEPENDENCIAS DE LA ALCALDÍA LOCAL DE FONTIBÓN | I55: Inversión | J55: Un nuevo Contrato Social y ambiental para la Bogotá del Siglo XXI | K55: 57 | L55: =IF(ISERROR(VLOOKUP(K55,[2]Proposito_programa!$C$2:$E$59,2,FALSE))," ",VLOOKUP(K55,[2]Proposito_programa!$C$2:$E$59,2,FALSE)) -> Gestión pública local | M55: =IF(ISERROR(VLOOKUP(K55,[2]Proposito_programa!$C$2:$E$59,3,FALSE))," ",VLOOKUP(K55,[2]Proposito_programa!$C$2:$E$59,3,FALSE)) -> Propósito 5: Construir Bogotá - Región con gobierno abierto, transparente y ciudadanía consciente | N55: 1783 | O55: 1 | P55: 1090424456 | Q55: JAMES ANTONY ANGARITA VELASCO | R55: Persona Natural | V55: 12169450 | X55: 1 | Y55: 6084725 | Z55: 18254175 | AA55: 18254175 | AB55: 2021-02-23 | AC55: 2021-02-23 | AD55: 2021-10-07 | AE55: 152 DÍAS | AF55: 1 | AG55: 75 | AN55: X | AP55: 0.67
A56: 43 | B56: 2021 | C56: FDLF-CD-43-2021 | D56: https://community.secop.gov.co/Public/Tendering/OpportunityDetail/Index?noticeUID=CO1.NTC.1790673&isFromPublicArea=True&isModal=true&asPopupView=true | E56: Contratos de prestación de servicios profesionales y de apoyo a la gestión | F56: Contratación directa | G56: Prestación de servicios profesionales y de apoyo a la gestión, o para la ejecución de trabajos artísticos que sólo puedan encomendarse a determinadas personas naturales; | H56: APOYAR AL EQUIPO DE PRENSA Y COMUNICACIONES DE LA ALCALDÍA LOCAL EN LA CREACIÓN, REALIZACIÓN, PRODUCCIÓN Y EDICIÓN DE VÍDEOS, ASÍ COMO EL REGISTRO, EDICIÓN Y LA PRESENTACIÓN DE FOTOGRAFÍAS DE LOS ACONTECIMIENTOS, HECHOS Y EVENTOS EXTERNOS E INTERNOS DE LA ALCALDÍA LOCAL, PARA SER UTILIZADOS COMO INSUMOS DE COMUNICACIÓN EN LOS MEDIOS, ESPECIALMENTE ESCRITOS, DIGITALES Y AUDIOVISUALES | I56: Inversión | J56: Un nuevo Contrato Social y ambiental para la Bogotá del Siglo XXI | K56: 57 | L56: =IF(ISERROR(VLOOKUP(K56,[2]Proposito_programa!$C$2:$E$59,2,FALSE))," ",VLOOKUP(K56,[2]Proposito_programa!$C$2:$E$59,2,FALSE)) -> Gestión pública local | M56: =IF(ISERROR(VLOOKUP(K56,[2]Proposito_programa!$C$2:$E$59,3,FALSE))," ",VLOOKUP(K56,[2]Proposito_programa!$C$2:$E$59,3,FALSE)) -> Propósito 5: Construir Bogotá - Región con gobierno abierto, transparente y ciudadanía consciente | N56: 1783 | O56: 1 | P56: 1098775570 | Q56: YENNY KATHERINE SILVA PICO | R56: Persona Natural | V56: 38934000 | X56: 1 | Y56: 5047000 | Z56: 43981000 | AA56: 39655000 | AB56: 2021-02-26 | AC56: 2021-02-26 | AD56: 2021-12-31 | AE56: 274 DÍAS | AF56: 1 | AG56: 35 | AN56: X | AP56: 0.89
A57: 44 | B57: 2021 | C57: FDLF-CD-44-2021 | D57: https://community.secop.gov.co/Public/Tendering/OpportunityDetail/Index?noticeUID=CO1.NTC.1793690&isFromPublicArea=True&isModal=true&asPopupView=true | E57: Contratos de prestación de servicios profesionales y de apoyo a la gestión | F57: Contratación directa | G57: Prestación de servicios profesionales y de apoyo a la gestión, o para la ejecución de trabajos artísticos que sólo puedan encomendarse a determinadas personas naturales; | H57: APOYO PROFESIONAL PARA LOS TEMAS DE GESTIÓN DE RIESGO Y GESTIÓN AMBIENTAL DEL ÁREA DE GESTIÓN DE DESARROLLO LOCAL | I57: Inversión | J57: Un nuevo Contrato Social y ambiental para la Bogotá del Siglo XXI | K57: 57 | L57: =IF(ISERROR(VLOOKUP(K57,[2]Proposito_programa!$C$2:$E$59,2,FALSE))," ",VLOOKUP(K57,[2]Proposito_programa!$C$2:$E$59,2,FALSE)) -> Gestión pública local | M57: =IF(ISERROR(VLOOKUP(K57,[2]Proposito_programa!$C$2:$E$59,3,FALSE))," ",VLOOKUP(K57,[2]Proposito_programa!$C$2:$E$59,3,FALSE)) -> Propósito 5: Construir Bogotá - Región con gobierno abierto, transparente y ciudadanía consciente | N57: 1783 | O57: 1 | P57: 1024563513 | Q57: NAYIB SELENIA CALIFA GARZON | R57: Persona Natural | V57: 39249000 | X57: 1 | Y57: 5087833 | Z57: 44336833 | AA57: 39975833 | AB57: 2021-02-26 | AC57: 2021-02-26 | AD57: 2021-12-31 | AE57: 274 DÍAS | AF57: 1 | AG57: 35 | AN57: X | AP57: 0.89
A58: 45 | B58: 2021 | C58: FDLF-CD-45-2021 | D58: https://community.secop.gov.co/Public/Tendering/OpportunityDetail/Index?noticeUID=CO1.NTC.1797990&isFromPublicArea=True&isModal=true&asPopupView=true | E58: Contratos de prestación de servicios profesionales y de apoyo a la gestión | F58: Contratación directa | G58: Prestación de servicios profesionales y de apoyo a la gestión, o para la ejecución de trabajos artísticos que sólo puedan encomendarse a determinadas personas naturales; | H58: PRESTAR SERVICIOS PARA APOYAR LAS LABORES DE ENTREGA Y RECIBO DE LAS COMUNICACIONES EMITIDAS O RECIBIDAS POR LAS INSPECCIONES DE POLICÍA DE LA LOCALIDAD DE FONTIBÓN. | I58: Inversión | J58: Un nuevo Contrato Social y ambiental para la Bogotá del Siglo XXI | K58: 57 | L58: =IF(ISERROR(VLOOKUP(K58,[2]Proposito_programa!$C$2:$E$59,2,FALSE))," ",VLOOKUP(K58,[2]Proposito_programa!$C$2:$E$59,2,FALSE)) -> Gestión pública local | M58: =IF(ISERROR(VLOOKUP(K58,[2]Proposito_programa!$C$2:$E$59,3,FALSE))," ",VLOOKUP(K58,[2]Proposito_programa!$C$2:$E$59,3,FALSE)) -> Propósito 5: Construir Bogotá - Región con gobierno abierto, transparente y ciudadanía consciente | N58: 1784 | O58: 1 | P58: 1016034743 | Q58: JUAN ANTONIO ESPITIA ACERO | R58: Persona Natural | V58: 5200000 | X58: 1 | Y58: 2600000 | Z58: 7800000 | AA58: 7800000 | AB58: 2021-02-26 | AC58: 2021-02-26 | AD58: 2021-05-25 | AE58: 60 DÍAS | AF58: 1 | AG58: 30 | AN58: X | AP58: 0.67
A59: 46 | B59: 2021 | C59: FDLF-CD-46-2021 | D59: https://community.secop.gov.co/Public/Tendering/OpportunityDetail/Index?noticeUID=CO1.NTC.1790615&isFromPublicArea=True&isModal=true&asPopupView=true | E59: Contratos de prestación de servicios profesionales y de apoyo a la gestión | F59: Contratación directa | G59: Prestación de servicios profesionales y de apoyo a la gestión, o para la ejecución de trabajos artísticos que sólo puedan encomendarse a determinadas personas naturales; | H59: SERVICIOS DE APOYO OPERATIVO PARA LAS ACTIVIDADES RELACIONADAS CON EL MANTENIMIENTO Y REPARACIONES MENORES DE LA SEDE Y DEMÁS DEPENDENCIAS DE LA ALCALDÍA LOCAL DE FONTIBÓN | I59: Inversión | J59: Un nuevo Contrato Social y ambiental para la Bogotá del Siglo XXI | K59: 57 | L59: =IF(ISERROR(VLOOKUP(K59,[2]Proposito_programa!$C$2:$E$59,2,FALSE))," ",VLOOKUP(K59,[2]Proposito_programa!$C$2:$E$59,2,FALSE)) -> Gestión pública local | M59: =IF(ISERROR(VLOOKUP(K59,[2]Proposito_programa!$C$2:$E$59,3,FALSE))," ",VLOOKUP(K59,[2]Proposito_programa!$C$2:$E$59,3,FALSE)) -> Propósito 5: Construir Bogotá - Región con gobierno abierto, transparente y ciudadanía consciente | N59: 1783 | O59: 1 | P59: 79122866 | Q59: ALVARO ACEVEDO CAJAMARCA | R59: Persona Natural | V59: 12169450 | X59: 1 | Y59: 6084725 | Z59: 18254175 | AA59: 18254175 | AB59: 2021-02-23 | AC59: 2021-02-23 | AD59: 2021-10-07 | AE59: 152 DÍAS | AF59: 1 | AG59: 75 | AN59: X | AP59: 0.67
A60: 47 | B60: 2021 | C60: FDLF-CD-47-2021 | D60: https://community.secop.gov.co/Public/Tendering/OpportunityDetail/Index?noticeUID=CO1.NTC.1795253&isFromPublicArea=True&isModal=true&asPopupView=true | E60: Contratos de prestación de servicios profesionales y de apoyo a la gestión | F60: Contratación directa | G60: Prestación de servicios profesionales y de apoyo a la gestión, o para la ejecución de trabajos artísticos que sólo puedan encomendarse a determinadas personas naturales; | H60: PRESTAR SERVICIOS TÉCNICOS PARA EL APOYO ADMINISTRATIVO Y LOGÍSTICO DEL DESPACHO DE LA ALCALDÍA LOCAL DE FONTIBÓN. | I60: Inversión | J60: Un nuevo Contrato Social y ambiental para la Bogotá del Siglo XXI | K60: 57 | L60: =IF(ISERROR(VLOOKUP(K60,[2]Proposito_programa!$C$2:$E$59,2,FALSE))," ",VLOOKUP(K60,[2]Proposito_programa!$C$2:$E$59,2,FALSE)) -> Gestión pública local | M60: =IF(ISERROR(VLOOKUP(K60,[2]Proposito_programa!$C$2:$E$59,3,FALSE))," ",VLOOKUP(K60,[2]Proposito_programa!$C$2:$E$59,3,FALSE)) -> Propósito 5: Construir Bogotá - Región con gobierno abierto, transparente y ciudadanía consciente | N60: 1783 | O60: 1 | P60: 52974047 | Q60: ANGELICA MARIA SALAZAR BAYONA | R60: Persona Natural | V60: 35226000 | X60: 1 | Y60: 4566333 | Z60: 39792333 | AA60: 35878333 | AB60: 2021-02-26 | AC60: 2021-02-26 | AD60: 2021-12-31 | AE60: 274 DÍAS | AF60: 1 | AG60: 35 | AN60: X | AP60: 0.89
A61: 48 | B61: 2021 | C61: FDLF-CD-48-2021 | D61: https://community.secop.gov.co/Public/Tendering/OpportunityDetail/Index?noticeUID=CO1.NTC.1797203&isFromPublicArea=True&isModal=true&asPopupView=true | E61: Contratos de prestación de servicios profesionales y de apoyo a la gestión | F61: Contratación directa | G61: Prestación de servicios profesionales y de apoyo a la gestión, o para la ejecución de trabajos artísticos que sólo puedan encomendarse a determinadas personas naturales; | H61: PRESTAR SERVICIOS PROFESIONALES PARA APOYAR EL ÁREA DE GESTIÓN DE DESARROLLO LOCAL DE FONTIBÓN ORIENTADO A LOS TEMAS DEPORTIVOS Y RECREATIVOS. | I61: Inversión | J61: Un nuevo Contrato Social y ambiental para la Bogotá del Siglo XXI | K61: 20 | L61: =IF(ISERROR(VLOOKUP(K61,[2]Proposito_programa!$C$2:$E$59,2,FALSE))," ",VLOOKUP(K61,[2]Proposito_programa!$C$2:$E$59,2,FALSE)) -> Bogotá, referente en cultura, deporte, recreación y actividad física, con parques para el desarrollo y la salud | M61: =IF(ISERROR(VLOOKUP(K61,[2]Proposito_programa!$C$2:$E$59,3,FALSE))," ",VLOOKUP(K61,[2]Proposito_programa!$C$2:$E$59,3,FALSE)) -> Propósito 1: Hacer un nuevo contrato social para incrementar la inclusión social, productiva y política | N61: 1757 | O61: 1 | P61: 1032430030 | Q61: MIGUEL ANGEL GONZALEZ GARCIA | R61: Persona Natural | V61: 54000000 | X61: 2 | Y61: 9000000 | Z61: 63000000 | AA61: 48000000 | AB61: 2021-03-01 | AC61: 2021-03-01 | AD61: 2022-01-15 | AE61: 274 DÍAS | AF61: 1 | AG61: 45 | AN61: X | AP61: 0.76
A62: 49 | B62: 2021 | C62: FDLF-CD-49-2021 | D62: https://community.secop.gov.co/Public/Tendering/OpportunityDetail/Index?noticeUID=CO1.NTC.1799436&isFromPublicArea=True&isModal=true&asPopupView=true | E62: Contratos de prestación de servicios profesionales y de apoyo a la gestión | F62: Contratación directa | G62: Prestación de servicios profesionales y de apoyo a la gestión, o para la ejecución de trabajos artísticos que sólo puedan encomendarse a determinadas personas naturales; | H62: PRESTAR SERVICIOS PROFESIONALES PARA APOYAR EL ÁREA DE GESTIÓN DE DESARROLLO LOCAL DE FONTIBÓN ORIENTADOS A LOS TEMAS CULTURALES. | I62: Inversión | J62: Un nuevo Contrato Social y ambiental para la Bogotá del Siglo XXI | K62: 21 | L62: =IF(ISERROR(VLOOKUP(K62,[2]Proposito_programa!$C$2:$E$59,2,FALSE))," ",VLOOKUP(K62,[2]Proposito_programa!$C$2:$E$59,2,FALSE)) -> Creación y vida cotidiana: Apropiación ciudadana del arte, la cultura y el patrimonio, para la democracia cultural | M62: =IF(ISERROR(VLOOKUP(K62,[2]Proposito_programa!$C$2:$E$59,3,FALSE))," ",VLOOKUP(K62,[2]Proposito_programa!$C$2:$E$59,3,FALSE)) -> Propósito 1: Hacer un nuevo contrato social para incrementar la inclusión social, productiva y política | N62: 1758 | O62: 1 | P62: 53165749 | Q62: ROCIO DEL PILAR BECERRA FARIETA | R62: Persona Natural | V62: 49500000 | X62: 1 | Y62: 9900000 | Z62: 59400000 | AA62: 49500000 | AB62: 2021-03-01 | AC62: 2021-03-01 | AD62: 2022-01-24 | AE62: 274 DÍAS | AF62: 1 | AG62: 54 | AN62: X | AP62: 0.83
A63: 50 | B63: 2021 | C63: FDLF-CD-50-2021 | D63: https://community.secop.gov.co/Public/Tendering/OpportunityDetail/Index?noticeUID=CO1.NTC.1799405&isFromPublicArea=True&isModal=true&asPopupView=true | E63: Contratos de prestación de servicios profesionales y de apoyo a la gestión | F63: Contratación directa | G63: Prestación de servicios profesionales y de apoyo a la gestión, o para la ejecución de trabajos artísticos que sólo puedan encomendarse a determinadas personas naturales; | H63: PRESTAR SERVICIOS PARA APOYAR LAS LABORES DE NOTIFICACIÓN DE CORRESPONDENCIA DE LA ALCALDÍA LOCAL DE FONTIBÓN | I63: Inversión | J63: Un nuevo Contrato Social y ambiental para la Bogotá del Siglo XXI | K63: 57 | L63: =IF(ISERROR(VLOOKUP(K63,[2]Proposito_programa!$C$2:$E$59,2,FALSE))," ",VLOOKUP(K63,[2]Proposito_programa!$C$2:$E$59,2,FALSE)) -> Gestión pública local | M63: =IF(ISERROR(VLOOKUP(K63,[2]Proposito_programa!$C$2:$E$59,3,FALSE))," ",VLOOKUP(K63,[2]Proposito_programa!$C$2:$E$59,3,FALSE)) -> Propósito 5: Construir Bogotá - Región con gobierno abierto, transparente y ciudadanía consciente | N63: 1783 | O63: 1 | P63: 86004084 | Q63: JOSE OCTAVIO CRUZ NINCOR | R63: Persona Natural | V63: 21905010 | X63: 2 | Y63: 3813094 | Z63: 25718104 | AA63: 21905010 | AB63: 2021-03-01 | AC63: 2021-03-01 | AD63: 2022-01-17 | AE63: 274 DÍAS | AF63: 2 | AG63: 47 | AN63: X | AP63: 0.85
A64: 51 | B64: 2021 | C64: FDLF-CD-51-2021 | D64: https://community.secop.gov.co/Public/Tendering/OpportunityDetail/Index?noticeUID=CO1.NTC.1801612&isFromPublicArea=True&isModal=true&asPopupView=true | E64: Contratos de prestación de servicios profesionales y de apoyo a la gestión | F64: Contratación directa | G64: Prestación de servicios profesionales y de apoyo a la gestión, o para la ejecución de trabajos artísticos que sólo puedan encomendarse a determinadas personas naturales; | H64: PRESTAR SERVICIOS PROFESIONALES PARA APOYAR EL ÁREA DE GESTIÓN DE DESARROLLO LOCAL DE FONTIBÓN ORIENTADOS A LOS TEMAS CULTURALES. | I64: Inversión | J64: Un nuevo Contrato Social y ambiental para la Bogotá del Siglo XXI | K64: 21 | L64: =IF(ISERROR(VLOOKUP(K64,[2]Proposito_programa!$C$2:$E$59,2,FALSE))," ",VLOOKUP(K64,[2]Proposito_programa!$C$2:$E$59,2,FALSE)) -> Creación y vida cotidiana: Apropiación ciudadana del arte, la cultura y el patrimonio, para la democracia cultural | M64: =IF(ISERROR(VLOOKUP(K64,[2]Proposito_programa!$C$2:$E$59,3,FALSE))," ",VLOOKUP(K64,[2]Proposito_programa!$C$2:$E$59,3,FALSE)) -> Propósito 1: Hacer un nuevo contrato social para incrementar la inclusión social, productiva y política | N64: 1758 | O64: 1 | P64: 1014185339 | Q64: LUISA FERNANDA LEON LUQUE | R64: Persona Natural | V64: 49500000 | X64: 1 | Y64: 10816666 | Z64: 60316666 | AA64: 44916667 | AB64: 2021-02-26 | AC64: 2021-02-26 | AD64: 2022-01-24 | AE64: 274 DÍAS | AF64: 1 | AG64: 59 | AN64: X | AP64: 0.74
A65: 52 | B65: 2021 | C65: FDLF-CD-52-2021 | D65: https://community.secop.gov.co/Public/Tendering/OpportunityDetail/Index?noticeUID=CO1.NTC.1803976&isFromPublicArea=True&isModal=true&asPopupView=true | E65: Contratos de prestación de servicios profesionales y de apoyo a la gestión | F65: Contratación directa | G65: Prestación de servicios profesionales y de apoyo a la gestión, o para la ejecución de trabajos artísticos que sólo puedan encomendarse a determinadas personas naturales; | H65: PRESTAR SERVICIOS PARA APOYAR JURÍDICAMENTE LA EJECUCIÓN DE LAS ACCIONES REQUERIDAS PARA LA DEPURACIÓN DE LAS ACTUACIONES ADMINISTRATIVAS QUE CURSAN EN LA ALCALDÍA LOCAL DE FONTIBÓN | I65: Inversión | J65: Un nuevo Contrato Social y ambiental para la Bogotá del Siglo XXI | K65: 57 | L65: =IF(ISERROR(VLOOKUP(K65,[2]Proposito_programa!$C$2:$E$59,2,FALSE))," ",VLOOKUP(K65,[2]Proposito_programa!$C$2:$E$59,2,FALSE)) -> Gestión pública local | M65: =IF(ISERROR(VLOOKUP(K65,[2]Proposito_programa!$C$2:$E$59,3,FALSE))," ",VLOOKUP(K65,[2]Proposito_programa!$C$2:$E$59,3,FALSE)) -> Propósito 5: Construir Bogotá - Región con gobierno abierto, transparente y ciudadanía consciente | N65: 1784 | O65: 1 | P65: 1032454002 | Q65: DANIEL RICARDO GONZALEZ RODRIGUEZ | R65: Persona Natural | V65: 9852980 | X65: 1 | Y65: 4926490 | Z65: 14779470 | AA65: 14779470 | AB65: 2021-03-01 | AC65: 2021-03-01 | AD65: 2021-05-30 | AE65: 60 DÍAS | AF65: 1 | AG65: 30 | AN65: X | AP65: 0.67
A66: 53 | B66: 2021 | C66: FDLF-CD-53-2021 | D66: https://community.secop.gov.co/Public/Tendering/OpportunityDetail/Index?noticeUID=CO1.NTC.1805432&isFromPublicArea=True&isModal=true&asPopupView=true | E66: Contratos de prestación de servicios profesionales y de apoyo a la gestión | F66: Contratación directa | G66: Prestación de servicios profesionales y de apoyo a la gestión, o para la ejecución de trabajos artísticos que sólo puedan encomendarse a determinadas personas naturales; | H66: PRESTAR SERVICIOS PARA APOYAR JURÍDICAMENTE LA EJECUCIÓN DE LAS ACCIONES REQUERIDAS PARA LA DEPURACIÓN DE LAS ACTUACIONES ADMINISTRATIVAS QUE CURSAN EN LA ALCALDÍA LOCAL DE FONTIBÓN | I66: Inversión | J66: Un nuevo Contrato Social y ambiental para la Bogotá del Siglo XXI | K66: 57 | L66: =IF(ISERROR(VLOOKUP(K66,[2]Proposito_programa!$C$2:$E$59,2,FALSE))," ",VLOOKUP(K66,[2]Proposito_programa!$C$2:$E$59,2,FALSE)) -> Gestión pública local | M66: =IF(ISERROR(VLOOKUP(K66,[2]Proposito_programa!$C$2:$E$59,3,FALSE))," ",VLOOKUP(K66,[2]Proposito_programa!$C$2:$E$59,3,FALSE)) -> Propósito 5: Construir Bogotá - Región con gobierno abierto, transparente y ciudadanía consciente | N66: 1784 | O66: 1 | P66: 79572785 | Q66: JORGE ARMANDO SUAREZ MEDINA | R66: Persona Natural | V66: 9852980 | X66: 1 | Y66: 4926490 | Z66: 14779470 | AA66: 14779470 | AB66: 2021-03-01 | AC66: 2021-03-01 | AD66: 2021-05-30 | AE66: 60 DÍAS | AF66: 1 | AG66: 30 | AN66: X | AP66: 0.67
A67: 54 | B67: 2021 | C67: FDLF-CD-54-2021 | D67: https://community.secop.gov.co/Public/Tendering/OpportunityDetail/Index?noticeUID=CO1.NTC.1805048&isFromPublicArea=True&isModal=true&asPopupView=true | E67: Contratos de prestación de servicios profesionales y de apoyo a la gestión | F67: Contratación directa | G67: Prestación de servicios profesionales y de apoyo a la gestión, o para la ejecución de trabajos artísticos que sólo puedan encomendarse a determinadas personas naturales; | H67: PRESTAR SERVICIOS PROFESIONALES PARA LA OPERACIÓN DEL PROYECTO PUNTO VIVE DIGITAL DE LA LOCALIDAD DE FONTIBÓN. | I67: Inversión | J67: Un nuevo Contrato Social y ambiental para la Bogotá del Siglo XXI | K67: 57 | L67: =IF(ISERROR(VLOOKUP(K67,[2]Proposito_programa!$C$2:$E$59,2,FALSE))," ",VLOOKUP(K67,[2]Proposito_programa!$C$2:$E$59,2,FALSE)) -> Gestión pública local | M67: =IF(ISERROR(VLOOKUP(K67,[2]Proposito_programa!$C$2:$E$59,3,FALSE))," ",VLOOKUP(K67,[2]Proposito_programa!$C$2:$E$59,3,FALSE)) -> Propósito 5: Construir Bogotá - Región con gobierno abierto, transparente y ciudadanía consciente | N67: 1783 | O67: 1 | P67: 80801120 | Q67: STEVE LEONARDO CHAMUCERO BARBOSA | R67: Persona Natural | V67: 38934000 | X67: 1 | Y67: 4326000 | Z67: 43260000 | AA67: 38934000 | AB67: 2021-03-01 | AC67: 2021-03-01 | AD67: 2021-12-31 | AE67: 274 DÍAS | AF67: 1 | AG67: 30 | AN67: X | AP67: 0.9
A68: 55 | B68: 2021 | C68: FDLF-CD-55-2021 | D68: https://community.secop.gov.co/Public/Tendering/OpportunityDetail/Index?noticeUID=CO1.NTC.1805729&isFromPublicArea=True&isModal=true&asPopupView=true | E68: Contratos de prestación de servicios profesionales y de apoyo a la gestión | F68: Contratación directa | G68: Prestación de servicios profesionales y de apoyo a la gestión, o para la ejecución de trabajos artísticos que sólo puedan encomendarse a determinadas personas naturales; | H68: SERVICIOS DE APOYO TÉCNICO A LA GESTIÓN DE LA ALCALDÍA LOCAL DE FONTIBÓN EN LA RECEPCIÓN DE CORRESPONDENCIA INTERNA Y EXTERNA, ASÍ COMO LA CLASIFICACIÓN, ASIGNACIÓN INTERNA DE LAS SOLICITUDES Y/O CORRESPONDENCIA RECIBIDA | I68: Inversión | J68: Un nuevo Contrato Social y ambiental para la Bogotá del Siglo XXI | K68: 57 | L68: =IF(ISERROR(VLOOKUP(K68,[2]Proposito_programa!$C$2:$E$59,2,FALSE))," ",VLOOKUP(K68,[2]Proposito_programa!$C$2:$E$59,2,FALSE)) -> Gestión pública local | M68: =IF(ISERROR(VLOOKUP(K68,[2]Proposito_programa!$C$2:$E$59,3,FALSE))," ",VLOOKUP(K68,[2]Proposito_programa!$C$2:$E$59,3,FALSE)) -> Propósito 5: Construir Bogotá - Región con gobierno abierto, transparente y ciudadanía consciente | N68: 1783 | O68: 1 | P68: 53925244 | Q68: XIMENA ANDREA PARRAGA GOMEZ | R68: Persona Natural | V68: 35226000 | X68: 1 | Y68: 3914000 | Z68: 39140000 | AA68: $ - | AB68: 2021-03-01 | AC68: 2021-03-01 | AD68: 2021-12-31 | AE68: 274 DÍAS | AF68: 1 | AG68: 30 | AN68: X | AP68: 0
A69: 56 | B69: 2021 | C69: FDLF-CD-56-2021 | D69: https://community.secop.gov.co/Public/Tendering/OpportunityDetail/Index?noticeUID=CO1.NTC.1808823&isFromPublicArea=True&isModal=true&asPopupView=true | E69: Contratos de prestación de servicios profesionales y de apoyo a la gestión | F69: Contratación directa | G69: Prestación de servicios profesionales y de apoyo a la gestión, o para la ejecución de trabajos artísticos que sólo puedan encomendarse a determinadas personas naturales; | H69: SERVICIOS PROFESIONALES ESPECIALIZADOS PARA ORIENTAR EL GRUPO JURÍDICO DE CONTRATACIÓN DE LA ALCALDÍA LOCAL DE FONTIBÓN | I69: Inversión | J69: Un nuevo Contrato Social y ambiental para la Bogotá del Siglo XXI | K69: 57 | L69: =IF(ISERROR(VLOOKUP(K69,[2]Proposito_programa!$C$2:$E$59,2,FALSE))," ",VLOOKUP(K69,[2]Proposito_programa!$C$2:$E$59,2,FALSE)) -> Gestión pública local | M69: =IF(ISERROR(VLOOKUP(K69,[2]Proposito_programa!$C$2:$E$59,3,FALSE))," ",VLOOKUP(K69,[2]Proposito_programa!$C$2:$E$59,3,FALSE)) -> Propósito 5: Construir Bogotá - Región con gobierno abierto, transparente y ciudadanía consciente | N69: 1783 | O69: 1 | P69: 40390477 | Q69: BLANCA OLIVA CORDOBA MARTINEZ | R69: Persona Natural | V69: 80100000 | X69: 0 | Z69: 80100000 | AA69: 62003333 | AB69: 2021-03-02 | AC69: 2021-03-02 | AD69: 2021-10-18 | AE69: 274 DÍAS | AF69: 0 | AG69: 0 | AN69: X | AP69: 0.77
A70: 57 | B70: 2021 | C70: FDLF-CD-57-2021 | D70: https://community.secop.gov.co/Public/Tendering/OpportunityDetail/Index?noticeUID=CO1.NTC.1810329&isFromPublicArea=True&isModal=true&asPopupView=true | E70: Contratos de prestación de servicios profesionales y de apoyo a la gestión | F70: Contratación directa | G70: Prestación de servicios profesionales y de apoyo a la gestión, o para la ejecución de trabajos artísticos que sólo puedan encomendarse a determinadas personas naturales; | H70: PRESTAR SERVICIOS PROFESIONALES PARA APOYAR EL ÁREA DE GESTIÓN DE DESARROLLO LOCAL DE FONTIBÓN ORIENTADOS A LOS TEMAS DE EDUCACIÓN | I70: Inversión | J70: Un nuevo Contrato Social y ambiental para la Bogotá del Siglo XXI | K70: 12 | L70: =IF(ISERROR(VLOOKUP(K70,[2]Proposito_programa!$C$2:$E$59,2,FALSE))," ",VLOOKUP(K70,[2]Proposito_programa!$C$2:$E$59,2,FALSE)) -> Educación inicial: Bases sólidas para la vida. | M70: =IF(ISERROR(VLOOKUP(K70,[2]Proposito_programa!$C$2:$E$59,3,FALSE))," ",VLOOKUP(K70,[2]Proposito_programa!$C$2:$E$59,3,FALSE)) -> Propósito 1: Hacer un nuevo contrato social para incrementar la inclusión social, productiva y política | N70: 1753 | O70: 1 | P70: 1016015853 | Q70: LINA MARCELA ROMERO RODRIGUEZ | R70: Persona Natural | V70: 21630000 | X70: 0 | Z70: 21630000 | AA70: 21197400 | AB70: 2021-03-04 | AC70: 2021-03-04 | AD70: 2021-08-03 | AE70: 152 DÍAS | AF70: 0 | AG70: 0 | AN70: X | AP70: 0.98
A71: 58 | B71: 2021 | C71: FDLF-CD-58-2021 | D71: https://community.secop.gov.co/Public/Tendering/OpportunityDetail/Index?noticeUID=CO1.NTC.1810616&isFromPublicArea=True&isModal=true&asPopupView=true | E71: Contratos de prestación de servicios profesionales y de apoyo a la gestión | F71: Contratación directa | G71: Prestación de servicios profesionales y de apoyo a la gestión, o para la ejecución de trabajos artísticos que sólo puedan encomendarse a determinadas personas naturales; | H71: APOYAR JURÍDICAMENTE LA EJECUCIÓN DE LAS ACCIONES REQUERIDAS PARA LA DEPURACIÓN DE LAS ACTUACIONES ADMINISTRATIVAS QUE CURSAN EN LA ALCALDÍA LOCAL DE FONTIBÓN | I71: Inversión | J71: Un nuevo Contrato Social y ambiental para la Bogotá del Siglo XXI | K71: 57 | L71: =IF(ISERROR(VLOOKUP(K71,[2]Proposito_programa!$C$2:$E$59,2,FALSE))," ",VLOOKUP(K71,[2]Proposito_programa!$C$2:$E$59,2,FALSE)) -> Gestión pública local | M71: =IF(ISERROR(VLOOKUP(K71,[2]Proposito_programa!$C$2:$E$59,3,FALSE))," ",VLOOKUP(K71,[2]Proposito_programa!$C$2:$E$59,3,FALSE)) -> Propósito 5: Construir Bogotá - Región con gobierno abierto, transparente y ciudadanía consciente | N71: 1784 | O71: 1 | P71: 1016053840 | Q71: EVELYN LORENA GOMEZ ORTIZ | R71: Persona Natural | V71: 9852980 | X71: 1 | Y71: 4926490 | Z71: 14779470 | AA71: 14286821 | AB71: 2021-03-04 | AC71: 2021-03-04 | AD71: 2021-06-03 | AE71: 60 DÍAS | AF71: 1 | AG71: 30 | AN71: X | AP71: 0.63
A72: 59 | B72: 2021 | C72: FDLF-CD-59-2021 | D72: https://community.secop.gov.co/Public/Tendering/OpportunityDetail/Index?noticeUID=CO1.NTC.1809495&isFromPublicArea=True&isModal=true&asPopupView=true | E72: Contratos de prestación de servicios profesionales y de apoyo a la gestión | F72: Contratación directa | G72: Prestación de servicios profesionales y de apoyo a la gestión, o para la ejecución de trabajos artísticos que sólo puedan encomendarse a determinadas personas naturales; | H72: PRESTAR SERVICIOS TÉCNICOS PARA LA OPERACIÓN, SEGUIMIENTO Y CUMPLIMIENTO DE LOS PROCESOS Y PROCEDIMIENTOS DEL SERVICIO SOCIAL APOYO PARA LA SEGURIDAD ECONÓMICA TIPO C, REQUERIDOS PARA EL OPORTUNO Y ADECUADO REGISTRO, CRUCE Y REPORTE DE DATOS EN EL SISTEMA DE INFORMACIÓN Y REGISTRO DE BENEFICIARIOS SIRBE, QUE CONTRIBUYAN A LA GARANTÍA DE LOS DERECHOS DE LA POBLACIÓN MAYOR EN EL MARCO DE LA POLÍTICA PÚBLICA SOCIAL PARA EL ENVEJECIMIENTO Y LA VEJEZ EN EL DISTRITO CAPITAL A CARGO DE LA ALCALDÍA LOCAL | I72: Inversión | J72: Un nuevo Contrato Social y ambiental para la Bogotá del Siglo XXI | K72: 1 | L72: =IF(ISERROR(VLOOKUP(K72,[2]Proposito_programa!$C$2:$E$59,2,FALSE))," ",VLOOKUP(K72,[2]Proposito_programa!$C$2:$E$59,2,FALSE)) -> Subsidios y transferencias para la equidad | M72: =IF(ISERROR(VLOOKUP(K72,[2]Proposito_programa!$C$2:$E$59,3,FALSE))," ",VLOOKUP(K72,[2]Proposito_programa!$C$2:$E$59,3,FALSE)) -> Propósito 1: Hacer un nuevo contrato social para incrementar la inclusión social, productiva y política | N72: 1752 | O72: 1 | P72: 52483298 | Q72: JENNY GISELA CUERVO LÓPEZ | R72: Persona Natural | V72: 39009533 | X72: 1 | Y72: 3261667 | Z72: 42271200 | AA72: 34965066 | AB72: 2021-03-03 | AC72: 2021-03-03 | AD72: 2022-01-26 | AE72: 303 DÍAS | AF72: 1 | AG72: 25 | AH72: 52540324 | AI72: OLGA LUCIA LOPEZ RAMIREZ | AJ72: 2021-03-11 | AK72: 37704866 | AN72: X | AP72: 0
A73: 60 | B73: 2021 | C73: FDLF-CD-60-2021 | D73: https://community.secop.gov.co/Public/Tendering/OpportunityDetail/Index?noticeUID=CO1.NTC.1809777&isFromPublicArea=True&isModal=true&asPopupView=true | E73: Contratos de prestación de servicios profesionales y de apoyo a la gestión | F73: Contratación directa | G73: Prestación de servicios profesionales y de apoyo a la gestión, o para la ejecución de trabajos artísticos que sólo puedan encomendarse a determinadas personas naturales; | H73: PRESTAR SERVICIOS DE APOYO AL ÁREA DE GESTIÓN DEL DESARROLLO LOCAL DE LA ALCALDÍA LOCAL DE FONTIBÓN. | I73: Inversión | J73: Un nuevo Contrato Social y ambiental para la Bogotá del Siglo XXI | K73: 57 | L73: =IF(ISERROR(VLOOKUP(K73,[2]Proposito_programa!$C$2:$E$59,2,FALSE))," ",VLOOKUP(K73,[2]Proposito_programa!$C$2:$E$59,2,FALSE)) -> Gestión pública local | M73: =IF(ISERROR(VLOOKUP(K73,[2]Proposito_programa!$C$2:$E$59,3,FALSE))," ",VLOOKUP(K73,[2]Proposito_programa!$C$2:$E$59,3,FALSE)) -> Propósito 5: Construir Bogotá - Región con gobierno abierto, transparente y ciudadanía consciente | N73: 1783 | O73: 1 | P73: 80492422 | Q73: JAIR ALFONSO BUSTOS HERRERA | R73: Persona Natural | V73: 4867780 | X73: 0 | Y73: 0 | Z73: 4867780 | AA73: 4624391 | AB73: 2021-03-04 | AC73: 2021-03-04 | AD73: 2021-05-03 | AE73: 60 DÍAS | AF73: 0 | AG73: 0 | AN73: X | AP73: 0.95
A74: 61 | B74: 2021 | C74: FDLF-CD-61-2021 | D74: https://community.secop.gov.co/Public/Tendering/OpportunityDetail/Index?noticeUID=CO1.NTC.1812095&isFromPublicArea=True&isModal=true&asPopupView=true | E74: Contratos de prestación de servicios profesionales y de apoyo a la gestión | F74: Contratación directa | G74: Prestación de servicios profesionales y de apoyo a la gestión, o para la ejecución de trabajos artísticos que sólo puedan encomendarse a determinadas personas naturales; | H74: EL CONTRATO QUE SE PRETENDE CELEBRAR TENDRÁ POR OBJETO COORDINAR, LIDERAR Y ASESORAR LOS PLANES Y ESTRATEGIAS DE COMUNICACIÓN INTERNA Y EXTERNA PARA LA DIVULGACIÓN DE LOS PROGRAMAS, PROYECTOS Y ACTIVIDADES DE ALCALDÍA LOCAL DE FONTIBÓN. | I74: Inversión | J74: Un nuevo Contrato Social y ambiental para la Bogotá del Siglo XXI | K74: 57 | L74: =IF(ISERROR(VLOOKUP(K74,[2]Proposito_programa!$C$2:$E$59,2,FALSE))," ",VLOOKUP(K74,[2]Proposito_programa!$C$2:$E$59,2,FALSE)) -> Gestión pública local | M74: =IF(ISERROR(VLOOKUP(K74,[2]Proposito_programa!$C$2:$E$59,3,FALSE))," ",VLOOKUP(K74,[2]Proposito_programa!$C$2:$E$59,3,FALSE)) -> Propósito 5: Construir Bogotá - Región con gobierno abierto, transparente y ciudadanía consciente | N74: 1783 | O74: 1 | P74: 79654994 | Q74: JORGE ENRIQUE CAÑON UBAQUE | R74: Persona Natural | V74: 58500000 | X74: 0 | Y74: 0 | Z74: 58500000 | AA74: 51350000 | AB74: 2021-03-04 | AC74: 2021-03-04 | AD74: 2021-12-03 | AE74: 274 DÍAS | AF74: 0 | AG74: 0 | AN74: X | AP74: 0.88
A75: 62 | B75: 2021 | C75: FDLF-CD-62-2021 | D75: https://community.secop.gov.co/Public/Tendering/OpportunityDetail/Index?noticeUID=CO1.NTC.1813663&isFromPublicArea=True&isModal=true&asPopupView=true | E75: Contratos de prestación de servicios profesionales y de apoyo a la gestión | F75: Contratación directa | G75: Prestación de servicios profesionales y de apoyo a la gestión, o para la ejecución de trabajos artísticos que sólo puedan encomendarse a determinadas personas naturales; | H75: PRESTAR SERVICIOS DE APOYO PROFESIONAL AL ÁREA DE GESTIÓN DE DESARROLLO LOCAL DE FONTIBÓN ORIENTADO A LOS TEMAS DEPORTIVOS Y RECREATIVOS | I75: Inversión | J75: Un nuevo Contrato Social y ambiental para la Bogotá del Siglo XXI | K75: 20 | L75: =IF(ISERROR(VLOOKUP(K75,[2]Proposito_programa!$C$2:$E$59,2,FALSE))," ",VLOOKUP(K75,[2]Proposito_programa!$C$2:$E$59,2,FALSE)) -> Bogotá, referente en cultura, deporte, recreación y actividad física, con parques para el desarrollo y la salud | M75: =IF(ISERROR(VLOOKUP(K75,[2]Proposito_programa!$C$2:$E$59,3,FALSE))," ",VLOOKUP(K75,[2]Proposito_programa!$C$2:$E$59,3,FALSE)) -> Propósito 1: Hacer un nuevo contrato social para incrementar la inclusión social, productiva y política | N75: 1757 | O75: 1 | P75: 1016006281 | Q75: JOHN FREDDY AMAYA MORENO | R75: Persona Natural | V75: 39249000 | X75: 0 | Y75: 0 | Z75: 39249000 | AA75: 38812900 | AB75: 2021-03-04 | AC75: 2021-03-04 | AD75: 2021-12-03 | AE75: 274 DÍAS | AF75: 0 | AG75: 0 | AN75: X | AP75: 0.99
A76: 63 | B76: 2021 | C76: FDLF-CD-63-2021 | D76: https://community.secop.gov.co/Public/Tendering/OpportunityDetail/Index?noticeUID=CO1.NTC.1813672&isFromPublicArea=True&isModal=true&asPopupView=true | E76: Contratos de prestación de servicios profesionales y de apoyo a la gestión | F76: Contratación directa | G76: Prestación de servicios profesionales y de apoyo a la gestión, o para la ejecución de trabajos artísticos que sólo puedan encomendarse a determinadas personas naturales; | H76: PRESTAR SERVICIOS PROFESIONALES PARA APOYAR TÉCNICAMENTE A LOS RESPONSABLES E INTEGRANTES DE LOS PROCESOS EN LA IMPLEMENTACIÓN DE HERRAMIENTAS DE GESTIÓN, SIGUIENDO LOS LINEAMIENTOS METODOLÓGICOS ESTABLECIDOS POR LA OFICINA ASESORA DE PLANEACIÓN DE LA SECRETARÍA DISTRITAL DE GOBIERNO. | I76: Inversión | J76: Un nuevo Contrato Social y ambiental para la Bogotá del Siglo XXI | K76: 57 | L76: =IF(ISERROR(VLOOKUP(K76,[2]Proposito_programa!$C$2:$E$59,2,FALSE))," ",VLOOKUP(K76,[2]Proposito_programa!$C$2:$E$59,2,FALSE)) -> Gestión pública local | M76: =IF(ISERROR(VLOOKUP(K76,[2]Proposito_programa!$C$2:$E$59,3,FALSE))," ",VLOOKUP(K76,[2]Proposito_programa!$C$2:$E$59,3,FALSE)) -> Propósito 5: Construir Bogotá - Región con gobierno abierto, transparente y ciudadanía consciente | N76: 1783 | O76: 1 | P76: 9022215 | Q76: JORGE ISAAC GARAVITO JIMENEZ | R76: Persona Natural | V76: 54000000 | X76: 1 | Y76: 5200000 | Z76: 59200000 | AA76: 53200000 | AB76: 2021-03-05 | AC76: 2021-03-05 | AD76: 2021-12-30 | AE76: 300 DÍAS | AF76: 1 | AG76: 26 | AN76: X | AP76: 0.9
A77: 64 | B77: 2021 | C77: FDLF-CD-64-2021 | D77: https://community.secop.gov.co/Public/Tendering/OpportunityDetail/Index?noticeUID=CO1.NTC.1819754&isFromPublicArea=True&isModal=true&asPopupView=true | E77: Contratos de prestación de servicios profesionales y de apoyo a la gestión | F77: Contratación directa | G77: Prestación de servicios profesionales y de apoyo a la gestión, o para la ejecución de trabajos artísticos que sólo puedan encomendarse a determinadas personas naturales; | H77: PRESTAR SERVICIOS COMO PROFESIONAL ESPECIALIZADO PARA REALIZAR EL PROCESO DE LIQUIDACIONES DE LOS CONTRATOS SUSCRITOS POR EL FONDO DE DESARROLLO LOCAL DE FONTIBÓN | I77: Inversión | J77: Un nuevo Contrato Social y ambiental para la Bogotá del Siglo XXI | K77: 57 | L77: =IF(ISERROR(VLOOKUP(K77,[2]Proposito_programa!$C$2:$E$59,2,FALSE))," ",VLOOKUP(K77,[2]Proposito_programa!$C$2:$E$59,2,FALSE)) -> Gestión pública local | M77: =IF(ISERROR(VLOOKUP(K77,[2]Proposito_programa!$C$2:$E$59,3,FALSE))," ",VLOOKUP(K77,[2]Proposito_programa!$C$2:$E$59,3,FALSE)) -> Propósito 5: Construir Bogotá - Región con gobierno abierto, transparente y ciudadanía consciente | N77: 1783 | O77: 1 | P77: 79582465 | Q77: FRANCISCO JIMENEZ BEDOYA | R77: Persona Natural | V77: 63000000 | X77: 1 | Y77: 6066667 | Z77: 69066667 | AA77: 62066667 | AB77: 2021-03-05 | AC77: 2021-03-05 | AD77: 2021-12-30 | AE77: 300 DÍAS | AF77: 1 | AG77: 26 | AN77: X | AP77: 0.9
A78: 65 | B78: 2021 | C78: FDLF-CD-65-2021 | D78: https://community.secop.gov.co/Public/Tendering/OpportunityDetail/Index?noticeUID=CO1.NTC.1819900&isFromPublicArea=True&isModal=true&asPopupView=true | E78: Contratos de prestación de servicios profesionales y de apoyo a la gestión | F78: Contratación directa | G78: Prestación de servicios profesionales y de apoyo a la gestión, o para la ejecución de trabajos artísticos que sólo puedan encomendarse a determinadas personas naturales; | H78: PRESTAR SERVICIOS PARA APOYAR ADMINISTRATIVA Y ASISTENCIALMENTE AL ÁREA DE GESTIÓN POLICIVA DE LA LOCALIDAD | I78: Inversión | J78: Un nuevo Contrato Social y ambiental para la Bogotá del Siglo XXI | K78: 57 | L78: =IF(ISERROR(VLOOKUP(K78,[2]Proposito_programa!$C$2:$E$59,2,FALSE))," ",VLOOKUP(K78,[2]Proposito_programa!$C$2:$E$59,2,FALSE)) -> Gestión pública local | M78: =IF(ISERROR(VLOOKUP(K78,[2]Proposito_programa!$C$2:$E$59,3,FALSE))," ",VLOOKUP(K78,[2]Proposito_programa!$C$2:$E$59,3,FALSE)) -> Propósito 5: Construir Bogotá - Región con gobierno abierto, transparente y ciudadanía consciente | N78: 1784 | O78: 1 | P78: 53038737 | Q78: JENNY VIBIANA ACOSTA TORRES | R78: Persona Natural | V78: 21905010 | X78: 0 | Y78: 0 | Z78: =Y78+V78+W78 -> 21905010 | AA78: 14278821 | AB78: 2021-03-05 | AC78: 2021-03-05 | AD78: 2021-12-04 | AE78: 274 DÍAS | AF78: 0 | AG78: 0 | AN78: X | AP78: 0.65
A79: 66 | B79: 2021 | C79: FDLF-CD-66-2021 | D79: https://community.secop.gov.co/Public/Tendering/OpportunityDetail/Index?noticeUID=CO1.NTC.1813907&isFromPublicArea=True&isModal=true&asPopupView=true | E79: Contratos de prestación de servicios profesionales y de apoyo a la gestión | F79: Contratación directa | G79: Prestación de servicios profesionales y de apoyo a la gestión, o para la ejecución de trabajos artísticos que sólo puedan encomendarse a determinadas personas naturales; | H79: PRESTAR SERVICIOS PROFESIONALES PARA APOYAR EL ÁREA DE GESTIÓN DE DESARROLLO LOCAL EN LA EJECUCIÓN DEL PROYECTO UN NUEVO CONTRATO PARA MOVILIDAD EN FONTIBÓN | I79: Inversión | J79: Un nuevo Contrato Social y ambiental para la Bogotá del Siglo XXI | K79: 49 | L79: =IF(ISERROR(VLOOKUP(K79,[2]Proposito_programa!$C$2:$E$59,2,FALSE))," ",VLOOKUP(K79,[2]Proposito_programa!$C$2:$E$59,2,FALSE)) -> Movilidad segura, sostenible y accesible | M79: =IF(ISERROR(VLOOKUP(K79,[2]Proposito_programa!$C$2:$E$59,3,FALSE))," ",VLOOKUP(K79,[2]Proposito_programa!$C$2:$E$59,3,FALSE)) -> Propósito 4: Hacer de Bogotá Región un modelo de movilidad multimodal, incluyente y sostenible | N79: 1780 | O79: 1 | P79: 79757415 | Q79: RAUL TOVAR MARTINEZ | R79: Persona Natural | V79: 34000000 | X79: 1 | Y79: 3400000 | Z79: 37400000 | AA79: 33093333 | AB79: 2021-03-05 | AC79: 2021-03-05 | AD79: 2021-08-19 | AE79: 152 DÍAS | AF79: 1 | AG79: 15 | AN79: X | AP79: 0.88
A80: 67 | B80: 2021 | C80: FDLF-CD-67-2021 | D80: https://community.secop.gov.co/Public/Tendering/OpportunityDetail/Index?noticeUID=CO1.NTC.1816587&isFromPublicArea=True&isModal=true&asPopupView=true | E80: Contratos de prestación de servicios profesionales y de apoyo a la gestión | F80: Contratación directa | G80: Prestación de servicios profesionales y de apoyo a la gestión, o para la ejecución de trabajos artísticos que sólo puedan encomendarse a determinadas personas naturales; | H80: PRESTACIÓN DE SERVICIOS PROFESIONALES DE APOYO PARA LA GESTIÓN DE FORTALECIMIENTO A MIPYMES Y DEMÁS ASUNTOS RELACIONADOS CON EL CUMPLIMIENTO DE ACTIVIDADES DE COMPETITIVIDAD Y DESARROLLO ECONÓMICO DE LA LOCALIDAD DE FONTIBÓN | I80: Inversión | J80: Un nuevo Contrato Social y ambiental para la Bogotá del Siglo XXI | K80: 6 | L80: =IF(ISERROR(VLOOKUP(K80,[2]Proposito_programa!$C$2:$E$59,2,FALSE))," ",VLOOKUP(K80,[2]Proposito_programa!$C$2:$E$59,2,FALSE)) -> Sistema Distrital de Cuidado | M80: =IF(ISERROR(VLOOKUP(K80,[2]Proposito_programa!$C$2:$E$59,3,FALSE))," ",VLOOKUP(K80,[2]Proposito_programa!$C$2:$E$59,3,FALSE)) -> Propósito 1: Hacer un nuevo contrato social para incrementar la inclusión social, productiva y política | N80: 1761 | O80: 1 | P80: 1010192601 | Q80: FELIPE ARMANDO CESPEDES MOLINA | R80: Persona Natural | V80: 21630000 | X80: 0 | Y80: 0 | Z80: 21630000 | AA80: 21630000 | AB80: 2021-03-05 | AC80: 2021-03-05 | AD80: 2021-08-04 | AE80: 152 DÍAS | AF80: 0 | AG80: 0 | AN80: X | AP80: 1
A81: 68 | B81: 2021 | C81: FDLF-CD-68-2021 | D81: https://community.secop.gov.co/Public/Tendering/OpportunityDetail/Index?noticeUID=CO1.NTC.1827845&isFromPublicArea=True&isModal=true&asPopupView=true | E81: Contratos de prestación de servicios profesionales y de apoyo a la gestión | F81: Contratación directa | G81: Prestación de servicios profesionales y de apoyo a la gestión, o para la ejecución de trabajos artísticos que sólo puedan encomendarse a determinadas personas naturales; | H81: PRESTAR SERVICIOS DE APOYO PROFESIONAL AL ÁREA DE GESTIÓN ADMINISTRATIVA Y FINANCIERA DEL FONDO DE DESARROLLO LOCAL DE FONTIBÓN EN LOS TRAMITES, MANEJO CONTABLE Y DE ARCHIVO; EN FORMA PERMANENTE EN EL DESARROLLO DEL PROCESO DE CONSOLIDACIÓN DE INFORMACIÓN DEL SISTEMA CONTABLE Y FINANCIERO. | I81: Inversión | J81: Un nuevo Contrato Social y ambiental para la Bogotá del Siglo XXI | K81: 57 | L81: =IF(ISERROR(VLOOKUP(K81,[2]Proposito_programa!$C$2:$E$59,2,FALSE))," ",VLOOKUP(K81,[2]Proposito_programa!$C$2:$E$59,2,FALSE)) -> Gestión pública local | M81: =IF(ISERROR(VLOOKUP(K81,[2]Proposito_programa!$C$2:$E$59,3,FALSE))," ",VLOOKUP(K81,[2]Proposito_programa!$C$2:$E$59,3,FALSE)) -> Propósito 5: Construir Bogotá - Región con gobierno abierto, transparente y ciudadanía consciente | N81: 1783 | O81: 1 | P81: 78759631 | Q81: OSCAR JOSE SUAREZ PEÑA | R81: Persona Natural | V81: 21805000 | X81: 0 | Y81: 0 | Z81: 21805000 | AA81: 20642067 | AB81: 2021-03-09 | AC81: 2021-03-09 | AD81: 2021-08-08 | AE81: 152 DÍAS | AF81: 0 | AG81: 0 | AN81: X | AP81: 0.95
A82: 69 | B82: 2021 | C82: FDLF-CD-69-2021 | D82: https://community.secop.gov.co/Public/Tendering/OpportunityDetail/Index?noticeUID=CO1.NTC.1817426&isFromPublicArea=True&isModal=true&asPopupView=true | E82: Contratos de prestación de servicios profesionales y de apoyo a la gestión | F82: Contratación directa | G82: Prestación de servicios profesionales y de apoyo a la gestión, o para la ejecución de trabajos artísticos que sólo puedan encomendarse a determinadas personas naturales; | H82: PRESTAR LOS SERVICIOS PROFESIONALES PARA APOYAR LAS ACTIVIDADES DE REACTIVACIÓN ECONÓMICA DESARROLLADAS POR LA ALCALDÍA LOCAL DE FONTIBÓN | I82: Inversión | J82: Un nuevo Contrato Social y ambiental para la Bogotá del Siglo XXI | K82: 57 | L82: =IF(ISERROR(VLOOKUP(K82,[2]Proposito_programa!$C$2:$E$59,2,FALSE))," ",VLOOKUP(K82,[2]Proposito_programa!$C$2:$E$59,2,FALSE)) -> Gestión pública local | M82: =IF(ISERROR(VLOOKUP(K82,[2]Proposito_programa!$C$2:$E$59,3,FALSE))," ",VLOOKUP(K82,[2]Proposito_programa!$C$2:$E$59,3,FALSE)) -> Propósito 5: Construir Bogotá - Región con gobierno abierto, transparente y ciudadanía consciente | N82: 1783 | O82: 1 | P82: 1010215699 | Q82: MATEO BANGUERO AGUDELO | R82: Persona Natural | V82: 21630000 | X82: 0 | Y82: 0 | Z82: 21630000 | AA82: 21053200 | AB82: 2021-03-05 | AC82: 2021-03-05 | AD82: 2021-08-04 | AE82: 152 DÍAS | AF82: 0 | AG82: 0 | AN82: X | AP82: 0.97
A83: 70 | B83: 2021 | C83: FDLF-CD-70-2021 | D83: https://community.secop.gov.co/Public/Tendering/OpportunityDetail/Index?noticeUID=CO1.NTC.1817489&isFromPublicArea=True&isModal=true&asPopupView=true | E83: Contratos de prestación de servicios profesionales y de apoyo a la gestión | F83: Contratación directa | G83: Prestación de servicios profesionales y de apoyo a la gestión, o para la ejecución de trabajos artísticos que sólo puedan encomendarse a determinadas personas naturales; | H83: PRESTAR SERVICIOS PROFESIONALES PARA APOYAR EL ÁREA DE GESTIÓN DE DESARROLLO LOCAL EN TEMAS DE PLANEACIÓN DE LOS PROCESOS CONTRACTUALES | I83: Inversión | J83: Un nuevo Contrato Social y ambiental para la Bogotá del Siglo XXI | K83: 57 | L83: =IF(ISERROR(VLOOKUP(K83,[2]Proposito_programa!$C$2:$E$59,2,FALSE))," ",VLOOKUP(K83,[2]Proposito_programa!$C$2:$E$59,2,FALSE)) -> Gestión pública local | M83: =IF(ISERROR(VLOOKUP(K83,[2]Proposito_programa!$C$2:$E$59,3,FALSE))," ",VLOOKUP(K83,[2]Proposito_programa!$C$2:$E$59,3,FALSE)) -> Propósito 5: Construir Bogotá - Región con gobierno abierto, transparente y ciudadanía consciente | N83: 1783 | O83: 1 | P83: 52515689 | Q83: BIBIANA BAUTISTA ZABALETA | R83: Persona Natural | V83: 50985000 | X83: 1 | Y83: 4909667 | Z83: 55894667 | AA83: 50229667 | AB83: 2021-03-05 | AC83: 2021-03-05 | AD83: 2021-12-30 | AE83: 300 DÍAS | AF83: 1 | AG83: 26 | AN83: X | AP83: 0.9
A84: 71 | B84: 2021 | C84: FDLF-CD-71-2021 | D84: https://community.secop.gov.co/Public/Tendering/OpportunityDetail/Index?noticeUID=CO1.NTC.1828856&isFromPublicArea=True&isModal=true&asPopupView=true | E84: Contratos de prestación de servicios profesionales y de apoyo a la gestión | F84: Contratación directa | G84: Prestación de servicios profesionales y de apoyo a la gestión, o para la ejecución de trabajos artísticos que sólo puedan encomendarse a determinadas personas naturales; | H84: PRESTAR SERVICIOS PARA APOYAR LA GESTIÓN DOCUMENTAL DE LA ALCALDÍA LOCAL EN LA IMPLEMENTACIÓN DE LOS PROCESOS DE CLASIFICACIÓN, ORDENACIÓN, SELECCIÓN NATURAL, FOLIACIÓN, IDENTIFICACIÓN, LEVANTAMIENTO DE INVENTARIOS, ALMACENAMIENTO Y APLICACIÓN DE PROTOCOLOS DE ELIMINACIÓN Y TRANSFERENCIAS DOCUMENTALES | I84: Inversión | J84: Un nuevo Contrato Social y ambiental para la Bogotá del Siglo XXI | K84: 57 | L84: =IF(ISERROR(VLOOKUP(K84,[2]Proposito_programa!$C$2:$E$59,2,FALSE))," ",VLOOKUP(K84,[2]Proposito_programa!$C$2:$E$59,2,FALSE)) -> Gestión pública local | M84: =IF(ISERROR(VLOOKUP(K84,[2]Proposito_programa!$C$2:$E$59,3,FALSE))," ",VLOOKUP(K84,[2]Proposito_programa!$C$2:$E$59,3,FALSE)) -> Propósito 5: Construir Bogotá - Región con gobierno abierto, transparente y ciudadanía consciente | N84: 1783 | O84: 1 | P84: 80804691 | Q84: JOHAN MANUEL RAMOS RODRIGUEZ | R84: Persona Natural | V84: 12169450 | X84: 0 | Y84: 0 | Z84: 12169450 | AA84: 12169450 | AB84: 2021-03-11 | AC84: 2021-03-11 | AD84: 2021-08-10 | AE84: 152 DÍAS | AF84: 0 | AG84: 0 | AN84: X | AP84: 1
A85: 72 | B85: 2021 | C85: FDLF-CD-72-2021 | D85: https://community.secop.gov.co/Public/Tendering/OpportunityDetail/Index?noticeUID=CO1.NTC.1827222&isFromPublicArea=True&isModal=true&asPopupView=true | E85: Contratos de prestación de servicios profesionales y de apoyo a la gestión | F85: Contratación directa | G85: Prestación de servicios profesionales y de apoyo a la gestión, o para la ejecución de trabajos artísticos que sólo puedan encomendarse a determinadas personas naturales; | H85: PRESTAR SERVICIOS DE APOYO AL ÁREA DE GESTIÓN DEL DESARROLLO LOCAL DE LA ALCALDÍA LOCAL DE FONTIBÓN | I85: Inversión | J85: Un nuevo Contrato Social y ambiental para la Bogotá del Siglo XXI | K85: 57 | L85: =IF(ISERROR(VLOOKUP(K85,[2]Proposito_programa!$C$2:$E$59,2,FALSE))," ",VLOOKUP(K85,[2]Proposito_programa!$C$2:$E$59,2,FALSE)) -> Gestión pública local | M85: =IF(ISERROR(VLOOKUP(K85,[2]Proposito_programa!$C$2:$E$59,3,FALSE))," ",VLOOKUP(K85,[2]Proposito_programa!$C$2:$E$59,3,FALSE)) -> Propósito 5: Construir Bogotá - Región con gobierno abierto, transparente y ciudadanía consciente | N85: 1783 | O85: 1 | P85: 1016026485 | Q85: FABIOLA ANDREA CASTRO GOMEZ | R85: Persona Natural | V85: 4867780 | X85: 0 | Y85: 0 | Z85: 4867780 | AA85: 4867780 | AB85: 2021-03-10 | AC85: 2021-03-10 | AD85: 2021-05-09 | AE85: 60 DÍAS | AF85: 0 | AG85: 0 | AN85: X | AP85: 1
A86: 73 | B86: 2021 | C86: FDLF-CD-73-2021 | D86: https://community.secop.gov.co/Public/Tendering/OpportunityDetail/Index?noticeUID=CO1.NTC.1830368&isFromPublicArea=True&isModal=true&asPopupView=true | E86: Contratos de prestación de servicios profesionales y de apoyo a la gestión | F86: Contratación directa | G86: Prestación de servicios profesionales y de apoyo a la gestión, o para la ejecución de trabajos artísticos que sólo puedan encomendarse a determinadas personas naturales; | H86: PRESTAR SERVICIOS DE APOYO TÉCNICO ADMINISTRATIVO AL ÁREA DE GESTIÓN DEL DESARROLLO LOCAL DE FONTIBÓN | I86: Inversión | J86: Un nuevo Contrato Social y ambiental para la Bogotá del Siglo XXI | K86: 57 | L86: =IF(ISERROR(VLOOKUP(K86,[2]Proposito_programa!$C$2:$E$59,2,FALSE))," ",VLOOKUP(K86,[2]Proposito_programa!$C$2:$E$59,2,FALSE)) -> Gestión pública local | M86: =IF(ISERROR(VLOOKUP(K86,[2]Proposito_programa!$C$2:$E$59,3,FALSE))," ",VLOOKUP(K86,[2]Proposito_programa!$C$2:$E$59,3,FALSE)) -> Propósito 5: Construir Bogotá - Región con gobierno abierto, transparente y ciudadanía consciente | N86: 1783 | O86: 1 | P86: 52358174 | Q86: MARIA ISABEL BUITRAGO POLOCHE | R86: Persona Natural | V86: 35226000 | X86: 1 | Y86: 3914000 | Z86: 39140000 | AA86: 33921333 | AB86: 2021-03-11 | AC86: 2021-03-11 | AD86: 2022-01-10 | AE86: 274 DÍAS | AF86: 1 | AG86: 30 | AN86: X | AP86: 0.87
A87: 74 | B87: 2021 | C87: FDLF-CD-74-2021 | D87: https://community.secop.gov.co/Public/Tendering/OpportunityDetail/Index?noticeUID=CO1.NTC.1830473&isFromPublicArea=True&isModal=true&asPopupView=true | E87: Contratos de prestación de servicios profesionales y de apoyo a la gestión | F87: Contratación directa | G87: Prestación de servicios profesionales y de apoyo a la gestión, o para la ejecución de trabajos artísticos que sólo puedan encomendarse a determinadas personas naturales; | H87: PRESTAR LOS SERVICIOS PROFESIONALES PARA APOYAR LAS ACTIVIDADES ESTRATÉGICAS DESARROLLADAS POR EL DESPACHO DE LA ALCALDÍA LOCAL DE FONTIBÓN | I87: Inversión | J87: Un nuevo Contrato Social y ambiental para la Bogotá del Siglo XXI | K87: 57 | L87: =IF(ISERROR(VLOOKUP(K87,[2]Proposito_programa!$C$2:$E$59,2,FALSE))," ",VLOOKUP(K87,[2]Proposito_programa!$C$2:$E$59,2,FALSE)) -> Gestión pública local | M87: =IF(ISERROR(VLOOKUP(K87,[2]Proposito_programa!$C$2:$E$59,3,FALSE))," ",VLOOKUP(K87,[2]Proposito_programa!$C$2:$E$59,3,FALSE)) -> Propósito 5: Construir Bogotá - Región con gobierno abierto, transparente y ciudadanía consciente | N87: 1783 | O87: 1 | P87: 1016063780 | Q87: CAMILO ANDRES BERNAL GOMEZ | R87: Persona Natural | V87: 38934000 | X87: 0 | Y87: 0 | Z87: 38934000 | AA87: 37492000 | AB87: 2021-03-11 | AC87: 2021-03-11 | AD87: 2021-12-10 | AE87: 274 DÍAS | AF87: 0 | AG87: 0 | AN87: X | AP87: 0.96
A88: 75 | B88: 2021 | C88: FDLF-CD-75-2021 | D88: https://community.secop.gov.co/Public/Tendering/OpportunityDetail/Index?noticeUID=CO1.NTC.1828531&isFromPublicArea=True&isModal=true&asPopupView=true | E88: Contratos de prestación de servicios profesionales y de apoyo a la gestión | F88: Contratación directa | G88: Prestación de servicios profesionales y de apoyo a la gestión, o para la ejecución de trabajos artísticos que sólo puedan encomendarse a determinadas personas naturales; | H88: PRESTAR SERVICIOS PROFESIONALES PARA APOYAR EL ÁREA DE GESTIÓN DEL DESARROLLO LOCAL EN LA EJECUCIÓN DEL PROYECTO UN NUEVO CONTRATO PARA LOS PARQUES DE FONTIBÓN | I88: Inversión | J88: Un nuevo Contrato Social y ambiental para la Bogotá del Siglo XXI | K88: 33 | L88: =IF(ISERROR(VLOOKUP(K88,[2]Proposito_programa!$C$2:$E$59,2,FALSE))," ",VLOOKUP(K88,[2]Proposito_programa!$C$2:$E$59,2,FALSE)) -> Más árboles y más y mejor espacio público | M88: =IF(ISERROR(VLOOKUP(K88,[2]Proposito_programa!$C$2:$E$59,3,FALSE))," ",VLOOKUP(K88,[2]Proposito_programa!$C$2:$E$59,3,FALSE)) -> Propósito 2 : Cambiar Nuestros Hábitos de Vida para Reverdecer a Bogotá y Adaptarnos y Mitigar la Crisis Climática | N88: 1770 | O88: 1 | P88: 79964006 | Q88: JAVIER ERNESTO ROJAS DIAZ | R88: Persona Natural | V88: 47700000 | X88: 0 | Y88: 0 | Z88: 47700000 | AA88: 46286667 | AB88: 2021-03-09 | AC88: 2021-03-09 | AD88: 2021-12-08 | AE88: 274 DÍAS | AF88: 0 | AG88: 0 | AN88: X | AP88: 0.97
A89: 76 | B89: 2021 | C89: FDLF-CD-76-2021 | D89: https://community.secop.gov.co/Public/Tendering/OpportunityDetail/Index?noticeUID=CO1.NTC.1830471&isFromPublicArea=True&isModal=true&asPopupView=true | E89: Contratos de prestación de servicios profesionales y de apoyo a la gestión | F89: Contratación directa | G89: Prestación de servicios profesionales y de apoyo a la gestión, o para la ejecución de trabajos artísticos que sólo puedan encomendarse a determinadas personas naturales; | H89: SERVICIOS DE APOYO TÉCNICO ADMINISTRATIVO PARA PROCESOS DE COBRO PERSUASIVO DE LAS OBLIGACIONES CLARAS, EXPRESAS Y ACTUALMENTE EXIGIBLES, POR CONCEPTO DE MULTAS IMPUESTAS POR EL ÁREA DE GESTIÓN POLICIVA. | I89: Inversión | J89: Un nuevo Contrato Social y ambiental para la Bogotá del Siglo XXI | K89: 57 | L89: =IF(ISERROR(VLOOKUP(K89,[2]Proposito_programa!$C$2:$E$59,2,FALSE))," ",VLOOKUP(K89,[2]Proposito_programa!$C$2:$E$59,2,FALSE)) -> Gestión pública local | M89: =IF(ISERROR(VLOOKUP(K89,[2]Proposito_programa!$C$2:$E$59,3,FALSE))," ",VLOOKUP(K89,[2]Proposito_programa!$C$2:$E$59,3,FALSE)) -> Propósito 5: Construir Bogotá - Región con gobierno abierto, transparente y ciudadanía consciente | N89: 1784 | O89: 1 | P89: 52848705 | Q89: CAROLINA HERNANDEZ HERRERA | R89: Persona Natural | V89: 35226000 | X89: 1 | Y89: 5349133 | Z89: 40575133 | AA89: 33921333 | AB89: 2021-03-11 | AC89: 2021-03-11 | AD89: 2022-01-21 | AE89: 274 DÍAS | AF89: 1 | AG89: 41 | AN89: X | AP89: 0.84
A90: 77 | B90: 2021 | C90: FDLF-CD-77-2021 | D90: https://community.secop.gov.co/Public/Tendering/OpportunityDetail/Index?noticeUID=CO1.NTC.1828487&isFromPublicArea=True&isModal=true&asPopupView=true | E90: Contratos de prestación de servicios profesionales y de apoyo a la gestión | F90: Contratación directa | G90: Prestación de servicios profesionales y de apoyo a la gestión, o para la ejecución de trabajos artísticos que sólo puedan encomendarse a determinadas personas naturales; | H90: PRESTAR SERVICIOS PARA APOYAR ADMINISTRATIVA Y ASISTENCIALMENTE AL ÁREA DE GESTIÓN POLICIVA DE LA LOCALIDAD | I90: Inversión | J90: Un nuevo Contrato Social y ambiental para la Bogotá del Siglo XXI | K90: 57 | L90: =IF(ISERROR(VLOOKUP(K90,[2]Proposito_programa!$C$2:$E$59,2,FALSE))," ",VLOOKUP(K90,[2]Proposito_programa!$C$2:$E$59,2,FALSE)) -> Gestión pública local | M90: =IF(ISERROR(VLOOKUP(K90,[2]Proposito_programa!$C$2:$E$59,3,FALSE))," ",VLOOKUP(K90,[2]Proposito_programa!$C$2:$E$59,3,FALSE)) -> Propósito 5: Construir Bogotá - Región con gobierno abierto, transparente y ciudadanía consciente | N90: 1784 | O90: 1 | P90: 1016064829 | Q90: CARLOS EDUARDO FLOREZ TORRES | R90: Persona Natural | V90: 21905010 | X90: 1 | Y90: 3488576 | Z90: 25393586 | AA90: 21255973 | AB90: 2021-03-11 | AC90: 2021-03-11 | AD90: 2022-01-21 | AE90: 274 DÍAS | AF90: 1 | AG90: 43 | AN90: X | AP90: 0.84
A91: 78 | B91: 2021 | C91: FDLF-CD-78-2021 | D91: https://community.secop.gov.co/Public/Tendering/OpportunityDetail/Index?noticeUID=CO1.NTC.1829608&isFromPublicArea=True&isModal=true&asPopupView=true | E91: Contratos de prestación de servicios profesionales y de apoyo a la gestión | F91: Contratación directa | G91: Prestación de servicios profesionales y de apoyo a la gestión, o para la ejecución de trabajos artísticos que sólo puedan encomendarse a determinadas personas naturales; | H91: LA PRESTACIÓN DE SERVICIOS PROFESIONALES PARA APOYAR EL ÁREA DE GESTIÓN DE DESARROLLO LOCAL DE FONTIBÓN EN TEMAS ORIENTADOS A SALUD EN LA LOCALIDAD | I91: Inversión | J91: Un nuevo Contrato Social y ambiental para la Bogotá del Siglo XXI | K91: 6 | L91: =IF(ISERROR(VLOOKUP(K91,[2]Proposito_programa!$C$2:$E$59,2,FALSE))," ",VLOOKUP(K91,[2]Proposito_programa!$C$2:$E$59,2,FALSE)) -> Sistema Distrital de Cuidado | M91: =IF(ISERROR(VLOOKUP(K91,[2]Proposito_programa!$C$2:$E$59,3,FALSE))," ",VLOOKUP(K91,[2]Proposito_programa!$C$2:$E$59,3,FALSE)) -> Propósito 1: Hacer un nuevo contrato social para incrementar la inclusión social, productiva y política | N91: 1764 | O91: 1 | P91: 53080759 | Q91: VIVIANA ANDREA OJEDA VILLALBA | R91: Persona Natural | V91: 21805000 | X91: 0 | Y91: 0 | Z91: 21805000 | AA91: 21805000 | AB91: 2021-03-09 | AC91: 2021-03-09 | AD91: 2021-08-08 | AE91: 152 DÍAS | AF91: 0 | AG91: 0 | AN91: X | AP91: 1
A92: 79 | B92: 2021 | C92: FDLF-CD-79-2021 | D92: https://community.secop.gov.co/Public/Tendering/OpportunityDetail/Index?noticeUID=CO1.NTC.1831022&isFromPublicArea=True&isModal=true&asPopupView=true | E92: Contratos de prestación de servicios profesionales y de apoyo a la gestión | F92: Contratación directa | G92: Prestación de servicios profesionales y de apoyo a la gestión, o para la ejecución de trabajos artísticos que sólo puedan encomendarse a determinadas personas naturales; | H92: PRESTAR SERVICIOS DE APOYO OPERATIVO PARA LAS ACTIVIDADES RELACIONADAS CON EL MANTENIMIENTO Y REPARACIONES MENORES DE LA SEDE Y DEMÁS DEPENDENCIAS DE LA ALCALDÍA LOCAL DE FONTIBÓN. | I92: Inversión | J92: Un nuevo Contrato Social y ambiental para la Bogotá del Siglo XXI | K92: 57 | L92: =IF(ISERROR(VLOOKUP(K92,[2]Proposito_programa!$C$2:$E$59,2,FALSE))," ",VLOOKUP(K92,[2]Proposito_programa!$C$2:$E$59,2,FALSE)) -> Gestión pública local | M92: =IF(ISERROR(VLOOKUP(K92,[2]Proposito_programa!$C$2:$E$59,3,FALSE))," ",VLOOKUP(K92,[2]Proposito_programa!$C$2:$E$59,3,FALSE)) -> Propósito 5: Construir Bogotá - Región con gobierno abierto, transparente y ciudadanía consciente | N92: 1783 | O92: 1 | P92: 79138055 | Q92: RENE JAVIER MELO MAZABEL | R92: Persona Natural | V92: 12169450 | X92: 1 | Y92: 2758409 | Z92: 14927859 | AA92: 10546857 | AB92: 2021-03-12 | AC92: 2021-03-12 | AD92: 2022-01-21 | AE92: 152 DÍAS | AF92: 1 | AG92: 34 | AH92: 79859514 | AI92: GIOVANNI ENRIQUE CORTES GARZON | AJ92: 2021-11-24 | AN92: X | AP92: 0.87
A93: 80 | B93: 2021 | C93: FDLF-CD-80-2021 | D93: https://community.secop.gov.co/Public/Tendering/OpportunityDetail/Index?noticeUID=CO1.NTC.1830925&isFromPublicArea=True&isModal=true&asPopupView=true | E93: Contratos de prestación de servicios profesionales y de apoyo a la gestión | F93: Contratación directa | G93: Prestación de servicios profesionales y de apoyo a la gestión, o para la ejecución de trabajos artísticos que sólo puedan encomendarse a determinadas personas naturales; | H93: PRESTAR SERVICIOS DE APOYO OPERATIVO PARA LAS ACTIVIDADES RELACIONADAS CON EL MANTENIMIENTO Y REPARACIONES MENORES DE LA SEDE Y DEMÁS DEPENDENCIAS DE LA ALCALDÍA LOCAL DE FONTIBÓN. | I93: Inversión | J93: Un nuevo Contrato Social y ambiental para la Bogotá del Siglo XXI | K93: 57 | L93: =IF(ISERROR(VLOOKUP(K93,[2]Proposito_programa!$C$2:$E$59,2,FALSE))," ",VLOOKUP(K93,[2]Proposito_programa!$C$2:$E$59,2,FALSE)) -> Gestión pública local | M93: =IF(ISERROR(VLOOKUP(K93,[2]Proposito_programa!$C$2:$E$59,3,FALSE))," ",VLOOKUP(K93,[2]Proposito_programa!$C$2:$E$59,3,FALSE)) -> Propósito 5: Construir Bogotá - Región con gobierno abierto, transparente y ciudadanía consciente | N93: 1783 | O93: 1 | P93: 79127015 | Q93: WILLIAM MORENO RINCON | R93: Persona Natural | V93: 12169450 | X93: 1 | Y93: 6084725 | Z93: 18254175 | AA93: 18254175 | AB93: 2021-03-12 | AC93: 2021-03-12 | AD93: 2021-10-26 | AE93: 152 DÍAS | AF93: 1 | AG93: 75 | AN93: X | AP93: 0.67
A94: 81 | B94: 2021 | C94: FDLF-CD-81-2021 | D94: https://community.secop.gov.co/Public/Tendering/OpportunityDetail/Index?noticeUID=CO1.NTC.1831515&isFromPublicArea=True&isModal=true&asPopupView=true | E94: Contratos de prestación de servicios profesionales y de apoyo a la gestión | F94: Contratación directa | G94: Prestación de servicios profesionales y de apoyo a la gestión, o para la ejecución de trabajos artísticos que sólo puedan encomendarse a determinadas personas naturales; | H94: LA PRESTACIÓN DE SERVICIOS PROFESIONALES PARA APOYAR EL ÁREA DE GESTIÓN DE DESARROLLO LOCAL DE FONTIBÓN EN TEMAS ORIENTADOS A SALUD EN LA LOCALIDAD | I94: Inversión | J94: Un nuevo Contrato Social y ambiental para la Bogotá del Siglo XXI | K94: 6 | L94: =IF(ISERROR(VLOOKUP(K94,[2]Proposito_programa!$C$2:$E$59,2,FALSE))," ",VLOOKUP(K94,[2]Proposito_programa!$C$2:$E$59,2,FALSE)) -> Sistema Distrital de Cuidado | M94: =IF(ISERROR(VLOOKUP(K94,[2]Proposito_programa!$C$2:$E$59,3,FALSE))," ",VLOOKUP(K94,[2]Proposito_programa!$C$2:$E$59,3,FALSE)) -> Propósito 1: Hacer un nuevo contrato social para incrementar la inclusión social, productiva y política | N94: 1764 | O94: 1 | P94: 1030678752 | Q94: ANGIE HASBLEIDIY MARTINEZ SOTO | R94: Persona Natural | V94: 21805000 | X94: 0 | Y94: 0 | Z94: 21805000 | AA94: 21805000 | AB94: 2021-03-12 | AC94: 2021-03-12 | AD94: 2021-08-11 | AE94: 152 DÍAS | AF94: 0 | AG94: 0 | AN94: X | AP94: 1
A95: 82 | B95: 2021 | C95: FDLF-CD-82-2021 | D95: https://community.secop.gov.co/Public/Tendering/OpportunityDetail/Index?noticeUID=CO1.NTC.1832424&isFromPublicArea=True&isModal=true&asPopupView=true | E95: Contratos de prestación de servicios profesionales y de apoyo a la gestión | F95: Contratación directa | G95: Prestación de servicios profesionales y de apoyo a la gestión, o para la ejecución de trabajos artísticos que sólo puedan encomendarse a determinadas personas naturales; | H95: PRESTAR SERVICIOS DE APOYO AL ÁREA DE GESTIÓN DEL DESARROLLO LOCAL DE FONTIBÓN EN ACTIVIDADES INHERENTES A LA PLANEACIÓN. | I95: Inversión | J95: Un nuevo Contrato Social y ambiental para la Bogotá del Siglo XXI | K95: 57 | L95: =IF(ISERROR(VLOOKUP(K95,[2]Proposito_programa!$C$2:$E$59,2,FALSE))," ",VLOOKUP(K95,[2]Proposito_programa!$C$2:$E$59,2,FALSE)) -> Gestión pública local | M95: =IF(ISERROR(VLOOKUP(K95,[2]Proposito_programa!$C$2:$E$59,3,FALSE))," ",VLOOKUP(K95,[2]Proposito_programa!$C$2:$E$59,3,FALSE)) -> Propósito 5: Construir Bogotá - Región con gobierno abierto, transparente y ciudadanía consciente | N95: 1783 | O95: 1 | P95: 51583073 | Q95: IRMA LUCIA SUAREZ DE ZULUAGA | R95: Persona Natural | V95: 4867780 | X95: 0 | Y95: 0 | Z95: 4867780 | AA95: 4867780 | AB95: 2021-03-12 | AC95: 2021-03-12 | AD95: 2021-05-11 | AE95: 60 DÍAS | AF95: 0 | AG95: 0 | AN95: X | AP95: 1
A96: 83 | B96: 2021 | C96: FDLF-CD-83-2021 | D96: https://community.secop.gov.co/Public/Tendering/OpportunityDetail/Index?noticeUID=CO1.NTC.1838685&isFromPublicArea=True&isModal=true&asPopupView=true | E96: Contratos de prestación de servicios profesionales y de apoyo a la gestión | F96: Contratación directa | G96: Prestación de servicios profesionales y de apoyo a la gestión, o para la ejecución de trabajos artísticos que sólo puedan encomendarse a determinadas personas naturales; | H96: PRESTAR SERVICIOS PROFESIONALES PARA LIDERAR Y GARANTIZAR LA IMPLEMENTACIÓN Y SEGUIMIENTO DE LOS PROCESOS Y PROCEDIMIENTOS DEL SERVICIO SOCIAL EN LA LOCALIDAD DE FONTIBÓN | I96: Inversión | J96: Un nuevo Contrato Social y ambiental para la Bogotá del Siglo XXI | K96: 1 | L96: =IF(ISERROR(VLOOKUP(K96,[2]Proposito_programa!$C$2:$E$59,2,FALSE))," ",VLOOKUP(K96,[2]Proposito_programa!$C$2:$E$59,2,FALSE)) -> Subsidios y transferencias para la equidad | M96: =IF(ISERROR(VLOOKUP(K96,[2]Proposito_programa!$C$2:$E$59,3,FALSE))," ",VLOOKUP(K96,[2]Proposito_programa!$C$2:$E$59,3,FALSE)) -> Propósito 1: Hacer un nuevo contrato social para incrementar la inclusión social, productiva y política | N96: 1752 | O96: 1 | P96: 52783244 | Q96: DUDLEY JOHANNA PALACIOS GARCIA | R96: Persona Natural | V96: 53411920 | X96: 1 | Y96: 4990041 | Z96: 58401961 | AA96: 47867430 | AB96: 2021-03-12 | AC96: 2021-03-12 | AD96: 2022-01-24 | AE96: 293 DÍAS | AF96: 0 | AG96: 0 | AN96: X | AP96: 0.8
A97: 84 | B97: 2021 | C97: FDLF-CD-84-2021 | D97: https://community.secop.gov.co/Public/Tendering/OpportunityDetail/Index?noticeUID=CO1.NTC.1833511&isFromPublicArea=True&isModal=true&asPopupView=true | E97: Contratos de prestación de servicios profesionales y de apoyo a la gestión | F97: Contratación directa | G97: Prestación de servicios profesionales y de apoyo a la gestión, o para la ejecución de trabajos artísticos que sólo puedan encomendarse a determinadas personas naturales; | H97: EL CONTRATO QUE SE PRETENDE CELEBRAR, TENDRÁ POR OBJETO PRESTAR SERVICIOS COMO PROFESIONAL DE APOYO EN FORMULACIÓN, EJECUCIÓN Y SEGUIMIENTO PARA LAS ACTIVIDADES DE MANTENIMIENTO Y SOSTENIBILIDAD DE LAS SEDES DE LA ALCALDÍA LOCAL DE FONTIBÓN. | I97: Inversión | J97: Un nuevo Contrato Social y ambiental para la Bogotá del Siglo XXI | K97: 57 | L97: =IF(ISERROR(VLOOKUP(K97,[2]Proposito_programa!$C$2:$E$59,2,FALSE))," ",VLOOKUP(K97,[2]Proposito_programa!$C$2:$E$59,2,FALSE)) -> Gestión pública local | M97: =IF(ISERROR(VLOOKUP(K97,[2]Proposito_programa!$C$2:$E$59,3,FALSE))," ",VLOOKUP(K97,[2]Proposito_programa!$C$2:$E$59,3,FALSE)) -> Propósito 5: Construir Bogotá - Región con gobierno abierto, transparente y ciudadanía consciente | N97: 1783 | O97: 1 | P97: 1593091 | Q97: JOHN HEYLER MOSQUERA ASPRILLA | R97: Persona Natural | V97: 45000000 | X97: 1 | Y97: 3166667 | Z97: 48166667 | AA97: 43166666 | AB97: 2021-03-12 | AC97: 2021-03-12 | AD97: 2021-12-30 | AE97: 274 DÍAS | AF97: 1 | AG97: 19 | AN97: X | AP97: 0.9
A98: 85 | B98: 2021 | C98: FDLF-CD-85-2021 | D98: https://community.secop.gov.co/Public/Tendering/OpportunityDetail/Index?noticeUID=CO1.NTC.1833512&isFromPublicArea=True&isModal=true&asPopupView=true | E98: Contratos de prestación de servicios profesionales y de apoyo a la gestión | F98: Contratación directa | G98: Prestación de servicios profesionales y de apoyo a la gestión, o para la ejecución de trabajos artísticos que sólo puedan encomendarse a determinadas personas naturales; | H98: EL CONTRATO QUE SE PRETENDE CELEBRAR, TENDRÁ POR OBJETO PRESTAR SERVICIOS PROFESIONALES ESPECIALIZADOS PARA REALIZAR EL CONTROL SEGUIMIENTO ACTUALIZACIÓN Y ANÁLISIS DEL BANCO DE PROGRAMAS Y PROYECTOS, ASÍ COMO TAMBIÉN LOS INSTRUMENTOS DE LA PLANEACIÓN Y GESTIÓN EN EL ÁREA DE GESTIÓN DEL DESARROLLO LOCAL DE LA ALCALDÍA LOCAL DE FONTIBÓN. | I98: Inversión | J98: Un nuevo Contrato Social y ambiental para la Bogotá del Siglo XXI | K98: 57 | L98: =IF(ISERROR(VLOOKUP(K98,[2]Proposito_programa!$C$2:$E$59,2,FALSE))," ",VLOOKUP(K98,[2]Proposito_programa!$C$2:$E$59,2,FALSE)) -> Gestión pública local | M98: =IF(ISERROR(VLOOKUP(K98,[2]Proposito_programa!$C$2:$E$59,3,FALSE))," ",VLOOKUP(K98,[2]Proposito_programa!$C$2:$E$59,3,FALSE)) -> Propósito 5: Construir Bogotá - Región con gobierno abierto, transparente y ciudadanía consciente | N98: 1783 | O98: 1 | P98: 1030553619 | Q98: LUIS FERNANDO MOSCOSO GAVIRIA | R98: Persona Natural | V98: 63000000 | X98: 1 | Y98: 7000000 | Z98: 70000000 | AA98: 60433333 | AB98: 2021-03-12 | AC98: 2021-03-12 | AD98: 2022-01-25 | AE98: 274 DÍAS | AF98: 1 | AG98: 30 | AN98: X | AP98: 0.86
A99: 86 | B99: 2021 | C99: FDLF-CD-86-2021 | D99: https://community.secop.gov.co/Public/Tendering/OpportunityDetail/Index?noticeUID=CO1.NTC.1833513&isFromPublicArea=True&isModal=true&asPopupView=true | E99: Contratos de prestación de servicios profesionales y de apoyo a la gestión | F99: Contratación directa | G99: Prestación de servicios profesionales y de apoyo a la gestión, o para la ejecución de trabajos artísticos que sólo puedan encomendarse a determinadas personas naturales; | H99: EL CONTRATO QUE SE PRETENDE CELEBRAR, TENDRÁ POR OBJETO PRESTAR SERVICIOS PROFESIONALES PARA APOYAR EL FORTALECIMIENTO DE LA GESTIÓN LOCAL DE RIESGO Y CAMBIO CLIMÁTICO EN EL MARCO DEL SISTEMA DISTRITAL DE GESTIÓN DE RIESGOS Y CAMBIO CLIMÁTICO DSGR-CC. | I99: Inversión | J99: Un nuevo Contrato Social y ambiental para la Bogotá del Siglo XXI | K99: 30 | L99: =IF(ISERROR(VLOOKUP(K99,[2]Proposito_programa!$C$2:$E$59,2,FALSE))," ",VLOOKUP(K99,[2]Proposito_programa!$C$2:$E$59,2,FALSE)) -> Eficiencia en la atención de emergencias | M99: =IF(ISERROR(VLOOKUP(K99,[2]Proposito_programa!$C$2:$E$59,3,FALSE))," ",VLOOKUP(K99,[2]Proposito_programa!$C$2:$E$59,3,FALSE)) -> Propósito 2 : Cambiar Nuestros Hábitos de Vida para Reverdecer a Bogotá y Adaptarnos y Mitigar la Crisis Climática | N99: 1768 | O99: 1 | P99: 80166442 | Q99: CARLOS ANDRES MARIN BAUTISTA | R99: Persona Natural | V99: 46800000 | X99: 1 | Y99: 7453333 | Z99: 54253333 | AA99: 44893333 | AB99: 2021-03-12 | AC99: 2021-03-12 | AD99: 2022-01-24 | AE99: 274 DÍAS | AF99: 1 | AG99: 43 | AN99: X | AP99: 0.83
A100: 87 | B100: 2021 | C100: FDLF-CD-87-2021 | D100: https://community.secop.gov.co/Public/Tendering/OpportunityDetail/Index?noticeUID=CO1.NTC.1834704&isFromPublicArea=True&isModal=true&asPopupView=true | E100: Contratos de prestación de servicios profesionales y de apoyo a la gestión | F100: Contratación directa | G100: Prestación de servicios profesionales y de apoyo a la gestión, o para la ejecución de trabajos artísticos que sólo puedan encomendarse a determinadas personas naturales; | H100: PRESTAR SERVICIOS PROFESIONALES EN INGENIERÍA PARA APOYAR LAS ACTIVIDADES TÉCNICAS Y ADMINISTRATIVAS PROPIAS DE LA CASA DEL CONSUMIDOR, EN EL MARCO DEL CONVENIO SUSCRITO ENTRE LA SUPERINTENDENCIA DE INDUSTRIA Y COMERCIO Y LA ALCALDÍA LOCAL DE FONTIBÓN | I100: Inversión | J100: Un nuevo Contrato Social y ambiental para la Bogotá del Siglo XXI | K100: 57 | L100: =IF(ISERROR(VLOOKUP(K100,[2]Proposito_programa!$C$2:$E$59,2,FALSE))," ",VLOOKUP(K100,[2]Proposito_programa!$C$2:$E$59,2,FALSE)) -> Gestión pública local | M100: =IF(ISERROR(VLOOKUP(K100,[2]Proposito_programa!$C$2:$E$59,3,FALSE))," ",VLOOKUP(K100,[2]Proposito_programa!$C$2:$E$59,3,FALSE)) -> Propósito 5: Construir Bogotá - Región con gobierno abierto, transparente y ciudadanía consciente | N100: 1784 | O100: 1 | P100: 19374118 | Q100: JUAN BAUTISTA VANEGAS QUINTERO | R100: Persona Natural | V100: 44338410 | X100: 1 | Y100: 6568653 | Z100: 50907063 | AA100: 42532030 | AB100: 2021-03-12 | AC100: 2021-03-12 | AD100: 2022-01-21 | AE100: 274 DÍAS | AF100: 1 | AG100: 40 | AN100: X | AP100: 0.84
A101: 88 | B101: 2021 | C101: FDLF-CD-88-2021 | D101: https://community.secop.gov.co/Public/Tendering/OpportunityDetail/Index?noticeUID=CO1.NTC.1834538&isFromPublicArea=True&isModal=true&asPopupView=true | E101: Contratos de prestación de servicios profesionales y de apoyo a la gestión | F101: Contratación directa | G101: Prestación de servicios profesionales y de apoyo a la gestión, o para la ejecución de trabajos artísticos que sólo puedan encomendarse a determinadas personas naturales; | H101: PRESTAR LOS SERVICIOS PROFESIONALES A LA ALCALDÍA LOCAL DE FONTIBÓN EN LA ADMINISTRACIÓN DE LA RED DE VOZ Y DATOS, EN LA ACTUALIZACIÓN Y SOPORTE CON LAS TECNOLOGÍAS Y SISTEMAS DE INFORMACIÓN, ASÍ COMO EL APOYO A LA SUPERVISIÓN DE LOS CONTRATOS QUE TIENEN RELACIÓN CON SOPORTES TECNOLÓGICOS Y TEMAS RELACIONADOS. | I101: Inversión | J101: Un nuevo Contrato Social y ambiental para la Bogotá del Siglo XXI | K101: 57 | L101: =IF(ISERROR(VLOOKUP(K101,[2]Proposito_programa!$C$2:$E$59,2,FALSE))," ",VLOOKUP(K101,[2]Proposito_programa!$C$2:$E$59,2,FALSE)) -> Gestión pública local | M101: =IF(ISERROR(VLOOKUP(K101,[2]Proposito_programa!$C$2:$E$59,3,FALSE))," ",VLOOKUP(K101,[2]Proposito_programa!$C$2:$E$59,3,FALSE)) -> Propósito 5: Construir Bogotá - Región con gobierno abierto, transparente y ciudadanía consciente | N101: 1783 | O101: 1 | P101: 79955070 | Q101: CARLOS FERNANDO HUERFANO GUIZA | R101: Persona Natural | V101: 45000000 | X101: 2 | Y101: =3333333+2500000 -> 5833333 | Z101: 50833333 | AA101: 43333333 | AB101: 2021-03-11 | AC101: 2021-03-11 | AD101: 2022-01-15 | AE101: 274 DÍAS | AF101: 1 | AG101: 35 | AN101: X | AP101: 0.85
A102: 89 | B102: 2021 | C102: FDLF-CD-89-2021 | D102: https://community.secop.gov.co/Public/Tendering/OpportunityDetail/Index?noticeUID=CO1.NTC.1834745&isFromPublicArea=True&isModal=true&asPopupView=true | E102: Contratos de prestación de servicios profesionales y de apoyo a la gestión | F102: Contratación directa | G102: Prestación de servicios profesionales y de apoyo a la gestión, o para la ejecución de trabajos artísticos que sólo puedan encomendarse a determinadas personas naturales; | H102: PRESTAR SERVICIOS PARA APOYAR JURÍDICAMENTE LA EJECUCIÓN DE LAS ACCIONES REQUERIDAS PARA EL TRÁMITE E IMPULSO PROCESAL DE LAS ACTUACIONES CONTRAVENCIONALES Y/O QUERELLAS QUE CURSEN EN LAS INSPECCIONES DE POLICÍA DE LA LOCALIDAD | I102: Inversión | J102: Un nuevo Contrato Social y ambiental para la Bogotá del Siglo XXI | K102: 57 | L102: =IF(ISERROR(VLOOKUP(K102,[2]Proposito_programa!$C$2:$E$59,2,FALSE))," ",VLOOKUP(K102,[2]Proposito_programa!$C$2:$E$59,2,FALSE)) -> Gestión pública local | M102: =IF(ISERROR(VLOOKUP(K102,[2]Proposito_programa!$C$2:$E$59,3,FALSE))," ",VLOOKUP(K102,[2]Proposito_programa!$C$2:$E$59,3,FALSE)) -> Propósito 5: Construir Bogotá - Región con gobierno abierto, transparente y ciudadanía consciente | N102: 1784 | O102: 1 | P102: 33307650 | Q102: LUZ MERY PATERNINA MEDINA | R102: Persona Natural | V102: 24632450 | X102: 0 | Y102: 0 | Z102: 24632450 | AA102: 24632450 | AB102: 2021-03-11 | AC102: 2021-03-11 | AD102: 2021-08-10 | AE102: 152 DÍAS | AF102: 0 | AG102: 0 | AN102: X | AP102: 1
A103: 90 | B103: 2021 | C103: FDLF-CD-90-2021 | D103: https://community.secop.gov.co/Public/Tendering/OpportunityDetail/Index?noticeUID=CO1.NTC.1838472&isFromPublicArea=True&isModal=true&asPopupView=true | E103: Contratos de prestación de servicios profesionales y de apoyo a la gestión | F103: Contratación directa | G103: Prestación de servicios profesionales y de apoyo a la gestión, o para la ejecución de trabajos artísticos que sólo puedan encomendarse a determinadas personas naturales; | H103: EL CONTRATO QUE SE PRETENDE CELEBRAR, TENDRÁ POR OBJETO PRESTAR SERVICIOS PROFESIONALES PARA APOYAR AL DESPACHO DE LA ALCALDÍA LOCAL EN LA PROMOCIÓN, ACOMPAÑAMIENTO, COORDINACIÓN Y ATENCIÓN DE LAS INSTANCIAS DE COORDINACIÓN INTERINSTITUCIONALES Y LAS INSTANCIAS DE PARTICIPACIÓN LOCALES, ASÍ COMO LOS PROCESOS COMUNITARIOS EN LA LOCALIDAD. | I103: Inversión | J103: Un nuevo Contrato Social y ambiental para la Bogotá del Siglo XXI | K103: 55 | L103: =IF(ISERROR(VLOOKUP(K103,[2]Proposito_programa!$C$2:$E$59,2,FALSE))," ",VLOOKUP(K103,[2]Proposito_programa!$C$2:$E$59,2,FALSE)) -> Fortalecimiento de cultura ciudadana y su institucionalidad | M103: =IF(ISERROR(VLOOKUP(K103,[2]Proposito_programa!$C$2:$E$59,3,FALSE))," ",VLOOKUP(K103,[2]Proposito_programa!$C$2:$E$59,3,FALSE)) -> Propósito 5: Construir Bogotá - Región con gobierno abierto, transparente y ciudadanía consciente | N103: 1782 | O103: 1 | P103: 43558926 | Q103: LAYDA MARIA ZULUAGA RIVERA | R103: Persona Natural | V103: 25000000 | X103: 0 | Y103: 0 | Z103: 25000000 | AA103: 25000000 | AB103: 2021-03-17 | AC103: 2021-03-17 | AD103: 2021-08-16 | AE103: 152 DÍAS | AF103: 0 | AG103: 0 | AN103: X | AP103: 1
A104: 92 | B104: 2021 | C104: FDLF-CD-92-2021 | D104: https://community.secop.gov.co/Public/Tendering/OpportunityDetail/Index?noticeUID=CO1.NTC.1841992&isFromPublicArea=True&isModal=true&asPopupView=true | E104: Contratos de prestación de servicios profesionales y de apoyo a la gestión | F104: Contratación directa | G104: Prestación de servicios profesionales y de apoyo a la gestión, o para la ejecución de trabajos artísticos que sólo puedan encomendarse a determinadas personas naturales; | H104: PRESTAR SERVICIOS COMO AUXILIAR QUE APOYE LA DIGITALIZACIÓN Y SUBIDA AL APLICATIVO SI ACTUA PARA EL ÁREA DE GESTIÓN POLICIVA DE LA ALCALDÍA LOCAL DE FONTIBÓN. | I104: Inversión | J104: Un nuevo Contrato Social y ambiental para la Bogotá del Siglo XXI | K104: 57 | L104: =IF(ISERROR(VLOOKUP(K104,[2]Proposito_programa!$C$2:$E$59,2,FALSE))," ",VLOOKUP(K104,[2]Proposito_programa!$C$2:$E$59,2,FALSE)) -> Gestión pública local | M104: =IF(ISERROR(VLOOKUP(K104,[2]Proposito_programa!$C$2:$E$59,3,FALSE))," ",VLOOKUP(K104,[2]Proposito_programa!$C$2:$E$59,3,FALSE)) -> Propósito 5: Construir Bogotá - Región con gobierno abierto, transparente y ciudadanía consciente | N104: 1784 | O104: 1 | P104: 51874701 | Q104: CLAUDIA TERESA MORENO BOBADILLA | R104: Persona Natural | V104: 21905010 | X104: 1 | Y104: 2758409 | Z104: 24663419 | AA104: 20444676 | AB104: 2021-03-19 | AC104: 2021-03-19 | AD104: 2022-01-21 | AE104: 274 DÍAS | AF104: 1 | AG104: 34 | AN104: X | AP104: 0.83
A105: 93 | B105: 2021 | C105: FDLF-CD-93-2021 | D105: https://community.secop.gov.co/Public/Tendering/OpportunityDetail/Index?noticeUID=CO1.NTC.1840818&isFromPublicArea=True&isModal=true&asPopupView=true | E105: Contratos de prestación de servicios profesionales y de apoyo a la gestión | F105: Contratación directa | G105: Prestación de servicios profesionales y de apoyo a la gestión, o para la ejecución de trabajos artísticos que sólo puedan encomendarse a determinadas personas naturales; | H105: PRESTAR SERVICIOS PARA APOYAR ADMINISTRATIVA Y ASISTENCIALMENTE AL ÁREA DE GESTIÓN POLICIVA DE LA LOCALIDAD | I105: Inversión | J105: Un nuevo Contrato Social y ambiental para la Bogotá del Siglo XXI | K105: 57 | L105: =IF(ISERROR(VLOOKUP(K105,[2]Proposito_programa!$C$2:$E$59,2,FALSE))," ",VLOOKUP(K105,[2]Proposito_programa!$C$2:$E$59,2,FALSE)) -> Gestión pública local | M105: =IF(ISERROR(VLOOKUP(K105,[2]Proposito_programa!$C$2:$E$59,3,FALSE))," ",VLOOKUP(K105,[2]Proposito_programa!$C$2:$E$59,3,FALSE)) -> Propósito 5: Construir Bogotá - Región con gobierno abierto, transparente y ciudadanía consciente | N105: 1784 | O105: 1 | P105: 1016019536 | Q105: INGREE YOMARA DELGADO ARIZA | R105: Persona Natural | V105: 21905010 | X105: 1 | Y105: 2433890 | Z105: 24338900 | AA105: 20688065 | AB105: 2021-03-16 | AC105: 2021-03-16 | AD105: 2022-01-15 | AE105: 274 DÍAS | AF105: 1 | AG105: 30 | AN105: X | AP105: 0.85
A106: 94 | B106: 2021 | C106: FDLF-CD-94-2021 | D106: https://community.secop.gov.co/Public/Tendering/OpportunityDetail/Index?noticeUID=CO1.NTC.1845245&isFromPublicArea=True&isModal=true&asPopupView=true | E106: Contratos de prestación de servicios profesionales y de apoyo a la gestión | F106: Contratación directa | G106: Prestación de servicios profesionales y de apoyo a la gestión, o para la ejecución de trabajos artísticos que sólo puedan encomendarse a determinadas personas naturales; | H106: PRESTAR LOS SERVICIOS PROFESIONALES PARA APOYAR JURÍDICAMENTE LA EJECUCIÓN DE ACCIONES REQUERIDAS PARA DESCONGESTIONAR LA RECEPCIÓN Y RESPUESTA DE PETICIONES ALLEGADAS AL ÁREA DE GESTIÓN POLICIVA Y JURÍDICA DE LA ALCALDÍA, EN ACTUACIONES ADMINISTRATIVAS Y PRIMERA RESPUESTA DE REQUERIMIENTOS RELACIONADOS CON EL INICIO DEL PROCESO VERBAL ABREVIADO Y LAS OBJECIONES Y/O APELACIONES GENERADAS EN EL PROCESO VERBAL INMEDIATO, ANTES DE REALIZAR SU RESPECTIVO REPARTO | I106: Inversión | J106: Un nuevo Contrato Social y ambiental para la Bogotá del Siglo XXI | K106: 57 | L106: =IF(ISERROR(VLOOKUP(K106,[2]Proposito_programa!$C$2:$E$59,2,FALSE))," ",VLOOKUP(K106,[2]Proposito_programa!$C$2:$E$59,2,FALSE)) -> Gestión pública local | M106: =IF(ISERROR(VLOOKUP(K106,[2]Proposito_programa!$C$2:$E$59,3,FALSE))," ",VLOOKUP(K106,[2]Proposito_programa!$C$2:$E$59,3,FALSE)) -> Propósito 5: Construir Bogotá - Región con gobierno abierto, transparente y ciudadanía consciente | N106: 1784 | O106: 1 | P106: 1147687727 | Q106: KAREN DAYANA ANGARITA RINCON | R106: Persona Natural | V106: 38934000 | X106: 0 | Y106: 0 | Z106: 38934000 | AA106: 36771000 | AB106: 2021-03-16 | AC106: 2021-03-16 | AD106: 2021-12-15 | AE106: 274 DÍAS | AF106: 0 | AG106: 0 | AN106: X | AP106: 0.94
A107: 95 | B107: 2021 | C107: FDLF-CD-95-2021 | D107: https://community.secop.gov.co/Public/Tendering/OpportunityDetail/Index?noticeUID=CO1.NTC.1845684&isFromPublicArea=True&isModal=true&asPopupView=true | E107: Contratos de prestación de servicios profesionales y de apoyo a la gestión | F107: Contratación directa | G107: Prestación de servicios profesionales y de apoyo a la gestión, o para la ejecución de trabajos artísticos que sólo puedan encomendarse a determinadas personas naturales; | H107: PRESTAR LOS SERVICIOS PROFESIONALES PARA APOYAR JURÍDICAMENTE LA EJECUCIÓN DE ACCIONES REQUERIDAS PARA DESCONGESTIONAR LA RECEPCIÓN Y RESPUESTA DE PETICIONES ALLEGADAS AL ÁREA DE GESTIÓN POLICIVA Y JURÍDICA DE LA ALCALDÍA, EN ACTUACIONES ADMINISTRATIVAS Y PRIMERA RESPUESTA DE REQUERIMIENTOS RELACIONADOS CON EL INICIO DEL PROCESO VERBAL ABREVIADO Y LAS OBJECIONES Y/O APELACIONES GENERADAS EN EL PROCESO VERBAL INMEDIATO, ANTES DE REALIZAR SU RESPECTIVO REPARTO | I107: Inversión | J107: Un nuevo Contrato Social y ambiental para la Bogotá del Siglo XXI | K107: 57 | L107: =IF(ISERROR(VLOOKUP(K107,[2]Proposito_programa!$C$2:$E$59,2,FALSE))," ",VLOOKUP(K107,[2]Proposito_programa!$C$2:$E$59,2,FALSE)) -> Gestión pública local | M107: =IF(ISERROR(VLOOKUP(K107,[2]Proposito_programa!$C$2:$E$59,3,FALSE))," ",VLOOKUP(K107,[2]Proposito_programa!$C$2:$E$59,3,FALSE)) -> Propósito 5: Construir Bogotá - Región con gobierno abierto, transparente y ciudadanía consciente | N107: 1784 | O107: 1 | P107: 1026585989 | Q107: MARIA ALEJANDRA QUINTERO MARTINEZ | R107: Persona Natural | V107: 38934000 | X107: 1 | Y107: 4326000 | Z107: 43260000 | AA107: 36771000 | AB107: 2021-03-16 | AC107: 2021-03-16 | AD107: 2022-01-15 | AE107: 274 DÍAS | AF107: 1 | AG107: 30 | AN107: X | AP107: 0.85
A108: 96 | B108: 2021 | C108: FDLF-CD-96-2021 | D108: https://community.secop.gov.co/Public/Tendering/OpportunityDetail/Index?noticeUID=CO1.NTC.1848132&isFromPublicArea=True&isModal=true&asPopupView=true | E108: Contratos de prestación de servicios profesionales y de apoyo a la gestión | F108: Contratación directa | G108: Prestación de servicios profesionales y de apoyo a la gestión, o para la ejecución de trabajos artísticos que sólo puedan encomendarse a determinadas personas naturales; | H108: PRESTAR SERVICIOS DE APOYO AL ÁREA DE GESTIÓN DEL DESARROLLO LOCAL DE LA ALCALDÍA LOCAL DE FONTIBÓN | I108: Inversión | J108: Un nuevo Contrato Social y ambiental para la Bogotá del Siglo XXI | K108: 57 | L108: =IF(ISERROR(VLOOKUP(K108,[2]Proposito_programa!$C$2:$E$59,2,FALSE))," ",VLOOKUP(K108,[2]Proposito_programa!$C$2:$E$59,2,FALSE)) -> Gestión pública local | M108: =IF(ISERROR(VLOOKUP(K108,[2]Proposito_programa!$C$2:$E$59,3,FALSE))," ",VLOOKUP(K108,[2]Proposito_programa!$C$2:$E$59,3,FALSE)) -> Propósito 5: Construir Bogotá - Región con gobierno abierto, transparente y ciudadanía consciente | N108: 1783 | O108: 1 | P108: 80812015 | Q108: DAVID ALFONSO CORDOBA FARIETA | R108: Persona Natural | V108: 4867780 | X108: 0 | Y108: 0 | Z108: 4867780 | AA108: 2028242 | AB108: 2021-04-06 | AC108: 2021-04-06 | AD108: 2021-06-05 | AE108: 60 DÍAS | AF108: 0 | AG108: 0 | AN108: X | AP108: 0.42
A109: 97 | B109: 2021 | C109: FDLF-CD-97-2021 | D109: https://community.secop.gov.co/Public/Tendering/OpportunityDetail/Index?noticeUID=CO1.NTC.1846473&isFromPublicArea=True&isModal=true&asPopupView=true | E109: Contratos de prestación de servicios profesionales y de apoyo a la gestión | F109: Contratación directa | G109: Prestación de servicios profesionales y de apoyo a la gestión, o para la ejecución de trabajos artísticos que sólo puedan encomendarse a determinadas personas naturales; | H109: SERVICIOS PROFESIONALES PARA APOYAR LAS ACTIVIDADES PROPIAS DEL ÁREA DE GESTIÓN POLICIVA EN RELACIÓN CON LOS PROCESOS DE OBRAS, ESPACIOS PÚBLICOS Y ESTABLECIMIENTOS DE COMERCIO DE LA ALCALDÍA LOCAL DE FONTIBÓN. | I109: Inversión | J109: Un nuevo Contrato Social y ambiental para la Bogotá del Siglo XXI | K109: 57 | L109: =IF(ISERROR(VLOOKUP(K109,[2]Proposito_programa!$C$2:$E$59,2,FALSE))," ",VLOOKUP(K109,[2]Proposito_programa!$C$2:$E$59,2,FALSE)) -> Gestión pública local | M109: =IF(ISERROR(VLOOKUP(K109,[2]Proposito_programa!$C$2:$E$59,3,FALSE))," ",VLOOKUP(K109,[2]Proposito_programa!$C$2:$E$59,3,FALSE)) -> Propósito 5: Construir Bogotá - Región con gobierno abierto, transparente y ciudadanía consciente | N109: 1784 | O109: 1 | P109: 79108533 | Q109: JOSE JULIAN CARDENAS ZUÑIGA | R109: Persona Natural | V109: 54000000 | X109: 1 | Y109: 6000000 | Z109: 60000000 | AA109: 27000000 | AB109: 2021-03-16 | AC109: 2021-03-16 | AD109: 2022-01-15 | AE109: 274 DÍAS | AF109: 1 | AG109: 30 | AN109: X | AP109: 0.45
A110: 98 | B110: 2021 | C110: FDLF-CD-98-2021 | D110: https://community.secop.gov.co/Public/Tendering/OpportunityDetail/Index?noticeUID=CO1.NTC.1849710&isFromPublicArea=True&isModal=true&asPopupView=true | E110: Contratos de prestación de servicios profesionales y de apoyo a la gestión | F110: Contratación directa | G110: Prestación de servicios profesionales y de apoyo a la gestión, o para la ejecución de trabajos artísticos que sólo puedan encomendarse a determinadas personas naturales; | H110: APOYAR LA FORMULACIÓN, EJECUCIÓN, SEGUIMIENTO Y MEJORA CONTINUA DE LAS HERRAMIENTAS QUE CONFORMAN LA GESTIÓN AMBIENTAL INSTITUCIONAL DE LA ALCALDÍA LOCAL DE FONTIBÓN. | I110: Inversión | J110: Un nuevo Contrato Social y ambiental para la Bogotá del Siglo XXI | K110: 57 | L110: =IF(ISERROR(VLOOKUP(K110,[2]Proposito_programa!$C$2:$E$59,2,FALSE))," ",VLOOKUP(K110,[2]Proposito_programa!$C$2:$E$59,2,FALSE)) -> Gestión pública local | M110: =IF(ISERROR(VLOOKUP(K110,[2]Proposito_programa!$C$2:$E$59,3,FALSE))," ",VLOOKUP(K110,[2]Proposito_programa!$C$2:$E$59,3,FALSE)) -> Propósito 5: Construir Bogotá - Región con gobierno abierto, transparente y ciudadanía consciente | N110: 1783 | O110: 1 | P110: 52351073 | Q110: SANDRA MILENA CORTES PINEDA | R110: Persona Natural | V110: 44338410 | X110: 0 | Y110: 0 | Z110: =Y110+V110+W110 -> 44338410 | AA110: 40561434 | AB110: 2021-03-24 | AC110: 2021-03-24 | AD110: 2021-12-23 | AE110: 274 DÍAS | AF110: 0 | AG110: 0 | AN110: X | AP110: 0.91
A111: 99 | B111: 2021 | C111: FDLF-CD-99-2021 | D111: https://community.secop.gov.co/Public/Tendering/OpportunityDetail/Index?noticeUID=CO1.NTC.1848869&isFromPublicArea=True&isModal=true&asPopupView=true | E111: Contratos de prestación de servicios profesionales y de apoyo a la gestión | F111: Contratación directa | G111: Prestación de servicios profesionales y de apoyo a la gestión, o para la ejecución de trabajos artísticos que sólo puedan encomendarse a determinadas personas naturales; | H111: APOYAR TÉCNICAMENTE LAS DISTINTAS ETAPAS DE LOS PROCESOS DE COMPETENCIA DE LA ALCALDÍA LOCAL PARA LA DEPURACIÓN DE ACTUACIONES ADMINISTRATIVAS. | I111: Inversión | J111: Un nuevo Contrato Social y ambiental para la Bogotá del Siglo XXI | K111: 57 | L111: =IF(ISERROR(VLOOKUP(K111,[2]Proposito_programa!$C$2:$E$59,2,FALSE))," ",VLOOKUP(K111,[2]Proposito_programa!$C$2:$E$59,2,FALSE)) -> Gestión pública local | M111: =IF(ISERROR(VLOOKUP(K111,[2]Proposito_programa!$C$2:$E$59,3,FALSE))," ",VLOOKUP(K111,[2]Proposito_programa!$C$2:$E$59,3,FALSE)) -> Propósito 5: Construir Bogotá - Región con gobierno abierto, transparente y ciudadanía consciente | N111: 1784 | O111: 1 | P111: 19487206 | Q111: DARIO PLAZAS MONTAÑEZ | R111: Persona Natural | V111: 52200000 | X111: 0 | Y111: 0 | Z111: 8313333 | AA111: 8313333 | AB111: 2021-03-18 | AC111: 2021-03-18 | AD111: 2021-04-30 | AE111: 274 DÍAS | AF111: 0 | AG111: 0 | AN111: X | AP111: 0.16
A112: 100 | B112: 2021 | C112: FDLF-CD-100-2021 | D112: https://community.secop.gov.co/Public/Tendering/OpportunityDetail/Index?noticeUID=CO1.NTC.1849640&isFromPublicArea=True&isModal=true&asPopupView=true | E112: Contratos de prestación de servicios profesionales y de apoyo a la gestión | F112: Contratación directa | G112: Prestación de servicios profesionales y de apoyo a la gestión, o para la ejecución de trabajos artísticos que sólo puedan encomendarse a determinadas personas naturales; | H112: PRESTAR LOS SERVICIOS PROFESIONALES PARA APOYAR LAS ACTIVIDADES DE REACTIVACIÓN ECONÓMICA DESARROLLADAS POR LA ALCALDÍA LOCAL DE FONTIBÓN. | I112: Inversión | J112: Un nuevo Contrato Social y ambiental para la Bogotá del Siglo XXI | K112: 57 | L112: =IF(ISERROR(VLOOKUP(K112,[2]Proposito_programa!$C$2:$E$59,2,FALSE))," ",VLOOKUP(K112,[2]Proposito_programa!$C$2:$E$59,2,FALSE)) -> Gestión pública local | M112: =IF(ISERROR(VLOOKUP(K112,[2]Proposito_programa!$C$2:$E$59,3,FALSE))," ",VLOOKUP(K112,[2]Proposito_programa!$C$2:$E$59,3,FALSE)) -> Propósito 5: Construir Bogotá - Región con gobierno abierto, transparente y ciudadanía consciente | N112: 1783 | O112: 1 | P112: 1016089405 | Q112: JUAN MIGUEL RIAÑO ABRIL | R112: Persona Natural | V112: 21630000 | X112: 0 | Y112: 0 | Z112: =Y112+V112+W112 -> 21630000 | AA112: 21630000 | AB112: 2021-03-18 | AC112: 2021-03-18 | AD112: 2021-08-17 | AE112: 152 DÍAS | AF112: 0 | AG112: 0 | AN112: X | AP112: 1
A113: 101 | B113: 2021 | C113: FDLF-CD-101-2021 | D113: https://community.secop.gov.co/Public/Tendering/OpportunityDetail/Index?noticeUID=CO1.NTC.1849463&isFromPublicArea=True&isModal=true&asPopupView=true | E113: Contratos de prestación de servicios profesionales y de apoyo a la gestión | F113: Contratación directa | G113: Prestación de servicios profesionales y de apoyo a la gestión, o para la ejecución de trabajos artísticos que sólo puedan encomendarse a determinadas personas naturales; | H113: PRESTAR LOS SERVICIOS PROFESIONALES PARA APOYAR LAS ACTIVIDADES DE REACTIVACIÓN ECONÓMICA DESARROLLADAS POR LA ALCALDÍA LOCAL DE FONTIBÓN | I113: Inversión | J113: Un nuevo Contrato Social y ambiental para la Bogotá del Siglo XXI | K113: 57 | L113: =IF(ISERROR(VLOOKUP(K113,[2]Proposito_programa!$C$2:$E$59,2,FALSE))," ",VLOOKUP(K113,[2]Proposito_programa!$C$2:$E$59,2,FALSE)) -> Gestión pública local | M113: =IF(ISERROR(VLOOKUP(K113,[2]Proposito_programa!$C$2:$E$59,3,FALSE))," ",VLOOKUP(K113,[2]Proposito_programa!$C$2:$E$59,3,FALSE)) -> Propósito 5: Construir Bogotá - Región con gobierno abierto, transparente y ciudadanía consciente | N113: 1783 | O113: 1 | P113: 79128466 | Q113: WILSON EDUARDO SANCHEZ BOJACA | R113: Persona Natural | V113: 4867780 | X113: 0 | Y113: 0 | Z113: 4867780 | AA113: 4867780 | AB113: 2021-03-24 | AC113: 2021-03-24 | AD113: 2021-05-23 | AE113: 60 DÍAS | AF113: 0 | AG113: 0 | AN113: X | AP113: 1
A114: 102 | B114: 2021 | C114: FDLF-CD-102-2021 | D114: https://community.secop.gov.co/Public/Tendering/OpportunityDetail/Index?noticeUID=CO1.NTC.1849868&isFromPublicArea=True&isModal=true&asPopupView=true | E114: Contratos de prestación de servicios profesionales y de apoyo a la gestión | F114: Contratación directa | G114: Prestación de servicios profesionales y de apoyo a la gestión, o para la ejecución de trabajos artísticos que sólo puedan encomendarse a determinadas personas naturales; | H114: PRESTAR SERVICIOS PROFESIONALES PARA APOYAR EL ÁREA DE GESTIÓN DE DESARROLLO LOCAL ORIENTADO A LOS TEMAS DE EDUCACIÓN | I114: Inversión | J114: Un nuevo Contrato Social y ambiental para la Bogotá del Siglo XXI | K114: 17 | L114: =IF(ISERROR(VLOOKUP(K114,[2]Proposito_programa!$C$2:$E$59,2,FALSE))," ",VLOOKUP(K114,[2]Proposito_programa!$C$2:$E$59,2,FALSE)) -> Jóvenes con capacidades: Proyecto de vida para la ciudadanía, la innovación y el trabajo del siglo XXI | M114: =IF(ISERROR(VLOOKUP(K114,[2]Proposito_programa!$C$2:$E$59,3,FALSE))," ",VLOOKUP(K114,[2]Proposito_programa!$C$2:$E$59,3,FALSE)) -> Propósito 1: Hacer un nuevo contrato social para incrementar la inclusión social, productiva y política | N114: 1755 | O114: 1 | P114: 80803689 | Q114: HOSMAN YESID HUERTAS QUIROGA | R114: Persona Natural | V114: 59247000 | X114: 1 | Y114: 6802433 | Z114: 66049433 | AA114: 55297200 | AB114: 2021-03-19 | AC114: 2021-03-19 | AD114: 2022-01-19 | AE114: 274 DÍAS | AF114: 1 | AG114: 31 | AN114: X | AP114: 0.84
A115: 103 | B115: 2021 | C115: FDLF-CD-103-2021 | D115: https://community.secop.gov.co/Public/Tendering/OpportunityDetail/Index?noticeUID=CO1.NTC.1852464&isFromPublicArea=True&isModal=true&asPopupView=true | E115: Contratos de prestación de servicios profesionales y de apoyo a la gestión | F115: Contratación directa | G115: Prestación de servicios profesionales y de apoyo a la gestión, o para la ejecución de trabajos artísticos que sólo puedan encomendarse a determinadas personas naturales; | H115: PRESTAR SERVICIOS PROFESIONALES PARA APOYAR EL ÁREA DE GESTIÓN DE DESARROLLO LOCAL ORIENTADO A LOS TEMAS DE EDUCACIÓN | I115: Inversión | J115: Un nuevo Contrato Social y ambiental para la Bogotá del Siglo XXI | K115: 17 | L115: =IF(ISERROR(VLOOKUP(K115,[2]Proposito_programa!$C$2:$E$59,2,FALSE))," ",VLOOKUP(K115,[2]Proposito_programa!$C$2:$E$59,2,FALSE)) -> Jóvenes con capacidades: Proyecto de vida para la ciudadanía, la innovación y el trabajo del siglo XXI | M115: =IF(ISERROR(VLOOKUP(K115,[2]Proposito_programa!$C$2:$E$59,3,FALSE))," ",VLOOKUP(K115,[2]Proposito_programa!$C$2:$E$59,3,FALSE)) -> Propósito 1: Hacer un nuevo contrato social para incrementar la inclusión social, productiva y política | N115: 1755 | O115: 1 | P115: 53031238 | Q115: JENNY PAOLA MALAGON BARAHONA | R115: Persona Natural | V115: 59247000 | X115: 1 | Y115: 6583000 | Z115: 65830000 | AA115: 55297200 | AB115: 2021-03-19 | AC115: 2021-03-19 | AD115: 2022-01-18 | AE115: 274 DÍAS | AF115: 1 | AG115: 30 | AN115: X | AP115: 0.84
A116: 104 | B116: 2021 | C116: FDLF-CD-104-2021 | D116: https://community.secop.gov.co/Public/Tendering/OpportunityDetail/Index?noticeUID=CO1.NTC.1853462&isFromPublicArea=True&isModal=true&asPopupView=true | E116: Contratos de prestación de servicios profesionales y de apoyo a la gestión | F116: Contratación directa | G116: Prestación de servicios profesionales y de apoyo a la gestión, o para la ejecución de trabajos artísticos que sólo puedan encomendarse a determinadas personas naturales; | H116: APOYAR EL CUBRIMIENTO DE LAS ACTIVIDADES, CRONOGRAMAS Y AGENDA DE LA ALCALDÍA LOCAL A NIVEL INTERNO Y EXTERNO, ASÍ COMO LA GENERACIÓN DE CONTENIDOS PERIODÍSTICOS | I116: Inversión | J116: Un nuevo Contrato Social y ambiental para la Bogotá del Siglo XXI | K116: 57 | L116: =IF(ISERROR(VLOOKUP(K116,[2]Proposito_programa!$C$2:$E$59,2,FALSE))," ",VLOOKUP(K116,[2]Proposito_programa!$C$2:$E$59,2,FALSE)) -> Gestión pública local | M116: =IF(ISERROR(VLOOKUP(K116,[2]Proposito_programa!$C$2:$E$59,3,FALSE))," ",VLOOKUP(K116,[2]Proposito_programa!$C$2:$E$59,3,FALSE)) -> Propósito 5: Construir Bogotá - Región con gobierno abierto, transparente y ciudadanía consciente | N116: 1783 | O116: 1 | P116: 53095880 | Q116: SANDRA STELLA PINEDO ARRIETA | R116: Persona Natural | V116: 21630000 | X116: 0 | Y116: 0 | Z116: 21630000 | AA116: 21630000 | AB116: 2021-03-18 | AC116: 2021-03-18 | AD116: 2021-08-17 | AE116: 152 DÍAS | AF116: 0 | AG116: 0 | AN116: X | AP116: 1
A117: 105 | B117: 2021 | C117: FDLF-CD-105-2021 | D117: https://community.secop.gov.co/Public/Tendering/OpportunityDetail/Index?noticeUID=CO1.NTC.1853581&isFromPublicArea=True&isModal=true&asPopupView=true | E117: Contratos de prestación de servicios profesionales y de apoyo a la gestión | F117: Contratación directa | G117: Prestación de servicios profesionales y de apoyo a la gestión, o para la ejecución de trabajos artísticos que sólo puedan encomendarse a determinadas personas naturales; | H117: PRESTAR SERVICIOS PROFESIONALES COMO ABOGADO PARA BRINDAR APOYO JURÍDICO EN EL TRÁMITE Y DESARROLLO DE LOS DESPACHOS COMISORIOS QUE POR COMPETENCIA CORRESPONDEN A LA ALCALDÍA LOCAL DE FONTIBÓN | I117: Inversión | J117: Un nuevo Contrato Social y ambiental para la Bogotá del Siglo XXI | K117: 57 | L117: =IF(ISERROR(VLOOKUP(K117,[2]Proposito_programa!$C$2:$E$59,2,FALSE))," ",VLOOKUP(K117,[2]Proposito_programa!$C$2:$E$59,2,FALSE)) -> Gestión pública local | M117: =IF(ISERROR(VLOOKUP(K117,[2]Proposito_programa!$C$2:$E$59,3,FALSE))," ",VLOOKUP(K117,[2]Proposito_programa!$C$2:$E$59,3,FALSE)) -> Propósito 5: Construir Bogotá - Región con gobierno abierto, transparente y ciudadanía consciente | N117: 1783 | O117: 1 | P117: 80228231 | Q117: CRHISTIAN ANDRES PINTO GONZALEZ | R117: Persona Natural | V117: 52200000 | X117: 1 | Y117: 3866667 | Z117: 56066667 | AA117: 48913333 | AB117: 2021-03-18 | AC117: 2021-03-18 | AD117: 2022-01-18 | AE117: 274 DÍAS | AF117: 1 | AG117: 20 | AN117: X | AP117: 0.87
A118: 106 | B118: 2021 | C118: FDLF-CD-106-2021 | D118: https://community.secop.gov.co/Public/Tendering/OpportunityDetail/Index?noticeUID=CO1.NTC.1855850&isFromPublicArea=True&isModal=true&asPopupView=true | E118: Contratos de prestación de servicios profesionales y de apoyo a la gestión | F118: Contratación directa | G118: Prestación de servicios profesionales y de apoyo a la gestión, o para la ejecución de trabajos artísticos que sólo puedan encomendarse a determinadas personas naturales; | H118: PRESTAR SERVICIOS DE APOYO AL ÁREA DE GESTIÓN DE DESARROLLO LOCAL, DE LA ALCALDÍA LOCAL DE FONTIBÓN EN LA RECEPCIÓN DE CORRESPONDENCIA INTERNA Y EXTERNA, ASÍ COMO LA ASIGNACIÓN INTERNA DE LAS SOLICITUDES Y/O CORRESPONDENCIA RECIBIDA | I118: Inversión | J118: Un nuevo Contrato Social y ambiental para la Bogotá del Siglo XXI | K118: 57 | L118: =IF(ISERROR(VLOOKUP(K118,[2]Proposito_programa!$C$2:$E$59,2,FALSE))," ",VLOOKUP(K118,[2]Proposito_programa!$C$2:$E$59,2,FALSE)) -> Gestión pública local | M118: =IF(ISERROR(VLOOKUP(K118,[2]Proposito_programa!$C$2:$E$59,3,FALSE))," ",VLOOKUP(K118,[2]Proposito_programa!$C$2:$E$59,3,FALSE)) -> Propósito 5: Construir Bogotá - Región con gobierno abierto, transparente y ciudadanía consciente | N118: 1783 | O118: 1 | P118: 1007703316 | Q118: JORGE ALEXANDER LOPEZ UMBARILA | R118: Persona Natural | V118: 21905010 | X118: 1 | Y118: 2028242 | Z118: 23933252 | AA118: 19957898 | AB118: 2021-03-25 | AC118: 2021-03-25 | AD118: 2022-01-19 | AE118: 274 DÍAS | AF118: 1 | AG118: 25 | AN118: X | AP118: 0.83
A119: 107 | B119: 2021 | C119: FDLF-CD-107-2021 | D119: https://community.secop.gov.co/Public/Tendering/OpportunityDetail/Index?noticeUID=CO1.NTC.1855276&isFromPublicArea=True&isModal=true&asPopupView=true | E119: Contratos de prestación de servicios profesionales y de apoyo a la gestión | F119: Contratación directa | G119: Prestación de servicios profesionales y de apoyo a la gestión, o para la ejecución de trabajos artísticos que sólo puedan encomendarse a determinadas personas naturales; | H119: PRESTAR SERVICIOS PROFESIONALES PARA APOYAR AL ÁREA DE GESTIÓN DE DESARROLLO LOCAL EN LA PROMOCIÓN, ACOMPAÑAMIENTO Y ATENCIÓN DE LAS INSTANCIAS DE PARTICIPACIÓN LOCALES, ASÍ COMO LOS PROCESOS COMUNITARIOS EN LA LOCALIDAD | I119: Inversión | J119: Un nuevo Contrato Social y ambiental para la Bogotá del Siglo XXI | K119: 55 | L119: =IF(ISERROR(VLOOKUP(K119,[2]Proposito_programa!$C$2:$E$59,2,FALSE))," ",VLOOKUP(K119,[2]Proposito_programa!$C$2:$E$59,2,FALSE)) -> Fortalecimiento de cultura ciudadana y su institucionalidad | M119: =IF(ISERROR(VLOOKUP(K119,[2]Proposito_programa!$C$2:$E$59,3,FALSE))," ",VLOOKUP(K119,[2]Proposito_programa!$C$2:$E$59,3,FALSE)) -> Propósito 5: Construir Bogotá - Región con gobierno abierto, transparente y ciudadanía consciente | N119: 1782 | O119: 1 | P119: 1032496258 | Q119: JULIAN OSORIO ARROYO | R119: Persona Natural | V119: 39249000 | X119: 1 | Y119: 4651733 | Z119: 43900733 | AA119: 36050933 | AB119: 2021-03-23 | AC119: 2021-03-23 | AD119: 2022-01-24 | AE119: 274 DÍAS | AF119: 1 | AG119: 32 | AN119: X | AP119: 0.82
A120: 108 | B120: 2021 | C120: FDLF-CD-108-2021 | D120: https://community.secop.gov.co/Public/Tendering/OpportunityDetail/Index?noticeUID=CO1.NTC.1858559&isFromPublicArea=True&isModal=true&asPopupView=true | E120: Contratos de prestación de servicios profesionales y de apoyo a la gestión | F120: Contratación directa | G120: Prestación de servicios profesionales y de apoyo a la gestión, o para la ejecución de trabajos artísticos que sólo puedan encomendarse a determinadas personas naturales; | H120: PRESTAR SERVICIOS PROFESIONALES PARA BRINDAR APOYO AL ALMACÉN EN LA PROYECCIÓN, SEGUIMIENTO Y APOYO A LA SUPERVISIÓN DE COMODATOS | I120: Inversión | J120: Un nuevo Contrato Social y ambiental para la Bogotá del Siglo XXI | K120: 57 | L120: =IF(ISERROR(VLOOKUP(K120,[2]Proposito_programa!$C$2:$E$59,2,FALSE))," ",VLOOKUP(K120,[2]Proposito_programa!$C$2:$E$59,2,FALSE)) -> Gestión pública local | M120: =IF(ISERROR(VLOOKUP(K120,[2]Proposito_programa!$C$2:$E$59,3,FALSE))," ",VLOOKUP(K120,[2]Proposito_programa!$C$2:$E$59,3,FALSE)) -> Propósito 5: Construir Bogotá - Región con gobierno abierto, transparente y ciudadanía consciente | N120: 1783 | O120: 1 | P120: 1016055959 | Q120: JAIR ANDRES ACEVEDO RINCON | R120: Persona Natural | V120: 38934000 | X120: 1 | Y120: 2451400 | Z120: 41385400 | AA120: 31291400 | AB120: 2021-03-24 | AC120: 2021-03-24 | AD120: 2022-01-10 | AE120: 274 DÍAS | AF120: 1 | AG120: 17 | AN120: X | AP120: 0.76
A121: 109 | B121: 2021 | C121: FDLF-CD-109-2021 | D121: https://community.secop.gov.co/Public/Tendering/OpportunityDetail/Index?noticeUID=CO1.NTC.1865310&isFromPublicArea=True&isModal=true&asPopupView=true | E121: Contratos de prestación de servicios profesionales y de apoyo a la gestión | F121: Contratación directa | G121: Prestación de servicios profesionales y de apoyo a la gestión, o para la ejecución de trabajos artísticos que sólo puedan encomendarse a determinadas personas naturales; | H121: PRESTAR LOS SERVICIOS PROFESIONALES A LA ALCALDÍA LOCAL DE FONTIBÓN, PARA LA EJECUCIÓN DE LAS ACTIVIDADES Y PROCESOS ADMINISTRATIVOS Y DE CAMPO RELACIONADOS CON LA REACTIVACIÓN ECONÓMICA EN EL MARCO DE LAS NECESIDADES DEL FONDO DE DESARROLLO LOCAL A CAUSA DE LA EMERGENCIA PRESENTADA POR EL COVID 19. | I121: Inversión | J121: Un nuevo Contrato Social y ambiental para la Bogotá del Siglo XXI | K121: 57 | L121: =IF(ISERROR(VLOOKUP(K121,[2]Proposito_programa!$C$2:$E$59,2,FALSE))," ",VLOOKUP(K121,[2]Proposito_programa!$C$2:$E$59,2,FALSE)) -> Gestión pública local | M121: =IF(ISERROR(VLOOKUP(K121,[2]Proposito_programa!$C$2:$E$59,3,FALSE))," ",VLOOKUP(K121,[2]Proposito_programa!$C$2:$E$59,3,FALSE)) -> Propósito 5: Construir Bogotá - Región con gobierno abierto, transparente y ciudadanía consciente | N121: 1783 | O121: 1 | P121: 78038616 | Q121: OSCAR IGNACIO SALABARRIA BEDOYA | R121: Persona Natural | V121: 24632350 | X121: 0 | Y121: 0 | Z121: 24632450 | AA121: 24632450 | AB121: 2021-03-25 | AC121: 2021-03-25 | AD121: 2021-08-24 | AE121: 152 DÍAS | AF121: 0 | AG121: 0 | AN121: X | AP121: 1
A122: 110 | B122: 2021 | C122: FDLF-CD-110-2021 | D122: https://community.secop.gov.co/Public/Tendering/OpportunityDetail/Index?noticeUID=CO1.NTC.1860283&isFromPublicArea=True&isModal=true&asPopupView=true | E122: Contratos de prestación de servicios profesionales y de apoyo a la gestión | F122: Contratación directa | G122: Prestación de servicios profesionales y de apoyo a la gestión, o para la ejecución de trabajos artísticos que sólo puedan encomendarse a determinadas personas naturales; | H122: APOYAR EL ALCALDE LOCAL EN LA GESTIÓN DE LOS ASUNTOS RELACIONADOS CON SEGURIDAD CIUDADANA, CONVIVENCIA Y PREVENCIÓN DE CONFLICTIVIDADES, VIOLENCIAS Y DELITOS EN LA LOCALIDAD, DE CONFORMIDAD CON EL MARCO NORMATIVO APLICABLE EN LA MATERIA. | I122: Inversión | J122: Un nuevo Contrato Social y ambiental para la Bogotá del Siglo XXI | K122: 48 | L122: =IF(ISERROR(VLOOKUP(K122,[2]Proposito_programa!$C$2:$E$59,2,FALSE))," ",VLOOKUP(K122,[2]Proposito_programa!$C$2:$E$59,2,FALSE)) -> Plataforma institucional para la seguridad y justicia | M122: =IF(ISERROR(VLOOKUP(K122,[2]Proposito_programa!$C$2:$E$59,3,FALSE))," ",VLOOKUP(K122,[2]Proposito_programa!$C$2:$E$59,3,FALSE)) -> Propósito 3: Inspirar confianza y legitimidad para vivir sin miedo y ser epicentro de cultura ciudadana, paz y reconciliación | N122: 2007 | O122: 1 | P122: 1019045244 | Q122: JULIETH JOHANA GARCIA LOPEZ | R122: Persona Natural | V122: 25000000 | X122: 0 | Y122: 0 | Z122: =Y122+V122+W122 -> 25000000 | AA122: 21166667 | AB122: 2021-03-24 | AC122: 2021-03-24 | AD122: 2021-08-23 | AE122: 152 DÍAS | AF122: 0 | AG122: 0 | AN122: X | AP122: 0.85
A123: 111 | B123: 2021 | C123: FDLF-CD-111-2021 | D123: https://community.secop.gov.co/Public/Tendering/OpportunityDetail/Index?noticeUID=CO1.NTC.1860246&isFromPublicArea=True&isModal=true&asPopupView=true | E123: Contratos de prestación de servicios profesionales y de apoyo a la gestión | F123: Contratación directa | G123: Prestación de servicios profesionales y de apoyo a la gestión, o para la ejecución de trabajos artísticos que sólo puedan encomendarse a determinadas personas naturales; | H123: PRESTAR LOS SERVICIOS PROFESIONALES PARA APOYAR JURÍDICAMENTE LA EJECUCIÓN DE ACCIONES REQUERIDAS PARA DESCONGESTIONAR LA RECEPCIÓN Y RESPUESTA DE PETICIONES ALLEGADAS AL ÁREA DE GESTIÓN POLICIVA Y JURÍDICA DE LA ALCALDÍA, EN ACTUACIONES ADMINISTRATIVAS Y PRIMERA RESPUESTA DE REQUERIMIENTOS RELACIONADOS CON EL INICIO DEL PROCESO VERBAL ABREVIADO Y LAS OBJECIONES Y/O APELACIONES GENERADAS EN EL PROCESO VERBAL INMEDIATO, ANTES DE REALIZAR SU RESPECTIVO REPARTO. | I123: Inversión | J123: Un nuevo Contrato Social y ambiental para la Bogotá del Siglo XXI | K123: 57 | L123: =IF(ISERROR(VLOOKUP(K123,[2]Proposito_programa!$C$2:$E$59,2,FALSE))," ",VLOOKUP(K123,[2]Proposito_programa!$C$2:$E$59,2,FALSE)) -> Gestión pública local | M123: =IF(ISERROR(VLOOKUP(K123,[2]Proposito_programa!$C$2:$E$59,3,FALSE))," ",VLOOKUP(K123,[2]Proposito_programa!$C$2:$E$59,3,FALSE)) -> Propósito 5: Construir Bogotá - Región con gobierno abierto, transparente y ciudadanía consciente | N123: 1784 | O123: 1 | P123: 52783302 | Q123: CLAUDIA PATRICIA VILLAMIZAR ALCALA | R123: Persona Natural | S123: - | T123: - | V123: 38934000 | X123: 1 | Y123: 3172400 | Z123: 42106400 | AA123: 35329000 | AB123: 2021-03-24 | AC123: 2021-03-24 | AD123: 2022-01-15 | AE123: 274 DÍAS | AF123: 1 | AG123: 22 | AH123: 39745121 | AI123: SONIA LORENA MENDOZA BUSTOS | AJ123: 2021-08-02 | AK123: 20332200 | AN123: X | AP123: 0
A124: 112 | B124: 2021 | C124: FDLF-CD-112-2021 | D124: https://community.secop.gov.co/Public/Tendering/OpportunityDetail/Index?noticeUID=CO1.NTC.1868088&isFromPublicArea=True&isModal=true&asPopupView=true | E124: Contratos de prestación de servicios profesionales y de apoyo a la gestión | F124: Contratación directa | G124: Prestación de servicios profesionales y de apoyo a la gestión, o para la ejecución de trabajos artísticos que sólo puedan encomendarse a determinadas personas naturales; | H124: PRESTAR SERVICIOS PROFESIONALES PARA APOYAR EL ÁREA DE GESTIÓN DE DESARROLLO LOCAL ORIENTADO A LOS TEMAS DEL DESARROLLO SOCIAL, CULTURAL Y DE LA ECONOMÍA LOCAL | I124: Inversión | J124: Un nuevo Contrato Social y ambiental para la Bogotá del Siglo XXI | K124: 6 | L124: =IF(ISERROR(VLOOKUP(K124,[2]Proposito_programa!$C$2:$E$59,2,FALSE))," ",VLOOKUP(K124,[2]Proposito_programa!$C$2:$E$59,2,FALSE)) -> Sistema Distrital de Cuidado | M124: =IF(ISERROR(VLOOKUP(K124,[2]Proposito_programa!$C$2:$E$59,3,FALSE))," ",VLOOKUP(K124,[2]Proposito_programa!$C$2:$E$59,3,FALSE)) -> Propósito 1: Hacer un nuevo contrato social para incrementar la inclusión social, productiva y política | N124: 1761 | O124: 1 | P124: 1121820333 | Q124: JESSIKA LORENA BECERRA MORALES | R124: Persona Natural | S124: - | T124: - | V124: 21805000 | X124: 0 | Y124: 0 | Z124: 21805000 | AA124: 21805000 | AB124: 2021-03-26 | AC124: 2021-03-26 | AD124: 2021-08-25 | AE124: 152 DÍAS | AF124: 0 | AG124: 0 | AN124: X | AP124: 1
A125: 114 | B125: 2021 | C125: FDLF-CD-114-2021 | D125: https://community.secop.gov.co/Public/Tendering/OpportunityDetail/Index?noticeUID=CO1.NTC.1869031&isFromPublicArea=True&isModal=true&asPopupView=true | E125: Contratos de prestación de servicios profesionales y de apoyo a la gestión | F125: Contratación directa | G125: Prestación de servicios profesionales y de apoyo a la gestión, o para la ejecución de trabajos artísticos que sólo puedan encomendarse a determinadas personas naturales; | H125: PRESTAR SERVICIOS DE APOYO PROFESIONAL AL ÁREA DE GESTIÓN DE DESARROLLO LOCAL DE FONTIBÓN ORIENTADO A LOS TEMAS DEPORTIVOS Y RECREATIVOS | I125: Inversión | J125: Un nuevo Contrato Social y ambiental para la Bogotá del Siglo XXI | K125: 20 | L125: =IF(ISERROR(VLOOKUP(K125,[2]Proposito_programa!$C$2:$E$59,2,FALSE))," ",VLOOKUP(K125,[2]Proposito_programa!$C$2:$E$59,2,FALSE)) -> Bogotá, referente en cultura, deporte, recreación y actividad física, con parques para el desarrollo y la salud | M125: =IF(ISERROR(VLOOKUP(K125,[2]Proposito_programa!$C$2:$E$59,3,FALSE))," ",VLOOKUP(K125,[2]Proposito_programa!$C$2:$E$59,3,FALSE)) -> Propósito 1: Hacer un nuevo contrato social para incrementar la inclusión social, productiva y política | N125: 1757 | O125: 1 | P125: 1026585031 | Q125: LEONARDO NARVAEZ PUERTA | R125: Persona Natural | S125: - | T125: - | V125: 39249000 | X125: 1 | Y125: 3634167 | Z125: 42883167 | AA125: 35760200 | AB125: 2021-03-25 | AC125: 2021-03-25 | AD125: 2022-01-19 | AE125: 274 DÍAS | AF125: 1 | AG125: 25 | AN125: X | AP125: 0.83
A126: 115 | B126: 2021 | C126: FDLF-CD-115-2021 | D126: https://community.secop.gov.co/Public/Tendering/OpportunityDetail/Index?noticeUID=CO1.NTC.1873697&isFromPublicArea=True&isModal=true&asPopupView=true | E126: Contratos de prestación de servicios profesionales y de apoyo a la gestión | F126: Contratación directa | G126: Prestación de servicios profesionales y de apoyo a la gestión, o para la ejecución de trabajos artísticos que sólo puedan encomendarse a determinadas personas naturales; | H126: APOYAR TÉCNICAMENTE LAS DISTINTAS ETAPAS DE LOS PROCESOS DE COMPETENCIA DE LA ALCALDÍA LOCAL PARA LA DEPURACIÓN DE ACTUACIONES ADMINISTRATIVAS | I126: Inversión | J126: Un nuevo Contrato Social y ambiental para la Bogotá del Siglo XXI | K126: 57 | L126: =IF(ISERROR(VLOOKUP(K126,[2]Proposito_programa!$C$2:$E$59,2,FALSE))," ",VLOOKUP(K126,[2]Proposito_programa!$C$2:$E$59,2,FALSE)) -> Gestión pública local | M126: =IF(ISERROR(VLOOKUP(K126,[2]Proposito_programa!$C$2:$E$59,3,FALSE))," ",VLOOKUP(K126,[2]Proposito_programa!$C$2:$E$59,3,FALSE)) -> Propósito 5: Construir Bogotá - Región con gobierno abierto, transparente y ciudadanía consciente | N126: 1784 | O126: 1 | P126: 39536092 | Q126: ANA YANET LEGUIZAMON FANDIÑO | R126: Persona Natural | S126: - | T126: - | V126: 52200000 | X126: 1 | Y126: 3866667 | Z126: 56066667 | AA126: 47366667 | AB126: 2021-03-26 | AC126: 2021-03-26 | AD126: 2022-01-15 | AE126: 274 DÍAS | AF126: 1 | AG126: 20 | AN126: X | AP126: 0.84
A127: 116 | B127: 2021 | C127: FDLF-CD-116-2021 | D127: https://community.secop.gov.co/Public/Tendering/OpportunityDetail/Index?noticeUID=CO1.NTC.1873843&isFromPublicArea=True&isModal=true&asPopupView=true | E127: Contratos de prestación de servicios profesionales y de apoyo a la gestión | F127: Contratación directa | G127: Prestación de servicios profesionales y de apoyo a la gestión, o para la ejecución de trabajos artísticos que sólo puedan encomendarse a determinadas personas naturales; | H127: SERVICIOS PROFESIONALES PARA LA OPERACIÓN, PRESTACIÓN, SEGUIMIENTO Y CUMPLIMIENTO DE LOS PROCEDIMIENTOS ADMINISTRATIVOS, OPERATIVOS Y PROGRAMÁTICOS DEL SERVICIO APOYO ECONÓMICO TIPO C, QUE CONTRIBUYAN A LA GARANTÍA DE LOS DERECHOS DE LA POBLACIÓN MAYOR EN EL MARCO DE LA POLÍTICA PÚBLICA SOCIAL PARA EL ENVEJECIMIENTO Y LA VEJEZ EN EL DISTRITO CAPITAL A CARGO DE LA ALCALDÍA LOCAL | I127: Inversión | J127: Un nuevo Contrato Social y ambiental para la Bogotá del Siglo XXI | K127: 1 | L127: =IF(ISERROR(VLOOKUP(K127,[2]Proposito_programa!$C$2:$E$59,2,FALSE))," ",VLOOKUP(K127,[2]Proposito_programa!$C$2:$E$59,2,FALSE)) -> Subsidios y transferencias para la equidad | M127: =IF(ISERROR(VLOOKUP(K127,[2]Proposito_programa!$C$2:$E$59,3,FALSE))," ",VLOOKUP(K127,[2]Proposito_programa!$C$2:$E$59,3,FALSE)) -> Propósito 1: Hacer un nuevo contrato social para incrementar la inclusión social, productiva y política | N127: 1752 | O127: 1 | P127: 39750866 | Q127: EDITH LUCIA QUECANO CARDENAS | R127: Persona Natural | S127: - | T127: - | V127: 45159491 | X127: 1 | Y127: 4433841 | Z127: 49593332 | AA127: 40233002 | AB127: 2021-03-26 | AC127: 2021-03-26 | AD127: 2022-01-24 | AE127: 279 DÍAS | AF127: 1 | AG127: 27 | AN127: X | AP127: 0.81
A128: 117 | B128: 2021 | C128: FDLF-CD-117-2021 | D128: https://community.secop.gov.co/Public/Tendering/OpportunityDetail/Index?noticeUID=CO1.NTC.1874892&isFromPublicArea=True&isModal=true&asPopupView=true | E128: Contratos de prestación de servicios profesionales y de apoyo a la gestión | F128: Contratación directa | G128: Prestación de servicios profesionales y de apoyo a la gestión, o para la ejecución de trabajos artísticos que sólo puedan encomendarse a determinadas personas naturales; | H128: PRESTAR SERVICIOS PROFESIONALES PARA APOYAR AL ÁREA DE GESTIÓN DE DESARROLLO LOCAL EN LA PROMOCIÓN, ACOMPAÑAMIENTO Y ATENCIÓN DE LAS INSTANCIAS DE PARTICIPACIÓN LOCALES, ASÍ COMO EN LA FORMULACIÓN Y SEGUIMIENTO DE LOS PROYECTOS DE INVERSIÓN RELACIONADOS. | I128: Inversión | J128: Un nuevo Contrato Social y ambiental para la Bogotá del Siglo XXI | K128: 55 | L128: =IF(ISERROR(VLOOKUP(K128,[2]Proposito_programa!$C$2:$E$59,2,FALSE))," ",VLOOKUP(K128,[2]Proposito_programa!$C$2:$E$59,2,FALSE)) -> Fortalecimiento de cultura ciudadana y su institucionalidad | M128: =IF(ISERROR(VLOOKUP(K128,[2]Proposito_programa!$C$2:$E$59,3,FALSE))," ",VLOOKUP(K128,[2]Proposito_programa!$C$2:$E$59,3,FALSE)) -> Propósito 5: Construir Bogotá - Región con gobierno abierto, transparente y ciudadanía consciente | N128: 1782 | O128: 1 | P128: 1121908758 | Q128: DANIEL FERNANDO BELTRAN | R128: Persona Natural | S128: - | T128: - | V128: 39249000 | X128: 1 | Y128: 4361000 | Z128: 43610000 | AA128: 35178733 | AB128: 2021-03-29 | AC128: 2021-03-29 | AD128: 2022-01-24 | AE128: 274 DÍAS | AF128: 1 | AG128: 30 | AH128: 1030654701 | AI128: MARIA PAULA MALDONADO ROLDAN | AJ128: 2021-06-03 | AK128: 29800167 | AN128: X | AP128: 0
A129: 118 | B129: 2021 | C129: FDLF-CD-118-2021 | D129: https://community.secop.gov.co/Public/Tendering/OpportunityDetail/Index?noticeUID=CO1.NTC.1892854&isFromPublicArea=True&isModal=False | E129: Contratos de prestación de servicios profesionales y de apoyo a la gestión | F129: Contratación directa | G129: Prestación de servicios profesionales y de apoyo a la gestión, o para la ejecución de trabajos artísticos que sólo puedan encomendarse a determinadas personas naturales; | H129: PRESTAR SERVICIOS PROFESIONALES PARA APOYAR TÉCNICAMENTE LAS DISTINTAS ETAPAS DE LOS PROCESOS DE COMPETENCIA DE LAS INSPECCIONES DE POLICÍA DE LA LOCALIDAD, SEGÚN REPARTO. | I129: Inversión | J129: Un nuevo Contrato Social y ambiental para la Bogotá del Siglo XXI | K129: 57 | L129: =IF(ISERROR(VLOOKUP(K129,[2]Proposito_programa!$C$2:$E$59,2,FALSE))," ",VLOOKUP(K129,[2]Proposito_programa!$C$2:$E$59,2,FALSE)) -> Gestión pública local | M129: =IF(ISERROR(VLOOKUP(K129,[2]Proposito_programa!$C$2:$E$59,3,FALSE))," ",VLOOKUP(K129,[2]Proposito_programa!$C$2:$E$59,3,FALSE)) -> Propósito 5: Construir Bogotá - Región con gobierno abierto, transparente y ciudadanía consciente | N129: 1784 | O129: 1 | P129: 1013601563 | Q129: JENNY ANGELICA MALAGON CORTES | R129: Persona Natural | S129: - | T129: - | V129: 50460000 | X129: 1 | Y129: 5026667 | Z129: 55486667 | AA129: 39246667 | AB129: 2021-04-08 | AC129: 2021-04-08 | AD129: 2021-12-28 | AE129: 274 DÍAS | AF129: 0 | AG129: 0 | AN129: X | AP129: 0.71
A130: 119 | B130: 2021 | C130: FDLF-CD-119-2021 | D130: https://community.secop.gov.co/Public/Tendering/OpportunityDetail/Index?noticeUID=CO1.NTC.1880228&isFromPublicArea=True&isModal=true&asPopupView=true | E130: Contratos de prestación de servicios profesionales y de apoyo a la gestión | F130: Contratación directa | G130: Prestación de servicios profesionales y de apoyo a la gestión, o para la ejecución de trabajos artísticos que sólo puedan encomendarse a determinadas personas naturales; | H130: PRESTAR SERVICIOS DE APOYO AL ÁREA DE GESTIÓN DEL DESARROLLO LOCAL DE LA ALCALDÍA LOCAL DE FONTIBÓN. | I130: Inversión | J130: Un nuevo Contrato Social y ambiental para la Bogotá del Siglo XXI | K130: 57 | L130: =IF(ISERROR(VLOOKUP(K130,[2]Proposito_programa!$C$2:$E$59,2,FALSE))," ",VLOOKUP(K130,[2]Proposito_programa!$C$2:$E$59,2,FALSE)) -> Gestión pública local | M130: =IF(ISERROR(VLOOKUP(K130,[2]Proposito_programa!$C$2:$E$59,3,FALSE))," ",VLOOKUP(K130,[2]Proposito_programa!$C$2:$E$59,3,FALSE)) -> Propósito 5: Construir Bogotá - Región con gobierno abierto, transparente y ciudadanía consciente | N130: 1783 | O130: 1 | P130: 79112311 | Q130: PEDRO HERNANDO VARGAS ZAPATA | R130: Persona Natural | S130: - | T130: - | V130: 4867780 | X130: 0 | Y130: 0 | Z130: 4867780 | AA130: $ - | AB130: 2021-04-06 | AC130: 2021-04-06 | AD130: 2021-06-05 | AE130: 60 DÍAS | AF130: 0 | AG130: 0 | AN130: X | AP130: 0
A131: 120 | B131: 2021 | C131: FDLF-CD-120-2021 | D131: https://community.secop.gov.co/Public/Tendering/OpportunityDetail/Index?noticeUID=CO1.NTC.1883438&isFromPublicArea=True&isModal=true&asPopupView=true | E131: Contratos de prestación de servicios profesionales y de apoyo a la gestión | F131: Contratación directa | G131: Prestación de servicios profesionales y de apoyo a la gestión, o para la ejecución de trabajos artísticos que sólo puedan encomendarse a determinadas personas naturales; | H131: PRESTAR SERVICIOS DE APOYO OPERATIVO PARA LAS ACTIVIDADES RELACIONADAS CON EL MANTENIMIENTO Y REPARACIONES MENORES DE LA SEDE Y DEMÁS DEPENDENCIAS DE LA ALCALDÍA LOCAL DE FONTIBÓN. | I131: Inversión | J131: Un nuevo Contrato Social y ambiental para la Bogotá del Siglo XXI | K131: 57 | L131: =IF(ISERROR(VLOOKUP(K131,[2]Proposito_programa!$C$2:$E$59,2,FALSE))," ",VLOOKUP(K131,[2]Proposito_programa!$C$2:$E$59,2,FALSE)) -> Gestión pública local | M131: =IF(ISERROR(VLOOKUP(K131,[2]Proposito_programa!$C$2:$E$59,3,FALSE))," ",VLOOKUP(K131,[2]Proposito_programa!$C$2:$E$59,3,FALSE)) -> Propósito 5: Construir Bogotá - Región con gobierno abierto, transparente y ciudadanía consciente | N131: 1783 | O131: 1 | P131: 79617288 | Q131: PABLO CESAR CALDERON BELTRAN | R131: Persona Natural | S131: - | T131: - | V131: 12169450 | X131: 0 | Y131: 0 | Z131: 12169450 | AA131: 11763802 | AB131: 2021-04-06 | AC131: 2021-04-06 | AD131: 2021-09-05 | AE131: 152 DÍAS | AF131: 0 | AG131: 0 | AN131: X | AP131: 0.97
A132: 121 | B132: 2021 | C132: FDLF-CD-121-2021 | D132: https://community.secop.gov.co/Public/Tendering/OpportunityDetail/Index?noticeUID=CO1.NTC.1893239&isFromPublicArea=True&isModal=true&asPopupView=true | E132: Contratos de prestación de servicios profesionales y de apoyo a la gestión | F132: Contratación directa | G132: Prestación de servicios profesionales y de apoyo a la gestión, o para la ejecución de trabajos artísticos que sólo puedan encomendarse a determinadas personas naturales; | H132: PRESTAR SERVICIOS PROFESIONALES PARA APOYAR TÉCNICAMENTE LAS DISTINTAS ETAPAS DE LOS PROCESOS DE COMPETENCIA DE LAS INSPECCIONES DE POLICÍA DE LA LOCALIDAD, SEGÚN REPARTO. | I132: Inversión | J132: Un nuevo Contrato Social y ambiental para la Bogotá del Siglo XXI | K132: 57 | L132: =IF(ISERROR(VLOOKUP(K132,[2]Proposito_programa!$C$2:$E$59,2,FALSE))," ",VLOOKUP(K132,[2]Proposito_programa!$C$2:$E$59,2,FALSE)) -> Gestión pública local | M132: =IF(ISERROR(VLOOKUP(K132,[2]Proposito_programa!$C$2:$E$59,3,FALSE))," ",VLOOKUP(K132,[2]Proposito_programa!$C$2:$E$59,3,FALSE)) -> Propósito 5: Construir Bogotá - Región con gobierno abierto, transparente y ciudadanía consciente | N132: 1784 | O132: 1 | P132: 1030533242 | Q132: DIEGO ALEJANDRO HERNANDEZ BOCANEGRA | R132: Persona Natural | S132: - | T132: - | V132: 50460000 | X132: 1 | Y132: 5026667 | Z132: 55486667 | AA132: 45046667 | AB132: 2021-04-08 | AC132: 2021-04-08 | AD132: 2022-01-24 | AE132: 264 DÍAS | AF132: 1 | AG132: 26 | AN132: X | AP132: 0.81
A133: 122 | B133: 2021 | C133: FDLF-CD-122-2021 | D133: https://community.secop.gov.co/Public/Tendering/OpportunityDetail/Index?noticeUID=CO1.NTC.1892342&isFromPublicArea=True&isModal=true&asPopupView=true | E133: Contratos de prestación de servicios profesionales y de apoyo a la gestión | F133: Contratación directa | G133: Prestación de servicios profesionales y de apoyo a la gestión, o para la ejecución de trabajos artísticos que sólo puedan encomendarse a determinadas personas naturales; | H133: PRESTAR SERVICIOS DE APOYO AL ÁREA DE GESTIÓN DE DESARROLLO LOCAL, DE LA ALCALDÍA LOCAL DE FONTIBÓN EN LA RECEPCIÓN DE CORRESPONDENCIA INTERNA Y EXTERNA, ASÍ COMO LA ASIGNACIÓN INTERNA DE LAS SOLICITUDES Y/O CORRESPONDENCIA RECIBIDA'. | I133: Inversión | J133: Un nuevo Contrato Social y ambiental para la Bogotá del Siglo XXI | K133: 57 | L133: =IF(ISERROR(VLOOKUP(K133,[2]Proposito_programa!$C$2:$E$59,2,FALSE))," ",VLOOKUP(K133,[2]Proposito_programa!$C$2:$E$59,2,FALSE)) -> Gestión pública local | M133: =IF(ISERROR(VLOOKUP(K133,[2]Proposito_programa!$C$2:$E$59,3,FALSE))," ",VLOOKUP(K133,[2]Proposito_programa!$C$2:$E$59,3,FALSE)) -> Propósito 5: Construir Bogotá - Región con gobierno abierto, transparente y ciudadanía consciente | N133: 1783 | O133: 1 | P133: 53030997 | Q133: SONIA ESPERANZA SANTOS GIL | R133: Persona Natural | S133: - | T133: - | V133: 21174843 | X133: 1 | Y133: 1947112 | Z133: 23121955 | AA133: 18903212 | AB133: 2021-04-08 | AC133: 2021-04-08 | AD133: 2022-01-22 | AE133: 264 DÍAS | AF133: 1 | AG133: 24 | AN133: X | AP133: 0.82
A134: 123 | B134: 2021 | C134: FDLF-CD-123-2021 | D134: https://community.secop.gov.co/Public/Tendering/OpportunityDetail/Index?noticeUID=CO1.NTC.1892874&isFromPublicArea=True&isModal=true&asPopupView=true | E134: Contratos de prestación de servicios profesionales y de apoyo a la gestión | F134: Contratación directa | G134: Prestación de servicios profesionales y de apoyo a la gestión, o para la ejecución de trabajos artísticos que sólo puedan encomendarse a determinadas personas naturales; | H134: PRESTAR SERVICIOS COMO PROFESIONAL ESPECIALIZADO PARA APOYAR AL ALCALDE LOCAL EN LA FORMULACIÓN, SEGUIMIENTO E IMPLEMENTACIÓN DE LA ESTRATEGIA LOCAL PARA LA TERMINACIÓN JURÍDICA O INACTIVACIÓN DE LAS ACTUACIONES ADMINISTRATIVAS QUE CURSAN EN LA ALCALDÍA LOCAL. | I134: Inversión | J134: Un nuevo Contrato Social y ambiental para la Bogotá del Siglo XXI | K134: 57 | L134: =IF(ISERROR(VLOOKUP(K134,[2]Proposito_programa!$C$2:$E$59,2,FALSE))," ",VLOOKUP(K134,[2]Proposito_programa!$C$2:$E$59,2,FALSE)) -> Gestión pública local | M134: =IF(ISERROR(VLOOKUP(K134,[2]Proposito_programa!$C$2:$E$59,3,FALSE))," ",VLOOKUP(K134,[2]Proposito_programa!$C$2:$E$59,3,FALSE)) -> Propósito 5: Construir Bogotá - Región con gobierno abierto, transparente y ciudadanía consciente | N134: 1783 | O134: 1 | P134: 19447276 | Q134: GUSTAVO FRANCISCO MONZON GARZON | R134: Persona Natural | S134: - | T134: - | V134: 74516666 | X134: 0 | Y134: 0 | Z134: 74516666 | AA134: 57516667 | AB134: 2021-04-08 | AC134: 2021-04-08 | AD134: 2021-11-08 | AE134: 266 DÍAS | AF134: 0 | AG134: 0 | AN134: X | AP134: 0.77
A135: 124 | B135: 2021 | C135: FDLF-CD-124-2021 | D135: https://community.secop.gov.co/Public/Tendering/OpportunityDetail/Index?noticeUID=CO1.NTC.1895171&isFromPublicArea=True&isModal=true&asPopupView=true | E135: Contratos de prestación de servicios profesionales y de apoyo a la gestión | F135: Contratación directa | G135: Prestación de servicios profesionales y de apoyo a la gestión, o para la ejecución de trabajos artísticos que sólo puedan encomendarse a determinadas personas naturales; | H135: PRESTAR SERVICIOS PARA APOYAR LA FORMULACIÓN, GESTIÓN Y SEGUIMIENTO DE ACTIVIDADES ENFOCADAS A LA GESTIÓN AMBIENTAL EXTERNA, ENCAMINADAS A LA MITIGACIÓN DE LOS DIFERENTES IMPACTOS AMBIENTALES Y LA CONSERVACIÓN DE LOS RECURSOS NATURALES DE LA LOCALIDAD. | I135: Inversión | J135: Un nuevo Contrato Social y ambiental para la Bogotá del Siglo XXI | K135: 27 | L135: =IF(ISERROR(VLOOKUP(K135,[2]Proposito_programa!$C$2:$E$59,2,FALSE))," ",VLOOKUP(K135,[2]Proposito_programa!$C$2:$E$59,2,FALSE)) -> Cambio cultural para la gestión de la crisis climática | M135: =IF(ISERROR(VLOOKUP(K135,[2]Proposito_programa!$C$2:$E$59,3,FALSE))," ",VLOOKUP(K135,[2]Proposito_programa!$C$2:$E$59,3,FALSE)) -> Propósito 2 : Cambiar Nuestros Hábitos de Vida para Reverdecer a Bogotá y Adaptarnos y Mitigar la Crisis Climática | N135: 1766 | O135: 1 | P135: 1014252451 | Q135: YIRE PAOLA GARCIA GACHARNA | R135: Persona Natural | S135: - | T135: - | V135: 43666667 | X135: 1 | Y135: 4666667 | Z135: 48333334 | AA135: 38833333 | AB135: 2021-04-08 | AC135: 2021-04-08 | AD135: 2022-01-25 | AE135: 265 DÍAS | AF135: 1 | AG135: 28 | AN135: X | AP135: 0.8
A136: 125 | B136: 2021 | C136: FDLF-CD-125-2021 | D136: https://community.secop.gov.co/Public/Tendering/OpportunityDetail/Index?noticeUID=CO1.NTC.1895170&isFromPublicArea=True&isModal=true&asPopupView=true | E136: Contratos de prestación de servicios profesionales y de apoyo a la gestión | F136: Contratación directa | G136: Prestación de servicios profesionales y de apoyo a la gestión, o para la ejecución de trabajos artísticos que sólo puedan encomendarse a determinadas personas naturales; | H136: PRESTAR SERVICIOS PROFESIONALES PARA APOYAR TÉCNICAMENTE LAS DISTINTAS ETAPAS DE LOS PROCESOS DE COMPETENCIA DE LAS INSPECCIONES DE POLICÍA DE LA LOCALIDAD, SEGÚN REPARTO. | I136: Inversión | J136: Un nuevo Contrato Social y ambiental para la Bogotá del Siglo XXI | K136: 57 | L136: =IF(ISERROR(VLOOKUP(K136,[2]Proposito_programa!$C$2:$E$59,2,FALSE))," ",VLOOKUP(K136,[2]Proposito_programa!$C$2:$E$59,2,FALSE)) -> Gestión pública local | M136: =IF(ISERROR(VLOOKUP(K136,[2]Proposito_programa!$C$2:$E$59,3,FALSE))," ",VLOOKUP(K136,[2]Proposito_programa!$C$2:$E$59,3,FALSE)) -> Propósito 5: Construir Bogotá - Región con gobierno abierto, transparente y ciudadanía consciente | N136: 1784 | O136: 1 | P136: 14320959 | Q136: JOSE ALBEYRO AVILEZ CRUZ | R136: Persona Natural | S136: - | T136: - | V136: 50460000 | X136: 0 | Y136: 0 | Z136: 50460000 | AA136: $ - | AB136: 2021-04-09 | AC136: 2021-04-09 | AD136: 2021-12-29 | AE136: 264 DÍAS | AF136: 0 | AG136: 0 | AN136: X | AP136: 0
A137: 126 | B137: 2021 | C137: FDLF-CD-126-2021 | D137: https://community.secop.gov.co/Public/Tendering/OpportunityDetail/Index?noticeUID=CO1.NTC.1895346&isFromPublicArea=True&isModal=true&asPopupView=true | E137: Contratos de prestación de servicios profesionales y de apoyo a la gestión | F137: Contratación directa | G137: Prestación de servicios profesionales y de apoyo a la gestión, o para la ejecución de trabajos artísticos que sólo puedan encomendarse a determinadas personas naturales; | H137: PRESTAR SERVICIOS PROFESIONALES PARA APOYAR TÉCNICAMENTE LAS DISTINTAS ETAPAS DE LOS PROCESOS DE COMPETENCIA DE LAS INSPECCIONES DE POLICÍA DE LA LOCALIDAD, SEGÚN REPARTO. | I137: Inversión | J137: Un nuevo Contrato Social y ambiental para la Bogotá del Siglo XXI | K137: 57 | L137: =IF(ISERROR(VLOOKUP(K137,[2]Proposito_programa!$C$2:$E$59,2,FALSE))," ",VLOOKUP(K137,[2]Proposito_programa!$C$2:$E$59,2,FALSE)) -> Gestión pública local | M137: =IF(ISERROR(VLOOKUP(K137,[2]Proposito_programa!$C$2:$E$59,3,FALSE))," ",VLOOKUP(K137,[2]Proposito_programa!$C$2:$E$59,3,FALSE)) -> Propósito 5: Construir Bogotá - Región con gobierno abierto, transparente y ciudadanía consciente | N137: 1784 | O137: 1 | P137: 1121865779 | Q137: JUAN DAVID GIRALDO SABOGAL | R137: Persona Natural | S137: - | T137: - | V137: 50460000 | X137: 1 | Y137: 5026667 | Z137: 55486667 | AA137: 21846667 | AB137: 2021-04-08 | AC137: 2021-04-08 | AD137: 2022-01-24 | AE137: 264 DÍAS | AF137: 1 | AG137: 26 | AH137: 79579343 | AI137: WILLIAM NIÑO LEAL | AJ137: 2021-05-31 | AK137: 40213333 | AN137: X | AP137: 0.39
A138: 127 | B138: 2021 | C138: FDLF-CD-127-2021 | D138: https://community.secop.gov.co/Public/Tendering/OpportunityDetail/Index?noticeUID=CO1.NTC.1895933&isFromPublicArea=True&isModal=true&asPopupView=true | E138: Contratos de prestación de servicios profesionales y de apoyo a la gestión | F138: Contratación directa | G138: Prestación de servicios profesionales y de apoyo a la gestión, o para la ejecución de trabajos artísticos que sólo puedan encomendarse a determinadas personas naturales; | H138: COORDINAR LA ARTICULACIÓN, ASISTENCIA Y ACOMPAÑAMIENTO DE LOS PROCESOS DE PLANEACIÓN LOCAL, PARA LA PROMOCIÓN DE LA PARTICIPACIÓN DE LAS MUJERES Y DE LA EQUIDAD DE GÉNERO, PARA MATERIALIZAR EN LA LOCALIDAD LAS ESTRATEGIAS DE TERRITORIALIZACIÓN Y TRANSVERSALIZACIÓN DE LA POLÍTICA PUBLICA DE MUJERES Y EQUIDAD DE GÉNERO, PPMYEG. | I138: Inversión | J138: Un nuevo Contrato Social y ambiental para la Bogotá del Siglo XXI | K138: 6 | L138: =IF(ISERROR(VLOOKUP(K138,[2]Proposito_programa!$C$2:$E$59,2,FALSE))," ",VLOOKUP(K138,[2]Proposito_programa!$C$2:$E$59,2,FALSE)) -> Sistema Distrital de Cuidado | M138: =IF(ISERROR(VLOOKUP(K138,[2]Proposito_programa!$C$2:$E$59,3,FALSE))," ",VLOOKUP(K138,[2]Proposito_programa!$C$2:$E$59,3,FALSE)) -> Propósito 1: Hacer un nuevo contrato social para incrementar la inclusión social, productiva y política | N138: 1762 | O138: 1 | P138: 1032413689 | Q138: JEISON HERLEY CAMACHO TELLEZ | R138: Persona Natural | S138: - | T138: - | V138: 36000000 | X138: 1 | Y138: 6300000 | Z138: 42300000 | AA138: 34200000 | AB138: 2021-04-13 | AC138: 2021-04-13 | AD138: 2022-01-24 | AE138: 243 DÍAS | AF138: 1 | AG138: 42 | AN138: X | AP138: 0.81
A139: 128 | B139: 2021 | C139: FDLF-CD-128-2021 | D139: https://community.secop.gov.co/Public/Tendering/OpportunityDetail/Index?noticeUID=CO1.NTC.1894976&isFromPublicArea=True&isModal=true&asPopupView=true | E139: Contratos de prestación de servicios profesionales y de apoyo a la gestión | F139: Contratación directa | G139: Prestación de servicios profesionales y de apoyo a la gestión, o para la ejecución de trabajos artísticos que sólo puedan encomendarse a determinadas personas naturales; | H139: PRESTAR SERVICIOS PROFESIONALES PARA APOYAR AL DESPACHO EN LA REALIZACIÓN DE ACTIVIDADES DEFINIDAS POR EL ÁREA DE GESTIÓN PARA EL DESARROLLO LOCAL DE FONTIBÓN, EN RELACIÓN CON LA GESTIÓN INTRAINSTITUCIONAL CON LA JUNTA ADMINISTRADORA LOCAL Y LA LOGÍSTICA REFERIDA AL SECTOR EMPRESARIAL DE LA LOCALIDAD DE FONTIBÓN. | I139: Inversión | J139: Un nuevo Contrato Social y ambiental para la Bogotá del Siglo XXI | K139: 57 | L139: =IF(ISERROR(VLOOKUP(K139,[2]Proposito_programa!$C$2:$E$59,2,FALSE))," ",VLOOKUP(K139,[2]Proposito_programa!$C$2:$E$59,2,FALSE)) -> Gestión pública local | M139: =IF(ISERROR(VLOOKUP(K139,[2]Proposito_programa!$C$2:$E$59,3,FALSE))," ",VLOOKUP(K139,[2]Proposito_programa!$C$2:$E$59,3,FALSE)) -> Propósito 5: Construir Bogotá - Región con gobierno abierto, transparente y ciudadanía consciente | N139: 1783 | O139: 1 | P139: 79662711 | Q139: ARNOLDO RIAÑO ARCINIEGAS | R139: Persona Natural | S139: - | T139: - | V139: 21630000 | X139: 0 | Y139: 0 | Z139: 21630000 | AA139: 21630000 | AB139: 2021-04-09 | AC139: 2021-04-09 | AD139: 2021-09-08 | AE139: 152 DÍAS | AF139: 0 | AG139: 0 | AN139: X | AP139: 1
A140: 129 | B140: 2021 | C140: FDLF-CD-129-2021 | D140: https://community.secop.gov.co/Public/Tendering/OpportunityDetail/Index?noticeUID=CO1.NTC.1896219&isFromPublicArea=True&isModal=true&asPopupView=true | E140: Contratos de prestación de servicios profesionales y de apoyo a la gestión | F140: Contratación directa | G140: Prestación de servicios profesionales y de apoyo a la gestión, o para la ejecución de trabajos artísticos que sólo puedan encomendarse a determinadas personas naturales; | H140: PRESTAR SERVICIOS PARA APOYAR JURÍDICAMENTE LA EJECUCIÓN DE LAS ACCIONES REQUERIDAS PARA LA DEPURACIÓN DE LAS ACTUACIONES ADMINISTRATIVAS QUE CURSAN EN LA ALCALDÍA LOCAL DE FONTIBÓN | I140: Inversión | J140: Un nuevo Contrato Social y ambiental para la Bogotá del Siglo XXI | K140: 57 | L140: =IF(ISERROR(VLOOKUP(K140,[2]Proposito_programa!$C$2:$E$59,2,FALSE))," ",VLOOKUP(K140,[2]Proposito_programa!$C$2:$E$59,2,FALSE)) -> Gestión pública local | M140: =IF(ISERROR(VLOOKUP(K140,[2]Proposito_programa!$C$2:$E$59,3,FALSE))," ",VLOOKUP(K140,[2]Proposito_programa!$C$2:$E$59,3,FALSE)) -> Propósito 5: Construir Bogotá - Región con gobierno abierto, transparente y ciudadanía consciente | N140: 1784 | O140: 1 | P140: 39636097 | Q140: MARIA ELINA PLAZAS LOPEZ | R140: Persona Natural | S140: - | T140: - | V140: 9852980 | X140: 1 | Y140: 4926490 | Z140: 14779470 | AA140: 13465739 | AB140: 2021-04-09 | AC140: 2021-04-09 | AD140: 2021-07-08 | AE140: 60 DÍAS | AF140: 1 | AG140: 30 | AN140: X | AP140: 0.58
A141: 130 | B141: 2021 | C141: FDLF-CD-130-2021 | D141: https://community.secop.gov.co/Public/Tendering/OpportunityDetail/Index?noticeUID=CO1.NTC.1896183&isFromPublicArea=True&isModal=true&asPopupView=true | E141: Contratos de prestación de servicios profesionales y de apoyo a la gestión | F141: Contratación directa | G141: Prestación de servicios profesionales y de apoyo a la gestión, o para la ejecución de trabajos artísticos que sólo puedan encomendarse a determinadas personas naturales; | H141: PRESTAR SERVICIOS COMO PROFESIONAL DE APOYO A LA GESTIÓN RELACIONADA CON EL ESPACIO PÚBLICO, ESTABLECIMIENTOS DE COMERCIO Y LAS ACCIONES OPERATIVAS PARA EL CONTROL AMBIENTAL PARA EL ÁREA DE GESTIÓN POLICIVA DE LA ALCALDÍA LOCAL DE FONTIBÓN | I141: Inversión | J141: Un nuevo Contrato Social y ambiental para la Bogotá del Siglo XXI | K141: 57 | L141: =IF(ISERROR(VLOOKUP(K141,[2]Proposito_programa!$C$2:$E$59,2,FALSE))," ",VLOOKUP(K141,[2]Proposito_programa!$C$2:$E$59,2,FALSE)) -> Gestión pública local | M141: =IF(ISERROR(VLOOKUP(K141,[2]Proposito_programa!$C$2:$E$59,3,FALSE))," ",VLOOKUP(K141,[2]Proposito_programa!$C$2:$E$59,3,FALSE)) -> Propósito 5: Construir Bogotá - Región con gobierno abierto, transparente y ciudadanía consciente | N141: 1784 | O141: 1 | P141: 1075248329 | Q141: TATIANA HERNANDEZ SOTO | R141: Persona Natural | S141: - | T141: - | V141: 43024679 | X141: 0 | Y141: 0 | Z141: 43024679 | AA141: 33664348 | AB141: 2021-04-28 | AC141: 2021-04-28 | AD141: 2022-01-19 | AE141: 262 DÍAS | AF141: 0 | AG141: 0 | AH141: 1121917670 | AI141: CARLOS ALBERTO DUARTE DURAN | AJ141: 2021-05-05 | AK141: 41710948 | AN141: X | AP141: 0.78
A142: 131 | B142: 2021 | C142: FDLF-CD-131-2021 | D142: https://community.secop.gov.co/Public/Tendering/OpportunityDetail/Index?noticeUID=CO1.NTC.1899608&isFromPublicArea=True&isModal=true&asPopupView=true | E142: Contratos de prestación de servicios profesionales y de apoyo a la gestión | F142: Contratación directa | G142: Prestación de servicios profesionales y de apoyo a la gestión, o para la ejecución de trabajos artísticos que sólo puedan encomendarse a determinadas personas naturales; | H142: SERVICIOS DE APOYO TÉCNICO AL ÁREA DE GESTIÓN DESARROLLO LOCAL DE FONTIBÓN EN ACTIVIDADES INHERENTES A LA PLANEACIÓN | I142: Inversión | J142: Un nuevo Contrato Social y ambiental para la Bogotá del Siglo XXI | K142: 57 | L142: =IF(ISERROR(VLOOKUP(K142,[2]Proposito_programa!$C$2:$E$59,2,FALSE))," ",VLOOKUP(K142,[2]Proposito_programa!$C$2:$E$59,2,FALSE)) -> Gestión pública local | M142: =IF(ISERROR(VLOOKUP(K142,[2]Proposito_programa!$C$2:$E$59,3,FALSE))," ",VLOOKUP(K142,[2]Proposito_programa!$C$2:$E$59,3,FALSE)) -> Propósito 5: Construir Bogotá - Región con gobierno abierto, transparente y ciudadanía consciente | N142: 1783 | O142: 1 | P142: 1016055638 | Q142: SERGIO SEBASTIAN VILLEGAS TORRES | R142: Persona Natural | S142: - | T142: - | V142: 33921333 | X142: 0 | Y142: 0 | Z142: 14612267 | AA142: 14612267 | AB142: 2021-04-09 | AC142: 2021-04-09 | AD142: 2021-07-31 | AE142: 180 DÍAS | AF142: 0 | AG142: 0 | AN142: X | AP142: 0.43
A143: 132 | B143: 2021 | C143: FDLF-CD-132-2021 | D143: https://community.secop.gov.co/Public/Tendering/OpportunityDetail/Index?noticeUID=CO1.NTC.1913155&isFromPublicArea=True&isModal=true&asPopupView=true | E143: Contratos de prestación de servicios profesionales y de apoyo a la gestión | F143: Contratación directa | G143: Prestación de servicios profesionales y de apoyo a la gestión, o para la ejecución de trabajos artísticos que sólo puedan encomendarse a determinadas personas naturales; | H143: PRESTAR SERVICIOS COMO AUXILIAR ADMINISTRATIVO Y OPERATIVO EN EL ÁREA DE GESTIÓN DE DESARROLLO LOCAL DE FONTIBÓN, PARA EL DESARROLLO DE LAS ESCUELAS DE FORMACIÓN DEPORTIVA DE LA LOCALIDAD. | I143: Inversión | J143: Un nuevo Contrato Social y ambiental para la Bogotá del Siglo XXI | K143: 20 | L143: =IF(ISERROR(VLOOKUP(K143,[2]Proposito_programa!$C$2:$E$59,2,FALSE))," ",VLOOKUP(K143,[2]Proposito_programa!$C$2:$E$59,2,FALSE)) -> Bogotá, referente en cultura, deporte, recreación y actividad física, con parques para el desarrollo y la salud | M143: =IF(ISERROR(VLOOKUP(K143,[2]Proposito_programa!$C$2:$E$59,3,FALSE))," ",VLOOKUP(K143,[2]Proposito_programa!$C$2:$E$59,3,FALSE)) -> Propósito 1: Hacer un nuevo contrato social para incrementar la inclusión social, productiva y política | N143: 1757 | O143: 1 | P143: 1016047939 | Q143: JOHN ALEXANDER CASTAÑO VERA | R143: Persona Natural | S143: - | T143: - | V143: 21072000 | X143: 1 | Y143: 2985200 | Z143: =Y143+V143+W143 -> 24057200 | AA143: 19755000 | AB143: 2021-04-16 | AC143: 2021-04-16 | AD143: 2022-01-19 | AE143: 243 DÍAS | AF143: 1 | AG143: 34 | AN143: X | AP143: 0.82
A144: 133 | B144: 2021 | C144: FDLF-CD-133-2021 | D144: https://community.secop.gov.co/Public/Tendering/OpportunityDetail/Index?noticeUID=CO1.NTC.1929963&isFromPublicArea=True&isModal=true&asPopupView=true | E144: Contratos de prestación de servicios profesionales y de apoyo a la gestión | F144: Contratación directa | G144: Prestación de servicios profesionales y de apoyo a la gestión, o para la ejecución de trabajos artísticos que sólo puedan encomendarse a determinadas personas naturales; | H144: PRESTAR SERVICIOS PROFESIONALES AL ÁREA DE GESTIÓN DE DESARROLLO LOCAL DE FONTIBÓN PARA APOYAR A LA ADMINISTRACIÓN EN LA FORMULACIÓN Y SEGUIMIENTO A LOS PROYECTOS DE INVERSIÓN Y GASTOS DE FUNCIONAMIENTO DE LA ALCALDÍA LOCAL DE FONTIBÓN. | I144: Inversión | J144: Un nuevo Contrato Social y ambiental para la Bogotá del Siglo XXI | K144: 57 | L144: =IF(ISERROR(VLOOKUP(K144,[2]Proposito_programa!$C$2:$E$59,2,FALSE))," ",VLOOKUP(K144,[2]Proposito_programa!$C$2:$E$59,2,FALSE)) -> Gestión pública local | M144: =IF(ISERROR(VLOOKUP(K144,[2]Proposito_programa!$C$2:$E$59,3,FALSE))," ",VLOOKUP(K144,[2]Proposito_programa!$C$2:$E$59,3,FALSE)) -> Propósito 5: Construir Bogotá - Región con gobierno abierto, transparente y ciudadanía consciente | N144: 1783 | O144: 1 | P144: 52829059 | Q144: JULIE PAOLA PACHON MURCIA | R144: Persona Natural | S144: - | T144: - | V144: 54400000 | X144: 0 | Y144: 0 | Z144: 54400000 | AA144: 49413333 | AB144: 2021-04-23 | AC144: 2021-04-23 | AD144: 2021-12-22 | AE144: 243 DÍAS | AF144: 0 | AG144: 0 | AN144: X | AP144: 0.91
A145: 134 | B145: 2021 | C145: FDLF-CD-134-2021 | D145: https://community.secop.gov.co/Public/Tendering/OpportunityDetail/Index?noticeUID=CO1.NTC.1958721&isFromPublicArea=True&isModal=true&asPopupView=true | E145: Contratos de prestación de servicios profesionales y de apoyo a la gestión | F145: Contratación directa | G145: Prestación de servicios profesionales y de apoyo a la gestión, o para la ejecución de trabajos artísticos que sólo puedan encomendarse a determinadas personas naturales; | H145: PRESTAR SERVICIOS COMO AUXILIAR ADMINISTRATIVO Y OPERATIVO EN EL ÁREA DE GESTIÓN DE DESARROLLO LOCAL DE FONTIBÓN, PARA EL DESARROLLO DE LAS ESCUELAS DE FORMACIÓN DEPORTIVA DE LA LOCALIDAD. | I145: Inversión | J145: Un nuevo Contrato Social y ambiental para la Bogotá del Siglo XXI | K145: 20 | L145: =IF(ISERROR(VLOOKUP(K145,[2]Proposito_programa!$C$2:$E$59,2,FALSE))," ",VLOOKUP(K145,[2]Proposito_programa!$C$2:$E$59,2,FALSE)) -> Bogotá, referente en cultura, deporte, recreación y actividad física, con parques para el desarrollo y la salud | M145: =IF(ISERROR(VLOOKUP(K145,[2]Proposito_programa!$C$2:$E$59,3,FALSE))," ",VLOOKUP(K145,[2]Proposito_programa!$C$2:$E$59,3,FALSE)) -> Propósito 1: Hacer un nuevo contrato social para incrementar la inclusión social, productiva y política | N145: 1757 | O145: 1 | P145: 1015997258 | Q145: OSCAR ALBERTO MANCERA LURDUY | R145: Persona Natural | S145: - | T145: - | V145: 20545200 | X145: 1 | Y145: 2195000 | Z145: 22740200 | AA145: 10009200 | AB145: 2021-05-07 | AC145: 2021-05-07 | AD145: 2022-01-25 | AE145: 237 DÍAS | AF145: 1 | AG145: 25 | AN145: X | AP145: 0.44
A146: 135 | B146: 2021 | C146: FDLF-CD-135-2021 | D146: https://community.secop.gov.co/Public/Tendering/OpportunityDetail/Index?noticeUID=CO1.NTC.1961484&isFromPublicArea=True&isModal=true&asPopupView=true | E146: Contratos de prestación de servicios profesionales y de apoyo a la gestión | F146: Contratación directa | G146: Prestación de servicios profesionales y de apoyo a la gestión, o para la ejecución de trabajos artísticos que sólo puedan encomendarse a determinadas personas naturales; | H146: PRESTAR SERVICIOS PROFESIONALES PARA APOYAR JURÍDICAMENTE LOS DIFERENTES PROCESOS QUE REQUIERA ADELANTAR LA ALCALDÍA LOCAL DE FONTIBÓN DESDE LAS ETAPAS PRECONTRACTUAL, CONTRACTUAL Y POST CONTRACTUAL. | I146: Inversión | J146: Un nuevo Contrato Social y ambiental para la Bogotá del Siglo XXI | K146: 57 | L146: =IF(ISERROR(VLOOKUP(K146,[2]Proposito_programa!$C$2:$E$59,2,FALSE))," ",VLOOKUP(K146,[2]Proposito_programa!$C$2:$E$59,2,FALSE)) -> Gestión pública local | M146: =IF(ISERROR(VLOOKUP(K146,[2]Proposito_programa!$C$2:$E$59,3,FALSE))," ",VLOOKUP(K146,[2]Proposito_programa!$C$2:$E$59,3,FALSE)) -> Propósito 5: Construir Bogotá - Región con gobierno abierto, transparente y ciudadanía consciente | N146: 1783 | O146: 1 | P146: 1.020.726.557 | Q146: GUSTAVO ADOLFO GARCIA VALCARCEL | R146: Persona Natural | S146: - | T146: - | V146: 52360000 | X146: 0 | Y146: 0 | Z146: 52360000 | AA146: =Z146+W146+X146 -> 52360000 | AB146: 2021-05-10 | AC146: 2021-05-10 | AD146: 2021-12-30 | AE146: 231 DÍAS | AF146: 0 | AG146: 0 | AH146: 1026289113 | AI146: FRANCY YAZMIN OLIVERA AGUILAR | AJ146: 2021-11-16 | AK146: 10426667 | AN146: X | AP146: 0.44
A147: 136 | B147: 2021 | C147: FDLF-CD-136-2021 | D147: https://community.secop.gov.co/Public/Tendering/OpportunityDetail/Index?noticeUID=CO1.NTC.1976344&isFromPublicArea=True&isModal=true&asPopupView=true | E147: Contratos de prestación de servicios profesionales y de apoyo a la gestión | F147: Contratación directa | G147: Prestación de servicios profesionales y de apoyo a la gestión, o para la ejecución de trabajos artísticos que sólo puedan encomendarse a determinadas personas naturales; | H147: PRESTAR SERVICIOS DE APOYO TÉCNICO AL ÁREA DE GESTIÓN DE DESARROLLO LOCAL DE FONTIBÓN COMO MONITOR DEPORTIVO PARA LA FORMACIÓN DE LAS ESCUELAS DEPORTIVAS DE FONTIBÓN | I147: Inversión | J147: Un nuevo Contrato Social y ambiental para la Bogotá del Siglo XXI | K147: 20 | L147: =IF(ISERROR(VLOOKUP(K147,[2]Proposito_programa!$C$2:$E$59,2,FALSE))," ",VLOOKUP(K147,[2]Proposito_programa!$C$2:$E$59,2,FALSE)) -> Bogotá, referente en cultura, deporte, recreación y actividad física, con parques para el desarrollo y la salud | M147: =IF(ISERROR(VLOOKUP(K147,[2]Proposito_programa!$C$2:$E$59,3,FALSE))," ",VLOOKUP(K147,[2]Proposito_programa!$C$2:$E$59,3,FALSE)) -> Propósito 1: Hacer un nuevo contrato social para incrementar la inclusión social, productiva y política | N147: 1757 | O147: 1 | P147: 1016059864 | Q147: ROBINSON GUSTAVO PINZON TORRES | R147: Persona Natural | S147: - | T147: - | V147: 18506950 | X147: 0 | Y147: 0 | Z147: 18506950 | AA147: 11192298 | AB147: 2021-05-24 | AC147: 2021-05-24 | AD147: 2021-12-23 | AE147: 210 DÍAS | AF147: 0 | AG147: 0 | AN147: X | AP147: 0.6
A148: 137 | B148: 2021 | C148: FDLF-CD-137-2021 | D148: https://community.secop.gov.co/Public/Tendering/OpportunityDetail/Index?noticeUID=CO1.NTC.1975532&isFromPublicArea=True&isModal=true&asPopupView=true | E148: Contratos de prestación de servicios profesionales y de apoyo a la gestión | F148: Contratación directa | G148: Prestación de servicios profesionales y de apoyo a la gestión, o para la ejecución de trabajos artísticos que sólo puedan encomendarse a determinadas personas naturales; | H148: SERVICIOS PROFESIONALES DE APOYO CONTABLE EN LOS PROCESOS DE CAUSACIÓN, SISTEMATIZACIÓN Y REGISTROS DE INFORMACIÓN CONTABLE | I148: Inversión | J148: Un nuevo Contrato Social y ambiental para la Bogotá del Siglo XXI | K148: 57 | L148: =IF(ISERROR(VLOOKUP(K148,[2]Proposito_programa!$C$2:$E$59,2,FALSE))," ",VLOOKUP(K148,[2]Proposito_programa!$C$2:$E$59,2,FALSE)) -> Gestión pública local | M148: =IF(ISERROR(VLOOKUP(K148,[2]Proposito_programa!$C$2:$E$59,3,FALSE))," ",VLOOKUP(K148,[2]Proposito_programa!$C$2:$E$59,3,FALSE)) -> Propósito 5: Construir Bogotá - Región con gobierno abierto, transparente y ciudadanía consciente | N148: 1783 | O148: 1 | P148: 79378493 | Q148: ELMAN CIFUENTES CASTAÑEDA | R148: Persona Natural | S148: - | T148: - | V148: 35000000 | X148: 1 | Y148: 5333333 | Z148: 40333333 | AA148: 32000000 | AB148: 2021-05-19 | AC148: 2021-05-19 | AD148: 2022-01-25 | AE148: 210 DÍAS | AF148: 1 | AG148: 32 | AN148: X | AP148: 0.79
A149: 138 | B149: 2021 | C149: FDLF-CD-138-2021 | D149: https://community.secop.gov.co/Public/Tendering/OpportunityDetail/Index?noticeUID=CO1.NTC.1976429&isFromPublicArea=True&isModal=true&asPopupView=true | E149: Contratos de prestación de servicios profesionales y de apoyo a la gestión | F149: Contratación directa | G149: Prestación de servicios profesionales y de apoyo a la gestión, o para la ejecución de trabajos artísticos que sólo puedan encomendarse a determinadas personas naturales; | H149: PRESTAR SERVICIOS DE APOYO TÉCNICO AL ÁREA DE GESTIÓN DE DESARROLLO LOCAL DE FONTIBÓN COMO MONITOR DEPORTIVO PARA LA FORMACIÓN DE LAS ESCUELAS DEPORTIVAS DE FONTIBÓN | I149: Inversión | J149: Un nuevo Contrato Social y ambiental para la Bogotá del Siglo XXI | K149: 20 | L149: =IF(ISERROR(VLOOKUP(K149,[2]Proposito_programa!$C$2:$E$59,2,FALSE))," ",VLOOKUP(K149,[2]Proposito_programa!$C$2:$E$59,2,FALSE)) -> Bogotá, referente en cultura, deporte, recreación y actividad física, con parques para el desarrollo y la salud | M149: =IF(ISERROR(VLOOKUP(K149,[2]Proposito_programa!$C$2:$E$59,3,FALSE))," ",VLOOKUP(K149,[2]Proposito_programa!$C$2:$E$59,3,FALSE)) -> Propósito 1: Hacer un nuevo contrato social para incrementar la inclusión social, productiva y política | N149: 1757 | O149: 1 | P149: 1013633911 | Q149: JEISON YAIR JIMENEZ REYES | R149: Persona Natural | S149: - | T149: - | V149: 18506950 | X149: 1 | Y149: 2291337 | Z149: 20798287 | AA149: 16479998 | AB149: 2021-05-24 | AC149: 2021-05-24 | AD149: 2022-01-19 | AE149: 210 DÍAS | AF149: 1 | AG149: 26 | AN149: X | AP149: 0.79
A150: 139 | B150: 2021 | C150: FDLF-CD-139-2021 | D150: https://community.secop.gov.co/Public/Tendering/OpportunityDetail/Index?noticeUID=CO1.NTC.1981009&isFromPublicArea=True&isModal=true&asPopupView=true | E150: Contratos de prestación de servicios profesionales y de apoyo a la gestión | F150: Contratación directa | G150: Prestación de servicios profesionales y de apoyo a la gestión, o para la ejecución de trabajos artísticos que sólo puedan encomendarse a determinadas personas naturales; | H150: PRESTAR SERVICIOS DE APOYO TÉCNICO AL ÁREA DE GESTIÓN DE DESARROLLO LOCAL DE FONTIBÓN COMO MONITOR DEPORTIVO PARA LA FORMACIÓN DE LAS ESCUELAS DEPORTIVAS DE FONTIBÓN | I150: Inversión | J150: Un nuevo Contrato Social y ambiental para la Bogotá del Siglo XXI | K150: 20 | L150: =IF(ISERROR(VLOOKUP(K150,[2]Proposito_programa!$C$2:$E$59,2,FALSE))," ",VLOOKUP(K150,[2]Proposito_programa!$C$2:$E$59,2,FALSE)) -> Bogotá, referente en cultura, deporte, recreación y actividad física, con parques para el desarrollo y la salud | M150: =IF(ISERROR(VLOOKUP(K150,[2]Proposito_programa!$C$2:$E$59,3,FALSE))," ",VLOOKUP(K150,[2]Proposito_programa!$C$2:$E$59,3,FALSE)) -> Propósito 1: Hacer un nuevo contrato social para incrementar la inclusión social, productiva y política | N150: 1757 | O150: 1 | P150: 1016097957 | Q150: DEIVY ALEJANDRO FIRACATIVE ORTIZ | R150: Persona Natural | S150: - | T150: - | V150: 18506950 | X150: 1 | Y150: 2291337 | Z150: 20798287 | AA150: 16479998 | AB150: 2021-05-24 | AC150: 2021-05-24 | AD150: 2022-01-19 | AE150: 210 DÍAS | AF150: 1 | AG150: 26 | AN150: X | AP150: 0.79
A151: 140 | B151: 2021 | C151: FDLF-CD-140-2021 | D151: https://community.secop.gov.co/Public/Tendering/OpportunityDetail/Index?noticeUID=CO1.NTC.1981129&isFromPublicArea=True&isModal=true&asPopupView=true | E151: Contratos de prestación de servicios profesionales y de apoyo a la gestión | F151: Contratación directa | G151: Prestación de servicios profesionales y de apoyo a la gestión, o para la ejecución de trabajos artísticos que sólo puedan encomendarse a determinadas personas naturales; | H151: PRESTAR SERVICIOS DE APOYO TÉCNICO AL ÁREA DE GESTIÓN DE DESARROLLO LOCAL DE FONTIBÓN COMO MONITOR DEPORTIVO PARA LA FORMACIÓN DE LAS ESCUELAS DEPORTIVAS DE FONTIBÓN | I151: Inversión | J151: Un nuevo Contrato Social y ambiental para la Bogotá del Siglo XXI | K151: 20 | L151: =IF(ISERROR(VLOOKUP(K151,[2]Proposito_programa!$C$2:$E$59,2,FALSE))," ",VLOOKUP(K151,[2]Proposito_programa!$C$2:$E$59,2,FALSE)) -> Bogotá, referente en cultura, deporte, recreación y actividad física, con parques para el desarrollo y la salud | M151: =IF(ISERROR(VLOOKUP(K151,[2]Proposito_programa!$C$2:$E$59,3,FALSE))," ",VLOOKUP(K151,[2]Proposito_programa!$C$2:$E$59,3,FALSE)) -> Propósito 1: Hacer un nuevo contrato social para incrementar la inclusión social, productiva y política | N151: 1757 | O151: 1 | P151: 1015999131 | Q151: JENNIFER JOHANNA VILLAMIL DIAZ | R151: Persona Natural | S151: - | T151: - | V151: 18506950 | X151: 1 | Y151: 2203208 | Z151: 20710158 | AA151: 16391870 | AB151: 2021-05-25 | AC151: 2021-05-25 | AD151: 2022-01-19 | AE151: 210 DÍAS | AF151: 1 | AG151: 25 | AN151: X | AP151: 0.79
A152: 141 | B152: 2021 | C152: FDLF-CD-141-2021 | D152: https://community.secop.gov.co/Public/Tendering/OpportunityDetail/Index?noticeUID=CO1.NTC.1981402&isFromPublicArea=True&isModal=true&asPopupView=true | E152: Contratos de prestación de servicios profesionales y de apoyo a la gestión | F152: Contratación directa | G152: Prestación de servicios profesionales y de apoyo a la gestión, o para la ejecución de trabajos artísticos que sólo puedan encomendarse a determinadas personas naturales; | H152: PRESTAR SERVICIOS DE APOYO TÉCNICO AL ÁREA DE GESTIÓN DE DESARROLLO LOCAL DE FONTIBÓN COMO MONITOR DEPORTIVO PARA LA FORMACIÓN DE LAS ESCUELAS DEPORTIVAS DE FONTIBÓN | I152: Inversión | J152: Un nuevo Contrato Social y ambiental para la Bogotá del Siglo XXI | K152: 20 | L152: =IF(ISERROR(VLOOKUP(K152,[2]Proposito_programa!$C$2:$E$59,2,FALSE))," ",VLOOKUP(K152,[2]Proposito_programa!$C$2:$E$59,2,FALSE)) -> Bogotá, referente en cultura, deporte, recreación y actividad física, con parques para el desarrollo y la salud | M152: =IF(ISERROR(VLOOKUP(K152,[2]Proposito_programa!$C$2:$E$59,3,FALSE))," ",VLOOKUP(K152,[2]Proposito_programa!$C$2:$E$59,3,FALSE)) -> Propósito 1: Hacer un nuevo contrato social para incrementar la inclusión social, productiva y política | N152: 1757 | O152: 1 | P152: 1022933464 | Q152: DIEGO FERNANDO ALARCON LARA | R152: Persona Natural | S152: - | T152: - | V152: 18506950 | X152: 1 | Y152: 2203208 | Z152: 20710158 | AA152: 16391870 | AB152: 2021-05-25 | AC152: 2021-05-25 | AD152: 2022-01-19 | AE152: 210 DÍAS | AF152: 1 | AG152: 25 | AN152: X | AP152: 0.79
A153: 142 | B153: 2021 | C153: FDLF-CD-142-2021 | D153: https://community.secop.gov.co/Public/Tendering/OpportunityDetail/Index?noticeUID=CO1.NTC.1981271&isFromPublicArea=True&isModal=true&asPopupView=true | E153: Contratos de prestación de servicios profesionales y de apoyo a la gestión | F153: Contratación directa | G153: Prestación de servicios profesionales y de apoyo a la gestión, o para la ejecución de trabajos artísticos que sólo puedan encomendarse a determinadas personas naturales; | H153: PRESTAR SERVICIOS DE APOYO TÉCNICO AL ÁREA DE GESTIÓN DE DESARROLLO LOCAL DE FONTIBÓN COMO MONITOR DEPORTIVO PARA LA FORMACIÓN DE LAS ESCUELAS DEPORTIVAS DE FONTIBÓN | I153: Inversión | J153: Un nuevo Contrato Social y ambiental para la Bogotá del Siglo XXI | K153: 20 | L153: =IF(ISERROR(VLOOKUP(K153,[2]Proposito_programa!$C$2:$E$59,2,FALSE))," ",VLOOKUP(K153,[2]Proposito_programa!$C$2:$E$59,2,FALSE)) -> Bogotá, referente en cultura, deporte, recreación y actividad física, con parques para el desarrollo y la salud | M153: =IF(ISERROR(VLOOKUP(K153,[2]Proposito_programa!$C$2:$E$59,3,FALSE))," ",VLOOKUP(K153,[2]Proposito_programa!$C$2:$E$59,3,FALSE)) -> Propósito 1: Hacer un nuevo contrato social para incrementar la inclusión social, productiva y política | N153: 1757 | O153: 1 | P153: 1073707647 | Q153: JESUS ADOLFO MORALES TAMAYO | R153: Persona Natural | S153: - | T153: - | V153: 18506950 | X153: 1 | Y153: 2115080 | Z153: 20622030 | AA153: 16303742 | AB153: 2021-05-26 | AC153: 2021-05-26 | AD153: 2022-01-19 | AE153: 213 DÍAS | AF153: 1 | AG153: 24 | AN153: X | AP153: 0.79
A154: 143 | B154: 2021 | C154: FDLF-CD-143-2021 | D154: https://community.secop.gov.co/Public/Tendering/OpportunityDetail/Index?noticeUID=CO1.NTC.1985719&isFromPublicArea=True&isModal=true&asPopupView=true | E154: Contratos de prestación de servicios profesionales y de apoyo a la gestión | F154: Contratación directa | G154: Prestación de servicios profesionales y de apoyo a la gestión, o para la ejecución de trabajos artísticos que sólo puedan encomendarse a determinadas personas naturales; | H154: PRESTAR SERVICIOS PARA APOYAR ADMINISTRATIVA Y ASISTENCIALMENTE A LAS INSPECCIONES DE POLICÍA DE LA LOCALIDAD. | I154: Inversión | J154: Un nuevo Contrato Social y ambiental para la Bogotá del Siglo XXI | K154: 57 | L154: =IF(ISERROR(VLOOKUP(K154,[2]Proposito_programa!$C$2:$E$59,2,FALSE))," ",VLOOKUP(K154,[2]Proposito_programa!$C$2:$E$59,2,FALSE)) -> Gestión pública local | M154: =IF(ISERROR(VLOOKUP(K154,[2]Proposito_programa!$C$2:$E$59,3,FALSE))," ",VLOOKUP(K154,[2]Proposito_programa!$C$2:$E$59,3,FALSE)) -> Propósito 5: Construir Bogotá - Región con gobierno abierto, transparente y ciudadanía consciente | N154: 1784 | O154: 1 | P154: 88220745 | Q154: JULIO CESAR CALDERON SUAREZ | R154: Persona Natural | S154: - | T154: - | V154: 17037230 | X154: 1 | Y154: 2028242 | Z154: 19065472 | AA154: 12980747 | AB154: 2021-05-21 | AC154: 2021-05-21 | AD154: 2022-01-15 | AE154: 210 DÍAS | AF154: 1 | AG154: 25 | AN154: X | AP154: 0.26
A155: 144 | B155: 2021 | C155: FDLF-CD-144-2021 | D155: https://community.secop.gov.co/Public/Tendering/OpportunityDetail/Index?noticeUID=CO1.NTC.1985818&isFromPublicArea=True&isModal=true&asPopupView=true | E155: Contratos de prestación de servicios profesionales y de apoyo a la gestión | F155: Contratación directa | G155: Prestación de servicios profesionales y de apoyo a la gestión, o para la ejecución de trabajos artísticos que sólo puedan encomendarse a determinadas personas naturales; | H155: PRESTAR SERVICIOS PARA APOYAR ADMINISTRATIVA Y ASISTENCIALMENTE A LAS INSPECCIONES DE POLICÍA DE LA LOCALIDAD. | I155: Inversión | J155: Un nuevo Contrato Social y ambiental para la Bogotá del Siglo XXI | K155: 57 | L155: =IF(ISERROR(VLOOKUP(K155,[2]Proposito_programa!$C$2:$E$59,2,FALSE))," ",VLOOKUP(K155,[2]Proposito_programa!$C$2:$E$59,2,FALSE)) -> Gestión pública local | M155: =IF(ISERROR(VLOOKUP(K155,[2]Proposito_programa!$C$2:$E$59,3,FALSE))," ",VLOOKUP(K155,[2]Proposito_programa!$C$2:$E$59,3,FALSE)) -> Propósito 5: Construir Bogotá - Región con gobierno abierto, transparente y ciudadanía consciente | N155: 1784 | O155: 1 | P155: 1016018384 | Q155: DIEGO ALEJANDRO CASTRO MUNZA | R155: Persona Natural | S155: - | T155: - | V155: 17037230 | X155: 1 | Y155: 2028242 | Z155: 19065472 | AA155: 15414637 | AB155: 2021-05-21 | AC155: 2021-05-21 | AD155: 2022-01-15 | AE155: 210 DÍAS | AF155: 1 | AG155: 25 | AN155: X | AP155: 0.26
A156: 145 | B156: 2021 | C156: FDLF-CD-145-2021 | D156: https://community.secop.gov.co/Public/Tendering/OpportunityDetail/Index?noticeUID=CO1.NTC.1985830&isFromPublicArea=True&isModal=true&asPopupView=true | E156: Contratos de prestación de servicios profesionales y de apoyo a la gestión | F156: Contratación directa | G156: Prestación de servicios profesionales y de apoyo a la gestión, o para la ejecución de trabajos artísticos que sólo puedan encomendarse a determinadas personas naturales; | H156: PRESTAR SERVICIOS PARA APOYAR ADMINISTRATIVA Y ASISTENCIALMENTE A LAS INSPECCIONES DE POLICÍA DE LA LOCALIDAD. | I156: Inversión | J156: Un nuevo Contrato Social y ambiental para la Bogotá del Siglo XXI | K156: 57 | L156: =IF(ISERROR(VLOOKUP(K156,[2]Proposito_programa!$C$2:$E$59,2,FALSE))," ",VLOOKUP(K156,[2]Proposito_programa!$C$2:$E$59,2,FALSE)) -> Gestión pública local | M156: =IF(ISERROR(VLOOKUP(K156,[2]Proposito_programa!$C$2:$E$59,3,FALSE))," ",VLOOKUP(K156,[2]Proposito_programa!$C$2:$E$59,3,FALSE)) -> Propósito 5: Construir Bogotá - Región con gobierno abierto, transparente y ciudadanía consciente | N156: 1784 | O156: 1 | P156: 39760197 | Q156: SONIA YASMIN BAQUERO PARRADO | R156: Persona Natural | S156: - | T156: - | V156: 17037230 | X156: 1 | Y156: 2028242 | Z156: 19065472 | AA156: 15414637 | AB156: 2021-05-21 | AC156: 2021-05-21 | AD156: 2022-01-15 | AE156: 210 DÍAS | AF156: 1 | AG156: 25 | AN156: X | AP156: 0.26
A157: 146 | B157: 2021 | C157: FDLF-CD-146-2021 | D157: https://community.secop.gov.co/Public/Tendering/OpportunityDetail/Index?noticeUID=CO1.NTC.1986138&isFromPublicArea=True&isModal=true&asPopupView=true | E157: Contratos de prestación de servicios profesionales y de apoyo a la gestión | F157: Contratación directa | G157: Prestación de servicios profesionales y de apoyo a la gestión, o para la ejecución de trabajos artísticos que sólo puedan encomendarse a determinadas personas naturales; | H157: PRESTAR SERVICIOS PARA APOYAR ADMINISTRATIVA Y ASISTENCIALMENTE A LAS INSPECCIONES DE POLICÍA DE LA LOCALIDAD. | I157: Inversión | J157: Un nuevo Contrato Social y ambiental para la Bogotá del Siglo XXI | K157: 57 | L157: =IF(ISERROR(VLOOKUP(K157,[2]Proposito_programa!$C$2:$E$59,2,FALSE))," ",VLOOKUP(K157,[2]Proposito_programa!$C$2:$E$59,2,FALSE)) -> Gestión pública local | M157: =IF(ISERROR(VLOOKUP(K157,[2]Proposito_programa!$C$2:$E$59,3,FALSE))," ",VLOOKUP(K157,[2]Proposito_programa!$C$2:$E$59,3,FALSE)) -> Propósito 5: Construir Bogotá - Región con gobierno abierto, transparente y ciudadanía consciente | N157: 1784 | O157: 1 | P157: 52194536 | Q157: MIREYA RUGE PARDO | R157: Persona Natural | S157: - | T157: - | V157: 17037230 | X157: 1 | Y157: 2028242 | Z157: 19065472 | AA157: 15414637 | AB157: 2021-05-21 | AC157: 2021-05-21 | AD157: 2022-01-15 | AE157: 210 DÍAS | AF157: 1 | AG157: 25 | AN157: X | AP157: 0.81
A158: 147 | B158: 2021 | C158: FDLF-CD-147-2021 | D158: https://community.secop.gov.co/Public/Tendering/OpportunityDetail/Index?noticeUID=CO1.NTC.1993126&isFromPublicArea=True&isModal=true&asPopupView=true | E158: Contratos de prestación de servicios profesionales y de apoyo a la gestión | F158: Contratación directa | G158: Prestación de servicios profesionales y de apoyo a la gestión, o para la ejecución de trabajos artísticos que sólo puedan encomendarse a determinadas personas naturales; | H158: PRESTAR SERVICIOS DE APOYO TÉCNICO AL ÁREA DE GESTIÓN DE DESARROLLO LOCAL DE FONTIBÓN COMO MONITOR DEPORTIVO PARA LA FORMACIÓN DE LAS ESCUELAS DEPORTIVAS DE FONTIBÓN | I158: Inversión | J158: Un nuevo Contrato Social y ambiental para la Bogotá del Siglo XXI | K158: 20 | L158: =IF(ISERROR(VLOOKUP(K158,[2]Proposito_programa!$C$2:$E$59,2,FALSE))," ",VLOOKUP(K158,[2]Proposito_programa!$C$2:$E$59,2,FALSE)) -> Bogotá, referente en cultura, deporte, recreación y actividad física, con parques para el desarrollo y la salud | M158: =IF(ISERROR(VLOOKUP(K158,[2]Proposito_programa!$C$2:$E$59,3,FALSE))," ",VLOOKUP(K158,[2]Proposito_programa!$C$2:$E$59,3,FALSE)) -> Propósito 1: Hacer un nuevo contrato social para incrementar la inclusión social, productiva y política | N158: 1757 | O158: 1 | P158: 1016005310 | Q158: FREDDY ALEJANDRO ROJAS GONZALEZ | R158: Persona Natural | S158: - | T158: - | V158: 18506950 | X158: 1 | Y158: 2291337 | Z158: 20798287 | AA158: 16391870 | AB158: 2021-05-25 | AC158: 2021-05-25 | AD158: 2022-01-20 | AE158: 210 DÍAS | AF158: 1 | AG158: 26 | AN158: X | AP158: 0.79
A159: 148 | B159: 2021 | C159: FDLF-CD-148-2021 | D159: https://community.secop.gov.co/Public/Tendering/OpportunityDetail/Index?noticeUID=CO1.NTC.1998673&isFromPublicArea=True&isModal=true&asPopupView=true | E159: Arrendamiento de bienes inmuebles | F159: Contratación directa | G159: Prestación de servicios profesionales y de apoyo a la gestión, o para la ejecución de trabajos artísticos que sólo puedan encomendarse a determinadas personas naturales; | H159: ARRENDAMIENTO BODEGA Y PARQUEADERO PARA LOS DIFERENTES ELEMENTOS Y VEHÍCULOS, MAQUINARIA PESADA DEL FONDO DE DESARROLLO LOCAL DE FONTIBÓN | I159: Funcionamiento | J159: Un nuevo Contrato Social y ambiental para la Bogotá del Siglo XXI | K159: No aplica | L159: =IF(ISERROR(VLOOKUP(K159,[2]Proposito_programa!$C$2:$E$59,2,FALSE))," ",VLOOKUP(K159,[2]Proposito_programa!$C$2:$E$59,2,FALSE)) ->  | M159: =IF(ISERROR(VLOOKUP(K159,[2]Proposito_programa!$C$2:$E$59,3,FALSE))," ",VLOOKUP(K159,[2]Proposito_programa!$C$2:$E$59,3,FALSE)) ->  | N159: 201 | O159: 1 | P159: 900200519 | Q159: INVERSIONES CAOVA SAS | R159: Persona Jurídica | S159: - | T159: - | V159: 56700000 | X159: 0 | Y159: 0 | Z159: 56700000 | AA159: 47250000 | AB159: 2021-05-27 | AC159: 2021-05-27 | AD159: 2021-11-26 | AE159: 180 DÍAS | AF159: 0 | AG159: 0 | AN159: X | AP159: 0.5
A160: 149 | B160: 2021 | C160: FDLF-CD-149-2021 | D160: https://community.secop.gov.co/Public/Tendering/OpportunityDetail/Index?noticeUID=CO1.NTC.1999962&isFromPublicArea=True&isModal=true&asPopupView=true | E160: Contratos de prestación de servicios profesionales y de apoyo a la gestión | F160: Contratación directa | G160: Prestación de servicios profesionales y de apoyo a la gestión, o para la ejecución de trabajos artísticos que sólo puedan encomendarse a determinadas personas naturales; | H160: PRESTAR SERVICIOS PARA APOYAR LAS LABORES DE ENTREGA Y RECIBO DE LAS COMUNICACIONES EMITIDAS O RECIBIDAS POR LAS INSPECCIONES DE POLICÍA DE LA LOCALIDAD DE FONTIBÓN. | I160: Inversión | J160: Un nuevo Contrato Social y ambiental para la Bogotá del Siglo XXI | K160: 57 | L160: =IF(ISERROR(VLOOKUP(K160,[2]Proposito_programa!$C$2:$E$59,2,FALSE))," ",VLOOKUP(K160,[2]Proposito_programa!$C$2:$E$59,2,FALSE)) -> Gestión pública local | M160: =IF(ISERROR(VLOOKUP(K160,[2]Proposito_programa!$C$2:$E$59,3,FALSE))," ",VLOOKUP(K160,[2]Proposito_programa!$C$2:$E$59,3,FALSE)) -> Propósito 5: Construir Bogotá - Región con gobierno abierto, transparente y ciudadanía consciente | N160: 1784 | O160: 1 | P160: 1016034743 | Q160: JUAN ANTONIO ESPITIA ACERO | R160: Persona Natural | S160: - | T160: - | V160: 18200000 | X160: 0 | Y160: 0 | Z160: 18200000 | AA160: 15600000 | AB160: 2021-05-31 | AC160: 2021-05-31 | AD160: 2021-12-30 | AE160: 210 DÍAS | AF160: 0 | AG160: 0 | AN160: X | AP160: 0.29
A161: 150 | B161: 2021 | C161: FDLF-CD-150-2021 | D161: https://community.secop.gov.co/Public/Tendering/OpportunityDetail/Index?noticeUID=CO1.NTC.2016638&isFromPublicArea=True&isModal=true&asPopupView=true | E161: Contratos de prestación de servicios profesionales y de apoyo a la gestión | F161: Contratación directa | G161: Prestación de servicios profesionales y de apoyo a la gestión, o para la ejecución de trabajos artísticos que sólo puedan encomendarse a determinadas personas naturales; | H161: PRESTAR SERVICIOS PROFESIONALES PARA EL DESARROLLO Y MONITOREO DE ACCIONES DE SALUD PÚBLICA EN LA LOCALIDAD DE FONTIBÓN CON ÉNFASIS EN SUSTANCIAS PSICOACTIVAS, ENTORNO COMUNITARIO. | I161: Inversión | J161: Un nuevo Contrato Social y ambiental para la Bogotá del Siglo XXI | K161: 6 | L161: =IF(ISERROR(VLOOKUP(K161,[2]Proposito_programa!$C$2:$E$59,2,FALSE))," ",VLOOKUP(K161,[2]Proposito_programa!$C$2:$E$59,2,FALSE)) -> Sistema Distrital de Cuidado | M161: =IF(ISERROR(VLOOKUP(K161,[2]Proposito_programa!$C$2:$E$59,3,FALSE))," ",VLOOKUP(K161,[2]Proposito_programa!$C$2:$E$59,3,FALSE)) -> Propósito 1: Hacer un nuevo contrato social para incrementar la inclusión social, productiva y política | N161: 1764 | O161: 1 | P161: 1016024724 | Q161: GINA PAOLA RODRIGUEZ RIAÑO | R161: Persona Natural | S161: - | T161: - | V161: 29509433 | X161: 0 | Y161: 0 | Z161: 29509433 | AA161: 25148433 | AB161: 2021-06-08 | AC161: 2021-06-08 | AD161: 2021-12-30 | AE161: 203 DÍAS | AF161: 0 | AG161: 0 | AN161: X | AP161: 0.85
A162: 151 | B162: 2021 | C162: FDLF-CD-151-2021 | D162: https://community.secop.gov.co/Public/Tendering/OpportunityDetail/Index?noticeUID=CO1.NTC.2012533&isFromPublicArea=True&isModal=true&asPopupView=true | E162: Contratos de prestación de servicios profesionales y de apoyo a la gestión | F162: Contratación directa | G162: Prestación de servicios profesionales y de apoyo a la gestión, o para la ejecución de trabajos artísticos que sólo puedan encomendarse a determinadas personas naturales; | H162: PRESTAR SERVICIOS DE APOYO TÉCNICO AL ÁREA DE GESTIÓN DE DESARROLLO LOCAL DE FONTIBÓN COMO MONITOR DEPORTIVO PARA LA FORMACIÓN DE LAS ESCUELAS DEPORTIVAS DE FONTIBÓN | I162: Inversión | J162: Un nuevo Contrato Social y ambiental para la Bogotá del Siglo XXI | K162: 20 | L162: =IF(ISERROR(VLOOKUP(K162,[2]Proposito_programa!$C$2:$E$59,2,FALSE))," ",VLOOKUP(K162,[2]Proposito_programa!$C$2:$E$59,2,FALSE)) -> Bogotá, referente en cultura, deporte, recreación y actividad física, con parques para el desarrollo y la salud | M162: =IF(ISERROR(VLOOKUP(K162,[2]Proposito_programa!$C$2:$E$59,3,FALSE))," ",VLOOKUP(K162,[2]Proposito_programa!$C$2:$E$59,3,FALSE)) -> Propósito 1: Hacer un nuevo contrato social para incrementar la inclusión social, productiva y política | N162: 1757 | O162: 1 | P162: 1016109467 | Q162: DORIS ADRIANA RODRIGUEZ FONSECA | R162: Persona Natural | S162: - | T162: - | V162: 17801923 | X162: 0 | Y162: 0 | Z162: 17801923 | AA162: 15598715 | AB162: 2021-06-04 | AC162: 2021-06-04 | AD162: 2021-12-25 | AE162: 202 DÍAS | AF162: 0 | AG162: 0 | AN162: X | AP162: 0.88
A163: 152 | B163: 2021 | C163: FDLF-CD-152-2021 | D163: https://community.secop.gov.co/Public/Tendering/OpportunityDetail/Index?noticeUID=CO1.NTC.2016741&isFromPublicArea=True&isModal=true&asPopupView=true | E163: Contratos de prestación de servicios profesionales y de apoyo a la gestión | F163: Contratación directa | G163: Prestación de servicios profesionales y de apoyo a la gestión, o para la ejecución de trabajos artísticos que sólo puedan encomendarse a determinadas personas naturales; | H163: SERVICIOS DE APOYO TÉCNICO PARA TRÁMITE Y DESARROLLO DE LOS DESPACHOS COMISORIOS QUE POR COMPETENCIA CORRESPONDEN A LA ALCALDÍA LOCAL DE FONTIBÓN. | I163: Inversión | J163: Un nuevo Contrato Social y ambiental para la Bogotá del Siglo XXI | K163: 57 | L163: =IF(ISERROR(VLOOKUP(K163,[2]Proposito_programa!$C$2:$E$59,2,FALSE))," ",VLOOKUP(K163,[2]Proposito_programa!$C$2:$E$59,2,FALSE)) -> Gestión pública local | M163: =IF(ISERROR(VLOOKUP(K163,[2]Proposito_programa!$C$2:$E$59,3,FALSE))," ",VLOOKUP(K163,[2]Proposito_programa!$C$2:$E$59,3,FALSE)) -> Propósito 5: Construir Bogotá - Región con gobierno abierto, transparente y ciudadanía consciente | N163: 1783 | O163: 1 | P163: 35221867 | Q163: MARIA JOHANA LOPEZ ULCUE | R163: Persona Natural | S163: - | T163: - | V163: 26484733 | X163: 0 | Y163: 0 | Z163: 26484733 | AA163: 22570733 | AB163: 2021-06-08 | AC163: 2021-06-08 | AD163: 2021-12-30 | AE163: 203 DÍAS | AF163: 0 | AG163: 0 | AN163: X | AP163: 0.18
A164: 153 | B164: 2021 | C164: FDLF-CD-153-2021 | D164: https://community.secop.gov.co/Public/Tendering/OpportunityDetail/Index?noticeUID=CO1.NTC.2016665&isFromPublicArea=True&isModal=true&asPopupView=true | E164: Contratos de prestación de servicios profesionales y de apoyo a la gestión | F164: Contratación directa | G164: Prestación de servicios profesionales y de apoyo a la gestión, o para la ejecución de trabajos artísticos que sólo puedan encomendarse a determinadas personas naturales; | H164: PRESTAR SERVICIOS PROFESIONALES PARA APOYAR LOS PROCESOS RELACIONADOS CON LOS CONTRATOS DE INVERSIÓN, VERIFICACIÓN DEL PROCEDIMIENTO DE PAGOS Y REVISIÓN DE CARPETAS ALLEGADAS AL DESPACHO PARA SU RESPECTIVA FIRMA DEL ALCALDE LOCAL. | I164: Inversión | J164: Un nuevo Contrato Social y ambiental para la Bogotá del Siglo XXI | K164: 57 | L164: =IF(ISERROR(VLOOKUP(K164,[2]Proposito_programa!$C$2:$E$59,2,FALSE))," ",VLOOKUP(K164,[2]Proposito_programa!$C$2:$E$59,2,FALSE)) -> Gestión pública local | M164: =IF(ISERROR(VLOOKUP(K164,[2]Proposito_programa!$C$2:$E$59,3,FALSE))," ",VLOOKUP(K164,[2]Proposito_programa!$C$2:$E$59,3,FALSE)) -> Propósito 5: Construir Bogotá - Región con gobierno abierto, transparente y ciudadanía consciente | N164: 1783 | O164: 1 | P164: 79531044 | Q164: NELSON RODOLFO OSORIO PINILLA | R164: Persona Natural | S164: - | T164: - | V164: 33833333 | X164: 1 | Y164: 2666667 | Z164: 36500000 | AA164: 26333333 | AB164: 2021-06-08 | AC164: 2021-06-08 | AD164: 2022-01-16 | AE164: 203 DÍAS | AF164: 1 | AG164: 16 | AN164: X | AP164: 0.72
A165: 154 | B165: 2021 | C165: FDLF-CD-154-2021 | D165: https://www.contratos.gov.co/consultas/detalleProceso.do?numConstancia=21-22-26521&g | E165: Convenios de cooperacion | F165: Contratación directa | G165: Contratos interadministrativos | H165: AUNAR ESFUERZOS TÉCNICOS Y ADMINISTRATIVOS CON EL FIN DE DESARROLLAR ACCIONES ARTICULADAS ENTRE LAS PARTES ORIENTADAS A FOMENTAR LA GENERACIÓN Y CIRCULACIÓN DE BIENES Y SERVICIOS CULTURALES, ASÍ COMO AL FORTALECIMIENTO DE LOS AGENTES DE ESTOS SECTORES EN LAS LOCALIDADES DEL DISTRITO CAPITAL QUE HACEN PARTE DE ESTE INSTRUMENTO. | I165: Inversión | J165: Un nuevo Contrato Social y ambiental para la Bogotá del Siglo XXI | K165: 21 | L165: =IF(ISERROR(VLOOKUP(K165,[2]Proposito_programa!$C$2:$E$59,2,FALSE))," ",VLOOKUP(K165,[2]Proposito_programa!$C$2:$E$59,2,FALSE)) -> Creación y vida cotidiana: Apropiación ciudadana del arte, la cultura y el patrimonio, para la democracia cultural | M165: =IF(ISERROR(VLOOKUP(K165,[2]Proposito_programa!$C$2:$E$59,3,FALSE))," ",VLOOKUP(K165,[2]Proposito_programa!$C$2:$E$59,3,FALSE)) -> Propósito 1: Hacer un nuevo contrato social para incrementar la inclusión social, productiva y política | N165: 1758 | O165: 1 | P165: 899999061 | Q165: SECRETARIA DISTRITAL DE CULTURA RECREACIÓN Y DEPORTE | R165: Persona Jurídica | S165: - | T165: - | V165: 0 | X165: 0 | Y165: 0 | Z165: 0 | AA165: $ - | AB165: 2021-06-04 | AC165: 2021-06-28 | AD165: 2022-06-30 | AE165: 368 DÍAS | AF165: 0 | AG165: 0 | AM165: X | AP165: 0.18
A166: 155 | B166: 2021 | C166: FDLF-CD-155-2021 | D166: https://community.secop.gov.co/Public/Tendering/OpportunityDetail/Index?noticeUID=CO1.NTC.2027068&isFromPublicArea=True&isModal=true&asPopupView=true | E166: Contratos de prestación de servicios profesionales y de apoyo a la gestión | F166: Contratación directa | G166: Prestación de servicios profesionales y de apoyo a la gestión, o para la ejecución de trabajos artísticos que sólo puedan encomendarse a determinadas personas naturales; | H166: PRESTAR SERVICIOS DE APOYO AL ÁREA DE GESTIÓN DEL DESARROLLO LOCAL DE FONTIBÓN EN ACTIVIDADES INHERENTES A LA PLANEACIÓN. | I166: Inversión | J166: Un nuevo Contrato Social y ambiental para la Bogotá del Siglo XXI | K166: 57 | L166: =IF(ISERROR(VLOOKUP(K166,[2]Proposito_programa!$C$2:$E$59,2,FALSE))," ",VLOOKUP(K166,[2]Proposito_programa!$C$2:$E$59,2,FALSE)) -> Gestión pública local | M166: =IF(ISERROR(VLOOKUP(K166,[2]Proposito_programa!$C$2:$E$59,3,FALSE))," ",VLOOKUP(K166,[2]Proposito_programa!$C$2:$E$59,3,FALSE)) -> Propósito 5: Construir Bogotá - Región con gobierno abierto, transparente y ciudadanía consciente | N166: 1783 | O166: 1 | P166: 52806783 | Q166: JENNY PAOLA PINZON SANCHEZ | R166: Persona Natural | S166: - | T166: - | V166: 16225933 | X166: 1 | Y166: 1298075 | Z166: =Y166+V166+W166 -> 17524008 | AA166: 13792043 | AB166: 2021-06-11 | AC166: 2021-06-11 | AD166: 2022-01-16 | AE166: 200 DÍAS | AF166: 1 | AG166: 16 | AN166: X | AP166: 0.79
A167: 156 | B167: 2021 | C167: FDLF-CD-156-2021 | D167: https://community.secop.gov.co/Public/Tendering/OpportunityDetail/Index?noticeUID=CO1.NTC.2034619&isFromPublicArea=True&isModal=true&asPopupView=true | E167: Contratos de prestación de servicios profesionales y de apoyo a la gestión | F167: Contratación directa | G167: Prestación de servicios profesionales y de apoyo a la gestión, o para la ejecución de trabajos artísticos que sólo puedan encomendarse a determinadas personas naturales; | H167: PRESTAR SERVICIOS DE APOYO EN LAS ACTIVIDADES DE SEGURIDAD Y CONVIVENCIA CIUDADANA, DE ACUERDO CON LAS NECESIDADES Y ESTRATEGIAS EMANADAS POR EL ÁREA DE GESTIÓN DEL DESARROLLO LOCAL, DE LA ALCALDÍA LOCAL DE FONTIBÓN. | I167: Inversión | J167: Un nuevo Contrato Social y ambiental para la Bogotá del Siglo XXI | K167: 43 | L167: =IF(ISERROR(VLOOKUP(K167,[2]Proposito_programa!$C$2:$E$59,2,FALSE))," ",VLOOKUP(K167,[2]Proposito_programa!$C$2:$E$59,2,FALSE)) -> Cultura ciudadana para la confianza, la convivencia y la participación desde la vida cotidiana | M167: =IF(ISERROR(VLOOKUP(K167,[2]Proposito_programa!$C$2:$E$59,3,FALSE))," ",VLOOKUP(K167,[2]Proposito_programa!$C$2:$E$59,3,FALSE)) -> Propósito 3: Inspirar confianza y legitimidad para vivir sin miedo y ser epicentro de cultura ciudadana, paz y reconciliación | N167: 1775 | O167: 1 | P167: 1016040374 | Q167: PAOLA ANDREA QUIROGA ARIAS | R167: Persona Natural | S167: - | T167: - | V167: 15739155 | X167: 1 | Y167: 2028242 | Z167: 17767397 | AA167: 13305265 | AB167: 2021-06-17 | AC167: 2021-06-17 | AD167: 2022-01-25 | AE167: 194 DÍAS | AF167: 1 | AG167: 25 | AN167: X | AP167: 0.75
A168: 157 | B168: 2021 | C168: FDLF-CD-157-2021 | D168: https://community.secop.gov.co/Public/Tendering/OpportunityDetail/Index?noticeUID=CO1.NTC.2034342&isFromPublicArea=True&isModal=true&asPopupView=true | E168: Contratos de prestación de servicios profesionales y de apoyo a la gestión | F168: Contratación directa | G168: Prestación de servicios profesionales y de apoyo a la gestión, o para la ejecución de trabajos artísticos que sólo puedan encomendarse a determinadas personas naturales; | H168: PRESTAR SERVICIOS DE APOYO EN LAS ACTIVIDADES DE SEGURIDAD Y CONVIVENCIA CIUDADANA, DE ACUERDO CON LAS NECESIDADES Y ESTRATEGIAS EMANADAS POR EL ÁREA DE GESTIÓN DEL DESARROLLO LOCAL, DE LA ALCALDÍA LOCAL DE FONTIBÓN. | I168: Inversión | J168: Un nuevo Contrato Social y ambiental para la Bogotá del Siglo XXI | K168: 43 | L168: =IF(ISERROR(VLOOKUP(K168,[2]Proposito_programa!$C$2:$E$59,2,FALSE))," ",VLOOKUP(K168,[2]Proposito_programa!$C$2:$E$59,2,FALSE)) -> Cultura ciudadana para la confianza, la convivencia y la participación desde la vida cotidiana | M168: =IF(ISERROR(VLOOKUP(K168,[2]Proposito_programa!$C$2:$E$59,3,FALSE))," ",VLOOKUP(K168,[2]Proposito_programa!$C$2:$E$59,3,FALSE)) -> Propósito 3: Inspirar confianza y legitimidad para vivir sin miedo y ser epicentro de cultura ciudadana, paz y reconciliación | N168: 1775 | O168: 1 | P168: 1016052722 | Q168: JESSICA MILENA MARTINEZ RIVERA | R168: Persona Natural | S168: - | T168: - | V168: 15739155 | X168: 1 | Y168: 2028242 | Z168: 17767397 | AA168: 13305265 | AB168: 2021-06-17 | AC168: 2021-06-17 | AD168: 2022-01-25 | AE168: 196 DÍAS | AF168: 1 | AG168: 25 | AN168: X | AP168: 0.75
A169: 158 | B169: 2021 | C169: FDLF-CD-158-2021 | D169: https://community.secop.gov.co/Public/Tendering/OpportunityDetail/Index?noticeUID=CO1.NTC.2040031&isFromPublicArea=True&isModal=true&asPopupView=true | E169: Contratos de prestación de servicios profesionales y de apoyo a la gestión | F169: Contratación directa | G169: Prestación de servicios profesionales y de apoyo a la gestión, o para la ejecución de trabajos artísticos que sólo puedan encomendarse a determinadas personas naturales; | H169: PRESTAR SERVICIOS DE APOYO EN LAS ACTIVIDADES DE SEGURIDAD Y CONVIVENCIA CIUDADANA, DE ACUERDO CON LAS NECESIDADES Y ESTRATEGIAS EMANADAS POR EL ÁREA DE GESTIÓN DEL DESARROLLO LOCAL, DE LA ALCALDÍA LOCAL DE FONTIBÓN. | I169: Inversión | J169: Un nuevo Contrato Social y ambiental para la Bogotá del Siglo XXI | K169: 43 | L169: =IF(ISERROR(VLOOKUP(K169,[2]Proposito_programa!$C$2:$E$59,2,FALSE))," ",VLOOKUP(K169,[2]Proposito_programa!$C$2:$E$59,2,FALSE)) -> Cultura ciudadana para la confianza, la convivencia y la participación desde la vida cotidiana | M169: =IF(ISERROR(VLOOKUP(K169,[2]Proposito_programa!$C$2:$E$59,3,FALSE))," ",VLOOKUP(K169,[2]Proposito_programa!$C$2:$E$59,3,FALSE)) -> Propósito 3: Inspirar confianza y legitimidad para vivir sin miedo y ser epicentro de cultura ciudadana, paz y reconciliación | N169: 1775 | O169: 1 | P169: 80418976 | Q169: JULIO CESAR MUÑOZ OLMOS | R169: Persona Natural | S169: - | T169: - | V169: 15414637 | X169: 1 | Y169: 1947112 | Z169: 17361749 | AA169: 12899617 | AB169: 2021-06-22 | AC169: 2021-06-22 | AD169: 2022-01-24 | AE169: 190 DÍAS | AF169: 1 | AG169: 24 | AN169: X | AP169: 0.74
A170: 159 | B170: 2021 | C170: FDLF-CD-159-2021 | D170: https://community.secop.gov.co/Public/Tendering/OpportunityDetail/Index?noticeUID=CO1.NTC.2046118&isFromPublicArea=True&isModal=true&asPopupView=true | E170: Contratos de prestación de servicios profesionales y de apoyo a la gestión | F170: Contratación directa | G170: Prestación de servicios profesionales y de apoyo a la gestión, o para la ejecución de trabajos artísticos que sólo puedan encomendarse a determinadas personas naturales; | H170: PRESTAR SERVICIOS DE APOYO EN LAS ACTIVIDADES DE SEGURIDAD Y CONVIVENCIA CIUDADANA, DE ACUERDO CON LAS NECESIDADES Y ESTRATEGIAS EMANADAS POR EL ÁREA DE GESTIÓN DEL DESARROLLO LOCAL, DE LA ALCALDÍA LOCAL DE FONTIBÓN. | I170: Inversión | J170: Un nuevo Contrato Social y ambiental para la Bogotá del Siglo XXI | K170: 43 | L170: =IF(ISERROR(VLOOKUP(K170,[2]Proposito_programa!$C$2:$E$59,2,FALSE))," ",VLOOKUP(K170,[2]Proposito_programa!$C$2:$E$59,2,FALSE)) -> Cultura ciudadana para la confianza, la convivencia y la participación desde la vida cotidiana | M170: =IF(ISERROR(VLOOKUP(K170,[2]Proposito_programa!$C$2:$E$59,3,FALSE))," ",VLOOKUP(K170,[2]Proposito_programa!$C$2:$E$59,3,FALSE)) -> Propósito 3: Inspirar confianza y legitimidad para vivir sin miedo y ser epicentro de cultura ciudadana, paz y reconciliación | N170: 1775 | O170: 1 | P170: 79133267 | Q170: ANGEL HIPOLITO BEJARANO LOMBANA | R170: Persona Natural | S170: - | T170: - | V170: 15252377 | X170: 0 | Y170: 0 | Z170: 15252377 | AA170: 12818487 | AB170: 2021-06-23 | AC170: 2021-06-23 | AD170: 2021-12-30 | AE170: 190 DÍAS | AF170: 0 | AG170: 0 | AN170: X | AP170: 0.84
A171: 160 | B171: 2021 | C171: FDLF-CD-160-2021 | D171: https://community.secop.gov.co/Public/Tendering/OpportunityDetail/Index?noticeUID=CO1.NTC.2041940&isFromPublicArea=True&isModal=true&asPopupView=true | E171: Contratos de prestación de servicios profesionales y de apoyo a la gestión | F171: Contratación directa | G171: Prestación de servicios profesionales y de apoyo a la gestión, o para la ejecución de trabajos artísticos que sólo puedan encomendarse a determinadas personas naturales; | H171: PRESTAR SERVICIOS DE APOYO PROFESIONAL AL ÁREA DE GESTIÓN DE DESARROLLO LOCAL DE FONTIBÓN ORIENTADO AL DESARROLLO DE LAS ESCUELAS DE FORMACIÓN DEPORTIVA DE FONTIBÓN | I171: Inversión | J171: Un nuevo Contrato Social y ambiental para la Bogotá del Siglo XXI | K171: 20 | L171: =IF(ISERROR(VLOOKUP(K171,[2]Proposito_programa!$C$2:$E$59,2,FALSE))," ",VLOOKUP(K171,[2]Proposito_programa!$C$2:$E$59,2,FALSE)) -> Bogotá, referente en cultura, deporte, recreación y actividad física, con parques para el desarrollo y la salud | M171: =IF(ISERROR(VLOOKUP(K171,[2]Proposito_programa!$C$2:$E$59,3,FALSE))," ",VLOOKUP(K171,[2]Proposito_programa!$C$2:$E$59,3,FALSE)) -> Propósito 1: Hacer un nuevo contrato social para incrementar la inclusión social, productiva y política | N171: 1757 | O171: 1 | P171: 79901384 | Q171: LEONARDO LUQUE GOMEZ | R171: Persona Natural | S171: - | T171: - | V171: 27474300 | X171: 0 | Y171: 0 | Z171: 27474300 | AA171: 23113300 | AB171: 2021-06-22 | AC171: 2021-06-22 | AD171: 2021-12-30 | AE171: 189 DÍAS | AF171: 0 | AG171: 0 | AN171: X | AP171: 0.84
A172: 161 | B172: 2021 | C172: FDLF-CD-161-2021 | D172: https://community.secop.gov.co/Public/Tendering/OpportunityDetail/Index?noticeUID=CO1.NTC.2046793&isFromPublicArea=True&isModal=true&asPopupView=true | E172: Contratos de prestación de servicios profesionales y de apoyo a la gestión | F172: Contratación directa | G172: Prestación de servicios profesionales y de apoyo a la gestión, o para la ejecución de trabajos artísticos que sólo puedan encomendarse a determinadas personas naturales; | H172: PRESTAR SERVICIOS DE APOYO EN LAS ACTIVIDADES DE SEGURIDAD Y CONVIVENCIA CIUDADANA, DE ACUERDO CON LAS NECESIDADES Y ESTRATEGIAS EMANADAS POR EL ÁREA DE GESTIÓN DEL DESARROLLO LOCAL, DE LA ALCALDÍA LOCAL DE FONTIBÓN. | I172: Inversión | J172: Un nuevo Contrato Social y ambiental para la Bogotá del Siglo XXI | K172: 43 | L172: =IF(ISERROR(VLOOKUP(K172,[2]Proposito_programa!$C$2:$E$59,2,FALSE))," ",VLOOKUP(K172,[2]Proposito_programa!$C$2:$E$59,2,FALSE)) -> Cultura ciudadana para la confianza, la convivencia y la participación desde la vida cotidiana | M172: =IF(ISERROR(VLOOKUP(K172,[2]Proposito_programa!$C$2:$E$59,3,FALSE))," ",VLOOKUP(K172,[2]Proposito_programa!$C$2:$E$59,3,FALSE)) -> Propósito 3: Inspirar confianza y legitimidad para vivir sin miedo y ser epicentro de cultura ciudadana, paz y reconciliación | N172: 1775 | O172: 1 | P172: 11637319 | Q172: JAVIER BONILLA CAICEDO | R172: Persona Natural | S172: - | T172: - | V172: 15171248 | X172: 1 | Y172: 1784853 | Z172: 16956101 | AA172: 12737357 | AB172: 2021-06-24 | AC172: 2021-06-24 | AD172: 2022-01-22 | AE172: 187 DÍAS | AF172: 1 | AG172: 22 | AN172: X | AP172: 0.75
A173: 162 | B173: 2021 | C173: FDLF-CD-162-2021 | D173: https://community.secop.gov.co/Public/Tendering/OpportunityDetail/Index?noticeUID=CO1.NTC.2050130&isFromPublicArea=True&isModal=true&asPopupView=true | E173: Contratos de prestación de servicios profesionales y de apoyo a la gestión | F173: Contratación directa | G173: Prestación de servicios profesionales y de apoyo a la gestión, o para la ejecución de trabajos artísticos que sólo puedan encomendarse a determinadas personas naturales; | H173: PRESTAR SERVICIOS DE APOYO EN LAS ACTIVIDADES DE SEGURIDAD Y CONVIVENCIA CIUDADANA, DE ACUERDO CON LAS NECESIDADES Y ESTRATEGIAS EMANADAS POR EL ÁREA DE GESTIÓN DEL DESARROLLO LOCAL, DE LA ALCALDÍA LOCAL DE FONTIBÓN. | I173: Inversión | J173: Un nuevo Contrato Social y ambiental para la Bogotá del Siglo XXI | K173: 43 | L173: =IF(ISERROR(VLOOKUP(K173,[2]Proposito_programa!$C$2:$E$59,2,FALSE))," ",VLOOKUP(K173,[2]Proposito_programa!$C$2:$E$59,2,FALSE)) -> Cultura ciudadana para la confianza, la convivencia y la participación desde la vida cotidiana | M173: =IF(ISERROR(VLOOKUP(K173,[2]Proposito_programa!$C$2:$E$59,3,FALSE))," ",VLOOKUP(K173,[2]Proposito_programa!$C$2:$E$59,3,FALSE)) -> Propósito 3: Inspirar confianza y legitimidad para vivir sin miedo y ser epicentro de cultura ciudadana, paz y reconciliación | N173: 1775 | O173: 1 | P173: 11430819 | Q173: ESAU ARNULFO AMORTEGUI PINEDA | R173: Persona Natural | S173: - | T173: - | V173: 15090118 | X173: 0 | Y173: 0 | Z173: 15090118 | AA173: 10222338 | AB173: 2021-06-25 | AC173: 2021-06-25 | AD173: 2021-12-30 | AE173: 186 DÍAS | AF173: 0 | AG173: 0 | AN173: X | AP173: 0.68
A174: 163 | B174: 2021 | C174: FDLF-CD-163-2021 | D174: https://community.secop.gov.co/Public/Tendering/OpportunityDetail/Index?noticeUID=CO1.NTC.2049680&isFromPublicArea=True&isModal=true&asPopupView=true | E174: Contratos de prestación de servicios profesionales y de apoyo a la gestión | F174: Contratación directa | G174: Prestación de servicios profesionales y de apoyo a la gestión, o para la ejecución de trabajos artísticos que sólo puedan encomendarse a determinadas personas naturales; | H174: PRESTAR SERVICIOS DE APOYO TÉCNICO AL ÁREA DE GESTIÓN DE DESARROLLO LOCAL DE FONTIBÓN COMO MONITOR DEPORTIVO PARA LA FORMACIÓN DE LAS ESCUELAS DEPORTIVAS DE FONTIBÓN | I174: Inversión | J174: Un nuevo Contrato Social y ambiental para la Bogotá del Siglo XXI | K174: 20 | L174: =IF(ISERROR(VLOOKUP(K174,[2]Proposito_programa!$C$2:$E$59,2,FALSE))," ",VLOOKUP(K174,[2]Proposito_programa!$C$2:$E$59,2,FALSE)) -> Bogotá, referente en cultura, deporte, recreación y actividad física, con parques para el desarrollo y la salud | M174: =IF(ISERROR(VLOOKUP(K174,[2]Proposito_programa!$C$2:$E$59,3,FALSE))," ",VLOOKUP(K174,[2]Proposito_programa!$C$2:$E$59,3,FALSE)) -> Propósito 1: Hacer un nuevo contrato social para incrementar la inclusión social, productiva y política | N174: 1757 | O174: 1 | P174: 1013644299 | Q174: WILLIAM JAVIER REYES RUGELES | R174: Persona Natural | S174: - | T174: - | V174: 15863100 | X174: 0 | Y174: 0 | Z174: 0 | AB174: 2021-06-23 | AC174: 2021-06-23 | AD174: 2021-06-23 | AE174: 180 DÍAS | AF174: 0 | AG174: 0 | AN174: X | AP174: 0.58
A175: 164 | B175: 2021 | C175: FDLF-CD-164-2021 | D175: https://community.secop.gov.co/Public/Tendering/OpportunityDetail/Index?noticeUID=CO1.NTC.2053626&isFromPublicArea=True&isModal=true&asPopupView=true | E175: Contratos de prestación de servicios profesionales y de apoyo a la gestión | F175: Contratación directa | G175: Prestación de servicios profesionales y de apoyo a la gestión, o para la ejecución de trabajos artísticos que sólo puedan encomendarse a determinadas personas naturales; | H175: PRESTAR SERVICIOS PROFESIONALES PARA APOYAR A LA ALCALDÍA LOCAL DE FONTIBÓN EN TEMAS ORIENTADOS A LA PREVENCIÓN DEL EMBARAZO ADOLESCENTE EN LA LOCALIDAD. | I175: Inversión | J175: Un nuevo Contrato Social y ambiental para la Bogotá del Siglo XXI | K175: 8 | L175: =IF(ISERROR(VLOOKUP(K175,[2]Proposito_programa!$C$2:$E$59,2,FALSE))," ",VLOOKUP(K175,[2]Proposito_programa!$C$2:$E$59,2,FALSE)) -> Prevención y atención de maternidad temprana | M175: =IF(ISERROR(VLOOKUP(K175,[2]Proposito_programa!$C$2:$E$59,3,FALSE))," ",VLOOKUP(K175,[2]Proposito_programa!$C$2:$E$59,3,FALSE)) -> Propósito 1: Hacer un nuevo contrato social para incrementar la inclusión social, productiva y política | N175: 1765 | O175: 1 | P175: 1022333300 | Q175: VIVIANA PAOLA MORALES SAGANOME | R175: Persona Natural | S175: - | T175: - | V175: 24985000 | X175: 0 | Y175: 0 | Z175: =Y175+V175+W175 -> 24985000 | AA175: 20487700 | AB175: 2021-06-28 | AC175: 2021-06-28 | AD175: 2021-11-27 | AE175: 150 DÍAS | AF175: 0 | AG175: 0 | AN175: X | AP175: 0.82
A176: 165 | B176: 2021 | C176: FDLF-CD-165-2021 | D176: https://community.secop.gov.co/Public/Tendering/OpportunityDetail/Index?noticeUID=CO1.NTC.2054068&isFromPublicArea=True&isModal=true&asPopupView=true | E176: Contratos de prestación de servicios profesionales y de apoyo a la gestión | F176: Contratación directa | G176: Prestación de servicios profesionales y de apoyo a la gestión, o para la ejecución de trabajos artísticos que sólo puedan encomendarse a determinadas personas naturales; | H176: PRESTAR LOS SERVICIOS COMO TÉCNICO ELECTRICISTA PARA ACTIVIDADES RELACIONADAS CON LA ADMINISTRACIÓN, MANTENIMIENTO Y ADECUACIONES MENORES DE LAS SEDES DE LA ALCALDÍA LOCAL DE FONTIBÓN. | I176: Inversión | J176: Un nuevo Contrato Social y ambiental para la Bogotá del Siglo XXI | K176: 57 | L176: =IF(ISERROR(VLOOKUP(K176,[2]Proposito_programa!$C$2:$E$59,2,FALSE))," ",VLOOKUP(K176,[2]Proposito_programa!$C$2:$E$59,2,FALSE)) -> Gestión pública local | M176: =IF(ISERROR(VLOOKUP(K176,[2]Proposito_programa!$C$2:$E$59,3,FALSE))," ",VLOOKUP(K176,[2]Proposito_programa!$C$2:$E$59,3,FALSE)) -> Propósito 5: Construir Bogotá - Región con gobierno abierto, transparente y ciudadanía consciente | N176: 1783 | O176: 1 | P176: 9178045 | Q176: JOSE VICENTE DIAZ HERNANDEZ | R176: Persona Natural | S176: - | T176: - | V176: 19570000 | X176: 1 | Y176: 4305400 | Z176: 23875400 | AA176: 19961400 | AB176: 2021-06-28 | AC176: 2021-06-28 | AD176: 2021-12-31 | AE176: 150 DÍAS | AF176: 1 | AG176: 31 | AN176: X | AP176: 0.82
A177: 166 | B177: 2021 | C177: FDLF-CD-166-2021 | D177: https://community.secop.gov.co/Public/Tendering/OpportunityDetail/Index?noticeUID=CO1.NTC.2062403&isFromPublicArea=True&isModal=true&asPopupView=true | E177: Contratos de prestación de servicios profesionales y de apoyo a la gestión | F177: Contratación directa | G177: Prestación de servicios profesionales y de apoyo a la gestión, o para la ejecución de trabajos artísticos que sólo puedan encomendarse a determinadas personas naturales; | H177: PRESTAR SERVICIOS PROFESIONALES PARA APOYAR EL ÁREA DE GESTIÓN DE DESARROLLO LOCAL Y EL EQUIPO DE PARTICIPACIÓN EN EL FORTALECIMIENTO E INCLUSIÓN DE LOS GRUPOS ÉTNICOS DE LA LOCALIDAD DE FONTIBÓN EN LOS PROYECTOS DE INVERSIÓN. | I177: Inversión | J177: Un nuevo Contrato Social y ambiental para la Bogotá del Siglo XXI | K177: 55 | L177: =IF(ISERROR(VLOOKUP(K177,[2]Proposito_programa!$C$2:$E$59,2,FALSE))," ",VLOOKUP(K177,[2]Proposito_programa!$C$2:$E$59,2,FALSE)) -> Fortalecimiento de cultura ciudadana y su institucionalidad | M177: =IF(ISERROR(VLOOKUP(K177,[2]Proposito_programa!$C$2:$E$59,3,FALSE))," ",VLOOKUP(K177,[2]Proposito_programa!$C$2:$E$59,3,FALSE)) -> Propósito 5: Construir Bogotá - Región con gobierno abierto, transparente y ciudadanía consciente | N177: 1782 | O177: 1 | P177: 1016072576 | Q177: MARIA ALEJANDRA PIÑEROS MONDRAGON | R177: Persona Natural | S177: - | T177: - | V177: 26166000 | X177: 0 | Y177: 0 | Z177: 26166000 | AA177: 21805000 | AB177: 2021-07-01 | AC177: 2021-07-01 | AD177: 2021-12-30 | AE177: 180 DÍAS | AF177: 0 | AG177: 0 | AN177: X | AP177: 0.83
A178: 167 | B178: 2021 | C178: FDLF-CD-167-2021 | D178: https://www.contratos.gov.co/consultas/detalleProceso.do?numConstancia=21-22-27326&g | E178: Convenios de cooperacion | F178: Contratación directa | G178: Contratos interadministrativos | H178: AUNAR ESFUERZOS TÉCNICOS Y ADMINISTRATIVOS CON EL FIN DE DESARROLLAR ACCIONES ARTICULADAS ENTRE LAS PARTES ORIENTADAS A FOMENTAR LA GENERACIÓN Y CIRCULACIÓN DE BIENES Y SERVICIOS CULTURALES, ASÍ COMO AL FORTALECIMIENTO DE LOS AGENTES DE ESTOS SECTORES EN LAS LOCALIDADES DEL DISTRITO CAPITAL QUE HACEN PARTE DE ESTE INSTRUMENTO. | I178: Inversión | J178: Un nuevo Contrato Social y ambiental para la Bogotá del Siglo XXI | K178: 17 | L178: =IF(ISERROR(VLOOKUP(K178,[2]Proposito_programa!$C$2:$E$59,2,FALSE))," ",VLOOKUP(K178,[2]Proposito_programa!$C$2:$E$59,2,FALSE)) -> Jóvenes con capacidades: Proyecto de vida para la ciudadanía, la innovación y el trabajo del siglo XXI | M178: =IF(ISERROR(VLOOKUP(K178,[2]Proposito_programa!$C$2:$E$59,3,FALSE))," ",VLOOKUP(K178,[2]Proposito_programa!$C$2:$E$59,3,FALSE)) -> Propósito 1: Hacer un nuevo contrato social para incrementar la inclusión social, productiva y política | N178: 1755 | O178: 1 | P178: 899999061 | Q178: SECRETARIA DE EDUCACIÓN DEL DISTRITO | R178: Persona Jurídica | S178: - | T178: - | V178: 1765266018 | X178: 0 | Y178: 0 | Z178: 1765266018 | AA178: =Z178+W178+X178 -> 1765266018 | AB178: 2021-06-28 | AC178: 2021-06-30 | AD178: 2027-06-06 | AE178: 2160 DÍAS | AF178: 0 | AG178: 0 | AM178: X | AP178: 1
A179: 168 | B179: 2021 | C179: FDLF-CD-168-2021 | D179: https://community.secop.gov.co/Public/Tendering/OpportunityDetail/Index?noticeUID=CO1.NTC.2063882&isFromPublicArea=True&isModal=true&asPopupView=true | E179: Contratos de prestación de servicios profesionales y de apoyo a la gestión | F179: Contratación directa | G179: Prestación de servicios profesionales y de apoyo a la gestión, o para la ejecución de trabajos artísticos que sólo puedan encomendarse a determinadas personas naturales; | H179: PRESTAR SERVICIOS TÉCNICOS PARA APOYAR EL EQUIPO DE LIQUIDACIONES DE LA ALCALDÍA LOCAL DE FONTIBÓN. | I179: Inversión | J179: Un nuevo Contrato Social y ambiental para la Bogotá del Siglo XXI | K179: 57 | L179: =IF(ISERROR(VLOOKUP(K179,[2]Proposito_programa!$C$2:$E$59,2,FALSE))," ",VLOOKUP(K179,[2]Proposito_programa!$C$2:$E$59,2,FALSE)) -> Gestión pública local | M179: =IF(ISERROR(VLOOKUP(K179,[2]Proposito_programa!$C$2:$E$59,3,FALSE))," ",VLOOKUP(K179,[2]Proposito_programa!$C$2:$E$59,3,FALSE)) -> Propósito 5: Construir Bogotá - Región con gobierno abierto, transparente y ciudadanía consciente | N179: 1783 | O179: 1 | P179: 1032476271 | Q179: CHRISTHIAN MOISES GUARIN CUBILLOS | R179: Persona Natural | S179: - | T179: - | V179: 23484000 | X179: 0 | Y179: 0 | Z179: 23484000 | AA179: 19570000 | AB179: 2021-06-30 | AC179: 2021-07-01 | AD179: 2021-12-30 | AE179: 183 DÍAS | AF179: 0 | AG179: 0 | AN179: X | AP179: 0.83
A180: 169 | B180: 2021 | C180: FDLF-CD-169-2021 | D180: https://community.secop.gov.co/Public/Tendering/OpportunityDetail/Index?noticeUID=CO1.NTC.2069189&isFromPublicArea=True&isModal=true&asPopupView=true | E180: Contratos de prestación de servicios profesionales y de apoyo a la gestión | F180: Contratación directa | G180: Prestación de servicios profesionales y de apoyo a la gestión, o para la ejecución de trabajos artísticos que sólo puedan encomendarse a determinadas personas naturales; | H180: PRESTAR SERVICIOS DE APOYO EN LAS ACTIVIDADES DE SEGURIDAD Y CONVIVENCIA CIUDADANA, DE ACUERDO CON LAS NECESIDADES Y ESTRATEGIAS EMANADAS POR EL ÁREA DE GESTIÓN DE DESARROLLO LOCAL DE LA ALCALDÍA LOCAL DE FONTIBÓN. | I180: Inversión | J180: Un nuevo Contrato Social y ambiental para la Bogotá del Siglo XXI | K180: 43 | L180: =IF(ISERROR(VLOOKUP(K180,[2]Proposito_programa!$C$2:$E$59,2,FALSE))," ",VLOOKUP(K180,[2]Proposito_programa!$C$2:$E$59,2,FALSE)) -> Cultura ciudadana para la confianza, la convivencia y la participación desde la vida cotidiana | M180: =IF(ISERROR(VLOOKUP(K180,[2]Proposito_programa!$C$2:$E$59,3,FALSE))," ",VLOOKUP(K180,[2]Proposito_programa!$C$2:$E$59,3,FALSE)) -> Propósito 3: Inspirar confianza y legitimidad para vivir sin miedo y ser epicentro de cultura ciudadana, paz y reconciliación | N180: 1775 | O180: 1 | P180: 76041176 | Q180: JUAN DE LA CRUZ CASTRO PAZ | R180: Persona Natural | S180: - | T180: - | V180: 14197691 | X180: 0 | Y180: 0 | Z180: 14197691 | AA180: 11763802 | AB180: 2021-07-02 | AC180: 2021-07-06 | AD180: 2021-12-30 | AE180: 175 DÍAS | AF180: 0 | AG180: 0 | AN180: X | AP180: 0.83
A181: 170 | B181: 2021 | C181: FDLF-CD-170-2021 | D181: https://www.contratos.gov.co/consultas/detalleProceso.do?numConstancia=21-22-27218&g | E181: Convenios de cooperacion | F181: Contratación directa | G181: Contratos interadministrativos | H181: AUNAR ESFUERZOS TÉCNICOS, ADMINISTRATIVOS Y FINANCIEROS CON EL FIN DE DESARROLLAR ACCIONES ARTICULADAS ENTRE LAS PARTES ORIENTADAS A FOMENTAR LA GENERACIÓN Y CIRCULACIÓN DE BIENES Y SERVICIOS CULTURALES, ARTÍSTICOS Y PATRIMONIALES, ASÍ COMO AL FORTALECIMIENTO DE LOS AGENTES DE ESTOS SECTORES EN LAS LOCALIDADES DEL DISTRITO CAPITAL DE ACUERDO CON LOS PROYECTOS PRESENTADOS A LOS FONDOS DE DESARROLLO LOCAL QUE FORMAN PARTE DEL CONVENIO EN EL MARCO DEL PROGRAMA “ES CULTURA LOCAL 2021” | I181: Inversión | J181: Un nuevo Contrato Social y ambiental para la Bogotá del Siglo XXI | K181: 6 | L181: =IF(ISERROR(VLOOKUP(K181,[2]Proposito_programa!$C$2:$E$59,2,FALSE))," ",VLOOKUP(K181,[2]Proposito_programa!$C$2:$E$59,2,FALSE)) -> Sistema Distrital de Cuidado | M181: =IF(ISERROR(VLOOKUP(K181,[2]Proposito_programa!$C$2:$E$59,3,FALSE))," ",VLOOKUP(K181,[2]Proposito_programa!$C$2:$E$59,3,FALSE)) -> Propósito 1: Hacer un nuevo contrato social para incrementar la inclusión social, productiva y política | N181: 1761 | O181: 1 | P181: 900413030 | Q181: IDARTES | R181: Persona Jurídica | S181: - | T181: - | V181: 373971318 | X181: 0 | Z181: =V181+W181 -> 373971318 | AA181: 373971318 | AB181: 2021-06-30 | AC181: 2021-07-07 | AD181: 2021-12-31 | AE181: 174 DÍAS | AF181: 0 | AG181: 0 | AN181: X | AP181: 0.35
A182: 170 | B182: 2021 | C182: FDLF-CD-170-2021 | D182: https://www.contratos.gov.co/consultas/detalleProceso.do?numConstancia=21-22-27218&g | E182: Convenios de cooperacion | F182: Contratación directa | G182: Contratos interadministrativos | H182: AUNAR ESFUERZOS TÉCNICOS, ADMINISTRATIVOS Y FINANCIEROS CON EL FIN DE DESARROLLAR ACCIONES ARTICULADAS ENTRE LAS PARTES ORIENTADAS A FOMENTAR LA GENERACIÓN Y CIRCULACIÓN DE BIENES Y SERVICIOS CULTURALES, ARTÍSTICOS Y PATRIMONIALES, ASÍ COMO AL FORTALECIMIENTO DE LOS AGENTES DE ESTOS SECTORES EN LAS LOCALIDADES DEL DISTRITO CAPITAL DE ACUERDO CON LOS PROYECTOS PRESENTADOS A LOS FONDOS DE DESARROLLO LOCAL QUE FORMAN PARTE DEL CONVENIO EN EL MARCO DEL PROGRAMA “ES CULTURA LOCAL 2021” | I182: Inversión | J182: Un nuevo Contrato Social y ambiental para la Bogotá del Siglo XXI | K182: 6 | L182: =IF(ISERROR(VLOOKUP(K182,[2]Proposito_programa!$C$2:$E$59,2,FALSE))," ",VLOOKUP(K182,[2]Proposito_programa!$C$2:$E$59,2,FALSE)) -> Sistema Distrital de Cuidado | M182: =IF(ISERROR(VLOOKUP(K182,[2]Proposito_programa!$C$2:$E$59,3,FALSE))," ",VLOOKUP(K182,[2]Proposito_programa!$C$2:$E$59,3,FALSE)) -> Propósito 1: Hacer un nuevo contrato social para incrementar la inclusión social, productiva y política | N182: 1761 | O182: 1 | P182: 899999061 | Q182: SECRETARIA DISTRITAL DE CULTURA RECREACION Y DEPORTE | R182: Persona Jurídica | V182: 45334682 | X182: 0 | Z182: 45334682 | AA182: 45334682 | AB182: 2021-06-30 | AC182: 2021-07-07 | AD182: 2021-12-31 | AE182: 174 DÍAS | AF182: 0 | AG182: 0 | AN182: X | AP182: 0.35
A183: 170 | B183: 2021 | C183: FDLF-CD-170-2021 | D183: https://www.contratos.gov.co/consultas/detalleProceso.do?numConstancia=21-22-27218&g | E183: Convenios de cooperacion | F183: Contratación directa | G183: Contratos interadministrativos | H183: AUNAR ESFUERZOS TÉCNICOS, ADMINISTRATIVOS Y FINANCIEROS CON EL FIN DE DESARROLLAR ACCIONES ARTICULADAS ENTRE LAS PARTES ORIENTADAS A FOMENTAR LA GENERACIÓN Y CIRCULACIÓN DE BIENES Y SERVICIOS CULTURALES, ARTÍSTICOS Y PATRIMONIALES, ASÍ COMO AL FORTALECIMIENTO DE LOS AGENTES DE ESTOS SECTORES EN LAS LOCALIDADES DEL DISTRITO CAPITAL DE ACUERDO CON LOS PROYECTOS PRESENTADOS A LOS FONDOS DE DESARROLLO LOCAL QUE FORMAN PARTE DEL CONVENIO EN EL MARCO DEL PROGRAMA “ES CULTURA LOCAL 2021” | I183: Inversión | J183: Un nuevo Contrato Social y ambiental para la Bogotá del Siglo XXI | K183: 21 | L183: =IF(ISERROR(VLOOKUP(K183,[2]Proposito_programa!$C$2:$E$59,2,FALSE))," ",VLOOKUP(K183,[2]Proposito_programa!$C$2:$E$59,2,FALSE)) -> Creación y vida cotidiana: Apropiación ciudadana del arte, la cultura y el patrimonio, para la democracia cultural | M183: =IF(ISERROR(VLOOKUP(K183,[2]Proposito_programa!$C$2:$E$59,3,FALSE))," ",VLOOKUP(K183,[2]Proposito_programa!$C$2:$E$59,3,FALSE)) -> Propósito 1: Hacer un nuevo contrato social para incrementar la inclusión social, productiva y política | N183: 1758 | O183: 1 | P183: 900413030 | Q183: IDARTES | R183: Persona Jurídica | V183: 520398873 | X183: 0 | Z183: 520398873 | AA183: 520398873 | AB183: 2021-06-30 | AC183: 2021-07-07 | AD183: 2021-12-31 | AE183: 174 DÍAS | AF183: 0 | AG183: 0 | AN183: X | AP183: 0.35
A184: 170 | B184: 2021 | C184: FDLF-CD-170-2021 | D184: https://www.contratos.gov.co/consultas/detalleProceso.do?numConstancia=21-22-27218&g | E184: Convenios de cooperacion | F184: Contratación directa | G184: Contratos interadministrativos | H184: AUNAR ESFUERZOS TÉCNICOS, ADMINISTRATIVOS Y FINANCIEROS CON EL FIN DE DESARROLLAR ACCIONES ARTICULADAS ENTRE LAS PARTES ORIENTADAS A FOMENTAR LA GENERACIÓN Y CIRCULACIÓN DE BIENES Y SERVICIOS CULTURALES, ARTÍSTICOS Y PATRIMONIALES, ASÍ COMO AL FORTALECIMIENTO DE LOS AGENTES DE ESTOS SECTORES EN LAS LOCALIDADES DEL DISTRITO CAPITAL DE ACUERDO CON LOS PROYECTOS PRESENTADOS A LOS FONDOS DE DESARROLLO LOCAL QUE FORMAN PARTE DEL CONVENIO EN EL MARCO DEL PROGRAMA “ES CULTURA LOCAL 2021” | I184: Inversión | J184: Un nuevo Contrato Social y ambiental para la Bogotá del Siglo XXI | K184: 21 | L184: =IF(ISERROR(VLOOKUP(K184,[2]Proposito_programa!$C$2:$E$59,2,FALSE))," ",VLOOKUP(K184,[2]Proposito_programa!$C$2:$E$59,2,FALSE)) -> Creación y vida cotidiana: Apropiación ciudadana del arte, la cultura y el patrimonio, para la democracia cultural | M184: =IF(ISERROR(VLOOKUP(K184,[2]Proposito_programa!$C$2:$E$59,3,FALSE))," ",VLOOKUP(K184,[2]Proposito_programa!$C$2:$E$59,3,FALSE)) -> Propósito 1: Hacer un nuevo contrato social para incrementar la inclusión social, productiva y política | N184: 1758 | O184: 1 | P184: 899999061 | Q184: SECRETARIA DISTRITAL DE CULTURA RECREACION Y DEPORTE | R184: Persona Jurídica | V184: 26784127 | X184: 1 | Y184: 296468627 | Z184: =V184+W184+Y184 -> 323252754 | AA184: 26784127 | AB184: 2021-06-30 | AC184: 2021-07-07 | AD184: 2021-12-31 | AE184: 174 DÍAS | AF184: 0 | AG184: 0 | AN184: X | AP184: 0.35
A185: 170 | B185: 2021 | C185: FDLF-CD-170-2021 | D185: https://www.contratos.gov.co/consultas/detalleProceso.do?numConstancia=21-22-27218&g | E185: Convenios de cooperacion | F185: Contratación directa | G185: Contratos interadministrativos | H185: AUNAR ESFUERZOS TÉCNICOS, ADMINISTRATIVOS Y FINANCIEROS CON EL FIN DE DESARROLLAR ACCIONES ARTICULADAS ENTRE LAS PARTES ORIENTADAS A FOMENTAR LA GENERACIÓN Y CIRCULACIÓN DE BIENES Y SERVICIOS CULTURALES, ARTÍSTICOS Y PATRIMONIALES, ASÍ COMO AL FORTALECIMIENTO DE LOS AGENTES DE ESTOS SECTORES EN LAS LOCALIDADES DEL DISTRITO CAPITAL DE ACUERDO CON LOS PROYECTOS PRESENTADOS A LOS FONDOS DE DESARROLLO LOCAL QUE FORMAN PARTE DEL CONVENIO EN EL MARCO DEL PROGRAMA “ES CULTURA LOCAL 2021” | I185: Inversión | J185: Un nuevo Contrato Social y ambiental para la Bogotá del Siglo XXI | K185: 24 | L185: =IF(ISERROR(VLOOKUP(K185,[2]Proposito_programa!$C$2:$E$59,2,FALSE))," ",VLOOKUP(K185,[2]Proposito_programa!$C$2:$E$59,2,FALSE)) -> Bogotá región emprendedora e innovadora | M185: =IF(ISERROR(VLOOKUP(K185,[2]Proposito_programa!$C$2:$E$59,3,FALSE))," ",VLOOKUP(K185,[2]Proposito_programa!$C$2:$E$59,3,FALSE)) -> Propósito 1: Hacer un nuevo contrato social para incrementar la inclusión social, productiva y política | N185: 1760 | O185: 1 | P185: 899999061 | Q185: SECRETARIA DISTRITAL DE CULTURA RECREACION Y DEPORTE | R185: Persona Jurídica | V185: 41002163 | X185: 0 | Z185: 41002163 | AA185: 41002163 | AB185: 2021-06-30 | AC185: 2021-07-07 | AD185: 2021-12-31 | AE185: 174 DÍAS | AF185: 0 | AG185: 0 | AN185: X | AP185: 0.35
A186: 170 | B186: 2021 | C186: FDLF-CD-170-2021 | D186: https://www.contratos.gov.co/consultas/detalleProceso.do?numConstancia=21-22-27218&g | E186: Convenios de cooperacion | F186: Contratación directa | G186: Contratos interadministrativos | H186: AUNAR ESFUERZOS TÉCNICOS, ADMINISTRATIVOS Y FINANCIEROS CON EL FIN DE DESARROLLAR ACCIONES ARTICULADAS ENTRE LAS PARTES ORIENTADAS A FOMENTAR LA GENERACIÓN Y CIRCULACIÓN DE BIENES Y SERVICIOS CULTURALES, ARTÍSTICOS Y PATRIMONIALES, ASÍ COMO AL FORTALECIMIENTO DE LOS AGENTES DE ESTOS SECTORES EN LAS LOCALIDADES DEL DISTRITO CAPITAL DE ACUERDO CON LOS PROYECTOS PRESENTADOS A LOS FONDOS DE DESARROLLO LOCAL QUE FORMAN PARTE DEL CONVENIO EN EL MARCO DEL PROGRAMA “ES CULTURA LOCAL 2021” | I186: Inversión | J186: Un nuevo Contrato Social y ambiental para la Bogotá del Siglo XXI | K186: 24 | L186: =IF(ISERROR(VLOOKUP(K186,[2]Proposito_programa!$C$2:$E$59,2,FALSE))," ",VLOOKUP(K186,[2]Proposito_programa!$C$2:$E$59,2,FALSE)) -> Bogotá región emprendedora e innovadora | M186: =IF(ISERROR(VLOOKUP(K186,[2]Proposito_programa!$C$2:$E$59,3,FALSE))," ",VLOOKUP(K186,[2]Proposito_programa!$C$2:$E$59,3,FALSE)) -> Propósito 1: Hacer un nuevo contrato social para incrementar la inclusión social, productiva y política | N186: 1760 | O186: 1 | P186: 900413030 | Q186: IDARTES | R186: Persona Jurídica | V186: 163079837 | X186: 1 | Y186: 0 | Z186: 163079837 | AA186: 163079837 | AB186: 2021-06-30 | AC186: 2021-07-07 | AD186: 2021-12-31 | AE186: 176 DÍAS | AF186: 0 | AG186: 0 | AN186: X | AP186: 0.35
A187: 172 | B187: 2021 | C187: FDLF-CD-172-2021 | D187: https://community.secop.gov.co/Public/Tendering/OpportunityDetail/Index?noticeUID=CO1.NTC.2077425&isFromPublicArea=True&isModal=true&asPopupView=true | E187: Contratos de prestación de servicios profesionales y de apoyo a la gestión | F187: Contratación directa | G187: Prestación de servicios profesionales y de apoyo a la gestión, o para la ejecución de trabajos artísticos que sólo puedan encomendarse a determinadas personas naturales; | H187: PRESTAR SERVICIOS PROFESIONALES PARA APOYAR EL DESARROLLO DE LAS ACTIVIDADES DE LA GESTIÓN CONTRACTUAL AL FONDO DE DESARROLLO LOCAL DE FONTIBÓN | I187: Inversión | J187: Un nuevo Contrato Social y ambiental para la Bogotá del Siglo XXI | K187: 57 | L187: =IF(ISERROR(VLOOKUP(K187,[2]Proposito_programa!$C$2:$E$59,2,FALSE))," ",VLOOKUP(K187,[2]Proposito_programa!$C$2:$E$59,2,FALSE)) -> Gestión pública local | M187: =IF(ISERROR(VLOOKUP(K187,[2]Proposito_programa!$C$2:$E$59,3,FALSE))," ",VLOOKUP(K187,[2]Proposito_programa!$C$2:$E$59,3,FALSE)) -> Propósito 5: Construir Bogotá - Región con gobierno abierto, transparente y ciudadanía consciente | N187: 1783 | O187: 1 | P187: 1136886511 | Q187: ALEJANDRA GONZALEZ MAHECHA | R187: Persona Natural | S187: - | T187: - | V187: 25293800 | X187: 1 | Y187: 2325867 | Z187: =V187+Y187 -> 27619667 | AA187: 20932800 | AB187: 2021-07-06 | AC187: 2021-07-07 | AD187: 2022-01-15 | AE187: 174 DÍAS | AF187: 1 | AG187: 16 | AN187: X | AP187: 0.76
A188: 173 | B188: 2021 | C188: FDLF-CD-173-2021 | D188: https://community.secop.gov.co/Public/Tendering/OpportunityDetail/Index?noticeUID=CO1.NTC.2086176&isFromPublicArea=True&isModal=true&asPopupView=true | E188: Contratos de prestación de servicios profesionales y de apoyo a la gestión | F188: Contratación directa | G188: Prestación de servicios profesionales y de apoyo a la gestión, o para la ejecución de trabajos artísticos que sólo puedan encomendarse a determinadas personas naturales; | H188: PRESTAR SERVICIOS DE APOYO EN LAS ACTIVIDADES DE SEGURIDAD Y CONVIVENCIA CIUDADANA, DE ACUERDO CON LAS NECESIDADES Y ESTRATEGIAS EMANADAS POR EL ÁREA DE GESTIÓN DEL DESARROLLO LOCAL, DE LA ALCALDÍA LOCAL DE FONTIBÓN. | I188: Inversión | J188: Un nuevo Contrato Social y ambiental para la Bogotá del Siglo XXI | K188: 43 | L188: =IF(ISERROR(VLOOKUP(K188,[2]Proposito_programa!$C$2:$E$59,2,FALSE))," ",VLOOKUP(K188,[2]Proposito_programa!$C$2:$E$59,2,FALSE)) -> Cultura ciudadana para la confianza, la convivencia y la participación desde la vida cotidiana | M188: =IF(ISERROR(VLOOKUP(K188,[2]Proposito_programa!$C$2:$E$59,3,FALSE))," ",VLOOKUP(K188,[2]Proposito_programa!$C$2:$E$59,3,FALSE)) -> Propósito 3: Inspirar confianza y legitimidad para vivir sin miedo y ser epicentro de cultura ciudadana, paz y reconciliación | N188: 1775 | O188: 1 | P188: 1016063794 | Q188: CHRISTIAN VESGA GONZALEZ | R188: Persona Natural | S188: - | T188: - | V188: 13710914 | X188: 0 | Y188: 0 | Z188: =V188+Y188 -> 13710914 | AA188: 11195894 | AB188: 2021-07-09 | AC188: 2021-07-13 | AD188: 2021-12-30 | AE188: 169 DÍAS | AF188: 0 | AG188: 0 | AN188: X | AP188: 0.82
A189: 174 | B189: 2021 | C189: FDLF-CD-174-2021 | D189: https://community.secop.gov.co/Public/Tendering/OpportunityDetail/Index?noticeUID=CO1.NTC.2085881&isFromPublicArea=True&isModal=true&asPopupView=true | E189: Contratos de prestación de servicios profesionales y de apoyo a la gestión | F189: Contratación directa | G189: Prestación de servicios profesionales y de apoyo a la gestión, o para la ejecución de trabajos artísticos que sólo puedan encomendarse a determinadas personas naturales; | H189: PRESTAR SERVICIOS DE APOYO AL ÁREA DE GESTIÓN DEL DESARROLLO LOCAL DE LA ALCALDÍA LOCAL DE FONTIBÓN. | I189: Inversión | J189: Un nuevo Contrato Social y ambiental para la Bogotá del Siglo XXI | K189: 57 | L189: =IF(ISERROR(VLOOKUP(K189,[2]Proposito_programa!$C$2:$E$59,2,FALSE))," ",VLOOKUP(K189,[2]Proposito_programa!$C$2:$E$59,2,FALSE)) -> Gestión pública local | M189: =IF(ISERROR(VLOOKUP(K189,[2]Proposito_programa!$C$2:$E$59,3,FALSE))," ",VLOOKUP(K189,[2]Proposito_programa!$C$2:$E$59,3,FALSE)) -> Propósito 5: Construir Bogotá - Región con gobierno abierto, transparente y ciudadanía consciente | N189: 1783 | O189: 1 | P189: 19339968 | Q189: NORBERTO HERREÑO VELASQUEZ | R189: Persona Natural | S189: - | T189: - | V189: 4867780 | X189: 0 | Y189: 0 | Z189: =V189+Y189 -> 4867780 | AA189: $ - | AB189: 2021-07-09 | AC189: 2021-07-12 | AD189: 2021-09-11 | AE189: 60 DÍAS | AF189: 0 | AG189: 0 | AN189: X | AP189: 0
A190: 175 | B190: 2021 | C190: FDLF-CD-175-2021 | D190: https://community.secop.gov.co/Public/Tendering/OpportunityDetail/Index?noticeUID=CO1.NTC.2086296&isFromPublicArea=True&isModal=true&asPopupView=true | E190: Contratos de prestación de servicios profesionales y de apoyo a la gestión | F190: Contratación directa | G190: Prestación de servicios profesionales y de apoyo a la gestión, o para la ejecución de trabajos artísticos que sólo puedan encomendarse a determinadas personas naturales; | H190: PRESTAR SERVICIOS DE APOYO AL ÁREA DE GESTIÓN DEL DESARROLLO LOCAL DE LA ALCALDÍA LOCAL DE FONTIBÓN. | I190: Inversión | J190: Un nuevo Contrato Social y ambiental para la Bogotá del Siglo XXI | K190: 57 | L190: =IF(ISERROR(VLOOKUP(K190,[2]Proposito_programa!$C$2:$E$59,2,FALSE))," ",VLOOKUP(K190,[2]Proposito_programa!$C$2:$E$59,2,FALSE)) -> Gestión pública local | M190: =IF(ISERROR(VLOOKUP(K190,[2]Proposito_programa!$C$2:$E$59,3,FALSE))," ",VLOOKUP(K190,[2]Proposito_programa!$C$2:$E$59,3,FALSE)) -> Propósito 5: Construir Bogotá - Región con gobierno abierto, transparente y ciudadanía consciente | N190: 1783 | O190: 1 | P190: 79120980 | Q190: JOHN FREDY ABELINO QUIROGA | R190: Persona Natural | S190: - | T190: - | V190: 4867780 | X190: 0 | Y190: 0 | Z190: =V190+Y190 -> 4867780 | AA190: $ - | AB190: 2021-07-09 | AC190: 2021-07-13 | AD190: 2021-09-12 | AE190: 60 DÍAS | AF190: 0 | AG190: 0 | AN190: X | AP190: 0
A191: 176 | B191: 2021 | C191: FDLF-CD-176-2021 | D191: https://community.secop.gov.co/Public/Tendering/OpportunityDetail/Index?noticeUID=CO1.NTC.2090506&isFromPublicArea=True&isModal=true&asPopupView=true | E191: Contratos de prestación de servicios profesionales y de apoyo a la gestión | F191: Contratación directa | G191: Prestación de servicios profesionales y de apoyo a la gestión, o para la ejecución de trabajos artísticos que sólo puedan encomendarse a determinadas personas naturales; | H191: PRESTAR SERVICIOS DE APOYO EN LAS ACTIVIDADES DE SEGURIDAD Y CONVIVENCIA CIUDADANA, DE ACUERDO CON LAS NECESIDADES Y ESTRATEGIAS EMANADAS POR EL ÁREA DE GESTIÓN DEL DESARROLLO LOCAL, DE LA ALCALDÍA LOCAL DE FONTIBÓN. | I191: Inversión | J191: Un nuevo Contrato Social y ambiental para la Bogotá del Siglo XXI | K191: 43 | L191: =IF(ISERROR(VLOOKUP(K191,[2]Proposito_programa!$C$2:$E$59,2,FALSE))," ",VLOOKUP(K191,[2]Proposito_programa!$C$2:$E$59,2,FALSE)) -> Cultura ciudadana para la confianza, la convivencia y la participación desde la vida cotidiana | M191: =IF(ISERROR(VLOOKUP(K191,[2]Proposito_programa!$C$2:$E$59,3,FALSE))," ",VLOOKUP(K191,[2]Proposito_programa!$C$2:$E$59,3,FALSE)) -> Propósito 3: Inspirar confianza y legitimidad para vivir sin miedo y ser epicentro de cultura ciudadana, paz y reconciliación | N191: 1775 | O191: 1 | P191: 80015021 | Q191: LUIS CARLOS ABADIA ALVARADO | R191: Persona Natural | S191: - | T191: - | V191: 13710914 | X191: 0 | Y191: 0 | Z191: =V191+Y191 -> 13710914 | AA191: 11033635 | AB191: 2021-07-12 | AC191: 2021-07-15 | AD191: 2022-01-02 | AE191: 169 DÍAS | AF191: 0 | AG191: 0 | AN191: X | AP191: 0.8
A192: 177 | B192: 2021 | C192: FDLF-CD-177-2021 | D192: https://community.secop.gov.co/Public/Tendering/OpportunityDetail/Index?noticeUID=CO1.NTC.2091714&isFromPublicArea=True&isModal=true&asPopupView=true | E192: Contratos de prestación de servicios profesionales y de apoyo a la gestión | F192: Contratación directa | G192: Prestación de servicios profesionales y de apoyo a la gestión, o para la ejecución de trabajos artísticos que sólo puedan encomendarse a determinadas personas naturales; | H192: PRESTAR SERVICIOS DE APOYO EN LAS ACTIVIDADES DE SEGURIDAD Y CONVIVENCIA CIUDADANA, DE ACUERDO CON LAS NECESIDADES Y ESTRATEGIAS EMANADAS POR EL ÁREA DE GESTIÓN DE DESARROLLO LOCAL DE LA ALCALDÍA LOCAL DE FONTIBÓN. | I192: Inversión | J192: Un nuevo Contrato Social y ambiental para la Bogotá del Siglo XXI | K192: 43 | L192: =IF(ISERROR(VLOOKUP(K192,[2]Proposito_programa!$C$2:$E$59,2,FALSE))," ",VLOOKUP(K192,[2]Proposito_programa!$C$2:$E$59,2,FALSE)) -> Cultura ciudadana para la confianza, la convivencia y la participación desde la vida cotidiana | M192: =IF(ISERROR(VLOOKUP(K192,[2]Proposito_programa!$C$2:$E$59,3,FALSE))," ",VLOOKUP(K192,[2]Proposito_programa!$C$2:$E$59,3,FALSE)) -> Propósito 3: Inspirar confianza y legitimidad para vivir sin miedo y ser epicentro de cultura ciudadana, paz y reconciliación | N192: 1775 | O192: 1 | P192: 52813244 | Q192: DIANA JULIETH SANCHEZ SUAREZ | R192: Persona Natural | S192: - | T192: - | V192: 13548654 | X192: 0 | Y192: 0 | Z192: 13548654 | AA192: 11114764 | AB192: 2021-07-12 | AC192: 2021-07-14 | AD192: 2021-12-30 | AE192: 167 DÍAS | AF192: 0 | AG192: 0 | AN192: X | AP192: 0.82
A193: 178 | B193: 2021 | C193: FDLF-CD-178-2021 | D193: https://community.secop.gov.co/Public/Tendering/OpportunityDetail/Index?noticeUID=CO1.NTC.2102467&isFromPublicArea=True&isModal=true&asPopupView=true | E193: Contratos de prestación de servicios profesionales y de apoyo a la gestión | F193: Contratación directa | G193: Prestación de servicios profesionales y de apoyo a la gestión, o para la ejecución de trabajos artísticos que sólo puedan encomendarse a determinadas personas naturales; | H193: PRESTAR SERVICIOS PARA APOYAR JURÍDICAMENTE LA EJECUCIÓN DE LAS ACCIONES REQUERIDAS PARA LA DEPURACIÓN DE LAS ACTUACIONES ADMINISTRATIVAS QUE CURSAN EN LA ALCALDÍA LOCAL DE FONTIBÓN. | I193: Inversión | J193: Un nuevo Contrato Social y ambiental para la Bogotá del Siglo XXI | K193: 57 | L193: =IF(ISERROR(VLOOKUP(K193,[2]Proposito_programa!$C$2:$E$59,2,FALSE))," ",VLOOKUP(K193,[2]Proposito_programa!$C$2:$E$59,2,FALSE)) -> Gestión pública local | M193: =IF(ISERROR(VLOOKUP(K193,[2]Proposito_programa!$C$2:$E$59,3,FALSE))," ",VLOOKUP(K193,[2]Proposito_programa!$C$2:$E$59,3,FALSE)) -> Propósito 5: Construir Bogotá - Región con gobierno abierto, transparente y ciudadanía consciente | N193: 1784 | O193: 1 | P193: 1016053840 | Q193: EVELYN LORENA GOMEZ ORTIZ | R193: Persona Natural | S193: - | T193: - | V193: 27483500 | X193: 0 | Y193: 0 | Z193: =Y193+V193+W193 -> 27483500 | AA193: 7495500 | AB193: 2021-07-15 | AC193: 2021-07-16 | AD193: 2021-12-30 | AE193: 165 DÍAS | AF193: 0 | AG193: 0 | AN193: X | AP193: 0.66
A194: 179 | B194: 2021 | C194: FDLF-CD-0179-2021 | D194: https://community.secop.gov.co/Public/Tendering/OpportunityDetail/Index?noticeUID=CO1.NTC.2104696&isFromPublicArea=True&isModal=true&asPopupView=true | E194: Convenios de cooperacion | F194: Contratación directa | G194: Contratos interadministrativos | H194: AUNAR ESFUERZOS TÉCNICOS, ADMINISTRATIVOS, LOGÍSTICOS Y FINANCIEROS ENTRE EL FONDO DE DESARROLLO LOCAL DE FONTIBÓN Y LA ORQUESTA FILARMÓNICA DE BOGOTÁ, QUE PERMITAN LA CONTINUIDAD Y DESARROLLO DEL CENTRO FILARMÓNICO LOCAL, COMO UN ESPACIO PARA EL PROCESO DE FORMACIÓN MUSICAL IMPLEMENTADO POR LA ORQUESTA Y DIRIGIDO A LA LOCALIDAD | I194: Inversión | J194: Un nuevo Contrato Social y ambiental para la Bogotá del Siglo XXI | K194: 21 | L194: =IF(ISERROR(VLOOKUP(K194,[2]Proposito_programa!$C$2:$E$59,2,FALSE))," ",VLOOKUP(K194,[2]Proposito_programa!$C$2:$E$59,2,FALSE)) -> Creación y vida cotidiana: Apropiación ciudadana del arte, la cultura y el patrimonio, para la democracia cultural | M194: =IF(ISERROR(VLOOKUP(K194,[2]Proposito_programa!$C$2:$E$59,3,FALSE))," ",VLOOKUP(K194,[2]Proposito_programa!$C$2:$E$59,3,FALSE)) -> Propósito 1: Hacer un nuevo contrato social para incrementar la inclusión social, productiva y política | N194: 1758 | O194: 1 | P194: 899999282 | Q194: ORQUESTA FILARMÓNICA DE BOGOTÁ | R194: Persona Jurídica | S194: - | T194: - | V194: 0 | X194: 0 | Y194: 0 | Z194: 0 | AA194: $ - | AB194: 2021-07-16 | AC194: 2021-07-19 | AD194: 2022-10-31 | AE194: 305 DÍAS | AF194: 0 | AG194: 0 | AM194: X | AP194: 0
A195: 180 | B195: 2021 | C195: FDLF-CD-180-2021 | D195: https://community.secop.gov.co/Public/Tendering/OpportunityDetail/Index?noticeUID=CO1.NTC.2097775&isFromPublicArea=True&isModal=true&asPopupView=true | E195: Contratos de prestación de servicios profesionales y de apoyo a la gestión | F195: Contratación directa | G195: Prestación de servicios profesionales y de apoyo a la gestión, o para la ejecución de trabajos artísticos que sólo puedan encomendarse a determinadas personas naturales; | H195: PRESTAR SERVICIOS DE APOYO TÉCNICO AL ÁREA DE GESTIÓN DE DESARROLLO LOCAL DE FONTIBÓN COMO MONITOR DEPORTIVO PARA LA FORMACIÓN DE LAS ESCUELAS DEPORTIVAS DE FONTIBÓN | I195: Inversión | J195: Un nuevo Contrato Social y ambiental para la Bogotá del Siglo XXI | K195: 20 | L195: =IF(ISERROR(VLOOKUP(K195,[2]Proposito_programa!$C$2:$E$59,2,FALSE))," ",VLOOKUP(K195,[2]Proposito_programa!$C$2:$E$59,2,FALSE)) -> Bogotá, referente en cultura, deporte, recreación y actividad física, con parques para el desarrollo y la salud | M195: =IF(ISERROR(VLOOKUP(K195,[2]Proposito_programa!$C$2:$E$59,3,FALSE))," ",VLOOKUP(K195,[2]Proposito_programa!$C$2:$E$59,3,FALSE)) -> Propósito 1: Hacer un nuevo contrato social para incrementar la inclusión social, productiva y política | N195: 1757 | O195: 1 | P195: 1013644299 | Q195: WILLIAM JAVIER REYES RUGELES | R195: Persona Natural | S195: - | T195: - | V195: 13219250 | X195: 1 | Y195: 2996363 | Z195: 16215613 | AA195: 9253475 | AB195: 2021-07-14 | AC195: 2021-07-16 | AD195: 2022-01-19 | AE195: 152 DÍAS | AF195: 1 | AG195: 34 | AN195: X | AP195: 0.57
A196: 181 | B196: 2021 | C196: FDLF-CCI-181-2021 | D196: https://community.secop.gov.co/Public/Tendering/OpportunityDetail/Index?noticeUID=CO1.NTC.2102708&isFromPublicArea=True&isModal=False | E196: Convenios de cooperacion | F196: Régimen especial | G196: Contratos interadministrativos | H196: AUNAR ESFUERZOS PARA LA COOPERACIÓN ADMINISTRATIVA, TÉCNICA Y ECONÓMICA, ENTRE EL PROGRAMA PARA LAS NACIONES UNIDAS PARA EL DESARROLLO (PNUD) Y EL FONDO DE DESARROLLO LOCAL DE FONTIBÓN, CON EL FIN DE IMPLEMENTAR ESTRATEGIAS QUE PROMUEVAN EL FORTALECIMIENTO A LOS EMPRENDIMIENTOS DE LA ECONOMÍA POPULAR DE LA LOCALIDAD DE FONTIBÓN Y LAS UNIDADES PRODUCTIVAS FAMILIARES Y/O POBLACIONES DEDICADAS A ACTIVIDADES TRADICIONALES QUE PERMITEN GENERAR INGRESOS (AUTOEMPLEO), Y EL FORTALECIMIENTO DE MIPYMES LOCALES, A TRAVÉS DE UN PROCESO DE ACOMPAÑAMIENTO ESPECIALIZADO QUE PERMITA EL MEJORAMIENTO DE LAS COMPETENCIAS DE LOS EMPRESARIOS Y LAS CONDICIONES DE SUS NEGOCIOS Y DE ESTA FORMA APORTAR DE FORMA SIGNIFICATIVA AL CUMPLIMIENTO DE LA AGENDA DE REACTIVACIÓN ECONÓMICA EN LA LOCALIDAD, PARA EL DESARROLLO DE RUTA 1 – EMPRENDIMIENTO LOCAL Y LA RUTA 2 - FORTALECIMIENTO EMPRESARIAL POR EL FDLF. | I196: Inversión | J196: Un nuevo Contrato Social y ambiental para la Bogotá del Siglo XXI | K196: 6 | L196: =IF(ISERROR(VLOOKUP(K196,[2]Proposito_programa!$C$2:$E$59,2,FALSE))," ",VLOOKUP(K196,[2]Proposito_programa!$C$2:$E$59,2,FALSE)) -> Sistema Distrital de Cuidado | M196: =IF(ISERROR(VLOOKUP(K196,[2]Proposito_programa!$C$2:$E$59,3,FALSE))," ",VLOOKUP(K196,[2]Proposito_programa!$C$2:$E$59,3,FALSE)) -> Propósito 1: Hacer un nuevo contrato social para incrementar la inclusión social, productiva y política | N196: 1761 | O196: 1 | P196: 800091076 | Q196: PROGRAMA DE LAS NACIONES UNIDAS PARA EL DESARROLLO | R196: Persona Jurídica | S196: - | T196: - | V196: 911990800 | X196: 0 | Y196: 0 | Z196: 911990800 | AA196: 729592640 | AB196: 2021-07-15 | AC196: 2021-07-16 | AD196: 2022-05-30 | AE196: 319 DÍAS | AF196: 0 | AG196: 0 | AM196: X | AP196: 0
A197: 182 | B197: 2021 | C197: FDLF-CD-182-2021 | D197: https://community.secop.gov.co/Public/Tendering/OpportunityDetail/Index?noticeUID=CO1.NTC.2110564&isFromPublicArea=True&isModal=true&asPopupView=true | E197: Contratos de prestación de servicios profesionales y de apoyo a la gestión | F197: Contratación directa | G197: Prestación de servicios profesionales y de apoyo a la gestión, o para la ejecución de trabajos artísticos que sólo puedan encomendarse a determinadas personas naturales; | H197: PRESTAR SERVICIOS PARA APOYAR JURÍDICAMENTE LA EJECUCIÓN DE LAS ACCIONES REQUERIDAS PARA LA DEPURACIÓN DE LAS ACTUACIONES ADMINISTRATIVAS QUE CURSAN EN LA ALCALDÍA LOCAL DE FONTIBÓN | I197: Inversión | J197: Un nuevo Contrato Social y ambiental para la Bogotá del Siglo XXI | K197: 57 | L197: =IF(ISERROR(VLOOKUP(K197,[2]Proposito_programa!$C$2:$E$59,2,FALSE))," ",VLOOKUP(K197,[2]Proposito_programa!$C$2:$E$59,2,FALSE)) -> Gestión pública local | M197: =IF(ISERROR(VLOOKUP(K197,[2]Proposito_programa!$C$2:$E$59,3,FALSE))," ",VLOOKUP(K197,[2]Proposito_programa!$C$2:$E$59,3,FALSE)) -> Propósito 5: Construir Bogotá - Región con gobierno abierto, transparente y ciudadanía consciente | N197: 1784 | O197: 1 | P197: 79572785 | Q197: JORGE ARMANDO SUAREZ MEDINA | R197: Persona Natural | S197: - | T197: - | V197: 26650666 | X197: 0 | Y197: 0 | Z197: 26650666 | AA197: 21487100 | AB197: 2021-07-19 | AC197: 2021-07-22 | AD197: 2021-12-30 | AE197: 160 DÍAS | AF197: 0 | AG197: 0 | AN197: X | AP197: 0.37
A198: 183 | B198: 2021 | C198: FDLF-CD-183-2021 | D198: https://community.secop.gov.co/Public/Tendering/OpportunityDetail/Index?noticeUID=CO1.NTC.2110704&isFromPublicArea=True&isModal=true&asPopupView=true | E198: Contratos de prestación de servicios profesionales y de apoyo a la gestión | F198: Contratación directa | G198: Prestación de servicios profesionales y de apoyo a la gestión, o para la ejecución de trabajos artísticos que sólo puedan encomendarse a determinadas personas naturales; | H198: PRESTAR SERVICIOS PARA APOYAR JURÍDICAMENTE LA EJECUCIÓN DE LAS ACCIONES REQUERIDAS PARA LA DEPURACIÓN DE LAS ACTUACIONES ADMINISTRATIVAS QUE CURSAN EN LA ALCALDÍA LOCAL DE FONTIBÓN | I198: Inversión | J198: Un nuevo Contrato Social y ambiental para la Bogotá del Siglo XXI | K198: 57 | L198: =IF(ISERROR(VLOOKUP(K198,[2]Proposito_programa!$C$2:$E$59,2,FALSE))," ",VLOOKUP(K198,[2]Proposito_programa!$C$2:$E$59,2,FALSE)) -> Gestión pública local | M198: =IF(ISERROR(VLOOKUP(K198,[2]Proposito_programa!$C$2:$E$59,3,FALSE))," ",VLOOKUP(K198,[2]Proposito_programa!$C$2:$E$59,3,FALSE)) -> Propósito 5: Construir Bogotá - Región con gobierno abierto, transparente y ciudadanía consciente | N198: 1784 | O198: 1 | P198: 1077436601 | Q198: MANUEL FERLEY MATURANA MENA | R198: Persona Natural | S198: - | T198: - | V198: 26650666 | X198: 0 | Y198: 0 | Z198: 26650666 | AA198: 21487100 | AB198: 2021-07-19 | AC198: 2021-07-22 | AD198: 2021-12-30 | AE198: 160 DÍAS | AF198: 0 | AG198: 0 | AN198: X | AP198: 0.81
A199: 184 | B199: 2021 | C199: FDLF-CD-184-2021 | D199: https://community.secop.gov.co/Public/Tendering/OpportunityDetail/Index?noticeUID=CO1.NTC.2115447&isFromPublicArea=True&isModal=true&asPopupView=true | E199: Contratos de prestación de servicios profesionales y de apoyo a la gestión | F199: Contratación directa | G199: Prestación de servicios profesionales y de apoyo a la gestión, o para la ejecución de trabajos artísticos que sólo puedan encomendarse a determinadas personas naturales; | H199: PRESTAR SERVICIOS PROFESIONALES PARA APOYAR EL ÁREA DE GESTIÓN DE DESARROLLO LOCAL EN TEMAS PRECONTRACTUALES DE LOS PROYECTOS DE INVERSIÓN DEL FONDO DE DESARROLLO LOCAL DE FONTIBÓN. | I199: Inversión | J199: Un nuevo Contrato Social y ambiental para la Bogotá del Siglo XXI | K199: 57 | L199: =IF(ISERROR(VLOOKUP(K199,[2]Proposito_programa!$C$2:$E$59,2,FALSE))," ",VLOOKUP(K199,[2]Proposito_programa!$C$2:$E$59,2,FALSE)) -> Gestión pública local | M199: =IF(ISERROR(VLOOKUP(K199,[2]Proposito_programa!$C$2:$E$59,3,FALSE))," ",VLOOKUP(K199,[2]Proposito_programa!$C$2:$E$59,3,FALSE)) -> Propósito 5: Construir Bogotá - Región con gobierno abierto, transparente y ciudadanía consciente | N199: 1783 | O199: 1 | P199: 41795474 | Q199: FLOR MERY CONEJO RODRIGUEZ | R199: Persona Natural | S199: - | T199: - | V199: 22588800 | X199: 0 | Y199: 0 | Z199: 22588800 | AA199: 18170833 | AB199: 2021-07-26 | AC199: 2021-07-26 | AD199: 2021-12-30 | AE199: 155 DÍAS | AF199: 0 | AG199: 0 | AN199: X | AP199: 0.8
A200: 185 | B200: 2021 | C200: FDLF-CD-185-2021 | D200: https://community.secop.gov.co/Public/Tendering/OpportunityDetail/Index?noticeUID=CO1.NTC.2125198&isFromPublicArea=True&isModal=true&asPopupView=true | E200: Contratos de prestación de servicios profesionales y de apoyo a la gestión | F200: Contratación directa | G200: Prestación de servicios profesionales y de apoyo a la gestión, o para la ejecución de trabajos artísticos que sólo puedan encomendarse a determinadas personas naturales; | H200: PRESTAR SERVICIOS PARA APOYAR JURÍDICAMENTE LA EJECUCIÓN DE LAS ACCIONES REQUERIDAS PARA LA DEPURACIÓN DE LAS ACTUACIONES ADMINISTRATIVAS QUE CURSAN EN LA ALCALDÍA LOCAL DE FONTIBÓN. | I200: Inversión | J200: Un nuevo Contrato Social y ambiental para la Bogotá del Siglo XXI | K200: 57 | L200: =IF(ISERROR(VLOOKUP(K200,[2]Proposito_programa!$C$2:$E$59,2,FALSE))," ",VLOOKUP(K200,[2]Proposito_programa!$C$2:$E$59,2,FALSE)) -> Gestión pública local | M200: =IF(ISERROR(VLOOKUP(K200,[2]Proposito_programa!$C$2:$E$59,3,FALSE))," ",VLOOKUP(K200,[2]Proposito_programa!$C$2:$E$59,3,FALSE)) -> Propósito 5: Construir Bogotá - Región con gobierno abierto, transparente y ciudadanía consciente | N200: 1784 | O200: 1 | P200: 1032454002 | Q200: DANIEL RICARDO GONZALEZ RODRIGUEZ | R200: Persona Natural | S200: - | T200: - | V200: 25651266 | X200: 0 | Y200: 0 | Z200: 25651266 | AA200: 20487700 | AB200: 2021-07-26 | AC200: 2021-07-28 | AD200: 2021-12-27 | AE200: 150 DÍAS | AF200: 0 | AG200: 0 | AN200: X | AP200: 0.38
A201: 186 | B201: 2021 | C201: FDLF-CD-186-2021 | D201: https://community.secop.gov.co/Public/Tendering/OpportunityDetail/Index?noticeUID=CO1.NTC.2131377&isFromPublicArea=True&isModal=true&asPopupView=true | E201: Contratos de prestación de servicios profesionales y de apoyo a la gestión | F201: Contratación directa | G201: Prestación de servicios profesionales y de apoyo a la gestión, o para la ejecución de trabajos artísticos que sólo puedan encomendarse a determinadas personas naturales; | H201: PRESTAR SERVICIOS PROFESIONALES DE APOYO AL ÁREA DE GESTIÓN DE DESARROLLO LOCAL EN LO REFERENTE A CONSTRUIR PAZ Y RECONCILIACIÓN EN LA LOCALIDAD DE FONTIBÓN. | I201: Inversión | J201: Un nuevo Contrato Social y ambiental para la Bogotá del Siglo XXI | K201: 39 | L201: =IF(ISERROR(VLOOKUP(K201,[2]Proposito_programa!$C$2:$E$59,2,FALSE))," ",VLOOKUP(K201,[2]Proposito_programa!$C$2:$E$59,2,FALSE)) -> Bogotá territorio de paz y atención integral a las víctimas del conflicto armado | M201: =IF(ISERROR(VLOOKUP(K201,[2]Proposito_programa!$C$2:$E$59,3,FALSE))," ",VLOOKUP(K201,[2]Proposito_programa!$C$2:$E$59,3,FALSE)) -> Propósito 3: Inspirar confianza y legitimidad para vivir sin miedo y ser epicentro de cultura ciudadana, paz y reconciliación | N201: 1773 | O201: 1 | P201: 1010238403 | Q201: JUANITA GIRALDO SALGADO | R201: Persona Natural | S201: - | T201: - | V201: 21659633 | X201: 0 | Y201: 0 | Z201: 21659633 | AA201: 8576633 | AB201: 2021-07-29 | AC201: 2021-08-02 | AD201: 2021-12-30 | AE201: 149 DÍAS | AF201: 0 | AG201: 0 | AN201: X | AP201: 0.4
A202: 187 | B202: 2021 | C202: FDLF-CD-187-2021 | D202: https://community.secop.gov.co/Public/Tendering/OpportunityDetail/Index?noticeUID=CO1.NTC.2148769&isFromPublicArea=True&isModal=true&asPopupView=true | E202: Contratos de prestación de servicios profesionales y de apoyo a la gestión | F202: Contratación directa | G202: Prestación de servicios profesionales y de apoyo a la gestión, o para la ejecución de trabajos artísticos que sólo puedan encomendarse a determinadas personas naturales; | H202: PRESTAR SERVICIOS COMO PROFESIONAL ESPECIALIZADO PARA APOYAR EL ÁREA DE GESTIÓN DE DESARROLLO LOCAL DE FONTIBÓN PARA EL DESARROLLO DEL PROYECTO DE BUEN TRATO EN LOS COMPONENTES DE ORIENTACIÓN, ASESORÍA FAMILIAR, POSICIONAMIENTO Y PROMOCIÓN DEL BUEN TRATO. | I202: Inversión | J202: Un nuevo Contrato Social y ambiental para la Bogotá del Siglo XXI | K202: 6 | L202: =IF(ISERROR(VLOOKUP(K202,[2]Proposito_programa!$C$2:$E$59,2,FALSE))," ",VLOOKUP(K202,[2]Proposito_programa!$C$2:$E$59,2,FALSE)) -> Sistema Distrital de Cuidado | M202: =IF(ISERROR(VLOOKUP(K202,[2]Proposito_programa!$C$2:$E$59,3,FALSE))," ",VLOOKUP(K202,[2]Proposito_programa!$C$2:$E$59,3,FALSE)) -> Propósito 1: Hacer un nuevo contrato social para incrementar la inclusión social, productiva y política | N202: 1762 | O202: 1 | P202: 1024536022 | Q202: MARIA ALEJANDRA GARZON AUDOR | R202: Persona Natural | S202: - | T202: - | V202: 33161466 | X202: 1 | Y202: 5905467 | Z202: 39066933 | AA202: 26347467 | AB202: 2021-08-04 | AC202: 2021-08-05 | AD202: 2021-12-30 | AE202: 146 DÍAS | AF202: 1 | AG202: 26 | AN202: X | AP202: 0.67
... 223 more rows

Sheet BOG-DATA
D1: INFORME BOG DATA VS INFORME ENVIADO POR ALCALDIA LOCAL DE FONTIBON
D2: 9 | E2: VALOR FINAL BOGDATA | F2: VALOR FINAL INFORMADOS | G2: ACUMULADO GIROS BOG DATA | H2: GIROS INFORMADOS
D3: FUNCIONAMIENTO | E3: 4628488866 | F3: 4628488866 | G3: 2601357609 | H3: 2601357609
D4: DIFERENCIAS | E4: =F3-E3 -> 0 | G4: =H3-G3 -> 0
D5: INVERSION | E5: 27491453799 | F5: 27491453799 | G5: 15002154728 | H5: 15002154728
D6: DIFERENCIAS | E6: =F5-E5 -> 0 | G6: =H5-G5 -> 0
D7: PROPÓSITO 01:Hacer un nuevo contrato social con igualdad de oportunidades para la inclusión social, productiva y política | E7: 15812870960 | F7: 15154028464 | G7: 10440233506 | H7: 9459382952
D8: DIFERENCIAS | E8: =F7-E7 -> -658842496 | G8: =H7-G7 -> -980850554
D9: PROGRAMA 01:Subsidios y transferencias para la equidad | E9: 5700483318 | F9: 4752077668 | G9: 5525421572 | H9: 4648438
C10: NO corre la formula en 422 y 423 | D10: DIFERENCIAS | E10: =F9-E9 -> -948405650 | G10: =H9-G9 -> -5520773134
D11: 1752 | E11: 5700483318 | F11: 5700483318 | G11: 5525421572 | H11: 5596844165
D12: DIFERENCIAS | E12: =F11-E11 -> 0 | G12: =H11-G11 -> 71422593
D13: PROGRAMA 6:Sistema Distrital del Cuidado | E13: 3385753951 | F13: 4777601000 | G13: 1468589006 | H13: 2106733034
D14: DIFERENCIAS | E14: =F13-E13 -> 1391847049 | G14: =H13-G13 -> 638144028
D15: 1761 | E15: 1555190194 | F15: 2606923821 | G15: 1278265273 | H15: 1916409301
D16: DIFERENCIAS | E16: =F15-E15 -> 1051733627 | G16: =H15-G15 -> 638144028
D17: 1762 | E17: 712799657 | F17: 712799657 | G17: 108062800 | H17: 108062800
D18: DIFERENCIAS | E18: =F17-E17 -> 0 | G18: =H17-G17 -> 0
D19: 1763 | E19: 210492000 | F19: 210492000 | G19: 0 | H19: 0
D20: DIFERENCIAS | E20: =F19-E19 -> 0 | G20: =H19-G19 -> 0
D21: 1764 | E21: 907272100 | F21: 907272100 | G21: 82260933 | H21: 82260933
D22: DIFERENCIAS | E22: =F21-E21 -> 0 | G22: =H21-G21 -> 0
D23: Programa 8: Prevención y atención de maternidad temprana | E23: 203417000 | F23: 24985000 | G23: 20487700 | H23: 20487700
D24: DIFERENCIAS | E24: =F23-E23 -> -178432000 | G24: 0
D25: 1765 | E25: 203417000 | F25: 203417000 | G25: 20487700 | H25: 20487700
D26: DIFERENCIAS | E26: =F25-E25 -> 0 | G26: =H25-G25 -> 0
D27: Programa 12: Educación inicial: Bases sólidas para la vida | E27: 813052403 | F27: 813052403 | G27: 21197400 | H27: 21197400
D28: DIFERENCIAS | E28: =F27-E27 -> 0 | G28: 0
D29: 1753 | E29: 813052403 | F29: 813052403 | G29: 21197400 | H29: 21197400
D30: DIFERENCIAS | E30: =F29-E29 -> 0 | G30: =H29-G29 -> 0
D31: Programa 14: Formación integral: mas y mejor tiempo en los colegios | E31: 315273000 | F31: 315273000 | G31: 0 | H31: 0
D32: DIFERENCIAS | E32: =F31-E31 -> 0 | G32: =H31-G31 -> 0
D33: 1754 | E33: 315273000 | F33: 315273000 | G33: 0 | H33: 0
D34: DIFERENCIAS | E34: =F33-E33 -> 0 | G34: =H33-G33 -> 0
D35: Programa 17: Jóvenes con capacidades: Proyecto de vida para la ciudadanía, la innovación y el trabajo del siglo XXI | E35: 1897145451 | F35: 1897145451 | G35: 1875860418 | H35: 1875860418
D36: DIFERENCIAS | E36: =F35-E35 -> 0 | G36: =H35-G35 -> 0
D37: 1755 | E37: 1897145451 | F37: 1897145451 | G37: 1875860418 | H37: 1875860418
D38: DIFERENCIAS | E38: =F37-E37 -> 0 | G38: =H37-G37 -> 0
D39: Programa 20: Bogotá, referente en cultura, deporte, recreación y actividad física, con parques para el desarrollo y la salud | E39: 1110002850 | F39: 1110002850 | G39: 651015076 | H39: 660268551
D40: DIFERENCIAS | E40: =F39-E39 -> 0 | G40: =H39-G39 -> 9253475
D41: 1757 | E41: 1110002850 | F41: 1110002850 | G41: 651015076 | H41: 660268551
D42: DIFERENCIAS | E42: =F41-E41 -> 0 | G42: =H41-G41 -> 9253475
D43: Programa 21: Creación y vida cotidiana: Apropiación ciudadana del arte, la cultura y el patrimonio, para la democracia cultural | E43: 1838252655 | F43: 979069559 | G43: 641599667 | H43: 94416667
D44: DIFERENCIAS | E44: =F43-E43 -> -859183096 | G44: =H43-G43 -> -547183000
D45: 1758 | E45: 1838252655 | F45: 1054312989 | G45: 641599667 | H45: 94416667
D46: DIFERENCIAS | E46: =F45-E45 -> -783939666 | G46: =H45-G45 -> -547183000
D47: Programa 24: Bogotá región emprendedora e innovadora | E47: 549490332 | F47: 484821533 | G47: 236062667 | H47: 31980667
D48: DIFERENCIAS | E48: =F47-E47 -> -64668799 | G48: =H47-G47 -> -204082000
D49: 1759 | E49: 345408332 | F49: 345408332 | G49: 31980667 | H49: 31980667
D50: DIFERENCIAS | E50: =F49-E49 -> 0 | G50: =H49-G49 -> 0
D51: 1760 | E51: 204082000 | F51: 204082000 | G51: 204082000 | H51: 0
D52: DIFERENCIAS | E52: =F51-E51 -> 0 | G52: =H51-G51 -> -204082000
D53: PROPÓSITO 02:Cambiar nuestros hábitos de vida para reverdecer a Bogotá y adaptarnos y mitigar la crisis climática | E53: 2818957772 | F53: 2458464571 | G53: 211962034 | H53: 211962034
D54: DIFERENCIAS | E54: =F53-E53 -> -360493201 | G54: =H53-G53 -> 0
D55: PROGRAMA 27:Cambio cultural para la gestión de la crisis climática | E55: 853549474 | F55: 853549474 | G55: 38833333 | H55: 38833333
D56: DIFERENCIAS | E56: =F55-E55 -> 0 | G56: =H55-G55 -> 0
D57: 1766 | E57: 853549474 | F57: 853549474 | G57: 38833333 | H57: 38833333
D58: DIFERENCIAS | E58: =F57-E57 -> 0 | G58: =H57-G57 -> 0
D59: PROGRAMA 28: Bogotá protectora de sus recursos naturales | E59: 221080000 | F59: 221080000 | G59: 0 | H59: 0
D60: DIFERENCIAS | E60: =F59-E59 -> 0 | G60: =H59-G59 -> 0
D61: 1767 | E61: 221080000 | F61: 221080000 | G61: 0 | H61: 0
D62: DIFERENCIAS | E62: =F61-E61 -> 0 | G62: =H61-G61 -> 0
D63: PROGRAMA 30:Eficiencia en la atención de emergencias | E63: 206158082 | F63: 206158082 | G63: 44893333 | H63: 44893333
D64: DIFERENCIAS | E64: =F63-E63 -> 0 | G64: =H63-G63 -> 0
D65: 1768 | E65: 206158082 | F65: 206158082 | G65: 44893333 | H65: 44893333
D66: DIFERENCIAS | E66: =F65-E65 -> 0 | G66: =H65-G65 -> 0
D67: PROGRAMA 33:Más árboles y más y mejor espacio público | E67: 994599353 | F67: 855186152 | G67: 118241368 | H67: 118241368
D68: DIFERENCIAS | E68: =F67-E67 -> -139413201 | G68: 0
D69: 1769 | E69: 239961934 | F69: 239961934 | G69: 71354401 | H69: 71354401
D70: DIFERENCIAS | E70: =F69-E69 -> 0 | G70: =H69-G69 -> 0
D71: 1770 | E71: 754637419 | F71: 754637419 | G71: 46886967 | H71: 46886967
D72: DIFERENCIAS | E72: =F71-E71 -> 0 | G72: =H71-G71 -> 0
D73: PROGRAMA 34:Bogotá protectora de los animales | E73: 216328633 | F73: 216328633 | G73: 0 | H73: 0
D74: DIFERENCIAS | E74: =F73-E73 -> 0 | G74: =H73-G73 -> 0
D75: 1771 | E75: 216328633 | F75: 216328633 | G75: 0 | H75: 0
D76: DIFERENCIAS | E76: =F75-E75 -> 0 | G76: =H75-G75 -> 0
D77: PROGRAMA 38:Ecoeficiencia, reciclaje, manejo de residuos e inclusión de la población recicladora | E77: 327242230 | F77: 327242230 | G77: 9994000 | H77: 9994000
D78: DIFERENCIAS | E78: =+E77-F77 -> 0 | G78: =+G77-H77 -> 0
D79: 1772 | E79: 327242230 | F79: 327242230 | G79: 9994000 | H79: 9994000
D80: DIFERENCIAS | E80: =+E79-F79 -> 0 | G80: =+G79-H79 -> 0
D81: PROPÓSITO 03:Inspirar confianza y legitimidad para vivir sin miedo y ser epicentro de cultura ciudadana, paz y reconciliación | E81: 1694633563 | F81: NO HAY REPORTE DE ESTE PROGRAMA | G81: 350681137 | H81: NO HAY REPORTE DE ESTE PROGRAMA
D82: DIFERENCIAS | E82: =F81-E81 ->  | G82: =H81-G81 -> 
D83: PROGRAMA 39:Bogotá territorio de paz y atención integral a las víctimas del conflicto armado | E83: 323989871 | F83: NO HAY REPORTE DE ESTE PROGRAMA | G83: 18376633 | H83: NO HAY REPORTE DE ESTE PROGRAMA
D84: DIFERENCIAS | E84: =F83-E83 ->  | G84: =H83-G83 -> 
D85: 1773 | E85: 323989871 | F85: 323989871 | G85: 18376633 | H85: 18376633
D86: DIFERENCIAS | E86: =F85-E85 -> 0 | G86: =H85-G85 -> 0
D87: PROGRAMA 40:Más mujeres viven una vida libre de violencias, se sienten seguras y acceden con confianza al sistema de justicia | E87: 381933999 | F87: 322222038 | G87: 76571813 | H87: 322222038
D88: DIFERENCIAS | E88: =F87-E87 -> -59711961 | G88: =H87-G87 -> 245650225
D89: 1774 | E89: 381933999 | F89: 322222038 | G89: 76571813 | H89: 322222038
D90: DIFERENCIAS | E90: =F89-E89 -> -59711961 | G90: =H89-G89 -> 245650225
D91: PROGRAMA 43: Cultura ciudadana para la confianza, la convivencia y la participación desde la vida cotidiana | E91: 409490018 | F91: 409490018 | G91: 191626591 | H91: 191626591
D92: DIFERENCIAS | E92: =F91-E91 -> 0 | G92: =H91-G91 -> 0
D93: 1775 | E93: 409490018 | F93: 409490018 | G93: 191626591 | H93: 191626591
D94: DIFERENCIAS | E94: =F93-E93 -> 0 | G94: =H93-G93 -> 0
D95: PROGRAMA 45:Espacio público más seguro y construido colectivamente | E95: 438170008 | F95: 438170008 | G95: 5880000 | H95: 5880000
D96: DIFERENCIAS | E96: =F95-E95 -> 0 | G96: =H95-G95 -> 0
D97: 1776 | E97: 438170008 | F97: 438170008 | G97: 5880000 | H97: 5880000
D98: DIFERENCIAS | E98: =F97-E97 -> 0 | G98: =H97-G97 -> 0
D99: PROGRAMA 48:Plataforma institucional para la seguridad y justicia | E99: 141049667 | F99: 141049667 | G99: 58226100 | H99: 79392767
D100: DIFERENCIAS | E100: =F99-E99 -> 0 | G100: =H99-G99 -> 21166667
D101: 2007 | E101: 141049667 | F101: 141049667 | G101: 58226100 | H101: 79392767
D102: DIFERENCIAS | E102: =F101-E101 -> 0 | G102: =H101-G101 -> 21166667
D103: PROPÓSITO 04:Hacer de Bogotá Región un modelo de movilidad multimodal, incluyente y sostenible | E103: 1471131029 | F103: 1471131029 | G103: 77541966 | H103: 77541966
D104: DIFERENCIAS | E104: =F103-E103 -> 0 | G104: =H103-G103 -> 0
D105: PROGRAMA 49: Movilidad segura, sostenible y accesible | E105: 1471131029 | F105: 1471131029 | G105: 77541966 | H105: 77541966
D106: DIFERENCIAS | E106: =F105-E105 -> 0 | G106: =H105-G105 -> 0
D107: 1780 | E107: 1471131029 | F107: 1471131029 | G107: 77541966 | H107: 77541966
D108: DIFERENCIAS | E108: =F107-E107 -> 0 | G108: =H107-G107 -> 0
D109: PROPÓSITO 5:Construir Bogotá Región con gobierno abierto, transparente y ciudadanía consciente | E109: 5693860475 | F109: NO HAY REPORTE DE ESTE PROPOSITO | G109: 3921736085 | H109: NO HAY REPORTE DE ESTE PROPOSITO
D110: DIFERENCIAS | E110: =F109-E109 ->  | G110: =H109-G109 -> 
D111: PROGRAMA 55:Fortalecimiento de Cultura Ciudadana y su institucionalidad | E111: 1094701379 | F111: 1094701379 | G111: 278534736 | H111: 278534736
